Workbook

Sheet Legende
A1: Legende
A3: Tab | B3: Input
B4: Output
A7: Zellen | B7: Eingabe zwingend
B8: Eingabe fakultativ
B9: Ergebnisse
B10: Informationen

Sheet Allgemeine Informationen
A1: Allgemeine Informationen
A3: Adresse | B3: Musterstrasse 1
A4: PLZ | B4: 8000
A5: Ort | B5: Zürich
A7: Bewertungsannahmen
A9: Bewertungsjahr | B9: 2021 | C9: Jahr
A10: Investitionsjahr | B10: 2025 | C10: Jahr | D10: =B9&-(B9+9) -> 2021-2030
A12: Immobilienmarktdaten
A14: Diskontierungszinssatz (real) | B14: 0.022
A15: Referenzzinssatz (Gemäss Bundesamt für Wohnungswesen) | B15: 0.0125
A17: Einschätzung Marktmiete | B17: CHF/m2a HNF
A18: Bestand nach Investition (Altbauqualität) | B18: =Mieterspiegel!U9 -> 366.8789809 | C18: (wird in Tab "Mieterspiegel" definiert)
A19: Bestand nach Investition (Neubauqualität) | B19: 394
A20: Für Fläche bei Ersatzneubau | B20: 432
A21: Für Fläche bei Aufstockung | B21: 374
A23: Mietzinsanpassung (Übergang Miete aktuell an Marktmiete)
A24: Anpassung p.a. (vor Sanierung) | B24: 0.01
A25: Anpassung p.a. (nach Sanierung) | B25: 0.005
A27: Leerstandsentwicklung aufgrund Investition | B27: Bei bewohntem Zustand | E27: Bei Sanierungskündigung
A28: Entwicklung bis 1 Jahr vor Investition | B28: 0.01 | C28: Reduktion p.a. | E28: 0.01 | F28: Reduktion p.a.
A29: 1 Jahr vor Investition | B29: 0.1 | E29: 0.5
A30: 1 Jahr nach Investition (Anfangsleerstand nach Neuvermietung) | B30: 0.1 | E30: 0
A32: Struktureller Leerstand (nach Investition)
A33: Bestand | B33: 0.01
A34: Neubau | B34: 0.01
A36: Weitere Kosten
A37: Betriebskosten | B37: 0.06 | C37: % von Bruttomietertrag
A38: Baurechtszins | B38: 0 | C38: CHF/a

Sheet Liegenschaftsinformationen
A1: Liegenschaftsinformationen
A3: Baujahr | E3: 1955
A4: Gebäudeversicherungswert | E4: 7188800 | F4: CHF
A5: Jahr der Schätzung | E5: 2016
A6: Gebäudevolumen | E6: 8080 | F6: m3
A8: Geometrische Koeffizienten
A10: Grundstückfläche GR | E10: 2712 | F10: m2
A11: Gebäudegrundfläche GRG | E11: 776 | F11: m2
A12: Umgebungsfläche GRU | E12: =E10-E11 -> 1936 | F12: m2 | G12: GR-GRG
A13: Fassadenabwicklung FA | E13: 180 | F13: m
A14: Traufhöhe TH | E14: 10 | F14: m
A15: Fassadenfläche =FF | E15: =E13*E14 -> 1800 | F15: m2 | G15: FA x TH
A16: Anzahl Wohngeschosse AWG | E16: 3 | F16: Anzahl
A17: Geschossfläche FW | E17: =E11*E16 -> 2328 | F17: m2 | G17: GRG x AWG
A18: Gewerbefläche FG | E18: 0 | F18: m2
A19: Anzahl Treppenhäuser AT | E19: 4 | F19: Anzahl
A20: Anzahl Wohnungen AW | E20: 36 | F20: Anzahl
A22: Dachhöhe (Traufe bis First) | E22: 3 | F22: m3
A23: Dachkubatur | E23: =E22*E11/2 -> 1164 | F23: m3 | G23: GRG x Dachhöhe
A26: Grösse | E26: Mehr 20 Wohnungen
A27: Baubedingungen | E27: Weniger als 4 Stockwerke oder während der Instandsetzung unbewohnt
A28: Zugang | E28: Zugang gut, mit Lagerplatz
A30: Bauteilinformationen
A32: Balkon vorhanden | E32: Ja
A33: Lüftung vorhanden | E33: Nein
A34: Transportanlagen vorhanden | E34: Nein
A35: Dachform | E35: Steildach
A36: Einbauten zu Dach vorhanden | E36: Nein
A37: Einbauschränke in Wohnungen vorhanden | E37: Ja
A39: Letzte Sanierung pro Bauteil (eBKP-H)
A41: C | B41: Konstruktion Gebäude
A42: C 4.3 | B42: Balkon | E42: 1985
A43: D | B43: Technik Gebäude
A44: D 1 | B44: Elektroanlage | E44: 2010
A45: D 5 | B45: Wärmeanlage
A46: D 5.2 | B46: Wärmeerzeugung | E46: 2010
A47: D 5.3 | B47: Wärmehauptverteilung | E47: 2010
A48: D 7 | B48: Lufttechnische Anlage
A49: D 8 | B49: Wasseranlagen
A50: D 8.1 | B50: Armatur, Apparat | E50: 1985
A51: D 8.4 | B51: Versorgungsleitung
A52: D 8.5 | B52: Entsorgungsleitung
A53: D 9 | B53: Transportanlagen
A54: E | B54: Äussere Wandbekleidung Gebäude
A55: E 2 | B55: Äussere Wandbekleidung über Terrain (Fassade) | E55: 1985
A56: E 3 | B56: Einbaute zu Aussenwand
A57: E 3.1 | B57: Fenster | E57: 1985
A58: E 3.2 | B58: Türen | E58: 1985
A59: E 3.3 | B59: Sonnenschutz | E59: 1985
A60: F | B60: Bedachung Gebäude
A61: F 1 | B61: Dachhaut
A62: F 1.2 | B62: Flachdach
A63: F 1.3 | B63: Geneigtes Dach | E63: 1985
A64: F 2 | B64: Einbaute zu Dach
A65: G | B65: Ausbau Gebäude
A66: G 1 | B66: Trennwand Tür, Tor
A67: G 1.4 | B67: Innentür | E67: 1985
A68: G 2 | B68: Bodenbelag
A69: G 2.1 | B69: Unterkonstruktion zu Bodenbelag | E69: 2005
A70: G 2.2 | B70: Fertiger Bodenbelag | E70: 2005
A71: G 3 | B71: Wandbekleidung | E71: 2015
A72: G 4 | B72: Deckenbekleidung | E72: 2015
A73: G 5 | B73: Einbauten
A74: G 5.1 | B74: Einbauschrank, Regal | E74: 1985
A75: G 5.2 | B75: Einbauküche | E75: 1985

Sheet Baurechtliche Rahmenbeding. ZH
A1: Baurechtliche Rahmenbedingungen
A3: Bauzone | B3: W4b | C3: Gemäss Zonenplan
A4: Ausnützungsziffer | B4: 1.05 | C4: Gemäss Bauordnung
A5: Anzahl zulässige Vollgeschosse | B5: 4
A6: Anzahl zulässige Dachgeschosse | B6: 1 | C6: Zählt gem. PBG ZH nicht zur Ausnützungsziffer
A7: Anzahl zulässige Untergeschosse | B7: 0
A8: Gebäudehöhe max. | B8: 13.5 | C8: Meter
A9: Grundgrenzabstand min. | B9: 3.5 | C9: Meter
A10: Gebäudelänge max. | B10: 25 | C10: Meter
A12: Abzug Aussenwand | B12: 0.1 | C12: Gemäss PBG ZH
A14: Maximale Geschossfläche | B14: =(Grundlagen!M10*B4)/(100%-B12) -> 3164 | C14: Begrenzung durch Ausnützungsziffer
A16: Aktuelle Ausnützung | B16: =(Grundlagen!M17*1-B12)/Grundlagen!M10 -> 0.8583702065 | C16: Geschossfläche gem. PBG ZH / Grundstücksfläche
A17: Ausnützungspotenzial exkl. Attika | B17: =B14-Grundlagen!M17 -> 836 | C17: m2
A19: Anzahl zusätzliches Vollgeschoss | B19: 1
A20: Anzahl zusätzliches Attikageschoss | B20: =B6 -> 1
A22: Anzahl Untergeschosse bei Ersatzneubau | B22: 1
A24: Weitere Informationen
A25: Definition Ausnützungsziffer: Planungs- und Baugesetz (PBG) Art. 255 Abs. 2 Für die Ausnützungsziffer anrechenbar sind alle dem Wohnen, Arbeiten oder sonst dem dauernden Aufenthalt dienenden oder hiefür verwendbaren Räume in Vollgeschossen unter Einschluss der dazugehörigen Erschliessungsflächen und Sanitärräume samt inneren Trennwänden.

Sheet Kennzahlen Baukosten
A1: Kennzahlen Baukosten
A3: Ersatzneubau
A5: Verhältnis GF/HNF | B5: 0.8
A6: Erstellungskosten (B-W) | B6: 638 | C6: CHF/m3
A8: Aufstockung
A10: Anzahl Attikageschosse | B10: 1
A11: Verhältnis GF/HNF | B11: 0.8
A12: Abbruchkosten bestehendes Dach | B12: 50 | C12: CHF/m3
A13: Bauwerkskosten (C-G) | B13: 870 | C13: CHF/m3 Aufstockung
A15: Planungskosten | B15: 0.15 | C15: % von B-W
A16: Nebenkosten | B16: 0.05 | C16: % von B-W
A17: Reserve, Teuerung | B17: 0.1 | C17: % von B-W

Sheet Grundlagen (hidden)
A1: Allgemeine Informationen | I1: Liegenschaftsinformationen | R1: Baurechtliche Rahmenbedingungen
A3: Adresse | B3: ='Allgemeine Informationen'!B3:G3 -> Musterstrasse 1 | C3: 0 | D3: 0 | E3: 0 | F3: 0 | G3: 0 | I3: Baujahr | M3: =Liegenschaftsinformationen!E3 -> 1955 | R3: Bauzone | S3: ='Baurechtliche Rahmenbeding. ZH'!B3 -> W4b | T3: Gemäss Zonenplan
A4: PLZ | B4: ='Allgemeine Informationen'!B4:G4 -> 8000 | C4: 0 | D4: 0 | E4: 0 | F4: 0 | G4: 0 | I4: Gebäudeversicherungswert | M4: =Liegenschaftsinformationen!E4 -> 7188800 | N4: CHF | R4: Ausnützungsziffer | S4: ='Baurechtliche Rahmenbeding. ZH'!B4 -> 1.05 | T4: Gemäss Bauordnung
A5: Ort | B5: ='Allgemeine Informationen'!B5:G5 -> Zürich | C5: 0 | D5: 0 | E5: 0 | F5: 0 | G5: 0 | I5: Jahr der Schätzung | M5: =Liegenschaftsinformationen!E5 -> 2016 | R5: Überbauungsziffer | S5: ='Baurechtliche Rahmenbeding. ZH'!B5 -> 4
I6: Gebäudevolumen | M6: =Liegenschaftsinformationen!E6 -> 8080 | N6: m3 | R6: Anzahl zulässige Vollgeschosse | S6: ='Baurechtliche Rahmenbeding. ZH'!B5 -> 4
A7: Bewertungsannahmen | R7: Anzahl zulässige Dachgeschosse | S7: ='Baurechtliche Rahmenbeding. ZH'!B6 -> 1 | T7: Zählt gem. PBG ZH nicht zur Ausnützungsziffer
I8: Geometrische Koeffizienten | R8: Anzahl zulässige Untergeschosse | S8: ='Baurechtliche Rahmenbeding. ZH'!B7 -> 0
A9: Bewertungsjahr | B9: ='Allgemeine Informationen'!B9 -> 2021 | C9: Jahr | R9: Gebäudehöhe max. | S9: ='Baurechtliche Rahmenbeding. ZH'!B8 -> 13.5 | T9: Meter
A10: Betrachtungszeitraum | B10: 120 | C10: Jahre | I10: Grundstückfläche GR | M10: =Liegenschaftsinformationen!E10 -> 2712 | N10: m2 | R10: Grundgrenzabstand min. | S10: ='Baurechtliche Rahmenbeding. ZH'!B9 -> 3.5 | T10: Meter
A11: Investitionsjahr | B11: ='Allgemeine Informationen'!B10 -> 2025 | C11: Jahr | I11: Gebäudegrundfläche GRG | M11: =Liegenschaftsinformationen!E11 -> 776 | N11: m2 | R11: Gebäudelänge max. | S11: ='Baurechtliche Rahmenbeding. ZH'!B10 -> 25 | T11: Meter
I12: Umgebungsfläche GRU | M12: =M10-M11 -> 1936 | N12: m2 | O12: GR-GRG
A13: Immobilienmarktdaten | I13: Fassadenabwicklung FA | M13: =Liegenschaftsinformationen!E13 -> 180 | N13: m | R13: Abzug Aussenwand | S13: ='Baurechtliche Rahmenbeding. ZH'!B12 -> 0.1 | T13: Gemäss PBG ZH
I14: Traufhöhe TH | M14: =Liegenschaftsinformationen!E14 -> 10 | N14: m
A15: Diskontierungszinssatz (real) | B15: ='Allgemeine Informationen'!B14 -> 0.022 | I15: Fassadenfläche =FF | M15: =M13*M14 -> 1800 | N15: m2 | O15: FA x TH | R15: Maximale Geschossfläche | S15: ='Baurechtliche Rahmenbeding. ZH'!B14 -> 3164 | T15: Begrenzung durch Ausnützungsziffer
A16: Referenzzinssatz | B16: ='Allgemeine Informationen'!B15 -> 0.0125 | C16: Gemäss Bundesamt für Wohnungswesen (BWO) | I16: Anzahl Wohngeschosse AWG | M16: =Liegenschaftsinformationen!E16 -> 3 | N16: Anzahl
I17: Geschossfläche FW | M17: =M11*M16 -> 2328 | N17: m2 | O17: GRG x AWG | R17: Aktuelle Ausnützung | S17: ='Baurechtliche Rahmenbeding. ZH'!B16 -> 0.8583702065 | T17: Geschossfläche gem. PBG ZH / Grundstücksfläche
A18: Struktureller Leerstand (Bestand) | I18: Gewerbefläche FG | M18: =Liegenschaftsinformationen!E18 -> 0 | N18: m2 | R18: Ausnützungspotenzial exkl. Attika | S18: ='Baurechtliche Rahmenbeding. ZH'!B17 -> 836 | T18: m2
A19: Wohnen | B19: ='Allgemeine Informationen'!B33 -> 0.01 | I19: Anzahl Treppenhäuser AT | M19: =Liegenschaftsinformationen!E19 -> 4 | N19: Anzahl
A20: Einstellplätze | B20: ='Allgemeine Informationen'!B33 -> 0.01 | I20: Anzahl Wohnungen AW | M20: =Liegenschaftsinformationen!E20 -> 36 | N20: Anzahl | R20: Anzahl zusätzliches Vollgeschoss | S20: ='Baurechtliche Rahmenbeding. ZH'!B19 -> 1
A21: Abstellplätze | B21: ='Allgemeine Informationen'!B33 -> 0.01 | R21: Anzahl zusätzliches Attikageschoss | S21: ='Baurechtliche Rahmenbeding. ZH'!B20 -> 1
A22: Struktureller Leerstand (Neubau) | I22: Dachhöhe (Traufe bis First) | M22: =Liegenschaftsinformationen!E22 -> 3 | N22: m3
A23: Wohnen | B23: ='Allgemeine Informationen'!B34 -> 0.01 | I23: Dachkubatur | M23: =M22*M11/2 -> 1164 | N23: m3 | O23: GRG x Dachhöhe | R23: Anzahl Untergeschosse bei Ersatzneubau | S23: ='Baurechtliche Rahmenbeding. ZH'!B22 -> 1
A24: Einstellplätze | B24: ='Allgemeine Informationen'!B34 -> 0.01
A25: Abstellplätze | B25: ='Allgemeine Informationen'!B34 -> 0.01 | R25: Weitere Informationen
I26: Grösse | M26: =Liegenschaftsinformationen!E26 -> Mehr 20 Wohnungen | R26: ='Baurechtliche Rahmenbeding. ZH'!A25:G29 -> Definition Ausnützungsziffer: Planungs- und Baugesetz (PBG) Art. 255 Abs. 2 Für die Ausnützungsziffer anrechenbar sind alle dem Wohnen, Arbeiten oder sonst dem dauernden Aufenthalt dienenden oder hiefür verwendbaren Räume in Vollgeschossen unter Einschluss der dazugehörigen Erschliessungsflächen und Sanitärräume samt inneren Trennwänden. | S26: 0 | T26: 0 | U26: 0 | V26: 0 | W26: 0 | X26: 0
A27: Leerstandsentwicklung aufgrund Investition | B27: Bei bewohntem Zustand | F27: Bei Sanierungskündigung | I27: Baubedingungen | M27: =Liegenschaftsinformationen!E27 -> Weniger als 4 Stockwerke oder während der Instandsetzung unbewohnt | R27: 0 | S27: 0 | T27: 0 | U27: 0 | V27: 0 | W27: 0 | X27: 0
A28: Entwicklung bis 1 Jahr vor Investition | B28: ='Allgemeine Informationen'!B28 -> 0.01 | C28: Reduktion p.a. | F28: ='Allgemeine Informationen'!E28 -> 0.01 | G28: Reduktion p.a. | I28: Zugang | M28: =Liegenschaftsinformationen!E28 -> Zugang gut, mit Lagerplatz | R28: 0 | S28: 0 | T28: 0 | U28: 0 | V28: 0 | W28: 0 | X28: 0
A29: 1 Jahr vor Investition | B29: ='Allgemeine Informationen'!B29 -> 0.1 | F29: ='Allgemeine Informationen'!E29 -> 0.5 | R29: 0 | S29: 0 | T29: 0 | U29: 0 | V29: 0 | W29: 0 | X29: 0
A30: 1 Jahr nach Investition | B30: ='Allgemeine Informationen'!B30 -> 0.1 | F30: ='Allgemeine Informationen'!E30 -> 0 | I30: Bauteilinformationen | R30: 0 | S30: 0 | T30: 0 | U30: 0 | V30: 0 | W30: 0 | X30: 0
A32: Mietzinsanpassung | I32: Balkon vorhanden | M32: =Liegenschaftsinformationen!E32 -> Ja
A33: Anpassung p.a. (vor Sanierung) | B33: ='Allgemeine Informationen'!B24 -> 0.01 | I33: Lüftung vorhanden | M33: =Liegenschaftsinformationen!E33 -> Nein
A34: Anpassung p.a. (nach Sanierung) | B34: ='Allgemeine Informationen'!B25 -> 0.005 | I34: Transportanlagen vorhanden | M34: =Liegenschaftsinformationen!E34 -> Nein
I35: Dachform | M35: =Liegenschaftsinformationen!E35 -> Steildach
A36: Angebotsmieten (FPRE) | B36: Angebotsquantile | I36: Einbauten zu Dach vorhanden | M36: =Liegenschaftsinformationen!E36 -> Nein
B37: 0.1 | C37: 0.25 | D37: 0.5 | E37: 0.75 | F37: 0.9 | I37: Einbauschränke in Wohnungen vorhanden | M37: =Liegenschaftsinformationen!E37 -> Ja
A38: Altbau (CHF/m2a)
A39: Neubau (CHF/m2a) | I39: Letzte Sanierung pro Bauteil (eBKP-H)
R40: Kennzahlen Baukosten
A41: Einschätzung Marktmiete | B41: Quantil zu Benchmark | E41: CHF/m2a HNF | I41: C | J41: Konstruktion Gebäude | M41: =IF(Liegenschaftsinformationen!E41=0," ",Liegenschaftsinformationen!E41) -> 
A42: Für Fläche bei Ersatzneubau | E42: ='Allgemeine Informationen'!B20 -> 432 | I42: C 4.3 | J42: Balkon | M42: =IF(Liegenschaftsinformationen!E42=0," ",Liegenschaftsinformationen!E42) -> 1985 | R42: Ersatzneubau
A43: Für Fläche bei Aufstockung | E43: ='Allgemeine Informationen'!B21 -> 374 | I43: D | J43: Technik Gebäude
I44: D 1 | J44: Elektroanlage | M44: =IF(Liegenschaftsinformationen!E44=0," ",Liegenschaftsinformationen!E44) -> 2010 | R44: Verhältnis GF/HNF | S44: ='Kennzahlen Baukosten'!B5 -> 0.8
A45: Entwicklung Instandhaltung | I45: D 5 | J45: Wärmeanlage | R45: Erstellungskosten (B-W) | S45: ='Kennzahlen Baukosten'!B6 -> 638 | T45: CHF/m3
A46: Reduktion Instandhaltung vor Investition | B46: 0.5 | C46: % | I46: D 5.2 | J46: Wärmeerzeugung | M46: =IF(Liegenschaftsinformationen!E46=0," ",Liegenschaftsinformationen!E46) -> 2010
I47: D 5.3 | J47: Wärmehauptverteilung | M47: =IF(Liegenschaftsinformationen!E47=0," ",Liegenschaftsinformationen!E47) -> 2010 | R47: Aufstockung
A48: Weitere Kosten | I48: D 7 | J48: Lufttechnische Anlage | M48: =IF(Liegenschaftsinformationen!E48=0," ",Liegenschaftsinformationen!E48) -> 
A49: Betriebskosten | B49: ='Allgemeine Informationen'!B37 -> 0.06 | C49: % von Bruttomietertrag | I49: D 8 | J49: Wasseranlagen | R49: Anzahl Attikageschosse | S49: ='Kennzahlen Baukosten'!B10 -> 1
A50: Baurechtszins | B50: ='Allgemeine Informationen'!B38 -> 0 | C50: CHF/a | I50: D 8.1 | J50: Armatur, Apparat | M50: =IF(Liegenschaftsinformationen!E50=0," ",Liegenschaftsinformationen!E50) -> 1985 | R50: Verhältnis GF/HNF | S50: ='Kennzahlen Baukosten'!B11 -> 0.8
I51: D 8.4 | J51: Versorgungsleitung | M51: =IF(Liegenschaftsinformationen!E51=0," ",Liegenschaftsinformationen!E51) ->  | R51: Abbruchkosten bestehendes Dach | S51: ='Kennzahlen Baukosten'!B12 -> 50 | T51: CHF/m3
I52: D 8.5 | J52: Entsorgungsleitung | M52: =IF(Liegenschaftsinformationen!E52=0," ",Liegenschaftsinformationen!E52) ->  | R52: Bauwerkskosten (C-G) | S52: ='Kennzahlen Baukosten'!B13 -> 870 | T52: CHF/m3 Aufstockung
I53: D 9 | J53: Transportanlagen | M53: =IF(Liegenschaftsinformationen!E53=0," ",Liegenschaftsinformationen!E53) -> 
I54: E | J54: Äussere Wandbekleidung Gebäude | R54: Planungskosten | S54: ='Kennzahlen Baukosten'!B15 -> 0.15 | T54: % von B-W
I55: E 2 | J55: Äussere Wandbekleidung über Terrain (Fassade) | M55: =IF(Liegenschaftsinformationen!E55=0," ",Liegenschaftsinformationen!E55) -> 1985 | R55: Nebenkosten | S55: ='Kennzahlen Baukosten'!B16 -> 0.05 | T55: % von B-W
I56: E 3 | J56: Einbaute zu Aussenwand | R56: Reserve, Teuerung | S56: ='Kennzahlen Baukosten'!B17 -> 0.1 | T56: % von B-W
I57: E 3.1 | J57: Fenster | M57: =IF(Liegenschaftsinformationen!E57=0," ",Liegenschaftsinformationen!E57) -> 1985
I58: E 3.2 | J58: Türen | M58: =IF(Liegenschaftsinformationen!E58=0," ",Liegenschaftsinformationen!E58) -> 1985
I59: E 3.3 | J59: Sonnenschutz | M59: =IF(Liegenschaftsinformationen!E59=0," ",Liegenschaftsinformationen!E59) -> 1985
I60: F | J60: Bedachung Gebäude
I61: F 1 | J61: Dachhaut
I62: F 1.2 | J62: Flachdach | M62: =IF(Liegenschaftsinformationen!E62=0," ",Liegenschaftsinformationen!E62) -> 
I63: F 1.3 | J63: Geneigtes Dach | M63: =IF(Liegenschaftsinformationen!E63=0," ",Liegenschaftsinformationen!E63) -> 1985
I64: F 2 | J64: Einbaute zu Dach | M64: =IF(Liegenschaftsinformationen!E64=0," ",Liegenschaftsinformationen!E64) -> 
I65: G | J65: Ausbau Gebäude
I66: G 1 | J66: Trennwand Tür, Tor
I67: G 1.4 | J67: Innentür | M67: =IF(Liegenschaftsinformationen!E67=0," ",Liegenschaftsinformationen!E67) -> 1985
I68: G 2 | J68: Bodenbelag
I69: G 2.1 | J69: Unterkonstruktion zu Bodenbelag | M69: =IF(Liegenschaftsinformationen!E69=0," ",Liegenschaftsinformationen!E69) -> 2005
I70: G 2.2 | J70: Fertiger Bodenbelag | M70: =IF(Liegenschaftsinformationen!E70=0," ",Liegenschaftsinformationen!E70) -> 2005
I71: G 3 | J71: Wandbekleidung | M71: =IF(Liegenschaftsinformationen!E71=0," ",Liegenschaftsinformationen!E71) -> 2015
I72: G 4 | J72: Deckenbekleidung | M72: =IF(Liegenschaftsinformationen!E72=0," ",Liegenschaftsinformationen!E72) -> 2015
I73: G 5 | J73: Einbauten
I74: G 5.1 | J74: Einbauschrank, Regal | M74: =IF(Liegenschaftsinformationen!E74=0," ",Liegenschaftsinformationen!E74) -> 1985
I75: G 5.2 | J75: Einbauküche | M75: =IF(Liegenschaftsinformationen!E75=0," ",Liegenschaftsinformationen!E75) -> 1985
A82: Fristigkeit | B82: 0
A83: Diskontsatz (nominal)
A85: Teuerung (Erträge) | B85: 0
A86: Teuerung (Kosten) | B86: 0

Sheet Mieterspiegel Bestand
A1: Liegenschaftsdaten | I1: Mietzins aktuell (Vertragsmiete) | O1: Marktmiete (Bestand)
A2: Nr. | B2: Etage | C2: Anzahl | D2: HNF | E2: Nutzung | F2: Zimmer | G2: Leersatand | L2: leer aktuell
D3: [m2] | I3: [CHF/m2a] | J3: [CHF/Mt.] | K3: [CHF/a] | L3: [CHF/a] | M3: [%] | O3: [CHF/m2a] | P3: [CHF/Mt.] | Q3: [CHF/a]
A4: 1 | B4: 0 | C4: 1 | D4: 68 | E4: Wohnen | F4: 3.5 | G4: Leer | I4: =IFERROR(IF(J4>0,K4/D4," ")," ") -> 281.4705882 | J4: 1595 | K4: =IF(J4>0,J4*12," ") -> 19140 | L4: =IFERROR(IF(G4="Leer",K4," ")," ") -> 19140 | M4: =IFERROR((L4/K4)," ") -> 1 | O4: =IFERROR(IF(P4>0,Q4/D4," ")," ") -> 370.5882353 | P4: 2100 | Q4: =IF(P4>0,P4*12," ") -> 25200
A5: 2 | B5: 0 | C5: 1 | D5: 89 | E5: Wohnen | F5: 4 | I5: 189.8426966 | J5: 1408 | K5: =IF(J5>0,J5*12," ") -> 16896 | O5: 337.0786517 | P5: 2500 | Q5: =IF(P5>0,P5*12," ") -> 30000
A6: 3 | B6: 1 | C6: 1 | D6: 68 | E6: Wohnen | F6: 3.5 | I6: 229.4117647 | J6: 1300 | K6: 15600 | O6: 379.4117647 | P6: 2150 | Q6: 25800
A7: 4 | B7: 1 | C7: 1 | D7: 32 | E7: Wohnen | F7: 1.5 | I7: 431.25 | J7: 1150 | K7: 13800 | O7: 487.5 | P7: 1300 | Q7: 15600
A8: 5 | B8: 1 | C8: 1 | D8: 57 | E8: Wohnen | F8: 2.5 | I8: 252 | J8: 1197 | K8: 14364 | O8: 284.2105263 | P8: 1350 | Q8: 16200
A9: 6 | B9: 2 | C9: 1 | D9: 68 | E9: Wohnen | F9: 3.5 | I9: 234.7058824 | J9: 1330 | K9: 15960 | O9: 397.0588235 | P9: 2250 | Q9: 27000
A10: 7 | B10: 2 | C10: 1 | D10: 32 | E10: Wohnen | F10: 1.5 | I10: 327.375 | J10: 873 | K10: 10476 | O10: 506.25 | P10: 1350 | Q10: 16200
A11: 8 | B11: 2 | C11: 1 | D11: 57 | E11: Wohnen | F11: 2.5 | I11: 172.6315789 | J11: 820 | K11: 9840 | O11: 294.7368421 | P11: 1400 | Q11: 16800
A12: 9 | B12: 0 | C12: 1 | D12: 68 | E12: Wohnen | F12: 3.5 | I12: 281.4705882 | J12: 1595 | K12: 19140 | O12: 370.5882353 | P12: 2100 | Q12: 25200
A13: 10 | B13: 0 | C13: 1 | D13: 89 | E13: Wohnen | F13: 4 | I13: 189.8426966 | J13: 1408 | K13: 16896 | O13: 337.0786517 | P13: 2500 | Q13: 30000
A14: 11 | B14: 1 | C14: 1 | D14: 68 | E14: Wohnen | F14: 3.5 | I14: 229.4117647 | J14: 1300 | K14: 15600 | O14: 379.4117647 | P14: 2150 | Q14: 25800
A15: 12 | B15: 1 | C15: 1 | D15: 32 | E15: Wohnen | F15: 1.5 | I15: 431.25 | J15: 1150 | K15: 13800 | O15: 487.5 | P15: 1300 | Q15: 15600
A16: 13 | B16: 1 | C16: 1 | D16: 57 | E16: Wohnen | F16: 2.5 | I16: 252 | J16: 1197 | K16: 14364 | O16: 284.2105263 | P16: 1350 | Q16: 16200
A17: 14 | B17: 2 | C17: 1 | D17: 68 | E17: Wohnen | F17: 3.5 | I17: 234.7058824 | J17: 1330 | K17: 15960 | O17: 397.0588235 | P17: 2250 | Q17: 27000
A18: 15 | B18: 2 | C18: 1 | D18: 32 | E18: Wohnen | F18: 1.5 | I18: 327.375 | J18: 873 | K18: 10476 | O18: 506.25 | P18: 1350 | Q18: 16200
A19: 16 | B19: 2 | C19: 1 | D19: 57 | E19: Wohnen | F19: 2.5 | I19: 172.6315789 | J19: 820 | K19: 9840 | O19: 294.7368421 | P19: 1400 | Q19: 16800
A20: 17 | B20: 0 | C20: 1 | D20: 68 | E20: Wohnen | F20: 3.5 | I20: 281.4705882 | J20: 1595 | K20: 19140 | O20: 370.5882353 | P20: 2100 | Q20: 25200
A21: 18 | B21: 0 | C21: 1 | D21: 89 | E21: Wohnen | F21: 4 | G21: Leer | I21: 189.8426966 | J21: 1408 | K21: 16896 | L21: 16896 | M21: 1 | O21: 337.0786517 | P21: 2500 | Q21: 30000
A22: 19 | B22: 1 | C22: 1 | D22: 68 | E22: Wohnen | F22: 3.5 | I22: 229.4117647 | J22: 1300 | K22: 15600 | O22: 379.4117647 | P22: 2150 | Q22: 25800
A23: 20 | B23: 1 | C23: 1 | D23: 32 | E23: Wohnen | F23: 1.5 | I23: 431.25 | J23: 1150 | K23: 13800 | O23: 487.5 | P23: 1300 | Q23: 15600
A24: 21 | B24: 1 | C24: 1 | D24: 57 | E24: Wohnen | F24: 2.5 | I24: 252 | J24: 1197 | K24: 14364 | O24: 284.2105263 | P24: 1350 | Q24: 16200
A25: 22 | B25: 2 | C25: 1 | D25: 68 | E25: Wohnen | F25: 3.5 | I25: 234.7058824 | J25: 1330 | K25: 15960 | O25: 397.0588235 | P25: 2250 | Q25: 27000
A26: 23 | B26: 2 | C26: 1 | D26: 32 | E26: Wohnen | F26: 1.5 | G26: Leer | I26: 327.375 | J26: 873 | K26: 10476 | L26: 10476 | M26: 1 | O26: 506.25 | P26: 1350 | Q26: 16200
A27: 24 | B27: 2 | C27: 1 | D27: 57 | E27: Wohnen | F27: 2.5 | I27: 172.6315789 | J27: 820 | K27: 9840 | O27: 294.7368421 | P27: 1400 | Q27: 16800
A28: 25 | B28: 0 | C28: 1 | D28: 68 | E28: Wohnen | F28: 3.5 | I28: 281.4705882 | J28: 1595 | K28: 19140 | O28: 370.5882353 | P28: 2100 | Q28: 25200
A29: 26 | B29: 0 | C29: 1 | D29: 89 | E29: Wohnen | F29: 4 | I29: 189.8426966 | J29: 1408 | K29: 16896 | O29: 337.0786517 | P29: 2500 | Q29: 30000
A30: 27 | B30: 1 | C30: 1 | D30: 68 | E30: Wohnen | F30: 3.5 | I30: 229.4117647 | J30: 1300 | K30: 15600 | O30: 379.4117647 | P30: 2150 | Q30: 25800
A31: 28 | B31: 1 | C31: 1 | D31: 32 | E31: Wohnen | F31: 1.5 | I31: 431.25 | J31: 1150 | K31: 13800 | O31: 487.5 | P31: 1300 | Q31: 15600
A32: 29 | B32: 1 | C32: 1 | D32: 57 | E32: Wohnen | F32: 2.5 | I32: 252 | J32: 1197 | K32: 14364 | O32: 284.2105263 | P32: 1350 | Q32: 16200
A33: 30 | B33: 2 | C33: 1 | D33: 68 | E33: Wohnen | F33: 3.5 | I33: 234.7058824 | J33: 1330 | K33: 15960 | O33: 397.0588235 | P33: 2250 | Q33: 27000
A34: 31 | B34: 2 | C34: 1 | D34: 32 | E34: Wohnen | F34: 1.5 | I34: 327.375 | J34: 873 | K34: 10476 | O34: 506.25 | P34: 1350 | Q34: 16200
A35: 32 | B35: 2 | C35: 1 | D35: 57 | E35: Wohnen | F35: 2.5 | I35: 172.6315789 | J35: 820 | K35: 9840 | O35: 294.7368421 | P35: 1400 | Q35: 16800
A36: 33 | B36: -1 | C36: 1 | E36: Einstellplätze | I36: =IFERROR(IF(J36>0,K36/D36," ")," ") ->  | J36: 150 | K36: 1800 | L36: =IFERROR(IF(G36="Leer",K36," ")," ") ->  | M36: =IFERROR((L36/K36)," ") ->  | O36: =IFERROR(IF(P36>0,Q36/D36," ")," ") ->  | P36: 180 | Q36: 2160
A37: 34 | B37: -1 | C37: 1 | E37: Einstellplätze | J37: 170 | K37: 2040 | P37: 180 | Q37: 2160
A38: 35 | B38: -1 | C38: 1 | E38: Einstellplätze | J38: 180 | K38: 2160 | P38: 180 | Q38: 2160
A39: 36 | B39: -1 | C39: 1 | E39: Einstellplätze | J39: 150 | K39: 1800 | P39: 180 | Q39: 2160
A40: 37 | B40: -1 | C40: 1 | E40: Einstellplätze | J40: 150 | K40: 1800 | P40: 180 | Q40: 2160
A41: 38 | B41: -1 | C41: 1 | E41: Einstellplätze | G41: Leer | J41: 150 | K41: 1800 | L41: 1800 | M41: 1 | P41: 180 | Q41: 2160
A42: 39 | B42: -1 | C42: 1 | E42: Einstellplätze | J42: 180 | K42: 2160 | P42: 180 | Q42: 2160
A43: 40 | B43: -1 | C43: 1 | E43: Einstellplätze | J43: 150 | K43: 1800 | P43: 180 | Q43: 2160
A44: 41 | B44: -1 | C44: 1 | E44: Einstellplätze | J44: 170 | K44: 2040 | P44: 180 | Q44: 2160
A45: 42 | B45: -1 | C45: 1 | E45: Einstellplätze | J45: 180 | K45: 2160 | P45: 180 | Q45: 2160
A46: 43 | B46: -1 | C46: 1 | E46: Einstellplätze | J46: 180 | K46: 2160 | P46: 180 | Q46: 2160
A47: 44 | B47: -1 | C47: 1 | E47: Einstellplätze | J47: 150 | K47: 1800 | P47: 180 | Q47: 2160
A48: 45 | B48: -1 | C48: 1 | E48: Einstellplätze | J48: 170 | K48: 2040 | P48: 180 | Q48: 2160
A49: 46 | B49: -1 | C49: 1 | E49: Einstellplätze | J49: 180 | K49: 2160 | P49: 180 | Q49: 2160
A50: 47 | B50: -1 | C50: 1 | E50: Einstellplätze | J50: 150 | K50: 1800 | P50: 180 | Q50: 2160
A51: 48 | B51: 0 | C51: 4 | E51: Abstellplätze | J51: 0 | P51: 0
A54: Total Wohnen | C54: =Mieterspiegel!J9 -> 32 | D54: =Mieterspiegel!K9 -> 1884 | I54: =Mieterspiegel!L9 -> 246.4458599 | J54: =Mieterspiegel!M9 -> 1209.125 | K54: =Mieterspiegel!N9 -> 464304 | L54: =Mieterspiegel!P9 -> 46512 | M54: =Mieterspiegel!Q9 -> 0.1001757469 | O54: =Mieterspiegel!U9 -> 366.8789809 | P54: =Mieterspiegel!V9 -> 1800 | Q54: =Mieterspiegel!W9 -> 691200

Sheet Mieterspiegel (hidden)
A1: Zusammenfassung
A3: Übersicht | I3: Bestand | AJ3: Ersatzneubau | AR3: Bestand inkl. Aufstockung
A6: Liegenschaftsdaten | I6: Mietzins aktuell (Bestand) | S6: Marktmiete (Bestand) Altbauqualität | AB6: Marktmiete (Bestand) Neubauqualität | AJ6: Marktmiete (Ersatzneubau) | AR6: Marktmiete (Aufstockung)
A7: Nr. | B7: Zuordnung | C7: Etage | D7: Anzahl | E7: HNF | F7: Nutzung | I7: =F7 -> Nutzung | J7: =D7 -> Anzahl | K7: =E7 -> HNF | O7: Quantil | P7: leer aktuell | S7: =F7 -> Nutzung | T7: =D7 -> Anzahl | X7: Quantil | Y7: Leerstand strukturell | AB7: =S7 -> Nutzung | AF7: Quantil | AG7: Leerstand strukturell | AJ7: =F7 -> Nutzung | AN7: Quantil | AO7: Leerstand strukturell | AR7: =F7 -> Nutzung | AW7: Quantil | AX7: Leerstand strukturell
E8: [m2] | K8: =E8 -> [m2] | L8: [CHF/m2a] | M8: [CHF/Mt. ∅] | N8: [CHF/a] | O8: [%] | P8: [CHF/a] | Q8: [%] | U8: [CHF/m2a] | V8: [CHF/Mt. ∅] | W8: [CHF/a] | X8: [%] | Y8: [CHF/a] | Z8: [%] | AC8: [CHF/m2a] | AD8: [CHF/Mt.] | AE8: [CHF/a] | AF8: [%] | AG8: [CHF/a] | AH8: [%] | AK8: [CHF/m2a] | AL8: [CHF/Mt.] | AM8: [CHF/a] | AN8: [%] | AO8: [CHF/a] | AP8: [%] | AT8: [CHF/m2a] | AU8: [CHF/Mt.] | AV8: [CHF/a] | AW8: [%] | AX8: [CHF/a] | AY8: [%]
B9: B | D9: =SUMIF($F$30:$F$89,F9,$D$30:$D$89) -> 32 | E9: =SUMIFS($E$30:$E$89,$F$30:$F$89,F9,$B$30:$B$89,B9) -> 1884 | F9: Wohnen | I9: =F9 -> Wohnen | J9: =D9 -> 32 | K9: =E9 -> 1884 | L9: =SUMIFS($N$30:$N$89,$F$30:$F$89,F9,$B$30:$B$89,B9)/E9 -> 246.4458599 | M9: =SUMIFS($M$30:$M$89,$F$30:$F$89,F9,$B$30:$B$89,B9)/D9 -> 1209.125 | N9: =SUMIFS($N$30:$N$89,$F$30:$F$89,F9,$B$30:$B$89,B9) -> 464304 | O9: =IF(ISNUMBER(L9)=TRUE,IF(L9<$A$97,"<10%",IF(L9>$E$97," >90%",_xlfn.PERCENTRANK.EXC($A$97:$E$97,L9)))," ") -> >90% | P9: =SUMIFS($P$30:$P$89,$F$30:$F$89,F9,$B$30:$B$89,B9) -> 46512 | Q9: =IFERROR((P9/N9)," ") -> 0.1001757469 | S9: =F9 -> Wohnen | T9: =D9 -> 32 | U9: =SUMIFS($W$30:$W$89,$F$30:$F$89,F9,$B$30:$B$89,B9)/E9 -> 366.8789809 | V9: =SUMIFS($V$30:$V$89,$F$30:$F$89,F9,$B$30:$B$89,B9)/D9 -> 1800 | W9: =SUMIFS($W$30:$W$89,$F$30:$F$89,F9,$B$30:$B$89,B9) -> 691200 | X9: =IF(ISNUMBER(U9)=TRUE,IF(U9<$A$97,"<10%",IF(U9>$E$97," >90%",_xlfn.PERCENTRANK.EXC($A$97:$E$97,U9)))," ") -> >90% | Y9: =W9*Z9 -> 6912 | Z9: =Grundlagen!B19 -> 0.01 | AB9: =S9 -> Wohnen | AC9: ='Allgemeine Informationen'!B19 -> 394 | AE9: =AC9*E9 -> 742296 | AG9: =AE9*AH9 -> 7422.96 | AH9: =Grundlagen!$B$23 -> 0.01 | AR9: =F9 -> Wohnen | AS9: ="("&B9&")" -> (B) | AT9: =U9 -> 366.8789809 | AU9: =V9 -> 1800 | AV9: =W9 -> 691200 | AW9: =X9 -> >90% | AX9: =AV9*AY9 -> 6912 | AY9: =Z9 -> 0.01
B10: E | E10: =SUMIF(AL30:AL49,B10,AO30:AO49) -> 2953.066667 | F10: Wohnen | AJ10: =F10 -> Wohnen | AK10: ='Allgemeine Informationen'!B20 -> 432 | AM10: =AK10*E10 -> 1275724.8 | AO10: =AP10*AM10 -> 12757.248 | AP10: =Grundlagen!$B$23 -> 0.01
B11: A | E11: =SUMIF(AU30:AU49,B11,AX30:AX49) -> 1054.666667 | F11: Wohnen | AR11: =F11 -> Wohnen | AS11: ="("&B11&")" -> (A) | AT11: ='Allgemeine Informationen'!B21 -> 374 | AV11: =AT11*E11 -> 394445.3333 | AX11: =AV11*AY11 -> 3944.453333 | AY11: =Grundlagen!B24 -> 0.01
B12: B | D12: =SUMIF($F$30:$F$89,F12,$D$30:$D$89) -> 15 | F12: Einstellplätze | I12: =F12 -> Einstellplätze | J12: =D12 -> 15 | K12: =E12 -> 0 | M12: =IFERROR(SUMIFS($M$30:$M$89,$F$30:$F$89,F12,$B$30:$B$89,B12)/D12," " ) -> 164 | N12: =SUMIFS($N$30:$N$89,$F$30:$F$89,F12,$B$30:$B$89,B12) -> 29520 | P12: =SUMIFS($P$30:$P$89,$F$30:$F$89,F12,$B$30:$B$89,B12) -> 1800 | Q12: =IFERROR((P12/N12)," ") -> 0.06097560976 | S12: =F12 -> Einstellplätze | T12: =D12 -> 15 | V12: =SUMIFS($V$30:$V$89,$F$30:$F$89,F12,$B$30:$B$89,B12)/D12 -> 180 | W12: =SUMIFS($W$30:$W$89,$F$30:$F$89,F12,$B$30:$B$89,B12) -> 32400 | Y12: =W12*Z12 -> 324 | Z12: =Grundlagen!B20 -> 0.01 | AB12: =S12 -> Einstellplätze | AD12: =V12 -> 180 | AE12: =W12 -> 32400 | AG12: =AE12*AH12 -> 324 | AH12: =Grundlagen!$B$24 -> 0.01 | AR12: =F12 -> Einstellplätze | AS12: ="("&B12&")" -> (B) | AU12: =V12 -> 180 | AV12: =W12 -> 32400 | AX12: =AV12*AY12 -> 324 | AY12: =Z12 -> 0.01
B13: E | D13: =Ersatzneubau!F18 -> 25.312 | F13: Einstellplätze | AJ13: =F13 -> Einstellplätze | AL13: 180 | AM13: =AL13*12*D13 -> 54673.92 | AO13: =AP13*AM13 -> 546.7392 | AP13: =Grundlagen!$B$24 -> 0.01
B14: A | D14: =SUMIF($F$30:$F$89,F14,$D$30:$D$89) -> 15 | F14: Einstellplätze
B15: B | D15: =SUMIF($F$30:$F$89,F15,$D$30:$D$89) -> 4 | F15: Abstellplätze | I15: =F15 -> Abstellplätze | J15: =D16 -> 4 | K15: =E15 -> 0 | L15: =IFERROR(SUMIFS($N$30:$N$89,$F$30:$F$89,F15,$B$30:$B$89,B15/E15)," ") -> 0 | M15: =IFERROR(SUMIFS($M$30:$M$89,$F$30:$F$89,F15,$B$30:$B$89,B15)/D15," " ) -> 0 | N15: =SUMIFS($N$30:$N$89,$F$30:$F$89,F15,$B$30:$B$89,B15) -> 0 | P15: =SUMIFS($P$30:$P$89,$F$30:$F$89,F15,$B$30:$B$89,B15) -> 0 | Q15: =IFERROR((P15/N15)," ") ->  | S15: =F15 -> Abstellplätze | T15: =D15 -> 4 | V15: =IFERROR(SUMIFS($V$30:$V$89,$F$30:$F$89,F15,$B$30:$B$89,B15)/D15," ") -> 0 | W15: =SUMIFS($W$30:$W$89,$F$30:$F$89,F15,$B$30:$B$89,B15) -> 0 | Y15: =W15*Z15 -> 0 | Z15: =Grundlagen!B21 -> 0.01 | AB15: =S15 -> Abstellplätze | AD15: =V15 -> 0 | AE15: =W15 -> 0 | AG15: =AE15*AH15 -> 0 | AH15: =Grundlagen!$B$25 -> 0.01 | AR15: =F15 -> Abstellplätze | AS15: ="("&B15&")" -> (B) | AU15: =V15 -> 0 | AV15: =W15 -> 0 | AX15: =AV15*AY15 -> 0 | AY15: =Z15 -> 0.01
B16: E | D16: =SUMIF($F$30:$F$89,F16,$D$30:$D$89) -> 4 | F16: Abstellplätze | AJ16: =F15 -> Abstellplätze | AL16: =V15 -> 0 | AM16: =W15 -> 0 | AO16: =AP16*AM16 -> 0 | AP16: =Grundlagen!$B$25 -> 0.01
B17: A | D17: =SUMIF($F$30:$F$89,F17,$D$30:$D$89) -> 4 | F17: Abstellplätze
I18: Total | N18: =SUM(N9:N17) -> 493824 | P18: =SUM(P9:P17) -> 48312 | Q18: =P18/N18 -> 0.09783242613 | S18: Total | W18: =SUM(W9:W17) -> 723600 | Y18: =SUM(Y9:Y17) -> 7236 | Z18: =Y18/W18 -> 0.01 | AE18: =SUM(AE9:AE17) -> 774696 | AG18: =SUM(AG9:AG17) -> 7746.96 | AH18: =AG18/AE18 -> 0.01 | AM18: =SUM(AM9:AM17) -> 1330398.72 | AO18: =SUM(AO9:AO17) -> 13303.9872 | AP18: =AO18/AM18 -> 0.01 | AV18: =SUM(AV9:AV17) -> 1118045.333 | AX18: =SUM(AX9:AX17) -> 11180.45333 | AY18: =AX18/AV18 -> 0.01
A21: Mieterspiegel
A24: Bestand | AK24: Mieterspiegel Ersatzneubau | AT24: Mieterspiegel Aufstockung
A27: Liegenschaftsdaten | L27: Mietzins aktuell (Bestand) | U27: Marktmiete (Bestand) | AK27: Liegenschaftsdaten | AT27: Liegenschaftsdaten
A28: Nr. | B28: Zuordnung | C28: Etage | D28: Anzahl | E28: HNF | F28: Nutzung | G28: Zimmer | H28: Leersatand | O28: Quantil | P28: leer aktuell | X28: Quantil | AK28: Nr. | AL28: Zuordnung | AM28: Etage | AO28: HNF | AT28: Nr. | AU28: Zuordnung | AV28: Etage | AX28: HNF
E29: [m2] | L29: [CHF/m2a] | M29: [CHF/Mt.] | N29: [CHF/a] | O29: [%] | P29: [CHF/a] | Q29: [%] | U29: [CHF/m2a] | V29: [CHF/Mt.] | W29: [CHF/a] | X29: [%] | AO29: [m2] | AX29: [m2]
A30: 1 | B30: B | C30: ='Mieterspiegel Bestand'!B4 -> 0 | D30: ='Mieterspiegel Bestand'!C4 -> 1 | E30: ='Mieterspiegel Bestand'!D4 -> 68 | F30: ='Mieterspiegel Bestand'!E4 -> Wohnen | G30: ='Mieterspiegel Bestand'!F4 -> 3.5 | H30: ='Mieterspiegel Bestand'!G4 -> Leer | L30: =IFERROR(IF(M30>0,N30/E30," ")," ") -> 281.4705882 | M30: ='Mieterspiegel Bestand'!J4 -> 1595 | N30: =IF(M30>0,M30*12," ") -> 19140 | O30: =IF(ISNUMBER(L30)=TRUE,IF(L30<$A$97,"<10%",IF(L30>$E$97," >90%",_xlfn.PERCENTRANK.EXC($A$97:$E$97,L30)))," ") -> >90% | P30: =IFERROR(IF(H30="Leer",N30," ")," ") -> 19140 | Q30: =IFERROR((P30/N30)," ") -> 1 | U30: =IFERROR(IF(V30>0,W30/E30," ")," ") -> 370.5882353 | V30: ='Mieterspiegel Bestand'!P4 -> 2100 | W30: =IF(V30>0,V30*12," ") -> 25200 | X30: =IF(ISNUMBER(U30)=TRUE,IF(U30<$A$97,"<10%",IF(U30>$E$97," >90%",_xlfn.PERCENTRANK.EXC($A$97:$E$97,U30)))," ") -> >90% | AK30: 1 | AL30: E | AM30: -3 | AO30: =SUMIF(Ersatzneubau!$C$24:$C$47,Mieterspiegel!AM30,Ersatzneubau!$E$24:$E$47) -> 0 | AT30: 1 | AU30: A | AV30: =Aufstockung!C28 -> 4 | AX30: =IF(AV30=Aufstockung!C28,Aufstockung!E28," ") -> 632.8
A31: 2 | B31: B | C31: ='Mieterspiegel Bestand'!B5 -> 0 | D31: ='Mieterspiegel Bestand'!C5 -> 1 | E31: ='Mieterspiegel Bestand'!D5 -> 89 | F31: ='Mieterspiegel Bestand'!E5 -> Wohnen | G31: ='Mieterspiegel Bestand'!F5 -> 4 | H31: ='Mieterspiegel Bestand'!G5 -> 0 | L31: 189.8426966 | M31: ='Mieterspiegel Bestand'!J5 -> 1408 | N31: =IF(M31>0,M31*12," ") -> 16896 | O31: >90% | Q31: =IFERROR((P31/N31)," ") ->  | U31: 337.0786517 | V31: ='Mieterspiegel Bestand'!P5 -> 2500 | W31: =IF(V31>0,V31*12," ") -> 30000 | X31: >90% | AK31: 2 | AL31: E | AM31: -2 | AO31: =SUMIF(Ersatzneubau!$C$24:$C$47,Mieterspiegel!AM31,Ersatzneubau!$E$24:$E$47) -> 0 | AT31: 2 | AU31: A | AV31: =AV30+1 -> 5 | AX31: =IF(AV31=Aufstockung!C29,Aufstockung!E29," ") -> 421.8666667
A32: 3 | B32: B | C32: ='Mieterspiegel Bestand'!B6 -> 1 | D32: ='Mieterspiegel Bestand'!C6 -> 1 | E32: ='Mieterspiegel Bestand'!D6 -> 68 | F32: ='Mieterspiegel Bestand'!E6 -> Wohnen | G32: ='Mieterspiegel Bestand'!F6 -> 3.5 | H32: ='Mieterspiegel Bestand'!G6 -> 0 | L32: 229.4117647 | M32: ='Mieterspiegel Bestand'!J6 -> 1300 | N32: 15600 | O32: >90% | U32: 379.4117647 | V32: ='Mieterspiegel Bestand'!P6 -> 2150 | W32: 25800 | X32: >90% | AK32: 3 | AL32: E | AM32: -1 | AO32: =SUMIF(Ersatzneubau!$C$24:$C$47,Mieterspiegel!AM32,Ersatzneubau!$E$24:$E$47) -> 0 | AT32: 3 | AU32: A | AV32: =AV31+1 -> 6 | AX32: =IF(AV32=Aufstockung!C30,Aufstockung!E30," ") -> 
A33: 4 | B33: B | C33: ='Mieterspiegel Bestand'!B7 -> 1 | D33: ='Mieterspiegel Bestand'!C7 -> 1 | E33: ='Mieterspiegel Bestand'!D7 -> 32 | F33: ='Mieterspiegel Bestand'!E7 -> Wohnen | G33: ='Mieterspiegel Bestand'!F7 -> 1.5 | H33: ='Mieterspiegel Bestand'!G7 -> 0 | L33: 431.25 | M33: ='Mieterspiegel Bestand'!J7 -> 1150 | N33: 13800 | O33: >90% | U33: 487.5 | V33: ='Mieterspiegel Bestand'!P7 -> 1300 | W33: 15600 | X33: >90% | AK33: 4 | AL33: E | AM33: 0 | AO33: =SUMIF(Ersatzneubau!$C$24:$C$47,Mieterspiegel!AM33,Ersatzneubau!$E$24:$E$47) -> 632.8 | AT33: 4 | AU33: A | AV33: 7 | AX33: =IF(AV33=Aufstockung!C31,Aufstockung!E31," ") -> 
A34: 5 | B34: B | C34: ='Mieterspiegel Bestand'!B8 -> 1 | D34: ='Mieterspiegel Bestand'!C8 -> 1 | E34: ='Mieterspiegel Bestand'!D8 -> 57 | F34: ='Mieterspiegel Bestand'!E8 -> Wohnen | G34: ='Mieterspiegel Bestand'!F8 -> 2.5 | H34: ='Mieterspiegel Bestand'!G8 -> 0 | L34: 252 | M34: ='Mieterspiegel Bestand'!J8 -> 1197 | N34: 14364 | O34: >90% | U34: 284.2105263 | V34: ='Mieterspiegel Bestand'!P8 -> 1350 | W34: 16200 | X34: >90% | AK34: 5 | AL34: E | AM34: 1 | AO34: =SUMIF(Ersatzneubau!$C$24:$C$47,Mieterspiegel!AM34,Ersatzneubau!$E$24:$E$47) -> 632.8 | AT34: 5 | AU34: A | AV34: 8 | AX34: =IF(AV34=Aufstockung!C32,Aufstockung!E32," ") -> 
A35: 6 | B35: B | C35: ='Mieterspiegel Bestand'!B9 -> 2 | D35: ='Mieterspiegel Bestand'!C9 -> 1 | E35: ='Mieterspiegel Bestand'!D9 -> 68 | F35: ='Mieterspiegel Bestand'!E9 -> Wohnen | G35: ='Mieterspiegel Bestand'!F9 -> 3.5 | H35: ='Mieterspiegel Bestand'!G9 -> 0 | L35: 234.7058824 | M35: ='Mieterspiegel Bestand'!J9 -> 1330 | N35: 15960 | O35: >90% | U35: 397.0588235 | V35: ='Mieterspiegel Bestand'!P9 -> 2250 | W35: 27000 | X35: >90% | AK35: 6 | AL35: E | AM35: 2 | AO35: =SUMIF(Ersatzneubau!$C$24:$C$47,Mieterspiegel!AM35,Ersatzneubau!$E$24:$E$47) -> 632.8 | AT35: 6 | AU35: A | AV35: 9 | AX35: =IF(AV35=Aufstockung!C33,Aufstockung!E33," ") -> 
A36: 7 | B36: B | C36: ='Mieterspiegel Bestand'!B10 -> 2 | D36: ='Mieterspiegel Bestand'!C10 -> 1 | E36: ='Mieterspiegel Bestand'!D10 -> 32 | F36: ='Mieterspiegel Bestand'!E10 -> Wohnen | G36: ='Mieterspiegel Bestand'!F10 -> 1.5 | H36: ='Mieterspiegel Bestand'!G10 -> 0 | L36: 327.375 | M36: ='Mieterspiegel Bestand'!J10 -> 873 | N36: 10476 | O36: >90% | U36: 506.25 | V36: ='Mieterspiegel Bestand'!P10 -> 1350 | W36: 16200 | X36: >90% | AK36: 7 | AL36: E | AM36: 3 | AO36: =SUMIF(Ersatzneubau!$C$24:$C$47,Mieterspiegel!AM36,Ersatzneubau!$E$24:$E$47) -> 632.8 | AT36: 7 | AU36: A | AV36: 10 | AX36: =IF(AV36=Aufstockung!C34,Aufstockung!E34," ") -> 
A37: 8 | B37: B | C37: ='Mieterspiegel Bestand'!B11 -> 2 | D37: ='Mieterspiegel Bestand'!C11 -> 1 | E37: ='Mieterspiegel Bestand'!D11 -> 57 | F37: ='Mieterspiegel Bestand'!E11 -> Wohnen | G37: ='Mieterspiegel Bestand'!F11 -> 2.5 | H37: ='Mieterspiegel Bestand'!G11 -> 0 | L37: 172.6315789 | M37: ='Mieterspiegel Bestand'!J11 -> 820 | N37: 9840 | O37: >90% | U37: 294.7368421 | V37: ='Mieterspiegel Bestand'!P11 -> 1400 | W37: 16800 | X37: >90% | AK37: 8 | AL37: E | AM37: 4 | AO37: =SUMIF(Ersatzneubau!$C$24:$C$47,Mieterspiegel!AM37,Ersatzneubau!$E$24:$E$47) -> 421.8666667 | AT37: 8 | AU37: A | AV37: 11 | AX37: =IF(AV37=Aufstockung!C35,Aufstockung!E35," ") -> 
A38: 9 | B38: B | C38: ='Mieterspiegel Bestand'!B12 -> 0 | D38: ='Mieterspiegel Bestand'!C12 -> 1 | E38: ='Mieterspiegel Bestand'!D12 -> 68 | F38: ='Mieterspiegel Bestand'!E12 -> Wohnen | G38: ='Mieterspiegel Bestand'!F12 -> 3.5 | H38: ='Mieterspiegel Bestand'!G12 -> 0 | L38: 281.4705882 | M38: ='Mieterspiegel Bestand'!J12 -> 1595 | N38: 19140 | O38: >90% | U38: 370.5882353 | V38: ='Mieterspiegel Bestand'!P12 -> 2100 | W38: 25200 | X38: >90% | AK38: 9 | AL38: E | AM38: 5 | AO38: =SUMIF(Ersatzneubau!$C$24:$C$47,Mieterspiegel!AM38,Ersatzneubau!$E$24:$E$47) -> 0 | AT38: 9 | AU38: A | AV38: 12 | AX38: =IF(AV38=Aufstockung!C36,Aufstockung!E36," ") -> 
A39: 10 | B39: B | C39: ='Mieterspiegel Bestand'!B13 -> 0 | D39: ='Mieterspiegel Bestand'!C13 -> 1 | E39: ='Mieterspiegel Bestand'!D13 -> 89 | F39: ='Mieterspiegel Bestand'!E13 -> Wohnen | G39: ='Mieterspiegel Bestand'!F13 -> 4 | H39: ='Mieterspiegel Bestand'!G13 -> 0 | L39: 189.8426966 | M39: ='Mieterspiegel Bestand'!J13 -> 1408 | N39: 16896 | O39: >90% | U39: 337.0786517 | V39: ='Mieterspiegel Bestand'!P13 -> 2500 | W39: 30000 | X39: >90% | AK39: 10 | AL39: E | AM39: 6 | AO39: =SUMIF(Ersatzneubau!$C$24:$C$47,Mieterspiegel!AM39,Ersatzneubau!$E$24:$E$47) -> 0 | AT39: 10 | AU39: A | AV39: 13 | AX39: =IF(AV39=Aufstockung!C37,Aufstockung!E37," ") -> 
A40: 11 | B40: B | C40: ='Mieterspiegel Bestand'!B14 -> 1 | D40: ='Mieterspiegel Bestand'!C14 -> 1 | E40: ='Mieterspiegel Bestand'!D14 -> 68 | F40: ='Mieterspiegel Bestand'!E14 -> Wohnen | G40: ='Mieterspiegel Bestand'!F14 -> 3.5 | H40: ='Mieterspiegel Bestand'!G14 -> 0 | L40: 229.4117647 | M40: ='Mieterspiegel Bestand'!J14 -> 1300 | N40: 15600 | O40: >90% | U40: 379.4117647 | V40: ='Mieterspiegel Bestand'!P14 -> 2150 | W40: 25800 | X40: >90% | AK40: 11 | AL40: E | AM40: 7 | AO40: =SUMIF(Ersatzneubau!$C$24:$C$47,Mieterspiegel!AM40,Ersatzneubau!$E$24:$E$47) -> 0 | AT40: 11 | AU40: A | AV40: 14 | AX40: =IF(AV40=Aufstockung!C38,Aufstockung!E38," ") -> 
A41: 12 | B41: B | C41: ='Mieterspiegel Bestand'!B15 -> 1 | D41: ='Mieterspiegel Bestand'!C15 -> 1 | E41: ='Mieterspiegel Bestand'!D15 -> 32 | F41: ='Mieterspiegel Bestand'!E15 -> Wohnen | G41: ='Mieterspiegel Bestand'!F15 -> 1.5 | H41: ='Mieterspiegel Bestand'!G15 -> 0 | L41: 431.25 | M41: ='Mieterspiegel Bestand'!J15 -> 1150 | N41: 13800 | O41: >90% | U41: 487.5 | V41: ='Mieterspiegel Bestand'!P15 -> 1300 | W41: 15600 | X41: >90% | AK41: 12 | AL41: E | AM41: 8 | AO41: =SUMIF(Ersatzneubau!$C$24:$C$47,Mieterspiegel!AM41,Ersatzneubau!$E$24:$E$47) -> 0 | AT41: 12 | AU41: A | AV41: 15 | AX41: =IF(AV41=Aufstockung!C39,Aufstockung!E39," ") -> 
A42: 13 | B42: B | C42: ='Mieterspiegel Bestand'!B16 -> 1 | D42: ='Mieterspiegel Bestand'!C16 -> 1 | E42: ='Mieterspiegel Bestand'!D16 -> 57 | F42: ='Mieterspiegel Bestand'!E16 -> Wohnen | G42: ='Mieterspiegel Bestand'!F16 -> 2.5 | H42: ='Mieterspiegel Bestand'!G16 -> 0 | L42: 252 | M42: ='Mieterspiegel Bestand'!J16 -> 1197 | N42: 14364 | O42: >90% | U42: 284.2105263 | V42: ='Mieterspiegel Bestand'!P16 -> 1350 | W42: 16200 | X42: >90% | AK42: 13 | AL42: E | AM42: 9 | AO42: =SUMIF(Ersatzneubau!$C$24:$C$47,Mieterspiegel!AM42,Ersatzneubau!$E$24:$E$47) -> 0 | AT42: 13 | AU42: A | AV42: 16 | AX42: =IF(AV42=Aufstockung!C40,Aufstockung!E40," ") -> 
A43: 14 | B43: B | C43: ='Mieterspiegel Bestand'!B17 -> 2 | D43: ='Mieterspiegel Bestand'!C17 -> 1 | E43: ='Mieterspiegel Bestand'!D17 -> 68 | F43: ='Mieterspiegel Bestand'!E17 -> Wohnen | G43: ='Mieterspiegel Bestand'!F17 -> 3.5 | H43: ='Mieterspiegel Bestand'!G17 -> 0 | L43: 234.7058824 | M43: ='Mieterspiegel Bestand'!J17 -> 1330 | N43: 15960 | O43: >90% | U43: 397.0588235 | V43: ='Mieterspiegel Bestand'!P17 -> 2250 | W43: 27000 | X43: >90% | AK43: 14 | AL43: E | AM43: 10 | AO43: =SUMIF(Ersatzneubau!$C$24:$C$47,Mieterspiegel!AM43,Ersatzneubau!$E$24:$E$47) -> 0 | AT43: 14 | AU43: A | AV43: 17 | AX43: =IF(AV43=Aufstockung!C41,Aufstockung!E41," ") -> 
A44: 15 | B44: B | C44: ='Mieterspiegel Bestand'!B18 -> 2 | D44: ='Mieterspiegel Bestand'!C18 -> 1 | E44: ='Mieterspiegel Bestand'!D18 -> 32 | F44: ='Mieterspiegel Bestand'!E18 -> Wohnen | G44: ='Mieterspiegel Bestand'!F18 -> 1.5 | H44: ='Mieterspiegel Bestand'!G18 -> 0 | L44: 327.375 | M44: ='Mieterspiegel Bestand'!J18 -> 873 | N44: 10476 | O44: >90% | U44: 506.25 | V44: ='Mieterspiegel Bestand'!P18 -> 1350 | W44: 16200 | X44: >90% | AK44: 15 | AL44: E | AM44: 11 | AO44: =SUMIF(Ersatzneubau!$C$24:$C$47,Mieterspiegel!AM44,Ersatzneubau!$E$24:$E$47) -> 0 | AT44: 15 | AU44: A | AV44: 18 | AX44: =IF(AV44=Aufstockung!C42,Aufstockung!E42," ") -> 
A45: 16 | B45: B | C45: ='Mieterspiegel Bestand'!B19 -> 2 | D45: ='Mieterspiegel Bestand'!C19 -> 1 | E45: ='Mieterspiegel Bestand'!D19 -> 57 | F45: ='Mieterspiegel Bestand'!E19 -> Wohnen | G45: ='Mieterspiegel Bestand'!F19 -> 2.5 | H45: ='Mieterspiegel Bestand'!G19 -> 0 | L45: 172.6315789 | M45: ='Mieterspiegel Bestand'!J19 -> 820 | N45: 9840 | O45: >90% | U45: 294.7368421 | V45: ='Mieterspiegel Bestand'!P19 -> 1400 | W45: 16800 | X45: >90% | AK45: 16 | AL45: E | AM45: 12 | AO45: =SUMIF(Ersatzneubau!$C$24:$C$47,Mieterspiegel!AM45,Ersatzneubau!$E$24:$E$47) -> 0 | AT45: 16 | AU45: A | AV45: 19 | AX45: =IF(AV45=Aufstockung!C43,Aufstockung!E43," ") -> 
A46: 17 | B46: B | C46: ='Mieterspiegel Bestand'!B20 -> 0 | D46: ='Mieterspiegel Bestand'!C20 -> 1 | E46: ='Mieterspiegel Bestand'!D20 -> 68 | F46: ='Mieterspiegel Bestand'!E20 -> Wohnen | G46: ='Mieterspiegel Bestand'!F20 -> 3.5 | H46: ='Mieterspiegel Bestand'!G20 -> 0 | L46: 281.4705882 | M46: ='Mieterspiegel Bestand'!J20 -> 1595 | N46: 19140 | O46: >90% | U46: 370.5882353 | V46: ='Mieterspiegel Bestand'!P20 -> 2100 | W46: 25200 | X46: >90% | AK46: 17 | AL46: E | AM46: 13 | AO46: =SUMIF(Ersatzneubau!$C$24:$C$47,Mieterspiegel!AM46,Ersatzneubau!$E$24:$E$47) -> 0 | AT46: 17 | AU46: A | AV46: 20 | AX46: =IF(AV46=Aufstockung!C44,Aufstockung!E44," ") -> 
A47: 18 | B47: B | C47: ='Mieterspiegel Bestand'!B21 -> 0 | D47: ='Mieterspiegel Bestand'!C21 -> 1 | E47: ='Mieterspiegel Bestand'!D21 -> 89 | F47: ='Mieterspiegel Bestand'!E21 -> Wohnen | G47: ='Mieterspiegel Bestand'!F21 -> 4 | H47: ='Mieterspiegel Bestand'!G21 -> Leer | L47: 189.8426966 | M47: ='Mieterspiegel Bestand'!J21 -> 1408 | N47: 16896 | O47: >90% | P47: 16896 | Q47: 1 | U47: 337.0786517 | V47: ='Mieterspiegel Bestand'!P21 -> 2500 | W47: 30000 | X47: >90% | AK47: 18 | AL47: E | AM47: 14 | AO47: =SUMIF(Ersatzneubau!$C$24:$C$47,Mieterspiegel!AM47,Ersatzneubau!$E$24:$E$47) -> 0 | AT47: 18 | AU47: A | AV47: 21 | AX47: =IF(AV47=Aufstockung!C45,Aufstockung!E45," ") -> 
A48: 19 | B48: B | C48: ='Mieterspiegel Bestand'!B22 -> 1 | D48: ='Mieterspiegel Bestand'!C22 -> 1 | E48: ='Mieterspiegel Bestand'!D22 -> 68 | F48: ='Mieterspiegel Bestand'!E22 -> Wohnen | G48: ='Mieterspiegel Bestand'!F22 -> 3.5 | H48: ='Mieterspiegel Bestand'!G22 -> 0 | L48: 229.4117647 | M48: ='Mieterspiegel Bestand'!J22 -> 1300 | N48: 15600 | O48: >90% | U48: 379.4117647 | V48: ='Mieterspiegel Bestand'!P22 -> 2150 | W48: 25800 | X48: >90% | AK48: 19 | AL48: E | AM48: 15 | AO48: =SUMIF(Ersatzneubau!$C$24:$C$47,Mieterspiegel!AM48,Ersatzneubau!$E$24:$E$47) -> 0 | AT48: 19 | AU48: A | AV48: 22 | AX48: =IF(AV48=Aufstockung!C46,Aufstockung!E46," ") -> 
A49: 20 | B49: B | C49: ='Mieterspiegel Bestand'!B23 -> 1 | D49: ='Mieterspiegel Bestand'!C23 -> 1 | E49: ='Mieterspiegel Bestand'!D23 -> 32 | F49: ='Mieterspiegel Bestand'!E23 -> Wohnen | G49: ='Mieterspiegel Bestand'!F23 -> 1.5 | H49: ='Mieterspiegel Bestand'!G23 -> 0 | L49: 431.25 | M49: ='Mieterspiegel Bestand'!J23 -> 1150 | N49: 13800 | O49: >90% | U49: 487.5 | V49: ='Mieterspiegel Bestand'!P23 -> 1300 | W49: 15600 | X49: >90% | AK49: 20 | AL49: E | AM49: 16 | AO49: =SUMIF(Ersatzneubau!$C$24:$C$47,Mieterspiegel!AM49,Ersatzneubau!$E$24:$E$47) -> 0 | AT49: 20 | AU49: A | AV49: 23 | AX49: =IF(AV49=Aufstockung!C47,Aufstockung!E47," ") -> 
A50: 21 | B50: B | C50: ='Mieterspiegel Bestand'!B24 -> 1 | D50: ='Mieterspiegel Bestand'!C24 -> 1 | E50: ='Mieterspiegel Bestand'!D24 -> 57 | F50: ='Mieterspiegel Bestand'!E24 -> Wohnen | G50: ='Mieterspiegel Bestand'!F24 -> 2.5 | H50: ='Mieterspiegel Bestand'!G24 -> 0 | L50: 252 | M50: ='Mieterspiegel Bestand'!J24 -> 1197 | N50: 14364 | O50: >90% | U50: 284.2105263 | V50: ='Mieterspiegel Bestand'!P24 -> 1350 | W50: 16200 | X50: >90%
A51: 22 | B51: B | C51: ='Mieterspiegel Bestand'!B25 -> 2 | D51: ='Mieterspiegel Bestand'!C25 -> 1 | E51: ='Mieterspiegel Bestand'!D25 -> 68 | F51: ='Mieterspiegel Bestand'!E25 -> Wohnen | G51: ='Mieterspiegel Bestand'!F25 -> 3.5 | H51: ='Mieterspiegel Bestand'!G25 -> 0 | L51: 234.7058824 | M51: ='Mieterspiegel Bestand'!J25 -> 1330 | N51: 15960 | O51: >90% | U51: 397.0588235 | V51: ='Mieterspiegel Bestand'!P25 -> 2250 | W51: 27000 | X51: >90%
A52: 23 | B52: B | C52: ='Mieterspiegel Bestand'!B26 -> 2 | D52: ='Mieterspiegel Bestand'!C26 -> 1 | E52: ='Mieterspiegel Bestand'!D26 -> 32 | F52: ='Mieterspiegel Bestand'!E26 -> Wohnen | G52: ='Mieterspiegel Bestand'!F26 -> 1.5 | H52: ='Mieterspiegel Bestand'!G26 -> Leer | L52: 327.375 | M52: ='Mieterspiegel Bestand'!J26 -> 873 | N52: 10476 | O52: >90% | P52: 10476 | Q52: 1 | U52: 506.25 | V52: ='Mieterspiegel Bestand'!P26 -> 1350 | W52: 16200 | X52: >90%
A53: 24 | B53: B | C53: ='Mieterspiegel Bestand'!B27 -> 2 | D53: ='Mieterspiegel Bestand'!C27 -> 1 | E53: ='Mieterspiegel Bestand'!D27 -> 57 | F53: ='Mieterspiegel Bestand'!E27 -> Wohnen | G53: ='Mieterspiegel Bestand'!F27 -> 2.5 | H53: ='Mieterspiegel Bestand'!G27 -> 0 | L53: 172.6315789 | M53: ='Mieterspiegel Bestand'!J27 -> 820 | N53: 9840 | O53: >90% | U53: 294.7368421 | V53: ='Mieterspiegel Bestand'!P27 -> 1400 | W53: 16800 | X53: >90%
A54: 25 | B54: B | C54: ='Mieterspiegel Bestand'!B28 -> 0 | D54: ='Mieterspiegel Bestand'!C28 -> 1 | E54: ='Mieterspiegel Bestand'!D28 -> 68 | F54: ='Mieterspiegel Bestand'!E28 -> Wohnen | G54: ='Mieterspiegel Bestand'!F28 -> 3.5 | H54: ='Mieterspiegel Bestand'!G28 -> 0 | L54: 281.4705882 | M54: ='Mieterspiegel Bestand'!J28 -> 1595 | N54: 19140 | O54: >90% | U54: 370.5882353 | V54: ='Mieterspiegel Bestand'!P28 -> 2100 | W54: 25200 | X54: >90%
A55: 26 | B55: B | C55: ='Mieterspiegel Bestand'!B29 -> 0 | D55: ='Mieterspiegel Bestand'!C29 -> 1 | E55: ='Mieterspiegel Bestand'!D29 -> 89 | F55: ='Mieterspiegel Bestand'!E29 -> Wohnen | G55: ='Mieterspiegel Bestand'!F29 -> 4 | H55: ='Mieterspiegel Bestand'!G29 -> 0 | L55: 189.8426966 | M55: ='Mieterspiegel Bestand'!J29 -> 1408 | N55: 16896 | O55: >90% | U55: 337.0786517 | V55: ='Mieterspiegel Bestand'!P29 -> 2500 | W55: 30000 | X55: >90%
A56: 27 | B56: B | C56: ='Mieterspiegel Bestand'!B30 -> 1 | D56: ='Mieterspiegel Bestand'!C30 -> 1 | E56: ='Mieterspiegel Bestand'!D30 -> 68 | F56: ='Mieterspiegel Bestand'!E30 -> Wohnen | G56: ='Mieterspiegel Bestand'!F30 -> 3.5 | H56: ='Mieterspiegel Bestand'!G30 -> 0 | L56: 229.4117647 | M56: ='Mieterspiegel Bestand'!J30 -> 1300 | N56: 15600 | O56: >90% | U56: 379.4117647 | V56: ='Mieterspiegel Bestand'!P30 -> 2150 | W56: 25800 | X56: >90%
A57: 28 | B57: B | C57: ='Mieterspiegel Bestand'!B31 -> 1 | D57: ='Mieterspiegel Bestand'!C31 -> 1 | E57: ='Mieterspiegel Bestand'!D31 -> 32 | F57: ='Mieterspiegel Bestand'!E31 -> Wohnen | G57: ='Mieterspiegel Bestand'!F31 -> 1.5 | H57: ='Mieterspiegel Bestand'!G31 -> 0 | L57: 431.25 | M57: ='Mieterspiegel Bestand'!J31 -> 1150 | N57: 13800 | O57: >90% | U57: 487.5 | V57: ='Mieterspiegel Bestand'!P31 -> 1300 | W57: 15600 | X57: >90%
A58: 29 | B58: B | C58: ='Mieterspiegel Bestand'!B32 -> 1 | D58: ='Mieterspiegel Bestand'!C32 -> 1 | E58: ='Mieterspiegel Bestand'!D32 -> 57 | F58: ='Mieterspiegel Bestand'!E32 -> Wohnen | G58: ='Mieterspiegel Bestand'!F32 -> 2.5 | H58: ='Mieterspiegel Bestand'!G32 -> 0 | L58: 252 | M58: ='Mieterspiegel Bestand'!J32 -> 1197 | N58: 14364 | O58: >90% | U58: 284.2105263 | V58: ='Mieterspiegel Bestand'!P32 -> 1350 | W58: 16200 | X58: >90%
A59: 30 | B59: B | C59: ='Mieterspiegel Bestand'!B33 -> 2 | D59: ='Mieterspiegel Bestand'!C33 -> 1 | E59: ='Mieterspiegel Bestand'!D33 -> 68 | F59: ='Mieterspiegel Bestand'!E33 -> Wohnen | G59: ='Mieterspiegel Bestand'!F33 -> 3.5 | H59: ='Mieterspiegel Bestand'!G33 -> 0 | L59: 234.7058824 | M59: ='Mieterspiegel Bestand'!J33 -> 1330 | N59: 15960 | O59: >90% | U59: 397.0588235 | V59: ='Mieterspiegel Bestand'!P33 -> 2250 | W59: 27000 | X59: >90%
A60: 31 | B60: B | C60: ='Mieterspiegel Bestand'!B34 -> 2 | D60: ='Mieterspiegel Bestand'!C34 -> 1 | E60: ='Mieterspiegel Bestand'!D34 -> 32 | F60: ='Mieterspiegel Bestand'!E34 -> Wohnen | G60: ='Mieterspiegel Bestand'!F34 -> 1.5 | H60: ='Mieterspiegel Bestand'!G34 -> 0 | L60: 327.375 | M60: ='Mieterspiegel Bestand'!J34 -> 873 | N60: 10476 | O60: >90% | U60: 506.25 | V60: ='Mieterspiegel Bestand'!P34 -> 1350 | W60: 16200 | X60: >90%
A61: 32 | B61: B | C61: ='Mieterspiegel Bestand'!B35 -> 2 | D61: ='Mieterspiegel Bestand'!C35 -> 1 | E61: ='Mieterspiegel Bestand'!D35 -> 57 | F61: ='Mieterspiegel Bestand'!E35 -> Wohnen | G61: ='Mieterspiegel Bestand'!F35 -> 2.5 | H61: ='Mieterspiegel Bestand'!G35 -> 0 | L61: 172.6315789 | M61: ='Mieterspiegel Bestand'!J35 -> 820 | N61: 9840 | O61: >90% | U61: 294.7368421 | V61: ='Mieterspiegel Bestand'!P35 -> 1400 | W61: 16800 | X61: >90%
A62: 33 | B62: B | C62: ='Mieterspiegel Bestand'!B36 -> -1 | D62: ='Mieterspiegel Bestand'!C36 -> 1 | E62: ='Mieterspiegel Bestand'!D36 -> 0 | F62: ='Mieterspiegel Bestand'!E36 -> Einstellplätze | G62: ='Mieterspiegel Bestand'!F36 -> 0 | H62: ='Mieterspiegel Bestand'!G36 -> 0 | L62: =IFERROR(IF(M62>0,N62/E62," ")," ") ->  | M62: ='Mieterspiegel Bestand'!J36 -> 150 | N62: 1800 | O62: =IF(ISNUMBER(L62)=TRUE,IF(L62<$A$97,"<10%",IF(L62>$E$97," >90%",_xlfn.PERCENTRANK.EXC($A$97:$E$97,L62)))," ") ->  | P62: =IFERROR(IF(H62="Leer",N62," ")," ") ->  | U62: =IFERROR(IF(V62>0,W62/E62," ")," ") ->  | V62: ='Mieterspiegel Bestand'!P36 -> 180 | W62: 2160 | X62: =IF(ISNUMBER(U62)=TRUE,IF(U62<$A$97,"<10%",IF(U62>$E$97," >90%",_xlfn.PERCENTRANK.EXC($A$97:$E$97,U62)))," ") -> 
A63: 34 | B63: B | C63: ='Mieterspiegel Bestand'!B37 -> -1 | D63: ='Mieterspiegel Bestand'!C37 -> 1 | E63: ='Mieterspiegel Bestand'!D37 -> 0 | F63: ='Mieterspiegel Bestand'!E37 -> Einstellplätze | G63: ='Mieterspiegel Bestand'!F37 -> 0 | H63: ='Mieterspiegel Bestand'!G37 -> 0 | M63: ='Mieterspiegel Bestand'!J37 -> 170 | N63: 2040 | V63: ='Mieterspiegel Bestand'!P37 -> 180 | W63: 2160
A64: 35 | B64: B | C64: ='Mieterspiegel Bestand'!B38 -> -1 | D64: ='Mieterspiegel Bestand'!C38 -> 1 | E64: ='Mieterspiegel Bestand'!D38 -> 0 | F64: ='Mieterspiegel Bestand'!E38 -> Einstellplätze | G64: ='Mieterspiegel Bestand'!F38 -> 0 | H64: ='Mieterspiegel Bestand'!G38 -> 0 | M64: ='Mieterspiegel Bestand'!J38 -> 180 | N64: 2160 | V64: ='Mieterspiegel Bestand'!P38 -> 180 | W64: 2160
A65: 36 | B65: B | C65: ='Mieterspiegel Bestand'!B39 -> -1 | D65: ='Mieterspiegel Bestand'!C39 -> 1 | E65: ='Mieterspiegel Bestand'!D39 -> 0 | F65: ='Mieterspiegel Bestand'!E39 -> Einstellplätze | G65: ='Mieterspiegel Bestand'!F39 -> 0 | H65: ='Mieterspiegel Bestand'!G39 -> 0 | M65: ='Mieterspiegel Bestand'!J39 -> 150 | N65: 1800 | V65: ='Mieterspiegel Bestand'!P39 -> 180 | W65: 2160
A66: 37 | B66: B | C66: ='Mieterspiegel Bestand'!B40 -> -1 | D66: ='Mieterspiegel Bestand'!C40 -> 1 | E66: ='Mieterspiegel Bestand'!D40 -> 0 | F66: ='Mieterspiegel Bestand'!E40 -> Einstellplätze | G66: ='Mieterspiegel Bestand'!F40 -> 0 | H66: ='Mieterspiegel Bestand'!G40 -> 0 | M66: ='Mieterspiegel Bestand'!J40 -> 150 | N66: 1800 | V66: ='Mieterspiegel Bestand'!P40 -> 180 | W66: 2160
A67: 38 | B67: B | C67: ='Mieterspiegel Bestand'!B41 -> -1 | D67: ='Mieterspiegel Bestand'!C41 -> 1 | E67: ='Mieterspiegel Bestand'!D41 -> 0 | F67: ='Mieterspiegel Bestand'!E41 -> Einstellplätze | G67: ='Mieterspiegel Bestand'!F41 -> 0 | H67: ='Mieterspiegel Bestand'!G41 -> Leer | M67: ='Mieterspiegel Bestand'!J41 -> 150 | N67: 1800 | P67: 1800 | Q67: 1 | V67: ='Mieterspiegel Bestand'!P41 -> 180 | W67: 2160
A68: 39 | B68: B | C68: ='Mieterspiegel Bestand'!B42 -> -1 | D68: ='Mieterspiegel Bestand'!C42 -> 1 | E68: ='Mieterspiegel Bestand'!D42 -> 0 | F68: ='Mieterspiegel Bestand'!E42 -> Einstellplätze | G68: ='Mieterspiegel Bestand'!F42 -> 0 | H68: ='Mieterspiegel Bestand'!G42 -> 0 | M68: ='Mieterspiegel Bestand'!J42 -> 180 | N68: 2160 | V68: ='Mieterspiegel Bestand'!P42 -> 180 | W68: 2160
A69: 40 | B69: B | C69: ='Mieterspiegel Bestand'!B43 -> -1 | D69: ='Mieterspiegel Bestand'!C43 -> 1 | E69: ='Mieterspiegel Bestand'!D43 -> 0 | F69: ='Mieterspiegel Bestand'!E43 -> Einstellplätze | G69: ='Mieterspiegel Bestand'!F43 -> 0 | H69: ='Mieterspiegel Bestand'!G43 -> 0 | M69: ='Mieterspiegel Bestand'!J43 -> 150 | N69: 1800 | V69: ='Mieterspiegel Bestand'!P43 -> 180 | W69: 2160
A70: 41 | B70: B | C70: ='Mieterspiegel Bestand'!B44 -> -1 | D70: ='Mieterspiegel Bestand'!C44 -> 1 | E70: ='Mieterspiegel Bestand'!D44 -> 0 | F70: ='Mieterspiegel Bestand'!E44 -> Einstellplätze | G70: ='Mieterspiegel Bestand'!F44 -> 0 | H70: ='Mieterspiegel Bestand'!G44 -> 0 | M70: ='Mieterspiegel Bestand'!J44 -> 170 | N70: 2040 | V70: ='Mieterspiegel Bestand'!P44 -> 180 | W70: 2160
A71: 42 | B71: B | C71: ='Mieterspiegel Bestand'!B45 -> -1 | D71: ='Mieterspiegel Bestand'!C45 -> 1 | E71: ='Mieterspiegel Bestand'!D45 -> 0 | F71: ='Mieterspiegel Bestand'!E45 -> Einstellplätze | G71: ='Mieterspiegel Bestand'!F45 -> 0 | H71: ='Mieterspiegel Bestand'!G45 -> 0 | M71: ='Mieterspiegel Bestand'!J45 -> 180 | N71: 2160 | V71: ='Mieterspiegel Bestand'!P45 -> 180 | W71: 2160
A72: 43 | B72: B | C72: ='Mieterspiegel Bestand'!B46 -> -1 | D72: ='Mieterspiegel Bestand'!C46 -> 1 | E72: ='Mieterspiegel Bestand'!D46 -> 0 | F72: ='Mieterspiegel Bestand'!E46 -> Einstellplätze | G72: ='Mieterspiegel Bestand'!F46 -> 0 | H72: ='Mieterspiegel Bestand'!G46 -> 0 | M72: ='Mieterspiegel Bestand'!J46 -> 180 | N72: 2160 | V72: ='Mieterspiegel Bestand'!P46 -> 180 | W72: 2160
A73: 44 | B73: B | C73: ='Mieterspiegel Bestand'!B47 -> -1 | D73: ='Mieterspiegel Bestand'!C47 -> 1 | E73: ='Mieterspiegel Bestand'!D47 -> 0 | F73: ='Mieterspiegel Bestand'!E47 -> Einstellplätze | G73: ='Mieterspiegel Bestand'!F47 -> 0 | H73: ='Mieterspiegel Bestand'!G47 -> 0 | M73: ='Mieterspiegel Bestand'!J47 -> 150 | N73: 1800 | V73: ='Mieterspiegel Bestand'!P47 -> 180 | W73: 2160
A74: 45 | B74: B | C74: ='Mieterspiegel Bestand'!B48 -> -1 | D74: ='Mieterspiegel Bestand'!C48 -> 1 | E74: ='Mieterspiegel Bestand'!D48 -> 0 | F74: ='Mieterspiegel Bestand'!E48 -> Einstellplätze | G74: ='Mieterspiegel Bestand'!F48 -> 0 | H74: ='Mieterspiegel Bestand'!G48 -> 0 | M74: ='Mieterspiegel Bestand'!J48 -> 170 | N74: 2040 | V74: ='Mieterspiegel Bestand'!P48 -> 180 | W74: 2160
A75: 46 | B75: B | C75: ='Mieterspiegel Bestand'!B49 -> -1 | D75: ='Mieterspiegel Bestand'!C49 -> 1 | E75: ='Mieterspiegel Bestand'!D49 -> 0 | F75: ='Mieterspiegel Bestand'!E49 -> Einstellplätze | G75: ='Mieterspiegel Bestand'!F49 -> 0 | H75: ='Mieterspiegel Bestand'!G49 -> 0 | M75: ='Mieterspiegel Bestand'!J49 -> 180 | N75: 2160 | V75: ='Mieterspiegel Bestand'!P49 -> 180 | W75: 2160
A76: 47 | B76: B | C76: ='Mieterspiegel Bestand'!B50 -> -1 | D76: ='Mieterspiegel Bestand'!C50 -> 1 | E76: ='Mieterspiegel Bestand'!D50 -> 0 | F76: ='Mieterspiegel Bestand'!E50 -> Einstellplätze | G76: ='Mieterspiegel Bestand'!F50 -> 0 | H76: ='Mieterspiegel Bestand'!G50 -> 0 | M76: ='Mieterspiegel Bestand'!J50 -> 150 | N76: 1800 | V76: ='Mieterspiegel Bestand'!P50 -> 180 | W76: 2160
B77: B | C77: ='Mieterspiegel Bestand'!B51 -> 0 | D77: ='Mieterspiegel Bestand'!C51 -> 4 | E77: ='Mieterspiegel Bestand'!D51 -> 0 | F77: ='Mieterspiegel Bestand'!E51 -> Abstellplätze | G77: ='Mieterspiegel Bestand'!F51 -> 0 | H77: ='Mieterspiegel Bestand'!G51 -> 0 | M77: ='Mieterspiegel Bestand'!J51 -> 0 | V77: ='Mieterspiegel Bestand'!P51 -> 0
A94: Marktdaten Altbau
A95: Angebotspreise
A96: =Grundlagen!B37 -> 0.1 | B96: =Grundlagen!C37 -> 0.25 | C96: =Grundlagen!D37 -> 0.5 | D96: =Grundlagen!E37 -> 0.75 | E96: =Grundlagen!F37 -> 0.9
A97: =Grundlagen!B38 -> 0 | B97: =Grundlagen!C38 -> 0 | C97: =Grundlagen!D38 -> 0 | D97: =Grundlagen!E38 -> 0 | E97: =Grundlagen!F38 -> 0
A100: Marktdaten Neubau
A101: Angebotspreise
A102: =A96 -> 0.1 | B102: =B96 -> 0.25 | C102: =C96 -> 0.5 | D102: =D96 -> 0.75 | E102: =E96 -> 0.9
A103: =Grundlagen!B39 -> 0 | B103: =Grundlagen!C39 -> 0 | C103: =Grundlagen!D39 -> 0 | D103: =Grundlagen!E39 -> 0 | E103: =Grundlagen!F39 -> 0
I105: Bestand mit Neubauqualität | L105: Ersatzneubau | O105: Aufstockung
I106: Quantil | J106: Miete | K106: Leerstand | L106: Quantil | M106: Miete | N106: Leerstand | O106: Quantil | P106: Miete | Q106: Leerstand
I107: [%] | J107: [CHF/m2a] | K107: [%] | L107: [%] | M107: [CHF/m2a] | N107: [%] | O107: [%] | P107: [CHF/m2a] | Q107: [%]
I108: =AF9 -> 0 | J108: =AC9 -> 394 | K108: =AH18 -> 0.01 | L108: =AN10 -> 0 | M108: =AK10 -> 432 | N108: =AP18 -> 0.01 | O108: =AW11 -> 0 | P108: =AT11 -> 374 | Q108: =AY11 -> 0.01
I113: Nutzung | J113: Anzahl | K113: =K7 -> HNF | L113: Aktuelle Miete | O113: Quantil | P113: Leerstand aktuell
K114: =K8 -> [m2] | L114: [CHF/m2a] | M114: [CHF/Mt. ∅] | N114: [CHF/a] | O114: [%] | P114: [CHF/a] | Q114: [%]
I115: Wohnen | J115: 32 | K115: =K9 -> 1884 | L115: 246.4458599 | M115: 1209.125 | N115: 464304 | O115: 0.303 | P115: 46512 | Q115: 0.1001757469
I116: Einstellplätze | J116: 15 | M116: 164 | N116: 29520 | P116: 1800 | Q116: 0.06097560976
I117: Abstellplätze | J117: 4 | L117: - | M117: - | N117: - | P117: -
I118: Total | N118: 493824 | P118: 48312 | Q118: 0.09783242613
I121: Nutzung | J121: Anzahl | K121: HNF | L121: Aktuell | P121: Markt
L122: Miete | N122: Quantil | O122: Leerstand | P122: Miete | R122: Quantil | S122: Leerstand
K123: [m2] | L123: [CHF/m2a] | M123: [CHF/a] | N123: [%] | O123: [%] | P123: [CHF/m2a] | Q123: [CHF/a] | R123: [%] | S123: [%]
I124: Wohnen | J124: =J9 -> 32 | K124: =K9 -> 1884 | L124: =L9 -> 246.4458599 | M124: =N9 -> 464304 | N124: =O9 -> >90% | O124: =Q9 -> 0.1001757469 | P124: =U9 -> 366.8789809 | Q124: =W9 -> 691200 | R124: =X9 -> >90% | S124: =Z9 -> 0.01
I125: Einstellplätze | J125: =J12 -> 15 | M125: =N12 -> 29520 | O125: =Q12 -> 0.06097560976 | Q125: =W12 -> 32400 | S125: =Z12 -> 0.01
I126: Abstellplätze | J126: =J15 -> 4 | L126: - | M126: - | P126: - | Q126: - | S126: =Z15 -> 0.01
I127: Total | K127: =SUM(K124) -> 1884 | M127: 493824 | O127: =Q18 -> 0.09783242613 | Q127: 493824 | S127: =Z18 -> 0.01

Sheet Zustandserfassung Bestand
A1: eBKP-H | B1: Bezeichnung Element | D1: Zustand | E1: Beschrieb Zustand | F1: Beschrieb Massnahme | G1: Instandsetzungskosten
B3: [Elementkosten EKG] | C3: [Bezeichnung] | D3: [Erfassung] | G3: [CHF]
A5: Umgebung
A6: I | B6: Umgebung/Aussenflächen | C6: =Datenblätter!B5 -> Umgebung | D6: Ende Lebensdauer | E6: ='Zustandserfassung '!J23 -> Umgebung «verwildert». Hartflächen fehlend und defekt. Entwässerung nicht mehr gewährleistet. Aussenbeleuchtung fehlt. Briefkasten, Tore, andere Metallteile nicht mehr funktionsfähig. | F6: ='Zustandserfassung '!K23 -> Instandsetzung der Grün- und Hartflächen. Instandsetzen Entwässerung. Installieren einer Aussenbeleuchtung. Ersetzen sämtlicher Metallteile. | G6: ='Zustandserfassung '!X23 -> 147100 | H6: ='Zustandserfassung '!I23 -> 
A7: Rohbau,Fassaden
A8: C | B8: Tragkonstruktion | C8: Betonkonstruktion | D8: Ende Lebensdauer | E8: ='Zustandserfassung '!J25 -> Erhebliche Risse und Abplatzungen. Dilatationen grösstenteils beschädigt. Beschädigte Fläche (> 5%). | F8: ='Zustandserfassung '!K25 -> Zusatzabklärung: Bauingenieur. Beton sanieren aussen mit Dilatation. Schutzanstrich für sämtliche Oberflächen. | G8: ='Zustandserfassung '!X25 -> 323300
A9: E 2 | B9: Fassade Aussenfläche | C9: Verputzt | D9: Ende Lebensdauer | E9: ='Zustandserfassung '!J26 -> Anstrich verwittert, Putzschaden (50–100%) der Fassadenfläche. | F9: ='Zustandserfassung '!K26 -> Komplettes Entfernen des bestehenden Putzes. Reinigen des Mauerwerkes, neuer Aufbau des Putzes. Anstrich der Fassade. | G9: ='Zustandserfassung '!X26 -> 228000
A10: E 2 | B10: Fassade Dekoration | C10: =Datenblätter!B15 -> Fassadendekoration | D10: - | E10: ='Zustandserfassung '!J27 ->  | F10: ='Zustandserfassung '!K27 ->  | G10: ='Zustandserfassung '!X27 -> 
A11: C 4.3 | B11: Balkone,Loggien | C11: =Datenblätter!B17 -> Balkone,Loggien | D11: Ende Lebensdauer | E11: ='Zustandserfassung '!J28 -> Zahlreiche tiefe Risse und Abplatzungen mit Beein- trächtigung der Sicherheit. Vollständige Ablösung des Bodenbelages. Entwässerung nicht funktionsfähig. Metallteile durchgerostet mit mangelhaften Verankerungen. Fortgeschrittene Kondensatschäden an Decke oder Boden in Balkonnähe. | F11: ='Zustandserfassung '!K28 -> Zusatzabklärung: Bauingenieur. Erneuerung der Balkonplatten. Ersetzen von Brüstung und Metallteilen. Neuer Bodenbelag. Behandlung aller Oberflächen. Neue Entwässerung. Prüfung auf Wärmebrücken durchführen. | G11: ='Zustandserfassung '!X28 -> 214200
A12: E2 (energetisch) | B12: Fassade Wärmedämmung | C12: Gebäude ab 1940 | D12: Ende Lebensdauer | E12: ='Zustandserfassung '!J29 -> Die Wärmedämmung fehlt oder ist unzureichend. Kondensatschäden. Behaglichkeit ungenügend. | F12: ='Zustandserfassung '!K29 -> Kompaktwärmedämmung. Ausführung gemäss Mindestanforderung. Energiebilanz und Prüfung auf Wärmebrücken durchführen. | G12: ='Zustandserfassung '!X29 -> 427000
A13: Keller,Untergeschoss
A14: G 3 | B14: Kellerräume privat | C14: =Datenblätter!B22 -> Kellerräume privat | D14: leichte Abnutzung | E14: ='Zustandserfassung '!J31 -> Punktuelle Beschädigungen an Wänden, Böden, Decken und inneren Türen. Oberflächen mangelhaft. | F14: ='Zustandserfassung '!K31 -> Ausbesserungen an Wänden, Böden und Decken. Malerarbeiten an ausgebesserten Teilen. | G14: ='Zustandserfassung '!X31 -> 17900
A15: G 3 | B15: Kellerräume allgemein | C15: =Datenblätter!B24 -> Kellerräume allgemein | D15: leichte Abnutzung | E15: ='Zustandserfassung '!J32 -> Punktuelle Beschädigungen, Verschmutzungen an Wänden, Böden, Decken und inneren Türen. Oberflächen mangelhaft. | F15: ='Zustandserfassung '!K32 -> Ausbesserungen (Verputz) an Wänden, Böden und Decken. Malerarbeiten an ausgebesserten Teilen. | G15: ='Zustandserfassung '!X32 -> 23200
A16: G4 (energetisch) | B16: Kellerdecke Wärmedämmung | C16: =Datenblätter!B26 -> Kellerdecke Wärmedämmung | D16: Ende Lebensdauer | E16: ='Zustandserfassung '!J33 -> Wärmedämmung fehlend oder mit einer Stärke von weniger als 5 cm. Behaglichkeit in Erdgeschoss-Woh- nung ungenügend. | F16: ='Zustandserfassung '!K33 -> Kellerdecke wärmedämmen entsprechend den Mindestanforderungen. | G16: ='Zustandserfassung '!X33 -> 71500
A17: D 5.2 | B17: Lagerung Heizöl | C17: - | D17: - | E17: ='Zustandserfassung '!J34 ->  | F17: ='Zustandserfassung '!K34 ->  | G17: ='Zustandserfassung '!X34 -> 
A18: D 5.2 | B18: Wärmeerzeugung | C18: mit Warmwasser | D18: leichte Abnutzung | E18: ='Zustandserfassung '!J35 -> Dämmung teilweise mangelhaft. Wirkungsgrad unsicher. Steuerung funktioniert nicht einwandfrei. | F18: ='Zustandserfassung '!K35 -> Dämmung ausbessern. Einregulieren der Anlage. Steuerung und Wirkungsgrad überprüfen. Energieberater beiziehen. | G18: ='Zustandserfassung '!X35 -> 5400
A19: D 5.3 | B19: Wärmeverteilung | C19: =Datenblätter!B35 -> Wärmeverteilung | D19: leichte Abnutzung | E19: ='Zustandserfassung '!J36 -> Punktuelle Roststellen und teilweise undichte Stellen an den Armaturen. Dämmung teilweise mangelhaft. Geräusche, Anlage schlecht entlüftbar. Einige Heiz- körper werden nicht richtig warm. Strömgeräusche hörbar. | F19: ='Zustandserfassung '!K36 -> Reparaturen am Netz. Ausbessern der Dämmungen. Hydraulischer Abgleich. (Radiatoren entlüften.) | G19: ='Zustandserfassung '!X36 -> 17700
A20: D 8.4 | B20: Versorgung Wasser, Gas | C20: =Datenblätter!B37 -> Versorgung Wasser,Gas | D20: Ende Lebensdauer | E20: ='Zustandserfassung '!J37 -> Veraltete und defekte Leitungen. Gebäude über 40jährig. | F20: ='Zustandserfassung '!K37 -> Zusatzabklärungen: Gaswerk / Wasserwerk. Auswechseln der Hauszuleitungen ab Gebäudeeintritt bis Zähler. | G20: ='Zustandserfassung '!X37 -> 6100
A21: D 8.5 | B21: Entsorgung Wasser | C21: Fallstränge und Grundleitungen | D21: grössere Abnutzung | E21: ='Zustandserfassung '!J38 -> Es ist mit defekten Stellen zu rechnen. Verstopfungen. Schlechter Abfluss. | F21: ='Zustandserfassung '!K38 -> TV-Untersuch. Teilersatz (< 20%) der Leitungen. | G21: ='Zustandserfassung '!X38 -> 42200
A22: E 3.2 | B22: Keller Aussentüren und Tore | C22: =Datenblätter!B42 -> Aussentüren und Tore | D22: grössere Abnutzung | E22: ='Zustandserfassung '!J39 -> Aussentüren und Tore (< 50%) beschädigt. Schliessung defekt, Füllung angefault. Verrostete Sockelbleche und Beschläge. | F22: ='Zustandserfassung '!K39 -> Teilersatz von Aussentüren und Toren. Auswechseln von Sockelblechen. Neue Beschläge und Schliessung. Oberflächenbehandlung. | G22: ='Zustandserfassung '!X39 -> 19700
A23: E3.1 | B23: Kellerfenster | C23: =Datenblätter!B44 -> Kellerfenster | D23: Ende Lebensdauer | E23: ='Zustandserfassung '!J40 -> Sämtliche Fenster beschädigt. Flügel und Rahmen verwittert. Schliessung und Bedienung nicht funktionsfähig. | F23: ='Zustandserfassung '!K40 -> Kompletter Ersatz der Kellerfenster und Oberflächenbehandlung. | G23: ='Zustandserfassung '!X40 -> 48300
A24: Treppenhäuser
A25: G 3 | B25: Treppenhaus: Wände | C25: =Datenblätter!B46 -> Treppenhaus,Wände | D25: leichte Abnutzung | E25: ='Zustandserfassung '!J42 -> Verschmutzte Oberflächen. Untergrund in Ordnung. | F25: ='Zustandserfassung '!K42 -> Wände streichen. | G25: ='Zustandserfassung '!X42 -> 10500
A26: C | B26: Treppen und Podeste | C26: Treppen und Podeste | D26: leichte Abnutzung | E26: ='Zustandserfassung '!J43 -> Treppenwangen und Geländer in gutem Zustand. Punktuelle Schäden an Stufen und Treppenkanten, freigelegte Haarrisse und Fugen. Oberflächen schmutzig. | F26: ='Zustandserfassung '!K43 -> Örtliche Betonsanierung. Materialübergänge ausfugen. Tritte reinigen und imprägnieren. Streichen der Geländer. | G26: ='Zustandserfassung '!X43 -> 18300
A27: E 3.2 | B27: Treppenhaus:Eingangstüre | C27: =Datenblätter!B51 -> Treppenhaus:Eingangstüre | D27: Ende Lebensdauer | E27: ='Zustandserfassung '!J44 -> Hauseingangstüre genügt den Anforderungen nicht mehr. Flügel und Rahmen stark beschädigt. Einbruchsicherheit nicht gewährleistet. | F27: ='Zustandserfassung '!K44 -> Neue Hauseingangstüre mit guter Wärmedämmung inklusive Beschläge und Garnituren. Oberflächenbehandlung. | G27: ='Zustandserfassung '!X44 -> 23200
A28: G 1.4 | B28: Wohnungstüren | C28: =Datenblätter!B53 -> Wohnungstüren | D28: Ende Lebensdauer | E28: ='Zustandserfassung '!J45 -> Keine kostenwirksamen Massnahmen. | F28: ='Zustandserfassung '!K45 -> Totalersatz Flügel und Rahmen, inkl. Schliessung und Spion. Oberflächenbehandlung innen und aussen. | G28: ='Zustandserfassung '!X45 -> 79400
A29: D 1 | B29: Starkstrom:Hauszul,Messung,Vert. | C29: Messung im Treppenhaus | D29: gut | E29: ='Zustandserfassung '!J46 -> Keine offensichtlichen Mängel und Widersprüche gegenüber den Vorschriften. Für bestehenden Lei- stungsbezug genügend. | F29: ='Zustandserfassung '!K46 -> Keine kostenwirksamen Massnahmen. | G29: ='Zustandserfassung '!X46 -> 0
A30: D 1 | B30: Starkstrom:Gemeinanlagen | C30: =Datenblätter!B59 -> Starkstrom:Gemeinanlagen | D30: gut | E30: ='Zustandserfassung '!J47 -> Keine offensichtlichen Mängel und Widersprüche gegenüber den Vorschriften. Für bestehenden Leistungsbezug genügend. | F30: ='Zustandserfassung '!K47 -> Keine kostenwirksamen Massnahmen. | G30: ='Zustandserfassung '!X47 -> 0
A31: D 1 | B31: Schwachstrom | C31: =Datenblätter!B61 -> Schwachstrom | D31: - | E31: ='Zustandserfassung '!J48 ->  | F31: ='Zustandserfassung '!K48 ->  | G31: ='Zustandserfassung '!X48 -> 
A32: D 9 | B32: Aufzug | C32: =Datenblätter!B63 -> Aufzug | D32: - | E32: ='Zustandserfassung '!J49 ->  | F32: ='Zustandserfassung '!K49 ->  | G32: ='Zustandserfassung '!X49 -> 
A33: Dach und Dachraum
A34: C | B34: Tragwerk Dach | C34: =Datenblätter!B65 -> Tragwerk Dach | D34: leichte Abnutzung | E34: ='Zustandserfassung '!J51 -> Tragwerk in Ordnung. Holzwerk gesund, Anzeichen von vereinzeltem Schädlingsbefall. | F34: ='Zustandserfassung '!K51 -> Holzschutzbehandlung für gesamtes Tragwerk. | G34: ='Zustandserfassung '!X51 -> 30400
A35: =IF(C35="Steildach","F 1.3","F1.2") -> F 1.3 | B35: Dachdeckung | C35: Steildach | D35: Ende Lebensdauer | E35: ='Zustandserfassung '!J52 -> Deckung erheblich beschädigt. Verbreitet Wassereinritte. Lattung teilweise verfault. | F35: ='Zustandserfassung '!K52 -> Dachdeckung vollständig ersetzen inkl. Ziegel- und Konterlattung. Holzabschlüsse ersetzen und strei- chen. Metallteile auswechseln. | G35: ='Zustandserfassung '!X52 -> 203700
A36: =IF(C35="Steildach","F 1.3","F1.2") -> F 1.3 | B36: Dachaufbauten massiv | C36: =Datenblätter!B71 -> Dachbauten massiv | D36: - | E36: ='Zustandserfassung '!J53 ->  | F36: ='Zustandserfassung '!K53 ->  | G36: ='Zustandserfassung '!X53 -> 
A37: F 2 | B37: Dachaufbauten Glas | C37: =Datenblätter!B73 -> Dachaufbauten Glas | D37: Ende Lebensdauer | E37: ='Zustandserfassung '!J54 -> Konstruktion rostig. Verglasung defekt, Kondenswasser. Abdichtungen gelöst und undicht. An- und Abschlüsse sind beschädigt. | F37: ='Zustandserfassung '!K54 -> Ersatz der ganzen Konstruktion mit Verglasung und allen An- und Abschlüssen. | G37: ='Zustandserfassung '!X54 -> 103700
A38: F 2 | B38: Dachgauben | C38: =Datenblätter!B75 -> Dachgauben | D38: - | E38: ='Zustandserfassung '!J55 ->  | F38: ='Zustandserfassung '!K55 ->  | G38: ='Zustandserfassung '!X55 -> 
A39: F (energetisch) | B39: Dach Wärmedämmung | C39: Steildach,Dachgeschoss nicht ausgebaut | D39: Ende Lebensdauer | E39: ='Zustandserfassung '!J56 -> Wärmedämmung unvollständig oder Stärke der Dämmschicht ist ungenügend. | F39: ='Zustandserfassung '!K56 -> Entfernung der bestehenden Wärmedämmung. Neue Wärmedämmung mit Gehbelag auf Estrichboden. Energiebilanz und Prüfung auf Wärmebrücken durchführen. | G39: ='Zustandserfassung '!X56 -> 96500
A40: =IF(C40="Steildach","F 1.3","F1.2") -> F 1.3 | B40: Dachabschlüsse | C40: Steildach | D40: Ende Lebensdauer | E40: ='Zustandserfassung '!J57 -> Deckung erheblich beschädigt. Verbreitet Wassereinritte. Lattung teilweise verfault. | F40: ='Zustandserfassung '!K57 -> Dachdeckung vollständig ersetzen inkl. Ziegel- und Konterlattung. Holzabschlüsse ersetzen und strei- chen. Metallteile auswechseln. | G40: ='Zustandserfassung '!X57 -> 203700
A41: G 1.4 | B41: Dachraum | C41: =Datenblätter!B84 -> Dachraum | D41: Ende Lebensdauer | E41: ='Zustandserfassung '!J58 -> Räume schlecht aufgeteilt. Türen zum Treppenhaus und Lattenverschläge erheblich beschädigt. Elektrische Anlagen veraltet. | F41: ='Zustandserfassung '!K58 -> Neue Abschlusstüren, Lattenverschläge und Elektro- installationen. | G41: ='Zustandserfassung '!X58 -> 46500
A42: Wohnungen: Allgemein
A43: D 1 | B43: Elektroanlagen Wohnungen | C43: =Datenblätter!B86 -> Elektroanlagen Wohnungen | D43: grössere Abnutzung | E43: ='Zustandserfassung '!J60 -> Installationen teilweise mangelhaft, zu schwache Absicherung. | F43: ='Zustandserfassung '!K60 -> Neuinstallation von Unterputzleitungen (< 50%). Neue Unterverteilung mit 10 Ampère absichern. Bad auf Fehlerstromschutzschalter. Drahtauswechslungen. | G43: ='Zustandserfassung '!X60 -> 209100
A44: D 5.3 | B44: Wärmeabgabe | C44: Heizkörper | D44: leichte Abnutzung | E44: ='Zustandserfassung '!J61 -> Heizkörper verschmutzt. Schlechter Durchfluss, Anlage verschlammt. Vorlauftemperatur liegt im Normalfall unter 60 °C. | F44: ='Zustandserfassung '!K61 -> Aus- und Einbau, entschlammen und streichen der Heizkörper. Füllen und entlüften der Anlage. | G44: ='Zustandserfassung '!X61 -> 48300
A45: D 8.4 | B45: Kaltwasserverteilung | C45: =Datenblätter!B91 -> Kaltwasserverteilung | D45: leichte Abnutzung | E45: ='Zustandserfassung '!J62 -> Leitungen in Ordnung. Guter Durchfluss. Leitungsarmaturen undicht oder schlecht regulierbar. Dämmung teilweise mangelhaft. | F45: ='Zustandserfassung '!K62 -> Auswechseln von Armaturen und Teilstücken. Ausbessern Dämmung soweit zugänglich. | G45: ='Zustandserfassung '!X62 -> 17700
A46: D 8.4 | B46: Warmwasserverteilung | C46: Mit zentraler Aufbereitung | D46: leichte Abnutzung | E46: ='Zustandserfassung '!J63 -> Leitungen in Ordnung, keine Beschädigung sichtbar. Dämmung teilweise mangelhaft. Leitungsarmaturen undicht oder schlecht regulierbar. | F46: ='Zustandserfassung '!K63 -> Auswechseln von Leitungsarmaturen und Teilstücken. Ausbessern der Dämmung, soweit zugänglich. | G46: ='Zustandserfassung '!X63 -> 17700
A47: D 8.4 | B47: Gasverteilung | C47: =Datenblätter!B96 -> Gasverteilung | D47: - | E47: ='Zustandserfassung '!J64 ->  | F47: ='Zustandserfassung '!K64 ->  | G47: ='Zustandserfassung '!X64 -> 
A48: D 8.4 | B48: Entsorgungsleitung bis Kellerdecke | C48: =Datenblätter!B98 -> Entsorgungsleitung bis Kellerdecke | D48: grössere Abnutzung | E48: ='Zustandserfassung '!J65 -> - | F48: ='Zustandserfassung '!K65 -> - | G48: ='Zustandserfassung '!X65 -> 
A49: E 3.1 | B49: Fenster | C49: =Datenblätter!B100 -> Fenster | D49: Ende Lebensdauer | E49: ='Zustandserfassung '!J66 -> Sämtliche Fenster beschädigt. Flügel und Rahmen verwittert. Schliessung und Bedienung nicht funktionsfähig. Ungenügende Wärmedämmung vorhanden. | F49: ='Zustandserfassung '!K66 -> Kompletter Ersatz der Fenster. Oberflächenbehandlung und Versiegelung gegen Mauerwerk. Energieberater beiziehen. | G49: ='Zustandserfassung '!X66 -> 241300
A50: E 3.3 | B50: Wetterschutz | C50: Jalousien | D50: Ende Lebensdauer | E50: ='Zustandserfassung '!J67 -> Sämtliche Jalousieläden beschädigt. Oberflächen verwittert. | F50: ='Zustandserfassung '!K67 -> Totalersatz der Jalousieläden. Komplette Oberflächenbehandlung. | G50: ='Zustandserfassung '!X67 -> 101900
A51: E 3.3 | B51: Sonnenschutz | C51: =Datenblätter!B105 -> Sonnenschutz | D51: Ende Lebensdauer | E51: ='Zustandserfassung '!J68 -> Markisen nicht funktionsfähig. Stoffteile stark verwittert oder beschädigt. Bedienungselemente defekt. | F51: ='Zustandserfassung '!K68 -> Totalersatz der Markisen. Energienachweis und Prüfung auf Wärmebrücken durchführen. | G51: ='Zustandserfassung '!X68 -> 32200
A52: G 1.4 | B52: Türen,Innenausbauten | C52: =Datenblätter!B107 -> Türen,Innenausbauten | D52: grössere Abnutzung | E52: ='Zustandserfassung '!J69 -> Holzteile und Beschläge nicht mehr funktionsfähig (< 50%). Oberflächen schadhaft. | F52: ='Zustandserfassung '!K69 -> Ersatz der Holzteile und Beschläge (< 50%). Komplette Oberflächenbehandlung. | G52: ='Zustandserfassung '!X69 -> 128700
A53: Wohnungen: Zimmer,Korridor
A54: G 2.2 | B54: Bodenbeläge | C54: Parkett | D54: grössere Abnutzung | E54: ='Zustandserfassung '!J71 -> Lose Parkettelemente (≤ 25%), Flecken und Verschleissstellen verbreitet. Sockelleisten beschädigt oder nicht vorhanden. | F54: ='Zustandserfassung '!K71 -> Ausbessern (≤ 25%). Ganze Fläche schleifen und imprägnieren. Sockelleisten ersetzen. | G54: ='Zustandserfassung '!X71 -> 107200
A55: G 3 | B55: Wandverkleidungen | C55: Anstriche | D55: leichte Abnutzung | E55: ='Zustandserfassung '!J72 -> Untergrund in Ordnung. Oberflächen schmutzig oder abgenutzt (< 25%). | F55: ='Zustandserfassung '!K72 -> Oberflächen neu streichen (< 25%). | G55: ='Zustandserfassung '!X72 -> 80400
A56: G 4 | B56: Deckenverkleidungen | C56: Gipsdecken | D56: leichte Abnutzung | E56: ='Zustandserfassung '!J73 -> Oberflächen verschmutzt. Untergrund in gutem Zustand. Örtliche Haarrisse. | F56: ='Zustandserfassung '!K73 -> Oberflächen neu streichen und Risse ausbessern. | G56: ='Zustandserfassung '!X73 -> 59000
A57: Wohnungen: Nassräume
A58: G 5.2 | B58: Küche | C58: =Datenblätter!B120 -> Küche | D58: grössere Abnutzung | E58: ='Zustandserfassung '!J75 -> Wände und Decken verschmutzt. Plattenbeläge einwandfrei. Bodenbeläge beschädigt. Kücheneinrichtung und Apparate veraltet oder abgenutzt. Bedienungsarmaturen dicht und regulierbar. Elektrische Installationen ungenügend. | F58: ='Zustandserfassung '!K75 -> Neue Küchenkombination ohne Veränderung der Anordnung. Ausbessern Bodenbeläge, streichen von Decken und Wänden. Neue elektrische Installation. Auf energiesparende Geräte achten. | G58: ='Zustandserfassung '!X75 -> 542900
A59: D 8.1 | B59: Bad-WC | C59: Bad-WC zusammen | D59: grössere Abnutzung | E59: ='Zustandserfassung '!J76 -> Decken und Wandanstriche verschmutzt oder abgeblättert. Plattenbeläge teilweise gelöst. Fugen ausgebrochen oder undicht. Maximal zwei sanitäre Apparate beschädigt. Bedienungsarmaturen veraltet oder undicht. Elektrische Installationen genügend. | F59: ='Zustandserfassung '!K76 -> Auswechseln von maximal zwei sanitären Apparaten. Auswechseln der Armaturen. Erneuern von Kittfugen. Ersetzen von einzelnen Platten. Anstrich Wände und Decken. | G59: ='Zustandserfassung '!X76 -> 219000
A60: D 7 | B60: Abluftanlagen | C60: - | D60: - | E60: ='Zustandserfassung '!J77 ->  | F60: ='Zustandserfassung '!K77 ->  | G60: ='Zustandserfassung '!X77 -> 
A61: Gewerberäume
A62: D | B62: Gewerberäume | C62: =Datenblätter!B128 -> Gewerberäume | D62: - | E62: ='Zustandserfassung '!J79 ->  | F62: ='Zustandserfassung '!K79 ->  | G62: ='Zustandserfassung '!X79 -> 
A63: Baustelleneinrichtung
A64: B | B64: Gerüste und Baustelleneinrichtung | C64: Gerüste und Baustelleneinrichtung | D64: Ende Lebensdauer | E64: ='Zustandserfassung '!J81 -> Die Diagnosecodes c und d dominieren. Fassade und Dach in schlechtem Zustand, grössere Abnutzung in allen Haustechniksystemen. | F64: ='Zustandserfassung '!K81 -> Massnahmen erfordern eine intensive Baustelleneinrichtung und ein Gerüst. (Dauer > 5 Monate) | G64: ='Zustandserfassung '!X81 -> 261200
A66: Total Instandsetzungskosten (inkl. energetische Massnahmen)

Sheet Zustandserfassung (hidden)
C1: Zustandserfassung und Kostenberechnung
E3: Geometrische Koeffizienten
E4: Grundstückfläche GR | G4: =Grundlagen!M10 -> 2712 | H4: m2
E5: Gebäudegrundfläche GRG | G5: =Grundlagen!M11 -> 776 | H5: m2
E6: Umbebungsfläche GR-GRG=GRU | G6: =Grundlagen!M12 -> 1936 | H6: m2
E7: Fassadenabwicklung FA | G7: =Grundlagen!M13 -> 180 | H7: m | J7: Basis (Datum) = 100 | K7: 1977
E8: Traufhöhe TH | G8: =Grundlagen!M14 -> 10 | H8: m | J8: Sanierungsjahr (Index der Wohnbaukosten (ZH)) | K8: =Grundlagen!B11 -> 2025
E9: Fassadenfläche FAxTH=FF | G9: =Grundlagen!M15 -> 1800 | H9: m2 | J9: Index Baukosten | K9: =$V$9/100 -> 2.1324 | V9: =VLOOKUP(K8,Baupreisindex!A42:C76,3,FALSE) -> 213.24
E10: Anzahl Wohgeschosse AWG | G10: =Grundlagen!M16 -> 3 | H10: Anzahl
E11: Geschossfläche GRG X AWG = FW | G11: =Grundlagen!M17 -> 2328 | H11: m2 | J11: Grösse | K11: =Grundlagen!M26 -> Mehr 20 Wohnungen
E12: Gewerbefläche FG | G12: =Grundlagen!M18 -> 0 | H12: m2 | J12: Baubedingungen | K12: =Grundlagen!M27 -> Weniger als 4 Stockwerke oder während der Instandsetzung unbewohnt
E13: Anzahl Treppenhäuser AT | G13: =Grundlagen!M19 -> 4 | H13: Anzahl | J13: Zugang | K13: =Grundlagen!M28 -> Zugang gut, mit Lagerplatz
E14: Anzahl Wohnungen AW | G14: =Grundlagen!M20 -> 36 | H14: Anzahl | J14: Koeffizient Schwierigkeitsgrad | K14: =INDEX(Schwierigkeitsgrad!D3:D29,MATCH(K11&K12&K13,Schwierigkeitsgrad!A3:A29&Schwierigkeitsgrad!B3:B29&Schwierigkeitsgrad!C3:C29,0)) -> 1.08
A18: Massnahmenpaket | B18: Nr. | C18: eBKP-H | E18: Bezeichnung Element | F18: Typ | H18: Zustand | I18: Folgecode | J18: Beschrieb Zustand | K18: Beschrieb Massnahme | L18: Instandsetzung | T18: Ausmass | X18: Instandsetzungskosten | Y18: Wertvermehrender Anteil | AC18: Wertvermehrender Anteil
F19: Nr. | L19: Code | M19: Folgecodes | N19: C | O19: F | P19: Max. | Q19: Code definitiv | R19: Kosten | S19: CHF/Einheit | T19: Geometr. Koeffiz. | Y19: Nach Eingriffstiefe | AC19: % | AD19: CHF
E20: [Elementkosten EKG] | G20: [Bezeichnung] | H20: [Erfassung] | R20: (Basis = 1977) | S20: (inkl. Index und Schwierigkeitsgrad) | X20: [CHF] | Y20: a | Z20: b | AA20: c | AB20: d
C22: Umgebung
A23: A | B23: 01 | C23: I | D23: Umgebung | E23: Umgebung/Aussenflächen | F23: =IFERROR(VLOOKUP(G23,Datenblätter!$B$3:$C$130,2,FALSE)," ") -> 1 | G23: =Datenblätter!B5 -> Umgebung | H23: ='Zustandserfassung Bestand'!D6 -> Ende Lebensdauer | I23: =IFERROR(IF(L23=Q23," ", "übersteuert")," ") ->  | J23: =IFERROR(INDEX('Beschrieb Zustand'!$B$2:$G$130,MATCH('Zustandserfassung '!G23,'Beschrieb Zustand'!$B$2:$B$130,0),MATCH('Zustandserfassung '!Q23,'Beschrieb Zustand'!$B$2:$G$2,0))," ") -> Umgebung «verwildert». Hartflächen fehlend und defekt. Entwässerung nicht mehr gewährleistet. Aussenbeleuchtung fehlt. Briefkasten, Tore, andere Metallteile nicht mehr funktionsfähig. | K23: =IFERROR(INDEX('Beschrieb Zustand'!$H$2:$L$130,MATCH('Zustandserfassung '!G23,'Beschrieb Zustand'!$H$2:$H$130,0),MATCH('Zustandserfassung '!Q23,'Beschrieb Zustand'!$H$2:$L$2,0))," ") -> Instandsetzung der Grün- und Hartflächen. Instandsetzen Entwässerung. Installieren einer Aussenbeleuchtung. Ersetzen sämtlicher Metallteile. | L23: =IFERROR(VLOOKUP(H23,Datenblätter!$A$137:$B$141,2,FALSE)," ") -> d | M23: =IF(OR(M81="c",M81="d",L81="c",L81="d"),"b"," ") -> b | N23: =IFERROR(VLOOKUP(L23,Datenblätter!$B$137:$C$141,2,FALSE)," ") -> 4 | O23: =IFERROR(VLOOKUP(M23,Datenblätter!$B$137:$C$141,2,FALSE)," ") -> 2 | P23: =IF(MAX(N23:O23)=0," ",MAX(N23:O23)) -> 4 | Q23: =IFERROR(VLOOKUP(P23,Datenblätter!$H$137:$I$140,2,FALSE)," ") -> d | R23: =IFERROR(INDEX(Datenblätter!$B$2:$K$130,MATCH('Zustandserfassung '!G23,Datenblätter!$B$2:$B$130,0),MATCH('Zustandserfassung '!Q23,Datenblätter!$B$2:$K$2,0))," ") -> 33 | S23: =IFERROR(R23*$K$9*$K$14," ") -> 75.998736 | T23: x | U23: GRU= | V23: =$G$6 -> 1936 | W23: = | X23: =IFERROR(ROUND(V23*S23,-2), " ") -> 147100 | Y23: 0 | Z23: 0 | AA23: 0.25 | AB23: 0.3 | AC23: =IFERROR(HLOOKUP(Q23,$Y$20:AB23,4,)," ") -> 0.3 | AD23: =IFERROR(X23*AC23," ") -> 44130
C24: Rohbau,Fassaden
A25: A | B25: 02 | C25: C | D25: Konstruktion Gebäude | E25: Tragkonstruktion | F25: =IFERROR(VLOOKUP(G25,Datenblätter!$B$3:$C$130,2,FALSE)," ") -> 2 | G25: ='Zustandserfassung Bestand'!C8 -> Betonkonstruktion | H25: ='Zustandserfassung Bestand'!D8 -> Ende Lebensdauer | I25: =IFERROR(IF(L25=Q25," ", "übersteuert")," ") ->  | J25: =IFERROR(INDEX('Beschrieb Zustand'!$B$2:$G$130,MATCH('Zustandserfassung '!G25,'Beschrieb Zustand'!$B$2:$B$130,0),MATCH('Zustandserfassung '!Q25,'Beschrieb Zustand'!$B$2:$G$2,0))," ") -> Erhebliche Risse und Abplatzungen. Dilatationen grösstenteils beschädigt. Beschädigte Fläche (> 5%). | K25: =IFERROR(INDEX('Beschrieb Zustand'!$H$2:$L$130,MATCH('Zustandserfassung '!G25,'Beschrieb Zustand'!$H$2:$H$130,0),MATCH('Zustandserfassung '!Q25,'Beschrieb Zustand'!$H$2:$L$2,0))," ") -> Zusatzabklärung: Bauingenieur. Beton sanieren aussen mit Dilatation. Schutzanstrich für sämtliche Oberflächen. | L25: =IFERROR(VLOOKUP(H25,Datenblätter!$A$137:$B$141,2,FALSE)," ") -> d | N25: =IFERROR(VLOOKUP(L25,Datenblätter!$B$137:$C$141,2,FALSE)," ") -> 4 | O25: =IFERROR(VLOOKUP(M25,Datenblätter!$B$137:$C$141,2,FALSE)," ") ->  | P25: =IF(MAX(N25:O25)=0," ",MAX(N25:O25)) -> 4 | Q25: =IFERROR(VLOOKUP(P25,Datenblätter!$H$137:$I$140,2,FALSE)," ") -> d | R25: =IFERROR(INDEX(Datenblätter!$B$2:$K$130,MATCH('Zustandserfassung '!G25,Datenblätter!$B$2:$B$130,0),MATCH('Zustandserfassung '!Q25,Datenblätter!$B$2:$K$2,0))," ") -> 78 | S25: =IFERROR(R25*$K$9*$K$14," ") -> 179.633376 | T25: x | U25: FF= | V25: =$G$9 -> 1800 | W25: = | X25: =IFERROR(ROUND(V25*S25,-2), " ") -> 323300 | Y25: 0 | Z25: 0 | AA25: 0.1 | AB25: 0.2 | AC25: =IFERROR(HLOOKUP(Q25,$Y$20:AB25,6,)," ") -> 0.2 | AD25: =IFERROR(X25*AC25," ") -> 64660
A26: A | B26: 03 | C26: E 2 | D26: Äussere Wandbekleidung über Terrain | E26: Fassade Aussenfläche | F26: =IFERROR(VLOOKUP(G26,Datenblätter!$B$3:$C$130,2,FALSE)," ") -> 1 | G26: ='Zustandserfassung Bestand'!C9 -> Verputzt | H26: ='Zustandserfassung Bestand'!D9 -> Ende Lebensdauer | I26: =IFERROR(IF(L26=Q26," ", "übersteuert")," ") ->  | J26: =IFERROR(INDEX('Beschrieb Zustand'!$B$2:$G$130,MATCH('Zustandserfassung '!G26,'Beschrieb Zustand'!$B$2:$B$130,0),MATCH('Zustandserfassung '!Q26,'Beschrieb Zustand'!$B$2:$G$2,0))," ") -> Anstrich verwittert, Putzschaden (50–100%) der Fassadenfläche. | K26: =IFERROR(INDEX('Beschrieb Zustand'!$H$2:$L$130,MATCH('Zustandserfassung '!G26,'Beschrieb Zustand'!$H$2:$H$130,0),MATCH('Zustandserfassung '!Q26,'Beschrieb Zustand'!$H$2:$L$2,0))," ") -> Komplettes Entfernen des bestehenden Putzes. Reinigen des Mauerwerkes, neuer Aufbau des Putzes. Anstrich der Fassade. | L26: =IFERROR(VLOOKUP(H26,Datenblätter!$A$137:$B$141,2,FALSE)," ") -> d | M26: =IF(AND(OR(F26=1,F26=2),$L$25="c",$F$25=1),"c"," ")&IF(AND(OR(F26=1,F26=2),$L$25="d",$F$25=1),"d"," ") ->  | N26: =IFERROR(VLOOKUP(L26,Datenblätter!$B$137:$C$141,2,FALSE)," ") -> 4 | O26: =IFERROR(VLOOKUP(M26,Datenblätter!$B$137:$C$141,2,FALSE)," ") ->  | P26: 4 | Q26: =IFERROR(VLOOKUP(P26,Datenblätter!$H$137:$I$140,2,FALSE)," ") -> d | R26: =IFERROR(INDEX(Datenblätter!$B$2:$K$130,MATCH('Zustandserfassung '!G26,Datenblätter!$B$2:$B$130,0),MATCH('Zustandserfassung '!Q26,Datenblätter!$B$2:$K$2,0))," ") -> 55 | S26: =IFERROR(R26*$K$9*$K$14," ") -> 126.66456 | T26: x | U26: FF= | V26: =$G$9 -> 1800 | W26: = | X26: =IFERROR(ROUND(V26*S26,-2), " ") -> 228000 | Y26: 0 | Z26: 0 | AA26: 0 | AB26: 0.1 | AC26: =IFERROR(HLOOKUP(Q26,$Y$20:AB26,7,)," ") -> 0.1 | AD26: =IFERROR(X26*AC26," ") -> 22800
A27: A | B27: 04 | C27: E 2 | D27: Äussere Wandbekleidung über Terrain | E27: Fassade Dekoration | F27: =IFERROR(VLOOKUP(G27,Datenblätter!$B$3:$C$130,2,FALSE)," ") -> 1 | G27: =Datenblätter!B15 -> Fassadendekoration | H27: ='Zustandserfassung Bestand'!D10 -> - | I27: =IFERROR(IF(L27=Q27," ", "übersteuert")," ") ->  | J27: =IFERROR(INDEX('Beschrieb Zustand'!$B$2:$G$130,MATCH('Zustandserfassung '!G27,'Beschrieb Zustand'!$B$2:$B$130,0),MATCH('Zustandserfassung '!Q27,'Beschrieb Zustand'!$B$2:$G$2,0))," ") ->  | K27: =IFERROR(INDEX('Beschrieb Zustand'!$H$2:$L$130,MATCH('Zustandserfassung '!G27,'Beschrieb Zustand'!$H$2:$H$130,0),MATCH('Zustandserfassung '!Q27,'Beschrieb Zustand'!$H$2:$L$2,0))," ") ->  | L27: =IFERROR(VLOOKUP(H27,Datenblätter!$A$137:$B$141,2,FALSE)," ") ->  | N27: =IFERROR(VLOOKUP(L27,Datenblätter!$B$137:$C$141,2,FALSE)," ") ->  | O27: =IFERROR(VLOOKUP(M27,Datenblätter!$B$137:$C$141,2,FALSE)," ") ->  | Q27: =IFERROR(VLOOKUP(P27,Datenblätter!$H$137:$I$140,2,FALSE)," ") ->  | R27: =IFERROR(INDEX(Datenblätter!$B$2:$K$130,MATCH('Zustandserfassung '!G27,Datenblätter!$B$2:$B$130,0),MATCH('Zustandserfassung '!Q27,Datenblätter!$B$2:$K$2,0))," ") ->  | S27: =IFERROR(R27*$K$9*$K$14," ") ->  | T27: x | U27: FF= | V27: =$G$9 -> 1800 | W27: = | X27: =IFERROR(ROUND(V27*S27,-2), " ") ->  | Y27: 0 | Z27: 0 | AA27: 0 | AB27: 0 | AC27: =IFERROR(HLOOKUP(Q27,$Y$20:AB27,8,)," ") ->  | AD27: =IFERROR(X27*AC27," ") -> 
A28: A | B28: 05 | C28: C 4.3 | D28: Balkon | E28: Balkone,Loggien | F28: =IFERROR(VLOOKUP(G28,Datenblätter!$B$3:$C$130,2,FALSE)," ") -> 1 | G28: =Datenblätter!B17 -> Balkone,Loggien | H28: ='Zustandserfassung Bestand'!D11 -> Ende Lebensdauer | I28: =IFERROR(IF(L28=Q28," ", "übersteuert")," ") ->  | J28: =IFERROR(INDEX('Beschrieb Zustand'!$B$2:$G$130,MATCH('Zustandserfassung '!G28,'Beschrieb Zustand'!$B$2:$B$130,0),MATCH('Zustandserfassung '!Q28,'Beschrieb Zustand'!$B$2:$G$2,0))," ") -> Zahlreiche tiefe Risse und Abplatzungen mit Beein- trächtigung der Sicherheit. Vollständige Ablösung des Bodenbelages. Entwässerung nicht funktionsfähig. Metallteile durchgerostet mit mangelhaften Verankerungen. Fortgeschrittene Kondensatschäden an Decke oder Boden in Balkonnähe. | K28: =IFERROR(INDEX('Beschrieb Zustand'!$H$2:$L$130,MATCH('Zustandserfassung '!G28,'Beschrieb Zustand'!$H$2:$H$130,0),MATCH('Zustandserfassung '!Q28,'Beschrieb Zustand'!$H$2:$L$2,0))," ") -> Zusatzabklärung: Bauingenieur. Erneuerung der Balkonplatten. Ersetzen von Brüstung und Metallteilen. Neuer Bodenbelag. Behandlung aller Oberflächen. Neue Entwässerung. Prüfung auf Wärmebrücken durchführen. | L28: =IFERROR(VLOOKUP(H28,Datenblätter!$A$137:$B$141,2,FALSE)," ") -> d | N28: =IFERROR(VLOOKUP(L28,Datenblätter!$B$137:$C$141,2,FALSE)," ") -> 4 | O28: =IFERROR(VLOOKUP(M28,Datenblätter!$B$137:$C$141,2,FALSE)," ") ->  | P28: 4 | Q28: =IFERROR(VLOOKUP(P28,Datenblätter!$H$137:$I$140,2,FALSE)," ") -> d | R28: =IFERROR(INDEX(Datenblätter!$B$2:$K$130,MATCH('Zustandserfassung '!G28,Datenblätter!$B$2:$B$130,0),MATCH('Zustandserfassung '!Q28,Datenblätter!$B$2:$K$2,0))," ") -> 2583 | S28: =IFERROR(R28*$K$9*$K$14," ") -> 5948.628336 | T28: x | U28: AW= | V28: =$G$14 -> 36 | W28: = | X28: =IFERROR(ROUND(V28*S28,-2), " ") -> 214200 | Y28: 0 | Z28: 0 | AA28: 0.15 | AB28: 0.3 | AC28: =IFERROR(HLOOKUP(Q28,$Y$20:AB28,9,)," ") -> 0.3 | AD28: =IFERROR(X28*AC28," ") -> 64260
A29: AE | B29: 06 | C29: E2 (energetisch) | D29: Äussere Wandbekleidung über Terrain | E29: Fassade Wärmedämmung | F29: =IFERROR(VLOOKUP(G29,Datenblätter!$B$3:$C$130,2,FALSE)," ") -> 2 | G29: ='Zustandserfassung Bestand'!C12 -> Gebäude ab 1940 | H29: ='Zustandserfassung Bestand'!D12 -> Ende Lebensdauer | I29: =IFERROR(IF(L29=Q29," ", "übersteuert")," ") ->  | J29: =IFERROR(INDEX('Beschrieb Zustand'!$B$2:$G$130,MATCH('Zustandserfassung '!G29,'Beschrieb Zustand'!$B$2:$B$130,0),MATCH('Zustandserfassung '!Q29,'Beschrieb Zustand'!$B$2:$G$2,0))," ") -> Die Wärmedämmung fehlt oder ist unzureichend. Kondensatschäden. Behaglichkeit ungenügend. | K29: =IFERROR(INDEX('Beschrieb Zustand'!$H$2:$L$130,MATCH('Zustandserfassung '!G29,'Beschrieb Zustand'!$H$2:$H$130,0),MATCH('Zustandserfassung '!Q29,'Beschrieb Zustand'!$H$2:$L$2,0))," ") -> Kompaktwärmedämmung. Ausführung gemäss Mindestanforderung. Energiebilanz und Prüfung auf Wärmebrücken durchführen. | L29: =IFERROR(VLOOKUP(H29,Datenblätter!$A$137:$B$141,2,FALSE)," ") -> d | N29: =IFERROR(VLOOKUP(L29,Datenblätter!$B$137:$C$141,2,FALSE)," ") -> 4 | O29: =IFERROR(VLOOKUP(M29,Datenblätter!$B$137:$C$141,2,FALSE)," ") ->  | P29: 4 | Q29: =IFERROR(VLOOKUP(P29,Datenblätter!$H$137:$I$140,2,FALSE)," ") -> d | R29: =IFERROR(INDEX(Datenblätter!$B$2:$K$130,MATCH('Zustandserfassung '!G29,Datenblätter!$B$2:$B$130,0),MATCH('Zustandserfassung '!Q29,Datenblätter!$B$2:$K$2,0))," ") -> 103 | S29: =IFERROR(R29*$K$9*$K$14," ") -> 237.208176 | T29: x | U29: FF= | V29: =$G$9 -> 1800 | W29: = | X29: =IFERROR(ROUND(V29*S29,-2), " ") -> 427000 | Y29: 0 | Z29: 0 | AA29: 0 | AB29: 1 | AC29: =IFERROR(HLOOKUP(Q29,$Y$20:AB29,10,)," ") -> 1 | AD29: =IFERROR(X29*AC29," ") -> 427000
C30: Keller,Untergeschoss
A31: I | B31: 07 | C31: G 3 | D31: Ausbau Gebäude | E31: Kellerräume privat | F31: =IFERROR(VLOOKUP(G31,Datenblätter!$B$3:$C$130,2,FALSE)," ") -> 1 | G31: =Datenblätter!B22 -> Kellerräume privat | H31: ='Zustandserfassung Bestand'!D14 -> leichte Abnutzung | I31: =IFERROR(IF(L31=Q31," ", "übersteuert")," ") ->  | J31: =IFERROR(INDEX('Beschrieb Zustand'!$B$2:$G$130,MATCH('Zustandserfassung '!G31,'Beschrieb Zustand'!$B$2:$B$130,0),MATCH('Zustandserfassung '!Q31,'Beschrieb Zustand'!$B$2:$G$2,0))," ") -> Punktuelle Beschädigungen an Wänden, Böden, Decken und inneren Türen. Oberflächen mangelhaft. | K31: =IFERROR(INDEX('Beschrieb Zustand'!$H$2:$L$130,MATCH('Zustandserfassung '!G31,'Beschrieb Zustand'!$H$2:$H$130,0),MATCH('Zustandserfassung '!Q31,'Beschrieb Zustand'!$H$2:$L$2,0))," ") -> Ausbesserungen an Wänden, Böden und Decken. Malerarbeiten an ausgebesserten Teilen. | L31: =IFERROR(VLOOKUP(H31,Datenblätter!$A$137:$B$141,2,FALSE)," ") -> b | N31: =IFERROR(VLOOKUP(L31,Datenblätter!$B$137:$C$141,2,FALSE)," ") -> 2 | O31: =IFERROR(VLOOKUP(M31,Datenblätter!$B$137:$C$141,2,FALSE)," ") ->  | P31: 2 | Q31: =IFERROR(VLOOKUP(P31,Datenblätter!$H$137:$I$140,2,FALSE)," ") -> b | R31: =IFERROR(INDEX(Datenblätter!$B$2:$K$130,MATCH('Zustandserfassung '!G31,Datenblätter!$B$2:$B$130,0),MATCH('Zustandserfassung '!Q31,Datenblätter!$B$2:$K$2,0))," ") -> 10 | S31: =IFERROR(R31*$K$9*$K$14," ") -> 23.02992 | T31: x | U31: GRG= | V31: =$G$5 -> 776 | W31: = | X31: =IFERROR(ROUND(V31*S31,-2), " ") -> 17900 | Y31: 0 | Z31: 0 | AA31: 0.1 | AB31: 0.3 | AC31: =IFERROR(HLOOKUP(Q31,$Y$20:AB31,12,)," ") -> 0 | AD31: =IFERROR(X31*AC31," ") -> 0
A32: I | B32: 08 | C32: G 3 | D32: Ausbau Gebäude | E32: Kellerräume allgemein | F32: =IFERROR(VLOOKUP(G32,Datenblätter!$B$3:$C$130,2,FALSE)," ") -> 1 | G32: =Datenblätter!B24 -> Kellerräume allgemein | H32: ='Zustandserfassung Bestand'!D15 -> leichte Abnutzung | J32: =IFERROR(INDEX('Beschrieb Zustand'!$B$2:$G$130,MATCH('Zustandserfassung '!G32,'Beschrieb Zustand'!$B$2:$B$130,0),MATCH('Zustandserfassung '!Q32,'Beschrieb Zustand'!$B$2:$G$2,0))," ") -> Punktuelle Beschädigungen, Verschmutzungen an Wänden, Böden, Decken und inneren Türen. Oberflächen mangelhaft. | K32: =IFERROR(INDEX('Beschrieb Zustand'!$H$2:$L$130,MATCH('Zustandserfassung '!G32,'Beschrieb Zustand'!$H$2:$H$130,0),MATCH('Zustandserfassung '!Q32,'Beschrieb Zustand'!$H$2:$L$2,0))," ") -> Ausbesserungen (Verputz) an Wänden, Böden und Decken. Malerarbeiten an ausgebesserten Teilen. | L32: =IFERROR(VLOOKUP(H32,Datenblätter!$A$137:$B$141,2,FALSE)," ") -> b | N32: =IFERROR(VLOOKUP(L32,Datenblätter!$B$137:$C$141,2,FALSE)," ") -> 2 | O32: =IFERROR(VLOOKUP(M32,Datenblätter!$B$137:$C$141,2,FALSE)," ") ->  | P32: 2 | Q32: =IFERROR(VLOOKUP(P32,Datenblätter!$H$137:$I$140,2,FALSE)," ") -> b | R32: =IFERROR(INDEX(Datenblätter!$B$2:$K$130,MATCH('Zustandserfassung '!G32,Datenblätter!$B$2:$B$130,0),MATCH('Zustandserfassung '!Q32,Datenblätter!$B$2:$K$2,0))," ") -> 13 | S32: 29.938896 | T32: x | U32: GRG= | V32: =$G$5 -> 776 | W32: = | X32: =IFERROR(ROUND(V32*S32,-2), " ") -> 23200 | Y32: 0 | Z32: 0 | AA32: 0.1 | AB32: 0.3 | AC32: =IFERROR(HLOOKUP(Q32,$Y$20:AB32,13,)," ") -> 0 | AD32: =IFERROR(X32*AC32," ") -> 0
A33: IE | B33: 09 | C33: G4 (energetisch) | D33: Deckenbekleidung | E33: Kellerdecke Wärmedämmung | F33: =IFERROR(VLOOKUP(G33,Datenblätter!$B$3:$C$130,2,FALSE)," ") -> 1 | G33: =Datenblätter!B26 -> Kellerdecke Wärmedämmung | H33: ='Zustandserfassung Bestand'!D16 -> Ende Lebensdauer | J33: =IFERROR(INDEX('Beschrieb Zustand'!$B$2:$G$130,MATCH('Zustandserfassung '!G33,'Beschrieb Zustand'!$B$2:$B$130,0),MATCH('Zustandserfassung '!Q33,'Beschrieb Zustand'!$B$2:$G$2,0))," ") -> Wärmedämmung fehlend oder mit einer Stärke von weniger als 5 cm. Behaglichkeit in Erdgeschoss-Woh- nung ungenügend. | K33: =IFERROR(INDEX('Beschrieb Zustand'!$H$2:$L$130,MATCH('Zustandserfassung '!G33,'Beschrieb Zustand'!$H$2:$H$130,0),MATCH('Zustandserfassung '!Q33,'Beschrieb Zustand'!$H$2:$L$2,0))," ") -> Kellerdecke wärmedämmen entsprechend den Mindestanforderungen. | L33: =IFERROR(VLOOKUP(H33,Datenblätter!$A$137:$B$141,2,FALSE)," ") -> d | N33: =IFERROR(VLOOKUP(L33,Datenblätter!$B$137:$C$141,2,FALSE)," ") -> 4 | O33: =IFERROR(VLOOKUP(M33,Datenblätter!$B$137:$C$141,2,FALSE)," ") ->  | P33: 4 | Q33: =IFERROR(VLOOKUP(P33,Datenblätter!$H$137:$I$140,2,FALSE)," ") -> d | R33: =IFERROR(INDEX(Datenblätter!$B$2:$K$130,MATCH('Zustandserfassung '!G33,Datenblätter!$B$2:$B$130,0),MATCH('Zustandserfassung '!Q33,Datenblätter!$B$2:$K$2,0))," ") -> 40 | S33: 92.11968 | T33: x | U33: GRG= | V33: =$G$5 -> 776 | W33: = | X33: 71500 | Y33: 0 | Z33: 0 | AA33: 0 | AB33: 1 | AC33: =IFERROR(HLOOKUP(Q33,$Y$20:AB33,14,)," ") -> 1 | AD33: =IFERROR(X33*AC33," ") -> 71500
A34: I | B34: 10 | C34: D 5.2 | D34: Wärmeerzeugung | E34: Lagerung Heizöl | F34: =IFERROR(VLOOKUP(G34,Datenblätter!$B$3:$C$130,2,FALSE)," ") -> 0 | G34: ='Zustandserfassung Bestand'!C17 -> - | H34: ='Zustandserfassung Bestand'!D17 -> - | J34: =IFERROR(INDEX('Beschrieb Zustand'!$B$2:$G$130,MATCH('Zustandserfassung '!G34,'Beschrieb Zustand'!$B$2:$B$130,0),MATCH('Zustandserfassung '!Q34,'Beschrieb Zustand'!$B$2:$G$2,0))," ") ->  | K34: =IFERROR(INDEX('Beschrieb Zustand'!$H$2:$L$130,MATCH('Zustandserfassung '!G34,'Beschrieb Zustand'!$H$2:$H$130,0),MATCH('Zustandserfassung '!Q34,'Beschrieb Zustand'!$H$2:$L$2,0))," ") ->  | L34: =IFERROR(VLOOKUP(H34,Datenblätter!$A$137:$B$141,2,FALSE)," ") ->  | N34: =IFERROR(VLOOKUP(L34,Datenblätter!$B$137:$C$141,2,FALSE)," ") ->  | O34: =IFERROR(VLOOKUP(M34,Datenblätter!$B$137:$C$141,2,FALSE)," ") ->  | Q34: =IFERROR(VLOOKUP(P34,Datenblätter!$H$137:$I$140,2,FALSE)," ") ->  | R34: =IFERROR(INDEX(Datenblätter!$B$2:$K$130,MATCH('Zustandserfassung '!G34,Datenblätter!$B$2:$B$130,0),MATCH('Zustandserfassung '!Q34,Datenblätter!$B$2:$K$2,0))," ") ->  | T34: x | U34: FW+FG= | V34: =$G$11+$G$12 -> 2328 | W34: = | Y34: 0 | Z34: 0 | AA34: 0 | AB34: 0 | AC34: =IFERROR(HLOOKUP(Q34,$Y$20:AB34,15,)," ") -> 
A35: I | B35: 11 | C35: D 5.2 | D35: Wärmeerzeugung | E35: Wärmeerzeugung | F35: =IFERROR(VLOOKUP(G35,Datenblätter!$B$3:$C$130,2,FALSE)," ") -> 2 | G35: ='Zustandserfassung Bestand'!C18 -> mit Warmwasser | H35: ='Zustandserfassung Bestand'!D18 -> leichte Abnutzung | J35: =IFERROR(INDEX('Beschrieb Zustand'!$B$2:$G$130,MATCH('Zustandserfassung '!G35,'Beschrieb Zustand'!$B$2:$B$130,0),MATCH('Zustandserfassung '!Q35,'Beschrieb Zustand'!$B$2:$G$2,0))," ") -> Dämmung teilweise mangelhaft. Wirkungsgrad unsicher. Steuerung funktioniert nicht einwandfrei. | K35: =IFERROR(INDEX('Beschrieb Zustand'!$H$2:$L$130,MATCH('Zustandserfassung '!G35,'Beschrieb Zustand'!$H$2:$H$130,0),MATCH('Zustandserfassung '!Q35,'Beschrieb Zustand'!$H$2:$L$2,0))," ") -> Dämmung ausbessern. Einregulieren der Anlage. Steuerung und Wirkungsgrad überprüfen. Energieberater beiziehen. | L35: =IFERROR(VLOOKUP(H35,Datenblätter!$A$137:$B$141,2,FALSE)," ") -> b | N35: =IFERROR(VLOOKUP(L35,Datenblätter!$B$137:$C$141,2,FALSE)," ") -> 2 | O35: =IFERROR(VLOOKUP(M35,Datenblätter!$B$137:$C$141,2,FALSE)," ") ->  | P35: 2 | Q35: =IFERROR(VLOOKUP(P35,Datenblätter!$H$137:$I$140,2,FALSE)," ") -> b | R35: =IFERROR(INDEX(Datenblätter!$B$2:$K$130,MATCH('Zustandserfassung '!G35,Datenblätter!$B$2:$B$130,0),MATCH('Zustandserfassung '!Q35,Datenblätter!$B$2:$K$2,0))," ") -> 1 | S35: 2.302992 | T35: x | U35: FW+FG= | V35: =$G$11+$G$12 -> 2328 | W35: = | X35: 5400 | Y35: 0 | Z35: 0.05 | AA35: 0 | AB35: 0.2 | AC35: =IFERROR(HLOOKUP(Q35,$Y$20:AB35,16,)," ") -> 0.05 | AD35: 270
A36: I | B36: 12 | C36: D 5.3 | D36: Wärmehauptverteilung | E36: Wärmeverteilung | F36: =IFERROR(VLOOKUP(G36,Datenblätter!$B$3:$C$130,2,FALSE)," ") -> 1 | G36: =Datenblätter!B35 -> Wärmeverteilung | H36: ='Zustandserfassung Bestand'!D19 -> leichte Abnutzung | J36: =IFERROR(INDEX('Beschrieb Zustand'!$B$2:$G$130,MATCH('Zustandserfassung '!G36,'Beschrieb Zustand'!$B$2:$B$130,0),MATCH('Zustandserfassung '!Q36,'Beschrieb Zustand'!$B$2:$G$2,0))," ") -> Punktuelle Roststellen und teilweise undichte Stellen an den Armaturen. Dämmung teilweise mangelhaft. Geräusche, Anlage schlecht entlüftbar. Einige Heiz- körper werden nicht richtig warm. Strömgeräusche hörbar. | K36: =IFERROR(INDEX('Beschrieb Zustand'!$H$2:$L$130,MATCH('Zustandserfassung '!G36,'Beschrieb Zustand'!$H$2:$H$130,0),MATCH('Zustandserfassung '!Q36,'Beschrieb Zustand'!$H$2:$L$2,0))," ") -> Reparaturen am Netz. Ausbessern der Dämmungen. Hydraulischer Abgleich. (Radiatoren entlüften.) | L36: =IFERROR(VLOOKUP(H36,Datenblätter!$A$137:$B$141,2,FALSE)," ") -> b | M36: =IF(AND(F61=2,L61="d"),"c"," ") ->  | N36: =IFERROR(VLOOKUP(L36,Datenblätter!$B$137:$C$141,2,FALSE)," ") -> 2 | O36: =IFERROR(VLOOKUP(M36,Datenblätter!$B$137:$C$141,2,FALSE)," ") ->  | P36: 2 | Q36: =IFERROR(VLOOKUP(P36,Datenblätter!$H$137:$I$140,2,FALSE)," ") -> b | R36: =IFERROR(INDEX(Datenblätter!$B$2:$K$130,MATCH('Zustandserfassung '!G36,Datenblätter!$B$2:$B$130,0),MATCH('Zustandserfassung '!Q36,Datenblätter!$B$2:$K$2,0))," ") -> 214 | S36: 492.840288 | T36: x | U36: AW= | V36: =$G$14 -> 36 | W36: = | X36: 17700 | Y36: 0 | Z36: 0 | AA36: 0.1 | AB36: 0.2 | AC36: =IFERROR(HLOOKUP(Q36,$Y$20:AB36,17,)," ") -> 0 | AD36: 0
A37: I | B37: 13 | C37: D 8.4 | D37: Versorgungsleitungen | E37: Versorgung Wasser, Gas | F37: =IFERROR(VLOOKUP(G37,Datenblätter!$B$3:$C$130,2,FALSE)," ") -> 1 | G37: =Datenblätter!B37 -> Versorgung Wasser,Gas | H37: ='Zustandserfassung Bestand'!D20 -> Ende Lebensdauer | J37: =IFERROR(INDEX('Beschrieb Zustand'!$B$2:$G$130,MATCH('Zustandserfassung '!G37,'Beschrieb Zustand'!$B$2:$B$130,0),MATCH('Zustandserfassung '!Q37,'Beschrieb Zustand'!$B$2:$G$2,0))," ") -> Veraltete und defekte Leitungen. Gebäude über 40jährig. | K37: =IFERROR(INDEX('Beschrieb Zustand'!$H$2:$L$130,MATCH('Zustandserfassung '!G37,'Beschrieb Zustand'!$H$2:$H$130,0),MATCH('Zustandserfassung '!Q37,'Beschrieb Zustand'!$H$2:$L$2,0))," ") -> Zusatzabklärungen: Gaswerk / Wasserwerk. Auswechseln der Hauszuleitungen ab Gebäudeeintritt bis Zähler. | L37: =IFERROR(VLOOKUP(H37,Datenblätter!$A$137:$B$141,2,FALSE)," ") -> d | N37: =IFERROR(VLOOKUP(L37,Datenblätter!$B$137:$C$141,2,FALSE)," ") -> 4 | O37: =IFERROR(VLOOKUP(M37,Datenblätter!$B$137:$C$141,2,FALSE)," ") ->  | P37: 4 | Q37: =IFERROR(VLOOKUP(P37,Datenblätter!$H$137:$I$140,2,FALSE)," ") -> d | R37: =IFERROR(INDEX(Datenblätter!$B$2:$K$130,MATCH('Zustandserfassung '!G37,Datenblätter!$B$2:$B$130,0),MATCH('Zustandserfassung '!Q37,Datenblätter!$B$2:$K$2,0))," ") -> 73 | S37: 168.118416 | T37: x | U37: AW= | V37: =$G$14 -> 36 | W37: = | X37: 6100 | Y37: 0 | Z37: 0 | AA37: 0 | AB37: 0 | AC37: =IFERROR(HLOOKUP(Q37,$Y$20:AB37,18,)," ") -> 0 | AD37: 0
A38: I | B38: 14 | C38: D 8.5 | D38: Entsorgungsleitungen | E38: Entsorgung Wasser | F38: =IFERROR(VLOOKUP(G38,Datenblätter!$B$3:$C$130,2,FALSE)," ") -> 2 | G38: ='Zustandserfassung Bestand'!C21 -> Fallstränge und Grundleitungen | H38: ='Zustandserfassung Bestand'!D21 -> grössere Abnutzung | J38: =IFERROR(INDEX('Beschrieb Zustand'!$B$2:$G$130,MATCH('Zustandserfassung '!G38,'Beschrieb Zustand'!$B$2:$B$130,0),MATCH('Zustandserfassung '!Q38,'Beschrieb Zustand'!$B$2:$G$2,0))," ") -> Es ist mit defekten Stellen zu rechnen. Verstopfungen. Schlechter Abfluss. | K38: =IFERROR(INDEX('Beschrieb Zustand'!$H$2:$L$130,MATCH('Zustandserfassung '!G38,'Beschrieb Zustand'!$H$2:$H$130,0),MATCH('Zustandserfassung '!Q38,'Beschrieb Zustand'!$H$2:$L$2,0))," ") -> TV-Untersuch. Teilersatz (< 20%) der Leitungen. | L38: =IFERROR(VLOOKUP(H38,Datenblätter!$A$137:$B$141,2,FALSE)," ") -> c | M38: =IF(OR(L65="d",M65="d"),"d"," ") ->  | N38: =IFERROR(VLOOKUP(L38,Datenblätter!$B$137:$C$141,2,FALSE)," ") -> 3 | O38: =IFERROR(VLOOKUP(M38,Datenblätter!$B$137:$C$141,2,FALSE)," ") ->  | P38: 3 | Q38: =IFERROR(VLOOKUP(P38,Datenblätter!$H$137:$I$140,2,FALSE)," ") -> c | R38: =IFERROR(INDEX(Datenblätter!$B$2:$K$130,MATCH('Zustandserfassung '!G38,Datenblätter!$B$2:$B$130,0),MATCH('Zustandserfassung '!Q38,Datenblätter!$B$2:$K$2,0))," ") -> 509 | S38: 1172.222928 | T38: x | U38: AW= | V38: =$G$14 -> 36 | W38: = | X38: 42200 | Y38: 0 | Z38: 0 | AA38: 0 | AB38: 0 | AC38: =IFERROR(HLOOKUP(Q38,$Y$20:AB38,19,)," ") -> 0 | AD38: 0
A39: I | B39: 15 | C39: E 3.2 | D39: Türen | E39: Keller Aussentüren und Tore | F39: =IFERROR(VLOOKUP(G39,Datenblätter!$B$3:$C$130,2,FALSE)," ") -> 1 | G39: =Datenblätter!B42 -> Aussentüren und Tore | H39: ='Zustandserfassung Bestand'!D22 -> grössere Abnutzung | J39: =IFERROR(INDEX('Beschrieb Zustand'!$B$2:$G$130,MATCH('Zustandserfassung '!G39,'Beschrieb Zustand'!$B$2:$B$130,0),MATCH('Zustandserfassung '!Q39,'Beschrieb Zustand'!$B$2:$G$2,0))," ") -> Aussentüren und Tore (< 50%) beschädigt. Schliessung defekt, Füllung angefault. Verrostete Sockelbleche und Beschläge. | K39: =IFERROR(INDEX('Beschrieb Zustand'!$H$2:$L$130,MATCH('Zustandserfassung '!G39,'Beschrieb Zustand'!$H$2:$H$130,0),MATCH('Zustandserfassung '!Q39,'Beschrieb Zustand'!$H$2:$L$2,0))," ") -> Teilersatz von Aussentüren und Toren. Auswechseln von Sockelblechen. Neue Beschläge und Schliessung. Oberflächenbehandlung. | L39: =IFERROR(VLOOKUP(H39,Datenblätter!$A$137:$B$141,2,FALSE)," ") -> c | N39: =IFERROR(VLOOKUP(L39,Datenblätter!$B$137:$C$141,2,FALSE)," ") -> 3 | O39: =IFERROR(VLOOKUP(M39,Datenblätter!$B$137:$C$141,2,FALSE)," ") ->  | P39: 3 | Q39: =IFERROR(VLOOKUP(P39,Datenblätter!$H$137:$I$140,2,FALSE)," ") -> c | R39: =IFERROR(INDEX(Datenblätter!$B$2:$K$130,MATCH('Zustandserfassung '!G39,Datenblätter!$B$2:$B$130,0),MATCH('Zustandserfassung '!Q39,Datenblätter!$B$2:$K$2,0))," ") -> 11 | S39: 25.332912 | T39: x | U39: GRG= | V39: =$G$5 -> 776 | W39: = | X39: =IFERROR(ROUND(V39*S39,-2), " ") -> 19700 | Y39: 0 | Z39: 0 | AA39: 0.2 | AB39: 0.3 | AC39: =IFERROR(HLOOKUP(Q39,$Y$20:AB39,20,)," ") -> 0.2 | AD39: 3940
A40: A | B40: 16 | C40: E3.1 | D40: Fenster | E40: Kellerfenster | F40: =IFERROR(VLOOKUP(G40,Datenblätter!$B$3:$C$130,2,FALSE)," ") -> 1 | G40: =Datenblätter!B44 -> Kellerfenster | H40: ='Zustandserfassung Bestand'!D23 -> Ende Lebensdauer | J40: =IFERROR(INDEX('Beschrieb Zustand'!$B$2:$G$130,MATCH('Zustandserfassung '!G40,'Beschrieb Zustand'!$B$2:$B$130,0),MATCH('Zustandserfassung '!Q40,'Beschrieb Zustand'!$B$2:$G$2,0))," ") -> Sämtliche Fenster beschädigt. Flügel und Rahmen verwittert. Schliessung und Bedienung nicht funktionsfähig. | K40: =IFERROR(INDEX('Beschrieb Zustand'!$H$2:$L$130,MATCH('Zustandserfassung '!G40,'Beschrieb Zustand'!$H$2:$H$130,0),MATCH('Zustandserfassung '!Q40,'Beschrieb Zustand'!$H$2:$L$2,0))," ") -> Kompletter Ersatz der Kellerfenster und Oberflächenbehandlung. | L40: =IFERROR(VLOOKUP(H40,Datenblätter!$A$137:$B$141,2,FALSE)," ") -> d | N40: =IFERROR(VLOOKUP(L40,Datenblätter!$B$137:$C$141,2,FALSE)," ") -> 4 | O40: =IFERROR(VLOOKUP(M40,Datenblätter!$B$137:$C$141,2,FALSE)," ") ->  | P40: 4 | Q40: =IFERROR(VLOOKUP(P40,Datenblätter!$H$137:$I$140,2,FALSE)," ") -> d | R40: =IFERROR(INDEX(Datenblätter!$B$2:$K$130,MATCH('Zustandserfassung '!G40,Datenblätter!$B$2:$B$130,0),MATCH('Zustandserfassung '!Q40,Datenblätter!$B$2:$K$2,0))," ") -> 27 | S40: 62.180784 | T40: x | U40: GRG= | V40: =$G$5 -> 776 | W40: = | X40: 48300 | Y40: 0 | Z40: 0 | AA40: 0 | AB40: 0.3 | AC40: =IFERROR(HLOOKUP(Q40,$Y$20:AB40,21,)," ") -> 0.3 | AD40: 14490
C41: Treppenhäuser | F41: =IFERROR(VLOOKUP(G41,Datenblätter!$B$3:$C$130,2,FALSE)," ") ->  | N41: =IFERROR(VLOOKUP(L41,Datenblätter!$B$137:$C$141,2,FALSE)," ") ->  | O41: =IFERROR(VLOOKUP(M41,Datenblätter!$B$137:$C$141,2,FALSE)," ") ->  | Q41: =IFERROR(VLOOKUP(P41,Datenblätter!$H$137:$I$140,2,FALSE)," ") ->  | R41: =IFERROR(INDEX(Datenblätter!$B$2:$K$130,MATCH('Zustandserfassung '!G41,Datenblätter!$B$2:$B$130,0),MATCH('Zustandserfassung '!Q41,Datenblätter!$B$2:$K$2,0))," ") -> 
A42: I | B42: 17 | C42: G 3 | D42: Wandbekleidung | E42: Treppenhaus: Wände | F42: =IFERROR(VLOOKUP(G42,Datenblätter!$B$3:$C$130,2,FALSE)," ") -> 1 | G42: =Datenblätter!B46 -> Treppenhaus,Wände | H42: ='Zustandserfassung Bestand'!D25 -> leichte Abnutzung | I42: =IFERROR(IF(L42=Q42," ", "übersteuert")," ") ->  | J42: =IFERROR(INDEX('Beschrieb Zustand'!$B$2:$G$130,MATCH('Zustandserfassung '!G42,'Beschrieb Zustand'!$B$2:$B$130,0),MATCH('Zustandserfassung '!Q42,'Beschrieb Zustand'!$B$2:$G$2,0))," ") -> Verschmutzte Oberflächen. Untergrund in Ordnung. | K42: =IFERROR(INDEX('Beschrieb Zustand'!$H$2:$L$130,MATCH('Zustandserfassung '!G42,'Beschrieb Zustand'!$H$2:$H$130,0),MATCH('Zustandserfassung '!Q42,'Beschrieb Zustand'!$H$2:$L$2,0))," ") -> Wände streichen. | L42: =IFERROR(VLOOKUP(H42,Datenblätter!$A$137:$B$141,2,FALSE)," ") -> b | M42: =_xlfn.IFS(L43="c","c",L43="d","d") ->  | N42: =IFERROR(VLOOKUP(L42,Datenblätter!$B$137:$C$141,2,FALSE)," ") -> 2 | O42: =IFERROR(VLOOKUP(M42,Datenblätter!$B$137:$C$141,2,FALSE)," ") ->  | P42: 2 | Q42: =IFERROR(VLOOKUP(P42,Datenblätter!$H$137:$I$140,2,FALSE)," ") -> b | R42: =IFERROR(INDEX(Datenblätter!$B$2:$K$130,MATCH('Zustandserfassung '!G42,Datenblätter!$B$2:$B$130,0),MATCH('Zustandserfassung '!Q42,Datenblätter!$B$2:$K$2,0))," ") -> 381 | S42: =IFERROR(R42*$K$9*$K$14," ") -> 877.439952 | T42: x | U42: ATxAWG= | V42: =$G$13*$G$10 -> 12 | W42: = | X42: =IFERROR(ROUND(V42*S42,-2), " ") -> 10500 | Y42: 0 | Z42: 0 | AA42: 0 | AB42: 0.2 | AC42: =IFERROR(HLOOKUP(Q42,$Y$20:AB42,23,)," ") -> 0 | AD42: =IFERROR(X42*AC42," ") -> 0
A43: I | B43: 18 | C43: C | D43: Konstruktion Gebäude | E43: Treppen und Podeste | F43: =IFERROR(VLOOKUP(G43,Datenblätter!$B$3:$C$130,2,FALSE)," ") -> 1 | G43: ='Zustandserfassung Bestand'!C26 -> Treppen und Podeste | H43: ='Zustandserfassung Bestand'!D26 -> leichte Abnutzung | J43: =IFERROR(INDEX('Beschrieb Zustand'!$B$2:$G$130,MATCH('Zustandserfassung '!G43,'Beschrieb Zustand'!$B$2:$B$130,0),MATCH('Zustandserfassung '!Q43,'Beschrieb Zustand'!$B$2:$G$2,0))," ") -> Treppenwangen und Geländer in gutem Zustand. Punktuelle Schäden an Stufen und Treppenkanten, freigelegte Haarrisse und Fugen. Oberflächen schmutzig. | K43: =IFERROR(INDEX('Beschrieb Zustand'!$H$2:$L$130,MATCH('Zustandserfassung '!G43,'Beschrieb Zustand'!$H$2:$H$130,0),MATCH('Zustandserfassung '!Q43,'Beschrieb Zustand'!$H$2:$L$2,0))," ") -> Örtliche Betonsanierung. Materialübergänge ausfugen. Tritte reinigen und imprägnieren. Streichen der Geländer. | L43: =IFERROR(VLOOKUP(H43,Datenblätter!$A$137:$B$141,2,FALSE)," ") -> b | N43: =IFERROR(VLOOKUP(L43,Datenblätter!$B$137:$C$141,2,FALSE)," ") -> 2 | O43: =IFERROR(VLOOKUP(M43,Datenblätter!$B$137:$C$141,2,FALSE)," ") ->  | P43: 2 | Q43: =IFERROR(VLOOKUP(P43,Datenblätter!$H$137:$I$140,2,FALSE)," ") -> b | R43: =IFERROR(INDEX(Datenblätter!$B$2:$K$130,MATCH('Zustandserfassung '!G43,Datenblätter!$B$2:$B$130,0),MATCH('Zustandserfassung '!Q43,Datenblätter!$B$2:$K$2,0))," ") -> 663 | S43: 1526.883696 | T43: x | U43: ATxAWG= | V43: =$G$13*$G$10 -> 12 | W43: = | X43: 18300 | Y43: 0 | Z43: 0 | AA43: 0 | AB43: 0.2 | AC43: =IFERROR(HLOOKUP(Q43,$Y$20:AB43,24,)," ") -> 0 | AD43: 0
A44: I | B44: 19 | C44: E 3.2 | D44: Türen | E44: Treppenhaus:Eingangstüre | F44: =IFERROR(VLOOKUP(G44,Datenblätter!$B$3:$C$130,2,FALSE)," ") -> 1 | G44: =Datenblätter!B51 -> Treppenhaus:Eingangstüre | H44: ='Zustandserfassung Bestand'!D27 -> Ende Lebensdauer | J44: =IFERROR(INDEX('Beschrieb Zustand'!$B$2:$G$130,MATCH('Zustandserfassung '!G44,'Beschrieb Zustand'!$B$2:$B$130,0),MATCH('Zustandserfassung '!Q44,'Beschrieb Zustand'!$B$2:$G$2,0))," ") -> Hauseingangstüre genügt den Anforderungen nicht mehr. Flügel und Rahmen stark beschädigt. Einbruchsicherheit nicht gewährleistet. | K44: =IFERROR(INDEX('Beschrieb Zustand'!$H$2:$L$130,MATCH('Zustandserfassung '!G44,'Beschrieb Zustand'!$H$2:$H$130,0),MATCH('Zustandserfassung '!Q44,'Beschrieb Zustand'!$H$2:$L$2,0))," ") -> Neue Hauseingangstüre mit guter Wärmedämmung inklusive Beschläge und Garnituren. Oberflächenbehandlung. | L44: =IFERROR(VLOOKUP(H44,Datenblätter!$A$137:$B$141,2,FALSE)," ") -> d | N44: =IFERROR(VLOOKUP(L44,Datenblätter!$B$137:$C$141,2,FALSE)," ") -> 4 | O44: =IFERROR(VLOOKUP(M44,Datenblätter!$B$137:$C$141,2,FALSE)," ") ->  | P44: 4 | Q44: =IFERROR(VLOOKUP(P44,Datenblätter!$H$137:$I$140,2,FALSE)," ") -> d | R44: =IFERROR(INDEX(Datenblätter!$B$2:$K$130,MATCH('Zustandserfassung '!G44,Datenblätter!$B$2:$B$130,0),MATCH('Zustandserfassung '!Q44,Datenblätter!$B$2:$K$2,0))," ") -> 2520 | S44: 5803.53984 | T44: x | U44: AT= | V44: =$G$13 -> 4 | W44: = | X44: 23200 | Y44: 0 | Z44: 0 | AA44: 0 | AB44: 0.3 | AC44: =IFERROR(HLOOKUP(Q44,$Y$20:AB44,25,)," ") -> 0.3 | AD44: 6960
A45: I | B45: 20 | C45: G 1.4 | D45: Innentür | E45: Wohnungstüren | F45: =IFERROR(VLOOKUP(G45,Datenblätter!$B$3:$C$130,2,FALSE)," ") -> 1 | G45: =Datenblätter!B53 -> Wohnungstüren | H45: ='Zustandserfassung Bestand'!D28 -> Ende Lebensdauer | J45: =IFERROR(INDEX('Beschrieb Zustand'!$B$2:$G$130,MATCH('Zustandserfassung '!G45,'Beschrieb Zustand'!$B$2:$B$130,0),MATCH('Zustandserfassung '!Q45,'Beschrieb Zustand'!$B$2:$G$2,0))," ") -> Keine kostenwirksamen Massnahmen. | K45: =IFERROR(INDEX('Beschrieb Zustand'!$H$2:$L$130,MATCH('Zustandserfassung '!G45,'Beschrieb Zustand'!$H$2:$H$130,0),MATCH('Zustandserfassung '!Q45,'Beschrieb Zustand'!$H$2:$L$2,0))," ") -> Totalersatz Flügel und Rahmen, inkl. Schliessung und Spion. Oberflächenbehandlung innen und aussen. | L45: =IFERROR(VLOOKUP(H45,Datenblätter!$A$137:$B$141,2,FALSE)," ") -> d | N45: =IFERROR(VLOOKUP(L45,Datenblätter!$B$137:$C$141,2,FALSE)," ") -> 4 | O45: =IFERROR(VLOOKUP(M45,Datenblätter!$B$137:$C$141,2,FALSE)," ") ->  | P45: 4 | Q45: =IFERROR(VLOOKUP(P45,Datenblätter!$H$137:$I$140,2,FALSE)," ") -> d | R45: =IFERROR(INDEX(Datenblätter!$B$2:$K$130,MATCH('Zustandserfassung '!G45,Datenblätter!$B$2:$B$130,0),MATCH('Zustandserfassung '!Q45,Datenblätter!$B$2:$K$2,0))," ") -> 958 | S45: 2206.266336 | T45: x | U45: AW= | V45: =$G$14 -> 36 | W45: = | X45: 79400 | Y45: 0 | Z45: 0.1 | AA45: 0 | AB45: 0.3 | AC45: =IFERROR(HLOOKUP(Q45,$Y$20:AB45,26,)," ") -> 0.3 | AD45: 23820
A46: I | B46: 21 | C46: D 1 | D46: Elektroanlage | E46: Starkstrom:Hauszul,Messung,Vert. | F46: =IFERROR(VLOOKUP(G46,Datenblätter!$B$3:$C$130,2,FALSE)," ") -> 2 | G46: ='Zustandserfassung Bestand'!C29 -> Messung im Treppenhaus | H46: ='Zustandserfassung Bestand'!D29 -> gut | J46: =IFERROR(INDEX('Beschrieb Zustand'!$B$2:$G$130,MATCH('Zustandserfassung '!G46,'Beschrieb Zustand'!$B$2:$B$130,0),MATCH('Zustandserfassung '!Q46,'Beschrieb Zustand'!$B$2:$G$2,0))," ") -> Keine offensichtlichen Mängel und Widersprüche gegenüber den Vorschriften. Für bestehenden Lei- stungsbezug genügend. | K46: =IFERROR(INDEX('Beschrieb Zustand'!$H$2:$L$130,MATCH('Zustandserfassung '!G46,'Beschrieb Zustand'!$H$2:$H$130,0),MATCH('Zustandserfassung '!Q46,'Beschrieb Zustand'!$H$2:$L$2,0))," ") -> Keine kostenwirksamen Massnahmen. | L46: =IFERROR(VLOOKUP(H46,Datenblätter!$A$137:$B$141,2,FALSE)," ") -> a | M46: =IF($L$47="d","d"," ") ->  | N46: =IFERROR(VLOOKUP(L46,Datenblätter!$B$137:$C$141,2,FALSE)," ") -> 1 | O46: =IFERROR(VLOOKUP(M46,Datenblätter!$B$137:$C$141,2,FALSE)," ") ->  | P46: 1 | Q46: =IFERROR(VLOOKUP(P46,Datenblätter!$H$137:$I$140,2,FALSE)," ") -> a | R46: =IFERROR(INDEX(Datenblätter!$B$2:$K$130,MATCH('Zustandserfassung '!G46,Datenblätter!$B$2:$B$130,0),MATCH('Zustandserfassung '!Q46,Datenblätter!$B$2:$K$2,0))," ") -> 0 | S46: 0 | T46: x | U46: FW= | V46: =$G$11 -> 2328 | W46: = | X46: 0 | Y46: 0 | Z46: 0 | AA46: 0 | AB46: 0.3 | AC46: =IFERROR(HLOOKUP(Q46,$Y$20:AB46,27,)," ") -> 0 | AD46: 0
A47: I | B47: 22 | C47: D 1 | D47: Elektroanlage | E47: Starkstrom:Gemeinanlagen | F47: =IFERROR(VLOOKUP(G47,Datenblätter!$B$3:$C$130,2,FALSE)," ") -> 1 | G47: =Datenblätter!B59 -> Starkstrom:Gemeinanlagen | H47: ='Zustandserfassung Bestand'!D30 -> gut | J47: =IFERROR(INDEX('Beschrieb Zustand'!$B$2:$G$130,MATCH('Zustandserfassung '!G47,'Beschrieb Zustand'!$B$2:$B$130,0),MATCH('Zustandserfassung '!Q47,'Beschrieb Zustand'!$B$2:$G$2,0))," ") -> Keine offensichtlichen Mängel und Widersprüche gegenüber den Vorschriften. Für bestehenden Leistungsbezug genügend. | K47: =IFERROR(INDEX('Beschrieb Zustand'!$H$2:$L$130,MATCH('Zustandserfassung '!G47,'Beschrieb Zustand'!$H$2:$H$130,0),MATCH('Zustandserfassung '!Q47,'Beschrieb Zustand'!$H$2:$L$2,0))," ") -> Keine kostenwirksamen Massnahmen. | L47: =IFERROR(VLOOKUP(H47,Datenblätter!$A$137:$B$141,2,FALSE)," ") -> a | N47: =IFERROR(VLOOKUP(L47,Datenblätter!$B$137:$C$141,2,FALSE)," ") -> 1 | O47: =IFERROR(VLOOKUP(M47,Datenblätter!$B$137:$C$141,2,FALSE)," ") ->  | P47: 1 | Q47: =IFERROR(VLOOKUP(P47,Datenblätter!$H$137:$I$140,2,FALSE)," ") -> a | R47: =IFERROR(INDEX(Datenblätter!$B$2:$K$130,MATCH('Zustandserfassung '!G47,Datenblätter!$B$2:$B$130,0),MATCH('Zustandserfassung '!Q47,Datenblätter!$B$2:$K$2,0))," ") -> 0 | S47: 0 | T47: x | U47: FW= | V47: =$G$11 -> 2328 | W47: = | X47: 0 | Y47: 0 | Z47: 0 | AA47: 0.1 | AB47: 0.3 | AC47: =IFERROR(HLOOKUP(Q47,$Y$20:AB47,28,)," ") -> 0 | AD47: 0
A48: I | B48: 23 | C48: D 1 | D48: Elektroanlage | E48: Schwachstrom | F48: =IFERROR(VLOOKUP(G48,Datenblätter!$B$3:$C$130,2,FALSE)," ") -> 1 | G48: =Datenblätter!B61 -> Schwachstrom | H48: ='Zustandserfassung Bestand'!D31 -> - | J48: =IFERROR(INDEX('Beschrieb Zustand'!$B$2:$G$130,MATCH('Zustandserfassung '!G48,'Beschrieb Zustand'!$B$2:$B$130,0),MATCH('Zustandserfassung '!Q48,'Beschrieb Zustand'!$B$2:$G$2,0))," ") ->  | K48: =IFERROR(INDEX('Beschrieb Zustand'!$H$2:$L$130,MATCH('Zustandserfassung '!G48,'Beschrieb Zustand'!$H$2:$H$130,0),MATCH('Zustandserfassung '!Q48,'Beschrieb Zustand'!$H$2:$L$2,0))," ") ->  | L48: =IFERROR(VLOOKUP(H48,Datenblätter!$A$137:$B$141,2,FALSE)," ") ->  | N48: =IFERROR(VLOOKUP(L48,Datenblätter!$B$137:$C$141,2,FALSE)," ") ->  | O48: =IFERROR(VLOOKUP(M48,Datenblätter!$B$137:$C$141,2,FALSE)," ") ->  | Q48: =IFERROR(VLOOKUP(P48,Datenblätter!$H$137:$I$140,2,FALSE)," ") ->  | R48: =IFERROR(INDEX(Datenblätter!$B$2:$K$130,MATCH('Zustandserfassung '!G48,Datenblätter!$B$2:$B$130,0),MATCH('Zustandserfassung '!Q48,Datenblätter!$B$2:$K$2,0))," ") ->  | T48: x | U48: AW= | V48: =$G$14 -> 36 | W48: = | Y48: 0 | Z48: 0 | AA48: 0.1 | AB48: 0.2 | AC48: =IFERROR(HLOOKUP(Q48,$Y$20:AB48,29,)," ") -> 
A49: I | B49: 24 | C49: D 9 | D49: Transportanlage | E49: Aufzug | F49: =IFERROR(VLOOKUP(G49,Datenblätter!$B$3:$C$130,2,FALSE)," ") -> 1 | G49: =Datenblätter!B63 -> Aufzug | H49: ='Zustandserfassung Bestand'!D32 -> - | J49: =IFERROR(INDEX('Beschrieb Zustand'!$B$2:$G$130,MATCH('Zustandserfassung '!G49,'Beschrieb Zustand'!$B$2:$B$130,0),MATCH('Zustandserfassung '!Q49,'Beschrieb Zustand'!$B$2:$G$2,0))," ") ->  | K49: =IFERROR(INDEX('Beschrieb Zustand'!$H$2:$L$130,MATCH('Zustandserfassung '!G49,'Beschrieb Zustand'!$H$2:$H$130,0),MATCH('Zustandserfassung '!Q49,'Beschrieb Zustand'!$H$2:$L$2,0))," ") ->  | L49: =IFERROR(VLOOKUP(H49,Datenblätter!$A$137:$B$141,2,FALSE)," ") ->  | N49: =IFERROR(VLOOKUP(L49,Datenblätter!$B$137:$C$141,2,FALSE)," ") ->  | O49: =IFERROR(VLOOKUP(M49,Datenblätter!$B$137:$C$141,2,FALSE)," ") ->  | Q49: =IFERROR(VLOOKUP(P49,Datenblätter!$H$137:$I$140,2,FALSE)," ") ->  | R49: =IFERROR(INDEX(Datenblätter!$B$2:$K$130,MATCH('Zustandserfassung '!G49,Datenblätter!$B$2:$B$130,0),MATCH('Zustandserfassung '!Q49,Datenblätter!$B$2:$K$2,0))," ") ->  | T49: x | U49: ATxAWG= | V49: =$G$13*$G$10 -> 12 | W49: = | Y49: 0 | Z49: 0 | AA49: 0.1 | AB49: 0.3 | AC49: =IFERROR(HLOOKUP(Q49,$Y$20:AB49,30,)," ") -> 
C50: Dach und Dachraum | F50: =IFERROR(VLOOKUP(G50,Datenblätter!$B$3:$C$130,2,FALSE)," ") ->  | L50: =IFERROR(VLOOKUP(H50,Datenblätter!$A$137:$B$141,2,FALSE)," ") ->  | N50: =IFERROR(VLOOKUP(L50,Datenblätter!$B$137:$C$141,2,FALSE)," ") ->  | O50: =IFERROR(VLOOKUP(M50,Datenblätter!$B$137:$C$141,2,FALSE)," ") ->  | Q50: =IFERROR(VLOOKUP(P50,Datenblätter!$H$137:$I$140,2,FALSE)," ") ->  | R50: =IFERROR(INDEX(Datenblätter!$B$2:$K$130,MATCH('Zustandserfassung '!G50,Datenblätter!$B$2:$B$130,0),MATCH('Zustandserfassung '!Q50,Datenblätter!$B$2:$K$2,0))," ") -> 
A51: A | B51: 25 | C51: C | D51: Konstruktion Gebäude | E51: Tragwerk Dach | F51: =IFERROR(VLOOKUP(G51,Datenblätter!$B$3:$C$130,2,FALSE)," ") -> 1 | G51: =Datenblätter!B65 -> Tragwerk Dach | H51: ='Zustandserfassung Bestand'!D34 -> leichte Abnutzung | I51: =IFERROR(IF(L51=Q51," ", "übersteuert")," ") ->  | J51: =IFERROR(INDEX('Beschrieb Zustand'!$B$2:$G$130,MATCH('Zustandserfassung '!G51,'Beschrieb Zustand'!$B$2:$B$130,0),MATCH('Zustandserfassung '!Q51,'Beschrieb Zustand'!$B$2:$G$2,0))," ") -> Tragwerk in Ordnung. Holzwerk gesund, Anzeichen von vereinzeltem Schädlingsbefall. | K51: =IFERROR(INDEX('Beschrieb Zustand'!$H$2:$L$130,MATCH('Zustandserfassung '!G51,'Beschrieb Zustand'!$H$2:$H$130,0),MATCH('Zustandserfassung '!Q51,'Beschrieb Zustand'!$H$2:$L$2,0))," ") -> Holzschutzbehandlung für gesamtes Tragwerk. | L51: =IFERROR(VLOOKUP(H51,Datenblätter!$A$137:$B$141,2,FALSE)," ") -> b | N51: =IFERROR(VLOOKUP(L51,Datenblätter!$B$137:$C$141,2,FALSE)," ") -> 2 | O51: =IFERROR(VLOOKUP(M51,Datenblätter!$B$137:$C$141,2,FALSE)," ") ->  | P51: 2 | Q51: =IFERROR(VLOOKUP(P51,Datenblätter!$H$137:$I$140,2,FALSE)," ") -> b | R51: =IFERROR(INDEX(Datenblätter!$B$2:$K$130,MATCH('Zustandserfassung '!G51,Datenblätter!$B$2:$B$130,0),MATCH('Zustandserfassung '!Q51,Datenblätter!$B$2:$K$2,0))," ") -> 17 | S51: =IFERROR(R51*$K$9*$K$14," ") -> 39.150864 | T51: x | U51: GRG= | V51: =$G$5 -> 776 | W51: = | X51: =IFERROR(ROUND(V51*S51,-2), " ") -> 30400 | Y51: 0 | Z51: 0 | AA51: 0 | AB51: 0 | AC51: =IFERROR(HLOOKUP(Q51,$Y$20:AB51,32,)," ") -> 0 | AD51: =IFERROR(X51*AC51," ") -> 0
A52: A | B52: 26 | C52: =IF(G52="Steildach","F 1.3","F1.2") -> F 1.3 | D52: Dachhaut | E52: Dachdeckung | F52: =IFERROR(VLOOKUP(G52,Datenblätter!$B$3:$C$130,2,FALSE)," ") -> 1 | G52: ='Zustandserfassung Bestand'!C35 -> Steildach | H52: ='Zustandserfassung Bestand'!D35 -> Ende Lebensdauer | J52: =IFERROR(INDEX('Beschrieb Zustand'!$B$2:$G$130,MATCH('Zustandserfassung '!G52,'Beschrieb Zustand'!$B$2:$B$130,0),MATCH('Zustandserfassung '!Q52,'Beschrieb Zustand'!$B$2:$G$2,0))," ") -> Deckung erheblich beschädigt. Verbreitet Wassereinritte. Lattung teilweise verfault. | K52: =IFERROR(INDEX('Beschrieb Zustand'!$H$2:$L$130,MATCH('Zustandserfassung '!G52,'Beschrieb Zustand'!$H$2:$H$130,0),MATCH('Zustandserfassung '!Q52,'Beschrieb Zustand'!$H$2:$L$2,0))," ") -> Dachdeckung vollständig ersetzen inkl. Ziegel- und Konterlattung. Holzabschlüsse ersetzen und strei- chen. Metallteile auswechseln. | L52: =IFERROR(VLOOKUP(H52,Datenblätter!$A$137:$B$141,2,FALSE)," ") -> d | M52: =IF(AND(F52=1,$L$51="c"),"c"," ")&IF(AND(F52=1,$L$51="d"),"d"," ") ->  | N52: =IFERROR(VLOOKUP(L52,Datenblätter!$B$137:$C$141,2,FALSE)," ") -> 4 | O52: =IFERROR(VLOOKUP(M52,Datenblätter!$B$137:$C$141,2,FALSE)," ") ->  | P52: 4 | Q52: =IFERROR(VLOOKUP(P52,Datenblätter!$H$137:$I$140,2,FALSE)," ") -> d | R52: =IFERROR(INDEX(Datenblätter!$B$2:$K$130,MATCH('Zustandserfassung '!G52,Datenblätter!$B$2:$B$130,0),MATCH('Zustandserfassung '!Q52,Datenblätter!$B$2:$K$2,0))," ") -> 114 | S52: 262.541088 | T52: x | U52: GRG= | V52: 776 | W52: = | X52: 203700 | Y52: 0 | Z52: 0 | AA52: 0 | AB52: 0.2 | AC52: =IFERROR(HLOOKUP(Q52,$Y$20:AB52,33,)," ") -> 0.2 | AD52: =IFERROR(X52*AC52," ") -> 40740
A53: A | B53: 27 | C53: =IF(G52="Steildach","F 1.3","F1.2") -> F 1.3 | D53: Dachhaut | E53: Dachaufbauten massiv | F53: =IFERROR(VLOOKUP(G53,Datenblätter!$B$3:$C$130,2,FALSE)," ") -> 1 | G53: =Datenblätter!B71 -> Dachbauten massiv | H53: ='Zustandserfassung Bestand'!D36 -> - | J53: =IFERROR(INDEX('Beschrieb Zustand'!$B$2:$G$130,MATCH('Zustandserfassung '!G53,'Beschrieb Zustand'!$B$2:$B$130,0),MATCH('Zustandserfassung '!Q53,'Beschrieb Zustand'!$B$2:$G$2,0))," ") ->  | K53: =IFERROR(INDEX('Beschrieb Zustand'!$H$2:$L$130,MATCH('Zustandserfassung '!G53,'Beschrieb Zustand'!$H$2:$H$130,0),MATCH('Zustandserfassung '!Q53,'Beschrieb Zustand'!$H$2:$L$2,0))," ") ->  | L53: =IFERROR(VLOOKUP(H53,Datenblätter!$A$137:$B$141,2,FALSE)," ") ->  | M53: =IF(AND(F56=1,OR(L56="d",M56="d")),"d"," ") ->  | N53: =IFERROR(VLOOKUP(L53,Datenblätter!$B$137:$C$141,2,FALSE)," ") ->  | O53: =IFERROR(VLOOKUP(M53,Datenblätter!$B$137:$C$141,2,FALSE)," ") ->  | Q53: =IFERROR(VLOOKUP(P53,Datenblätter!$H$137:$I$140,2,FALSE)," ") ->  | R53: =IFERROR(INDEX(Datenblätter!$B$2:$K$130,MATCH('Zustandserfassung '!G53,Datenblätter!$B$2:$B$130,0),MATCH('Zustandserfassung '!Q53,Datenblätter!$B$2:$K$2,0))," ") ->  | T53: x | U53: GRG= | V53: 776 | W53: = | Y53: 0 | Z53: 0 | AA53: 0 | AB53: 0.2 | AC53: =IFERROR(HLOOKUP(Q53,$Y$20:AB53,34,)," ") -> 
A54: A | B54: 28 | C54: F 2 | D54: Einbaute zu Dach | E54: Dachaufbauten Glas | F54: =IFERROR(VLOOKUP(G54,Datenblätter!$B$3:$C$130,2,FALSE)," ") -> 1 | G54: =Datenblätter!B73 -> Dachaufbauten Glas | H54: ='Zustandserfassung Bestand'!D37 -> Ende Lebensdauer | J54: =IFERROR(INDEX('Beschrieb Zustand'!$B$2:$G$130,MATCH('Zustandserfassung '!G54,'Beschrieb Zustand'!$B$2:$B$130,0),MATCH('Zustandserfassung '!Q54,'Beschrieb Zustand'!$B$2:$G$2,0))," ") -> Konstruktion rostig. Verglasung defekt, Kondenswasser. Abdichtungen gelöst und undicht. An- und Abschlüsse sind beschädigt. | K54: =IFERROR(INDEX('Beschrieb Zustand'!$H$2:$L$130,MATCH('Zustandserfassung '!G54,'Beschrieb Zustand'!$H$2:$H$130,0),MATCH('Zustandserfassung '!Q54,'Beschrieb Zustand'!$H$2:$L$2,0))," ") -> Ersatz der ganzen Konstruktion mit Verglasung und allen An- und Abschlüssen. | L54: =IFERROR(VLOOKUP(H54,Datenblätter!$A$137:$B$141,2,FALSE)," ") -> d | N54: =IFERROR(VLOOKUP(L54,Datenblätter!$B$137:$C$141,2,FALSE)," ") -> 4 | O54: =IFERROR(VLOOKUP(M54,Datenblätter!$B$137:$C$141,2,FALSE)," ") ->  | P54: 4 | Q54: =IFERROR(VLOOKUP(P54,Datenblätter!$H$137:$I$140,2,FALSE)," ") -> d | R54: =IFERROR(INDEX(Datenblätter!$B$2:$K$130,MATCH('Zustandserfassung '!G54,Datenblätter!$B$2:$B$130,0),MATCH('Zustandserfassung '!Q54,Datenblätter!$B$2:$K$2,0))," ") -> 58 | S54: 133.573536 | T54: x | U54: GRG= | V54: 776 | W54: = | X54: 103700 | Y54: 0 | Z54: 0 | AA54: 0 | AB54: 0.3 | AC54: =IFERROR(HLOOKUP(Q54,$Y$20:AB54,35,)," ") -> 0.3 | AD54: 31110
A55: A | B55: 29 | C55: F 2 | D55: Einbaute zu Dach | E55: Dachgauben | F55: =IFERROR(VLOOKUP(G55,Datenblätter!$B$3:$C$130,2,FALSE)," ") -> 1 | G55: =Datenblätter!B75 -> Dachgauben | H55: ='Zustandserfassung Bestand'!D38 -> - | J55: =IFERROR(INDEX('Beschrieb Zustand'!$B$2:$G$130,MATCH('Zustandserfassung '!G55,'Beschrieb Zustand'!$B$2:$B$130,0),MATCH('Zustandserfassung '!Q55,'Beschrieb Zustand'!$B$2:$G$2,0))," ") ->  | K55: =IFERROR(INDEX('Beschrieb Zustand'!$H$2:$L$130,MATCH('Zustandserfassung '!G55,'Beschrieb Zustand'!$H$2:$H$130,0),MATCH('Zustandserfassung '!Q55,'Beschrieb Zustand'!$H$2:$L$2,0))," ") ->  | L55: =IFERROR(VLOOKUP(H55,Datenblätter!$A$137:$B$141,2,FALSE)," ") ->  | N55: =IFERROR(VLOOKUP(L55,Datenblätter!$B$137:$C$141,2,FALSE)," ") ->  | O55: =IFERROR(VLOOKUP(M55,Datenblätter!$B$137:$C$141,2,FALSE)," ") ->  | Q55: =IFERROR(VLOOKUP(P55,Datenblätter!$H$137:$I$140,2,FALSE)," ") ->  | R55: =IFERROR(INDEX(Datenblätter!$B$2:$K$130,MATCH('Zustandserfassung '!G55,Datenblätter!$B$2:$B$130,0),MATCH('Zustandserfassung '!Q55,Datenblätter!$B$2:$K$2,0))," ") ->  | T55: x | U55: GRG= | V55: 776 | W55: = | Y55: 0 | Z55: 0 | AA55: 0 | AB55: 0.5 | AC55: =IFERROR(HLOOKUP(Q55,$Y$20:AB55,36,)," ") -> 
A56: AE | B56: 30 | C56: F (energetisch) | D56: Bedachung Gebäude | E56: Dach Wärmedämmung | F56: =IFERROR(VLOOKUP(G56,Datenblätter!$B$3:$C$130,2,FALSE)," ") -> 2 | G56: ='Zustandserfassung Bestand'!C39 -> Steildach,Dachgeschoss nicht ausgebaut | H56: ='Zustandserfassung Bestand'!D39 -> Ende Lebensdauer | J56: =IFERROR(INDEX('Beschrieb Zustand'!$B$2:$G$130,MATCH('Zustandserfassung '!G56,'Beschrieb Zustand'!$B$2:$B$130,0),MATCH('Zustandserfassung '!Q56,'Beschrieb Zustand'!$B$2:$G$2,0))," ") -> Wärmedämmung unvollständig oder Stärke der Dämmschicht ist ungenügend. | K56: =IFERROR(INDEX('Beschrieb Zustand'!$H$2:$L$130,MATCH('Zustandserfassung '!G56,'Beschrieb Zustand'!$H$2:$H$130,0),MATCH('Zustandserfassung '!Q56,'Beschrieb Zustand'!$H$2:$L$2,0))," ") -> Entfernung der bestehenden Wärmedämmung. Neue Wärmedämmung mit Gehbelag auf Estrichboden. Energiebilanz und Prüfung auf Wärmebrücken durchführen. | L56: =IFERROR(VLOOKUP(H56,Datenblätter!$A$137:$B$141,2,FALSE)," ") -> d | M56: =IF(AND(OR(F52=2,F52=3),OR(M52="d",L52="d"),F56=3),"d"," ") ->  | N56: =IFERROR(VLOOKUP(L56,Datenblätter!$B$137:$C$141,2,FALSE)," ") -> 4 | O56: =IFERROR(VLOOKUP(M56,Datenblätter!$B$137:$C$141,2,FALSE)," ") ->  | P56: 4 | Q56: =IFERROR(VLOOKUP(P56,Datenblätter!$H$137:$I$140,2,FALSE)," ") -> d | R56: =IFERROR(INDEX(Datenblätter!$B$2:$K$130,MATCH('Zustandserfassung '!G56,Datenblätter!$B$2:$B$130,0),MATCH('Zustandserfassung '!Q56,Datenblätter!$B$2:$K$2,0))," ") -> 54 | S56: 124.361568 | T56: x | U56: GRG= | V56: 776 | W56: = | X56: 96500 | Y56: 0 | Z56: 0 | AA56: 0 | AB56: 1 | AC56: =IFERROR(HLOOKUP(Q56,$Y$20:AB56,37,)," ") -> 1 | AD56: 96500
A57: A | B57: 31 | C57: =IF(G57="Steildach","F 1.3","F1.2") -> F 1.3 | D57: Dachhaut | E57: Dachabschlüsse | F57: =IFERROR(VLOOKUP(G57,Datenblätter!$B$3:$C$130,2,FALSE)," ") -> 1 | G57: ='Zustandserfassung Bestand'!C40 -> Steildach | H57: ='Zustandserfassung Bestand'!D40 -> Ende Lebensdauer | J57: =IFERROR(INDEX('Beschrieb Zustand'!$B$2:$G$130,MATCH('Zustandserfassung '!G57,'Beschrieb Zustand'!$B$2:$B$130,0),MATCH('Zustandserfassung '!Q57,'Beschrieb Zustand'!$B$2:$G$2,0))," ") -> Deckung erheblich beschädigt. Verbreitet Wassereinritte. Lattung teilweise verfault. | K57: =IFERROR(INDEX('Beschrieb Zustand'!$H$2:$L$130,MATCH('Zustandserfassung '!G57,'Beschrieb Zustand'!$H$2:$H$130,0),MATCH('Zustandserfassung '!Q57,'Beschrieb Zustand'!$H$2:$L$2,0))," ") -> Dachdeckung vollständig ersetzen inkl. Ziegel- und Konterlattung. Holzabschlüsse ersetzen und strei- chen. Metallteile auswechseln. | L57: =IFERROR(VLOOKUP(H57,Datenblätter!$A$137:$B$141,2,FALSE)," ") -> d | M57: =IF($L$29="d","d"," ")&_xlfn.IFS(OR(L52="d",M52="d"),"d",OR(L52="b",M52="b"),"b")&IF(AND(F56=1,F56=3,OR(L56="c",L56="d",M56="c",M56="d")),"d"," ") -> dd | N57: =IFERROR(VLOOKUP(L57,Datenblätter!$B$137:$C$141,2,FALSE)," ") -> 4 | O57: =IFERROR(VLOOKUP(M57,Datenblätter!$B$137:$C$141,2,FALSE)," ") ->  | P57: 4 | Q57: =IFERROR(VLOOKUP(P57,Datenblätter!$H$137:$I$140,2,FALSE)," ") -> d | R57: =IFERROR(INDEX(Datenblätter!$B$2:$K$130,MATCH('Zustandserfassung '!G57,Datenblätter!$B$2:$B$130,0),MATCH('Zustandserfassung '!Q57,Datenblätter!$B$2:$K$2,0))," ") -> 114 | S57: 262.541088 | T57: x | U57: GRG= | V57: 776 | W57: = | X57: 203700 | Y57: 0 | Z57: 0 | AA57: 0 | AB57: 0.2 | AC57: =IFERROR(HLOOKUP(Q57,$Y$20:AB57,38,)," ") -> 0.2 | AD57: 40740
A58: I | B58: 32 | C58: G 1.4 | D58: Ausbau Gebäude | E58: Dachraum | F58: =IFERROR(VLOOKUP(G58,Datenblätter!$B$3:$C$130,2,FALSE)," ") -> 1 | G58: =Datenblätter!B84 -> Dachraum | H58: ='Zustandserfassung Bestand'!D41 -> Ende Lebensdauer | J58: =IFERROR(INDEX('Beschrieb Zustand'!$B$2:$G$130,MATCH('Zustandserfassung '!G58,'Beschrieb Zustand'!$B$2:$B$130,0),MATCH('Zustandserfassung '!Q58,'Beschrieb Zustand'!$B$2:$G$2,0))," ") -> Räume schlecht aufgeteilt. Türen zum Treppenhaus und Lattenverschläge erheblich beschädigt. Elektrische Anlagen veraltet. | K58: =IFERROR(INDEX('Beschrieb Zustand'!$H$2:$L$130,MATCH('Zustandserfassung '!G58,'Beschrieb Zustand'!$H$2:$H$130,0),MATCH('Zustandserfassung '!Q58,'Beschrieb Zustand'!$H$2:$L$2,0))," ") -> Neue Abschlusstüren, Lattenverschläge und Elektro- installationen. | L58: =IFERROR(VLOOKUP(H58,Datenblätter!$A$137:$B$141,2,FALSE)," ") -> d | N58: =IFERROR(VLOOKUP(L58,Datenblätter!$B$137:$C$141,2,FALSE)," ") -> 4 | O58: =IFERROR(VLOOKUP(M58,Datenblätter!$B$137:$C$141,2,FALSE)," ") ->  | P58: 4 | Q58: =IFERROR(VLOOKUP(P58,Datenblätter!$H$137:$I$140,2,FALSE)," ") -> d | R58: =IFERROR(INDEX(Datenblätter!$B$2:$K$130,MATCH('Zustandserfassung '!G58,Datenblätter!$B$2:$B$130,0),MATCH('Zustandserfassung '!Q58,Datenblätter!$B$2:$K$2,0))," ") -> 26 | S58: 59.877792 | T58: x | U58: GRG= | V58: 776 | W58: = | X58: 46500 | Y58: 0 | Z58: 0 | AA58: 0.1 | AB58: 0.3 | AC58: =IFERROR(HLOOKUP(Q58,$Y$20:AB58,39,)," ") -> 0.3 | AD58: 13950
C59: Wohnungen: Allgemein | F59: =IFERROR(VLOOKUP(G59,Datenblätter!$B$3:$C$130,2,FALSE)," ") ->  | N59: =IFERROR(VLOOKUP(L59,Datenblätter!$B$137:$C$141,2,FALSE)," ") ->  | O59: =IFERROR(VLOOKUP(M59,Datenblätter!$B$137:$C$141,2,FALSE)," ") ->  | Q59: =IFERROR(VLOOKUP(P59,Datenblätter!$H$137:$I$140,2,FALSE)," ") ->  | R59: =IFERROR(INDEX(Datenblätter!$B$2:$K$130,MATCH('Zustandserfassung '!G59,Datenblätter!$B$2:$B$130,0),MATCH('Zustandserfassung '!Q59,Datenblätter!$B$2:$K$2,0))," ") -> 
A60: I | B60: 33 | C60: D 1 | D60: Elektroanlage | E60: Elektroanlagen Wohnungen | F60: =IFERROR(VLOOKUP(G60,Datenblätter!$B$3:$C$130,2,FALSE)," ") -> 1 | G60: =Datenblätter!B86 -> Elektroanlagen Wohnungen | H60: ='Zustandserfassung Bestand'!D43 -> grössere Abnutzung | I60: =IFERROR(IF(L60=Q60," ", "übersteuert")," ") ->  | J60: =IFERROR(INDEX('Beschrieb Zustand'!$B$2:$G$130,MATCH('Zustandserfassung '!G60,'Beschrieb Zustand'!$B$2:$B$130,0),MATCH('Zustandserfassung '!Q60,'Beschrieb Zustand'!$B$2:$G$2,0))," ") -> Installationen teilweise mangelhaft, zu schwache Absicherung. | K60: =IFERROR(INDEX('Beschrieb Zustand'!$H$2:$L$130,MATCH('Zustandserfassung '!G60,'Beschrieb Zustand'!$H$2:$H$130,0),MATCH('Zustandserfassung '!Q60,'Beschrieb Zustand'!$H$2:$L$2,0))," ") -> Neuinstallation von Unterputzleitungen (< 50%). Neue Unterverteilung mit 10 Ampère absichern. Bad auf Fehlerstromschutzschalter. Drahtauswechslungen. | L60: =IFERROR(VLOOKUP(H60,Datenblätter!$A$137:$B$141,2,FALSE)," ") -> c | N60: =IFERROR(VLOOKUP(L60,Datenblätter!$B$137:$C$141,2,FALSE)," ") -> 3 | O60: =IFERROR(VLOOKUP(M60,Datenblätter!$B$137:$C$141,2,FALSE)," ") ->  | P60: 3 | Q60: =IFERROR(VLOOKUP(P60,Datenblätter!$H$137:$I$140,2,FALSE)," ") -> c | R60: =IFERROR(INDEX(Datenblätter!$B$2:$K$130,MATCH('Zustandserfassung '!G60,Datenblätter!$B$2:$B$130,0),MATCH('Zustandserfassung '!Q60,Datenblätter!$B$2:$K$2,0))," ") -> 39 | S60: =IFERROR(R60*$K$9*$K$14," ") -> 89.816688 | T60: x | U60: FW= | V60: =$G$11 -> 2328 | W60: = | X60: =IFERROR(ROUND(V60*S60,-2), " ") -> 209100 | Y60: 0 | Z60: 0 | AA60: 0.2 | AB60: 0.3 | AC60: =IFERROR(HLOOKUP(Q60,$Y$20:AB60,41,)," ") -> 0.2 | AD60: =IFERROR(X60*AC60," ") -> 41820
A61: I | B61: 34 | C61: D 5.3 | D61: Wärmehauptverteilung | E61: Wärmeabgabe | F61: =IFERROR(VLOOKUP(G61,Datenblätter!$B$3:$C$130,2,FALSE)," ") -> 1 | G61: ='Zustandserfassung Bestand'!C44 -> Heizkörper | H61: ='Zustandserfassung Bestand'!D44 -> leichte Abnutzung | J61: =IFERROR(INDEX('Beschrieb Zustand'!$B$2:$G$130,MATCH('Zustandserfassung '!G61,'Beschrieb Zustand'!$B$2:$B$130,0),MATCH('Zustandserfassung '!Q61,'Beschrieb Zustand'!$B$2:$G$2,0))," ") -> Heizkörper verschmutzt. Schlechter Durchfluss, Anlage verschlammt. Vorlauftemperatur liegt im Normalfall unter 60 °C. | K61: =IFERROR(INDEX('Beschrieb Zustand'!$H$2:$L$130,MATCH('Zustandserfassung '!G61,'Beschrieb Zustand'!$H$2:$H$130,0),MATCH('Zustandserfassung '!Q61,'Beschrieb Zustand'!$H$2:$L$2,0))," ") -> Aus- und Einbau, entschlammen und streichen der Heizkörper. Füllen und entlüften der Anlage. | L61: =IFERROR(VLOOKUP(H61,Datenblätter!$A$137:$B$141,2,FALSE)," ") -> b | N61: =IFERROR(VLOOKUP(L61,Datenblätter!$B$137:$C$141,2,FALSE)," ") -> 2 | O61: =IFERROR(VLOOKUP(M61,Datenblätter!$B$137:$C$141,2,FALSE)," ") ->  | P61: 2 | Q61: =IFERROR(VLOOKUP(P61,Datenblätter!$H$137:$I$140,2,FALSE)," ") -> b | R61: =IFERROR(INDEX(Datenblätter!$B$2:$K$130,MATCH('Zustandserfassung '!G61,Datenblätter!$B$2:$B$130,0),MATCH('Zustandserfassung '!Q61,Datenblätter!$B$2:$K$2,0))," ") -> 9 | S61: 20.726928 | T61: x | U61: FW= | V61: =$G$11 -> 2328 | W61: = | X61: 48300 | Y61: 0 | Z61: 0 | AA61: 0.2 | AB61: 0.3 | AC61: =IFERROR(HLOOKUP(Q61,$Y$20:AB61,42,)," ") -> 0 | AD61: 0
A62: I | B62: 35 | C62: D 8.4 | D62: Versorgungsleitung | E62: Kaltwasserverteilung | F62: =IFERROR(VLOOKUP(G62,Datenblätter!$B$3:$C$130,2,FALSE)," ") -> 1 | G62: =Datenblätter!B91 -> Kaltwasserverteilung | H62: ='Zustandserfassung Bestand'!D45 -> leichte Abnutzung | J62: =IFERROR(INDEX('Beschrieb Zustand'!$B$2:$G$130,MATCH('Zustandserfassung '!G62,'Beschrieb Zustand'!$B$2:$B$130,0),MATCH('Zustandserfassung '!Q62,'Beschrieb Zustand'!$B$2:$G$2,0))," ") -> Leitungen in Ordnung. Guter Durchfluss. Leitungsarmaturen undicht oder schlecht regulierbar. Dämmung teilweise mangelhaft. | K62: =IFERROR(INDEX('Beschrieb Zustand'!$H$2:$L$130,MATCH('Zustandserfassung '!G62,'Beschrieb Zustand'!$H$2:$H$130,0),MATCH('Zustandserfassung '!Q62,'Beschrieb Zustand'!$H$2:$L$2,0))," ") -> Auswechseln von Armaturen und Teilstücken. Ausbessern Dämmung soweit zugänglich. | L62: =IFERROR(VLOOKUP(H62,Datenblätter!$A$137:$B$141,2,FALSE)," ") -> b | N62: =IFERROR(VLOOKUP(L62,Datenblätter!$B$137:$C$141,2,FALSE)," ") -> 2 | O62: =IFERROR(VLOOKUP(M62,Datenblätter!$B$137:$C$141,2,FALSE)," ") ->  | P62: 2 | Q62: =IFERROR(VLOOKUP(P62,Datenblätter!$H$137:$I$140,2,FALSE)," ") -> b | R62: =IFERROR(INDEX(Datenblätter!$B$2:$K$130,MATCH('Zustandserfassung '!G62,Datenblätter!$B$2:$B$130,0),MATCH('Zustandserfassung '!Q62,Datenblätter!$B$2:$K$2,0))," ") -> 214 | S62: 492.840288 | T62: x | U62: AW= | V62: =$G$14 -> 36 | W62: = | X62: 17700 | Y62: 0 | Z62: 0 | AA62: 0 | AB62: 0.2 | AC62: =IFERROR(HLOOKUP(Q62,$Y$20:AB62,43,)," ") -> 0 | AD62: 0
A63: I | B63: 36 | C63: D 8.4 | D63: Versorgungsleitung | E63: Warmwasserverteilung | F63: =IFERROR(VLOOKUP(G63,Datenblätter!$B$3:$C$130,2,FALSE)," ") -> 1 | G63: ='Zustandserfassung Bestand'!C46 -> Mit zentraler Aufbereitung | H63: ='Zustandserfassung Bestand'!D46 -> leichte Abnutzung | J63: =IFERROR(INDEX('Beschrieb Zustand'!$B$2:$G$130,MATCH('Zustandserfassung '!G63,'Beschrieb Zustand'!$B$2:$B$130,0),MATCH('Zustandserfassung '!Q63,'Beschrieb Zustand'!$B$2:$G$2,0))," ") -> Leitungen in Ordnung, keine Beschädigung sichtbar. Dämmung teilweise mangelhaft. Leitungsarmaturen undicht oder schlecht regulierbar. | K63: =IFERROR(INDEX('Beschrieb Zustand'!$H$2:$L$130,MATCH('Zustandserfassung '!G63,'Beschrieb Zustand'!$H$2:$H$130,0),MATCH('Zustandserfassung '!Q63,'Beschrieb Zustand'!$H$2:$L$2,0))," ") -> Auswechseln von Leitungsarmaturen und Teilstücken. Ausbessern der Dämmung, soweit zugänglich. | L63: =IFERROR(VLOOKUP(H63,Datenblätter!$A$137:$B$141,2,FALSE)," ") -> b | N63: =IFERROR(VLOOKUP(L63,Datenblätter!$B$137:$C$141,2,FALSE)," ") -> 2 | O63: =IFERROR(VLOOKUP(M63,Datenblätter!$B$137:$C$141,2,FALSE)," ") ->  | P63: 2 | Q63: =IFERROR(VLOOKUP(P63,Datenblätter!$H$137:$I$140,2,FALSE)," ") -> b | R63: =IFERROR(INDEX(Datenblätter!$B$2:$K$130,MATCH('Zustandserfassung '!G63,Datenblätter!$B$2:$B$130,0),MATCH('Zustandserfassung '!Q63,Datenblätter!$B$2:$K$2,0))," ") -> 214 | S63: 492.840288 | T63: x | U63: AW= | V63: =$G$14 -> 36 | W63: = | X63: 17700 | Y63: 0 | Z63: 0 | AA63: 0 | AB63: 0.2 | AC63: =IFERROR(HLOOKUP(Q63,$Y$20:AB63,44,)," ") -> 0 | AD63: 0
A64: I | B64: 37 | C64: D 8.4 | D64: Versorgungsleitung | E64: Gasverteilung | F64: =IFERROR(VLOOKUP(G64,Datenblätter!$B$3:$C$130,2,FALSE)," ") -> 1 | G64: =Datenblätter!B96 -> Gasverteilung | H64: ='Zustandserfassung Bestand'!D47 -> - | J64: =IFERROR(INDEX('Beschrieb Zustand'!$B$2:$G$130,MATCH('Zustandserfassung '!G64,'Beschrieb Zustand'!$B$2:$B$130,0),MATCH('Zustandserfassung '!Q64,'Beschrieb Zustand'!$B$2:$G$2,0))," ") ->  | K64: =IFERROR(INDEX('Beschrieb Zustand'!$H$2:$L$130,MATCH('Zustandserfassung '!G64,'Beschrieb Zustand'!$H$2:$H$130,0),MATCH('Zustandserfassung '!Q64,'Beschrieb Zustand'!$H$2:$L$2,0))," ") ->  | L64: =IFERROR(VLOOKUP(H64,Datenblätter!$A$137:$B$141,2,FALSE)," ") ->  | N64: =IFERROR(VLOOKUP(L64,Datenblätter!$B$137:$C$141,2,FALSE)," ") ->  | O64: =IFERROR(VLOOKUP(M64,Datenblätter!$B$137:$C$141,2,FALSE)," ") ->  | Q64: =IFERROR(VLOOKUP(P64,Datenblätter!$H$137:$I$140,2,FALSE)," ") ->  | R64: =IFERROR(INDEX(Datenblätter!$B$2:$K$130,MATCH('Zustandserfassung '!G64,Datenblätter!$B$2:$B$130,0),MATCH('Zustandserfassung '!Q64,Datenblätter!$B$2:$K$2,0))," ") ->  | T64: x | U64: AW= | V64: =$G$14 -> 36 | W64: = | Y64: 0 | Z64: 0 | AA64: 0 | AB64: 0 | AC64: =IFERROR(HLOOKUP(Q64,$Y$20:AB64,45,)," ") -> 
A65: I | B65: 38 | C65: D 8.4 | D65: Versorgungsleitung | E65: Entsorgungsleitung bis Kellerdecke | F65: =IFERROR(VLOOKUP(G65,Datenblätter!$B$3:$C$130,2,FALSE)," ") -> 1 | G65: =Datenblätter!B98 -> Entsorgungsleitung bis Kellerdecke | H65: ='Zustandserfassung Bestand'!D48 -> grössere Abnutzung | J65: =IFERROR(INDEX('Beschrieb Zustand'!$B$2:$G$130,MATCH('Zustandserfassung '!G65,'Beschrieb Zustand'!$B$2:$B$130,0),MATCH('Zustandserfassung '!Q65,'Beschrieb Zustand'!$B$2:$G$2,0))," ") -> - | K65: =IFERROR(INDEX('Beschrieb Zustand'!$H$2:$L$130,MATCH('Zustandserfassung '!G65,'Beschrieb Zustand'!$H$2:$H$130,0),MATCH('Zustandserfassung '!Q65,'Beschrieb Zustand'!$H$2:$L$2,0))," ") -> - | L65: =IFERROR(VLOOKUP(H65,Datenblätter!$A$137:$B$141,2,FALSE)," ") -> c | M65: =IF($L$38="d","d"," ") ->  | N65: =IFERROR(VLOOKUP(L65,Datenblätter!$B$137:$C$141,2,FALSE)," ") -> 3 | O65: =IFERROR(VLOOKUP(M65,Datenblätter!$B$137:$C$141,2,FALSE)," ") ->  | P65: 3 | Q65: =IFERROR(VLOOKUP(P65,Datenblätter!$H$137:$I$140,2,FALSE)," ") -> c | R65: =IFERROR(INDEX(Datenblätter!$B$2:$K$130,MATCH('Zustandserfassung '!G65,Datenblätter!$B$2:$B$130,0),MATCH('Zustandserfassung '!Q65,Datenblätter!$B$2:$K$2,0))," ") -> e | T65: x | U65: AW= | V65: =$G$14 -> 36 | W65: = | Y65: 0 | Z65: 0 | AA65: 0 | AB65: 0.2 | AC65: =IFERROR(HLOOKUP(Q65,$Y$20:AB65,46,)," ") -> 0
A66: A | B66: 39 | C66: E 3.1 | D66: Fenster | E66: Fenster | F66: =IFERROR(VLOOKUP(G66,Datenblätter!$B$3:$C$130,2,FALSE)," ") -> 1 | G66: =Datenblätter!B100 -> Fenster | H66: ='Zustandserfassung Bestand'!D49 -> Ende Lebensdauer | J66: =IFERROR(INDEX('Beschrieb Zustand'!$B$2:$G$130,MATCH('Zustandserfassung '!G66,'Beschrieb Zustand'!$B$2:$B$130,0),MATCH('Zustandserfassung '!Q66,'Beschrieb Zustand'!$B$2:$G$2,0))," ") -> Sämtliche Fenster beschädigt. Flügel und Rahmen verwittert. Schliessung und Bedienung nicht funktionsfähig. Ungenügende Wärmedämmung vorhanden. | K66: =IFERROR(INDEX('Beschrieb Zustand'!$H$2:$L$130,MATCH('Zustandserfassung '!G66,'Beschrieb Zustand'!$H$2:$H$130,0),MATCH('Zustandserfassung '!Q66,'Beschrieb Zustand'!$H$2:$L$2,0))," ") -> Kompletter Ersatz der Fenster. Oberflächenbehandlung und Versiegelung gegen Mauerwerk. Energieberater beiziehen. | L66: =IFERROR(VLOOKUP(H66,Datenblätter!$A$137:$B$141,2,FALSE)," ") -> d | M66: =IF($L$29="d","d"," ") -> d | N66: =IFERROR(VLOOKUP(L66,Datenblätter!$B$137:$C$141,2,FALSE)," ") -> 4 | O66: =IFERROR(VLOOKUP(M66,Datenblätter!$B$137:$C$141,2,FALSE)," ") -> 4 | P66: 4 | Q66: =IFERROR(VLOOKUP(P66,Datenblätter!$H$137:$I$140,2,FALSE)," ") -> d | R66: =IFERROR(INDEX(Datenblätter!$B$2:$K$130,MATCH('Zustandserfassung '!G66,Datenblätter!$B$2:$B$130,0),MATCH('Zustandserfassung '!Q66,Datenblätter!$B$2:$K$2,0))," ") -> 45 | S66: 103.63464 | T66: x | U66: FW= | V66: =$G$11 -> 2328 | W66: = | X66: 241300 | Y66: 0 | Z66: 0 | AA66: 0 | AB66: 0.3 | AC66: =IFERROR(HLOOKUP(Q66,$Y$20:AB66,47,)," ") -> 0.3 | AD66: 72390
A67: A | B67: 40 | C67: E 3.3 | D67: Sonnenschutz | E67: Wetterschutz | F67: =IFERROR(VLOOKUP(G67,Datenblätter!$B$3:$C$130,2,FALSE)," ") -> 1 | G67: ='Zustandserfassung Bestand'!C50 -> Jalousien | H67: ='Zustandserfassung Bestand'!D50 -> Ende Lebensdauer | J67: =IFERROR(INDEX('Beschrieb Zustand'!$B$2:$G$130,MATCH('Zustandserfassung '!G67,'Beschrieb Zustand'!$B$2:$B$130,0),MATCH('Zustandserfassung '!Q67,'Beschrieb Zustand'!$B$2:$G$2,0))," ") -> Sämtliche Jalousieläden beschädigt. Oberflächen verwittert. | K67: =IFERROR(INDEX('Beschrieb Zustand'!$H$2:$L$130,MATCH('Zustandserfassung '!G67,'Beschrieb Zustand'!$H$2:$H$130,0),MATCH('Zustandserfassung '!Q67,'Beschrieb Zustand'!$H$2:$L$2,0))," ") -> Totalersatz der Jalousieläden. Komplette Oberflächenbehandlung. | L67: =IFERROR(VLOOKUP(H67,Datenblätter!$A$137:$B$141,2,FALSE)," ") -> d | M67: =IF($L$29="d","d"," ") -> d | N67: =IFERROR(VLOOKUP(L67,Datenblätter!$B$137:$C$141,2,FALSE)," ") -> 4 | O67: =IFERROR(VLOOKUP(M67,Datenblätter!$B$137:$C$141,2,FALSE)," ") -> 4 | P67: 4 | Q67: =IFERROR(VLOOKUP(P67,Datenblätter!$H$137:$I$140,2,FALSE)," ") -> d | R67: =IFERROR(INDEX(Datenblätter!$B$2:$K$130,MATCH('Zustandserfassung '!G67,Datenblätter!$B$2:$B$130,0),MATCH('Zustandserfassung '!Q67,Datenblätter!$B$2:$K$2,0))," ") -> 19 | S67: 43.756848 | T67: x | U67: FW= | V67: =$G$11 -> 2328 | W67: = | X67: 101900 | Y67: 0 | Z67: 0 | AA67: 0 | AB67: 0.25 | AC67: =IFERROR(HLOOKUP(Q67,$Y$20:AB67,48,)," ") -> 0.25 | AD67: 25475
A68: A | B68: 41 | C68: E 3.3 | D68: Sonnenschutz | E68: Sonnenschutz | F68: =IFERROR(VLOOKUP(G68,Datenblätter!$B$3:$C$130,2,FALSE)," ") -> 1 | G68: =Datenblätter!B105 -> Sonnenschutz | H68: ='Zustandserfassung Bestand'!D51 -> Ende Lebensdauer | J68: =IFERROR(INDEX('Beschrieb Zustand'!$B$2:$G$130,MATCH('Zustandserfassung '!G68,'Beschrieb Zustand'!$B$2:$B$130,0),MATCH('Zustandserfassung '!Q68,'Beschrieb Zustand'!$B$2:$G$2,0))," ") -> Markisen nicht funktionsfähig. Stoffteile stark verwittert oder beschädigt. Bedienungselemente defekt. | K68: =IFERROR(INDEX('Beschrieb Zustand'!$H$2:$L$130,MATCH('Zustandserfassung '!G68,'Beschrieb Zustand'!$H$2:$H$130,0),MATCH('Zustandserfassung '!Q68,'Beschrieb Zustand'!$H$2:$L$2,0))," ") -> Totalersatz der Markisen. Energienachweis und Prüfung auf Wärmebrücken durchführen. | L68: =IFERROR(VLOOKUP(H68,Datenblätter!$A$137:$B$141,2,FALSE)," ") -> d | M68: =IF($L$29="d","d"," ") -> d | N68: =IFERROR(VLOOKUP(L68,Datenblätter!$B$137:$C$141,2,FALSE)," ") -> 4 | O68: =IFERROR(VLOOKUP(M68,Datenblätter!$B$137:$C$141,2,FALSE)," ") -> 4 | P68: 4 | Q68: =IFERROR(VLOOKUP(P68,Datenblätter!$H$137:$I$140,2,FALSE)," ") -> d | R68: =IFERROR(INDEX(Datenblätter!$B$2:$K$130,MATCH('Zustandserfassung '!G68,Datenblätter!$B$2:$B$130,0),MATCH('Zustandserfassung '!Q68,Datenblätter!$B$2:$K$2,0))," ") -> 6 | S68: 13.817952 | T68: x | U68: FW= | V68: =$G$11 -> 2328 | W68: = | X68: 32200 | Y68: 0 | Z68: 0 | AA68: 0 | AB68: 0.2 | AC68: =IFERROR(HLOOKUP(Q68,$Y$20:AB68,49,)," ") -> 0.2 | AD68: 6440
A69: I | B69: 42 | C69: G 1.4 | D69: Trennwand Tür,Tor | E69: Türen,Innenausbauten | F69: =IFERROR(VLOOKUP(G69,Datenblätter!$B$3:$C$130,2,FALSE)," ") -> 1 | G69: =Datenblätter!B107 -> Türen,Innenausbauten | H69: ='Zustandserfassung Bestand'!D52 -> grössere Abnutzung | J69: =IFERROR(INDEX('Beschrieb Zustand'!$B$2:$G$130,MATCH('Zustandserfassung '!G69,'Beschrieb Zustand'!$B$2:$B$130,0),MATCH('Zustandserfassung '!Q69,'Beschrieb Zustand'!$B$2:$G$2,0))," ") -> Holzteile und Beschläge nicht mehr funktionsfähig (< 50%). Oberflächen schadhaft. | K69: =IFERROR(INDEX('Beschrieb Zustand'!$H$2:$L$130,MATCH('Zustandserfassung '!G69,'Beschrieb Zustand'!$H$2:$H$130,0),MATCH('Zustandserfassung '!Q69,'Beschrieb Zustand'!$H$2:$L$2,0))," ") -> Ersatz der Holzteile und Beschläge (< 50%). Komplette Oberflächenbehandlung. | L69: =IFERROR(VLOOKUP(H69,Datenblätter!$A$137:$B$141,2,FALSE)," ") -> c | N69: =IFERROR(VLOOKUP(L69,Datenblätter!$B$137:$C$141,2,FALSE)," ") -> 3 | O69: =IFERROR(VLOOKUP(M69,Datenblätter!$B$137:$C$141,2,FALSE)," ") ->  | P69: 3 | Q69: =IFERROR(VLOOKUP(P69,Datenblätter!$H$137:$I$140,2,FALSE)," ") -> c | R69: =IFERROR(INDEX(Datenblätter!$B$2:$K$130,MATCH('Zustandserfassung '!G69,Datenblätter!$B$2:$B$130,0),MATCH('Zustandserfassung '!Q69,Datenblätter!$B$2:$K$2,0))," ") -> 24 | S69: 55.271808 | T69: x | U69: FW= | V69: =$G$11 -> 2328 | W69: = | X69: 128700 | Y69: 0 | Z69: 0 | AA69: 0.1 | AB69: 0.2 | AC69: =IFERROR(HLOOKUP(Q69,$Y$20:AB69,50,)," ") -> 0.1 | AD69: 12870
C70: Wohnungen: Zimmer,Korridor | F70: =IFERROR(VLOOKUP(G70,Datenblätter!$B$3:$C$130,2,FALSE)," ") ->  | N70: =IFERROR(VLOOKUP(L70,Datenblätter!$B$137:$C$141,2,FALSE)," ") ->  | O70: =IFERROR(VLOOKUP(M70,Datenblätter!$B$137:$C$141,2,FALSE)," ") ->  | Q70: =IFERROR(VLOOKUP(P70,Datenblätter!$H$137:$I$140,2,FALSE)," ") ->  | R70: =IFERROR(INDEX(Datenblätter!$B$2:$K$130,MATCH('Zustandserfassung '!G70,Datenblätter!$B$2:$B$130,0),MATCH('Zustandserfassung '!Q70,Datenblätter!$B$2:$K$2,0))," ") -> 
A71: I | B71: 43 | C71: G 2.2 | D71: Bodenbelag | E71: Bodenbeläge | F71: =IFERROR(VLOOKUP(G71,Datenblätter!$B$3:$C$130,2,FALSE)," ") -> 1 | G71: ='Zustandserfassung Bestand'!C54 -> Parkett | H71: ='Zustandserfassung Bestand'!D54 -> grössere Abnutzung | I71: =IFERROR(IF(L71=Q71," ", "übersteuert")," ") ->  | J71: =IFERROR(INDEX('Beschrieb Zustand'!$B$2:$G$130,MATCH('Zustandserfassung '!G71,'Beschrieb Zustand'!$B$2:$B$130,0),MATCH('Zustandserfassung '!Q71,'Beschrieb Zustand'!$B$2:$G$2,0))," ") -> Lose Parkettelemente (≤ 25%), Flecken und Verschleissstellen verbreitet. Sockelleisten beschädigt oder nicht vorhanden. | K71: =IFERROR(INDEX('Beschrieb Zustand'!$H$2:$L$130,MATCH('Zustandserfassung '!G71,'Beschrieb Zustand'!$H$2:$H$130,0),MATCH('Zustandserfassung '!Q71,'Beschrieb Zustand'!$H$2:$L$2,0))," ") -> Ausbessern (≤ 25%). Ganze Fläche schleifen und imprägnieren. Sockelleisten ersetzen. | L71: =IFERROR(VLOOKUP(H71,Datenblätter!$A$137:$B$141,2,FALSE)," ") -> c | N71: =IFERROR(VLOOKUP(L71,Datenblätter!$B$137:$C$141,2,FALSE)," ") -> 3 | O71: =IFERROR(VLOOKUP(M71,Datenblätter!$B$137:$C$141,2,FALSE)," ") ->  | P71: 3 | Q71: =IFERROR(VLOOKUP(P71,Datenblätter!$H$137:$I$140,2,FALSE)," ") -> c | R71: =IFERROR(INDEX(Datenblätter!$B$2:$K$130,MATCH('Zustandserfassung '!G71,Datenblätter!$B$2:$B$130,0),MATCH('Zustandserfassung '!Q71,Datenblätter!$B$2:$K$2,0))," ") -> 20 | S71: =IFERROR(R71*$K$9*$K$14," ") -> 46.05984 | T71: x | U71: FW= | V71: =$G$11 -> 2328 | W71: = | X71: =IFERROR(ROUND(V71*S71,-2), " ") -> 107200 | Y71: 0 | Z71: 0 | AA71: 0 | AB71: 0.2 | AC71: =IFERROR(HLOOKUP(Q71,$Y$20:AB71,52,)," ") -> 0 | AD71: =IFERROR(X71*AC71," ") -> 0
A72: I | B72: 44 | C72: G 3 | D72: Wandbekleidung | E72: Wandverkleidungen | F72: =IFERROR(VLOOKUP(G72,Datenblätter!$B$3:$C$130,2,FALSE)," ") -> 1 | G72: ='Zustandserfassung Bestand'!C55 -> Anstriche | H72: ='Zustandserfassung Bestand'!D55 -> leichte Abnutzung | I72: =IFERROR(IF(L72=Q72," ", "übersteuert")," ") ->  | J72: =IFERROR(INDEX('Beschrieb Zustand'!$B$2:$G$130,MATCH('Zustandserfassung '!G72,'Beschrieb Zustand'!$B$2:$B$130,0),MATCH('Zustandserfassung '!Q72,'Beschrieb Zustand'!$B$2:$G$2,0))," ") -> Untergrund in Ordnung. Oberflächen schmutzig oder abgenutzt (< 25%). | K72: =IFERROR(INDEX('Beschrieb Zustand'!$H$2:$L$130,MATCH('Zustandserfassung '!G72,'Beschrieb Zustand'!$H$2:$H$130,0),MATCH('Zustandserfassung '!Q72,'Beschrieb Zustand'!$H$2:$L$2,0))," ") -> Oberflächen neu streichen (< 25%). | L72: =IFERROR(VLOOKUP(H72,Datenblätter!$A$137:$B$141,2,FALSE)," ") -> b | N72: =IFERROR(VLOOKUP(L72,Datenblätter!$B$137:$C$141,2,FALSE)," ") -> 2 | O72: =IFERROR(VLOOKUP(M72,Datenblätter!$B$137:$C$141,2,FALSE)," ") ->  | P72: 2 | Q72: =IFERROR(VLOOKUP(P72,Datenblätter!$H$137:$I$140,2,FALSE)," ") -> b | R72: =IFERROR(INDEX(Datenblätter!$B$2:$K$130,MATCH('Zustandserfassung '!G72,Datenblätter!$B$2:$B$130,0),MATCH('Zustandserfassung '!Q72,Datenblätter!$B$2:$K$2,0))," ") -> 15 | S72: =IFERROR(R72*$K$9*$K$14," ") -> 34.54488 | T72: x | U72: FW= | V72: =$G$11 -> 2328 | W72: = | X72: =IFERROR(ROUND(V72*S72,-2), " ") -> 80400 | Y72: 0 | Z72: 0 | AA72: 0 | AB72: 0 | AC72: =IFERROR(HLOOKUP(Q72,$Y$20:AB72,53,)," ") -> 0 | AD72: =IFERROR(X72*AC72," ") -> 0
A73: I | B73: 45 | C73: G 4 | D73: Deckenbekleidung | E73: Deckenverkleidungen | F73: =IFERROR(VLOOKUP(G73,Datenblätter!$B$3:$C$130,2,FALSE)," ") -> 1 | G73: ='Zustandserfassung Bestand'!C56 -> Gipsdecken | H73: ='Zustandserfassung Bestand'!D56 -> leichte Abnutzung | I73: =IFERROR(IF(L73=Q73," ", "übersteuert")," ") ->  | J73: =IFERROR(INDEX('Beschrieb Zustand'!$B$2:$G$130,MATCH('Zustandserfassung '!G73,'Beschrieb Zustand'!$B$2:$B$130,0),MATCH('Zustandserfassung '!Q73,'Beschrieb Zustand'!$B$2:$G$2,0))," ") -> Oberflächen verschmutzt. Untergrund in gutem Zustand. Örtliche Haarrisse. | K73: =IFERROR(INDEX('Beschrieb Zustand'!$H$2:$L$130,MATCH('Zustandserfassung '!G73,'Beschrieb Zustand'!$H$2:$H$130,0),MATCH('Zustandserfassung '!Q73,'Beschrieb Zustand'!$H$2:$L$2,0))," ") -> Oberflächen neu streichen und Risse ausbessern. | L73: =IFERROR(VLOOKUP(H73,Datenblätter!$A$137:$B$141,2,FALSE)," ") -> b | M73: =IF(AND(OR(F73=1,F73=2),$L$25="c",$F$25=1),"c"," ")&IF(AND(OR(F73=1,F73=2),$L$25="d",$F$25=1),"d"," ") ->  | N73: =IFERROR(VLOOKUP(L73,Datenblätter!$B$137:$C$141,2,FALSE)," ") -> 2 | O73: =IFERROR(VLOOKUP(M73,Datenblätter!$B$137:$C$141,2,FALSE)," ") ->  | P73: 2 | Q73: =IFERROR(VLOOKUP(P73,Datenblätter!$H$137:$I$140,2,FALSE)," ") -> b | R73: =IFERROR(INDEX(Datenblätter!$B$2:$K$130,MATCH('Zustandserfassung '!G73,Datenblätter!$B$2:$B$130,0),MATCH('Zustandserfassung '!Q73,Datenblätter!$B$2:$K$2,0))," ") -> 11 | S73: =IFERROR(R73*$K$9*$K$14," ") -> 25.332912 | T73: x | U73: FW= | V73: =$G$11 -> 2328 | W73: = | X73: =IFERROR(ROUND(V73*S73,-2), " ") -> 59000 | Y73: 0 | Z73: 0 | AA73: 0 | AB73: 0 | AC73: =IFERROR(HLOOKUP(Q73,$Y$20:AB73,54,)," ") -> 0 | AD73: =IFERROR(X73*AC73," ") -> 0
C74: Wohnungen: Nassräume | F74: =IFERROR(VLOOKUP(G74,Datenblätter!$B$3:$C$130,2,FALSE)," ") ->  | N74: =IFERROR(VLOOKUP(L74,Datenblätter!$B$137:$C$141,2,FALSE)," ") ->  | O74: =IFERROR(VLOOKUP(M74,Datenblätter!$B$137:$C$141,2,FALSE)," ") ->  | Q74: =IFERROR(VLOOKUP(P74,Datenblätter!$H$137:$I$140,2,FALSE)," ") ->  | R74: =IFERROR(INDEX(Datenblätter!$B$2:$K$130,MATCH('Zustandserfassung '!G74,Datenblätter!$B$2:$B$130,0),MATCH('Zustandserfassung '!Q74,Datenblätter!$B$2:$K$2,0))," ") -> 
A75: I | B75: 46 | C75: G 5.2 | D75: Einbauküche | E75: Küche | F75: =IFERROR(VLOOKUP(G75,Datenblätter!$B$3:$C$130,2,FALSE)," ") -> 1 | G75: =Datenblätter!B120 -> Küche | H75: ='Zustandserfassung Bestand'!D58 -> grössere Abnutzung | I75: =IFERROR(IF(L75=Q75," ", "übersteuert")," ") ->  | J75: =IFERROR(INDEX('Beschrieb Zustand'!$B$2:$G$130,MATCH('Zustandserfassung '!G75,'Beschrieb Zustand'!$B$2:$B$130,0),MATCH('Zustandserfassung '!Q75,'Beschrieb Zustand'!$B$2:$G$2,0))," ") -> Wände und Decken verschmutzt. Plattenbeläge einwandfrei. Bodenbeläge beschädigt. Kücheneinrichtung und Apparate veraltet oder abgenutzt. Bedienungsarmaturen dicht und regulierbar. Elektrische Installationen ungenügend. | K75: =IFERROR(INDEX('Beschrieb Zustand'!$H$2:$L$130,MATCH('Zustandserfassung '!G75,'Beschrieb Zustand'!$H$2:$H$130,0),MATCH('Zustandserfassung '!Q75,'Beschrieb Zustand'!$H$2:$L$2,0))," ") -> Neue Küchenkombination ohne Veränderung der Anordnung. Ausbessern Bodenbeläge, streichen von Decken und Wänden. Neue elektrische Installation. Auf energiesparende Geräte achten. | L75: =IFERROR(VLOOKUP(H75,Datenblätter!$A$137:$B$141,2,FALSE)," ") -> c | M75: =IF(OR($L$62="d",$L$63="d",$M$63="d",$L$65="d",$M$65="d"),"d"," ") ->  | N75: =IFERROR(VLOOKUP(L75,Datenblätter!$B$137:$C$141,2,FALSE)," ") -> 3 | O75: =IFERROR(VLOOKUP(M75,Datenblätter!$B$137:$C$141,2,FALSE)," ") ->  | P75: 3 | Q75: =IFERROR(VLOOKUP(P75,Datenblätter!$H$137:$I$140,2,FALSE)," ") -> c | R75: =IFERROR(INDEX(Datenblätter!$B$2:$K$130,MATCH('Zustandserfassung '!G75,Datenblätter!$B$2:$B$130,0),MATCH('Zustandserfassung '!Q75,Datenblätter!$B$2:$K$2,0))," ") -> 6548 | S75: =IFERROR(R75*$K$9*$K$14," ") -> 15079.99162 | T75: x | U75: AW= | V75: =$G$14 -> 36 | W75: = | X75: =IFERROR(ROUND(V75*S75,-2), " ") -> 542900 | Y75: 0 | Z75: 0 | AA75: 0.2 | AB75: 0.4 | AC75: =IFERROR(HLOOKUP(Q75,$Y$20:AB75,56,)," ") -> 0.2 | AD75: =IFERROR(X75*AC75," ") -> 108580
A76: I | B76: 47 | C76: D 8.1 | D76: Armaturen | E76: Bad-WC | F76: =IFERROR(VLOOKUP(G76,Datenblätter!$B$3:$C$130,2,FALSE)," ") -> 1 | G76: ='Zustandserfassung Bestand'!C59 -> Bad-WC zusammen | H76: ='Zustandserfassung Bestand'!D59 -> grössere Abnutzung | I76: =IFERROR(IF(L76=Q76," ", "übersteuert")," ") ->  | J76: =IFERROR(INDEX('Beschrieb Zustand'!$B$2:$G$130,MATCH('Zustandserfassung '!G76,'Beschrieb Zustand'!$B$2:$B$130,0),MATCH('Zustandserfassung '!Q76,'Beschrieb Zustand'!$B$2:$G$2,0))," ") -> Decken und Wandanstriche verschmutzt oder abgeblättert. Plattenbeläge teilweise gelöst. Fugen ausgebrochen oder undicht. Maximal zwei sanitäre Apparate beschädigt. Bedienungsarmaturen veraltet oder undicht. Elektrische Installationen genügend. | K76: =IFERROR(INDEX('Beschrieb Zustand'!$H$2:$L$130,MATCH('Zustandserfassung '!G76,'Beschrieb Zustand'!$H$2:$H$130,0),MATCH('Zustandserfassung '!Q76,'Beschrieb Zustand'!$H$2:$L$2,0))," ") -> Auswechseln von maximal zwei sanitären Apparaten. Auswechseln der Armaturen. Erneuern von Kittfugen. Ersetzen von einzelnen Platten. Anstrich Wände und Decken. | L76: =IFERROR(VLOOKUP(H76,Datenblätter!$A$137:$B$141,2,FALSE)," ") -> c | M76: =IF(OR($L$62="d",$L$63="d",$M$63="d",$L$65="d",$M$65="d"),"d"," ") ->  | N76: =IFERROR(VLOOKUP(L76,Datenblätter!$B$137:$C$141,2,FALSE)," ") -> 3 | O76: =IFERROR(VLOOKUP(M76,Datenblätter!$B$137:$C$141,2,FALSE)," ") ->  | P76: 3 | Q76: =IFERROR(VLOOKUP(P76,Datenblätter!$H$137:$I$140,2,FALSE)," ") -> c | R76: =IFERROR(INDEX(Datenblätter!$B$2:$K$130,MATCH('Zustandserfassung '!G76,Datenblätter!$B$2:$B$130,0),MATCH('Zustandserfassung '!Q76,Datenblätter!$B$2:$K$2,0))," ") -> 2642 | S76: =IFERROR(R76*$K$9*$K$14," ") -> 6084.504864 | T76: x | U76: AW= | V76: =$G$14 -> 36 | W76: = | X76: =IFERROR(ROUND(V76*S76,-2), " ") -> 219000 | Y76: 0 | Z76: 0 | AA76: 0.2 | AB76: 0.3 | AC76: =IFERROR(HLOOKUP(Q76,$Y$20:AB76,57,)," ") -> 0.2 | AD76: =IFERROR(X76*AC76," ") -> 43800
A77: I | B77: 48 | C77: D 7 | D77: Lufttechnische Anlage | E77: Abluftanlagen | F77: =IFERROR(VLOOKUP(G77,Datenblätter!$B$3:$C$130,2,FALSE)," ") -> 0 | G77: ='Zustandserfassung Bestand'!C60 -> - | H77: ='Zustandserfassung Bestand'!D60 -> - | I77: =IFERROR(IF(L77=Q77," ", "übersteuert")," ") ->  | J77: =IFERROR(INDEX('Beschrieb Zustand'!$B$2:$G$130,MATCH('Zustandserfassung '!G77,'Beschrieb Zustand'!$B$2:$B$130,0),MATCH('Zustandserfassung '!Q77,'Beschrieb Zustand'!$B$2:$G$2,0))," ") ->  | K77: =IFERROR(INDEX('Beschrieb Zustand'!$H$2:$L$130,MATCH('Zustandserfassung '!G77,'Beschrieb Zustand'!$H$2:$H$130,0),MATCH('Zustandserfassung '!Q77,'Beschrieb Zustand'!$H$2:$L$2,0))," ") ->  | L77: =IFERROR(VLOOKUP(H77,Datenblätter!$A$137:$B$141,2,FALSE)," ") ->  | N77: =IFERROR(VLOOKUP(L77,Datenblätter!$B$137:$C$141,2,FALSE)," ") ->  | O77: =IFERROR(VLOOKUP(M77,Datenblätter!$B$137:$C$141,2,FALSE)," ") ->  | Q77: =IFERROR(VLOOKUP(P77,Datenblätter!$H$137:$I$140,2,FALSE)," ") ->  | R77: =IFERROR(INDEX(Datenblätter!$B$2:$K$130,MATCH('Zustandserfassung '!G77,Datenblätter!$B$2:$B$130,0),MATCH('Zustandserfassung '!Q77,Datenblätter!$B$2:$K$2,0))," ") ->  | S77: =IFERROR(R77*$K$9*$K$14," ") ->  | T77: x | U77: AW= | V77: =$G$14 -> 36 | W77: = | X77: =IFERROR(ROUND(V77*S77,-2), " ") ->  | Y77: 0 | Z77: 0 | AA77: 0 | AB77: 1 | AC77: =IFERROR(HLOOKUP(Q77,$Y$20:AB77,58,)," ") ->  | AD77: =IFERROR(X77*AC77," ") -> 
C78: Gewerberäume | F78: =IFERROR(VLOOKUP(G78,Datenblätter!$B$3:$C$130,2,FALSE)," ") ->  | N78: =IFERROR(VLOOKUP(L78,Datenblätter!$B$137:$C$141,2,FALSE)," ") ->  | O78: =IFERROR(VLOOKUP(M78,Datenblätter!$B$137:$C$141,2,FALSE)," ") ->  | P78: =IF(MAX(N78:O78)=0," ",MAX(N78:O78)) ->  | Q78: =IFERROR(VLOOKUP(P78,Datenblätter!$H$137:$I$140,2,FALSE)," ") ->  | R78: =IFERROR(INDEX(Datenblätter!$B$2:$K$130,MATCH('Zustandserfassung '!G78,Datenblätter!$B$2:$B$130,0),MATCH('Zustandserfassung '!Q78,Datenblätter!$B$2:$K$2,0))," ") -> 
A79: I | B79: 49 | C79: D | E79: Gewerberäume | F79: =IFERROR(VLOOKUP(G79,Datenblätter!$B$3:$C$130,2,FALSE)," ") -> 1 | G79: =Datenblätter!B128 -> Gewerberäume | H79: ='Zustandserfassung Bestand'!D62 -> - | I79: =IFERROR(IF(L79=Q79," ", "übersteuert")," ") ->  | J79: =IFERROR(INDEX('Beschrieb Zustand'!$B$2:$G$130,MATCH('Zustandserfassung '!G79,'Beschrieb Zustand'!$B$2:$B$130,0),MATCH('Zustandserfassung '!Q79,'Beschrieb Zustand'!$B$2:$G$2,0))," ") ->  | K79: =IFERROR(INDEX('Beschrieb Zustand'!$H$2:$L$130,MATCH('Zustandserfassung '!G79,'Beschrieb Zustand'!$H$2:$H$130,0),MATCH('Zustandserfassung '!Q79,'Beschrieb Zustand'!$H$2:$L$2,0))," ") ->  | R79: =IFERROR(INDEX(Datenblätter!$B$2:$K$130,MATCH('Zustandserfassung '!G79,Datenblätter!$B$2:$B$130,0),MATCH('Zustandserfassung '!Q79,Datenblätter!$B$2:$K$2,0))," ") ->  | S79: =IFERROR(R79*$K$9*$K$14," ") ->  | T79: x | U79: FG= | V79: =G12 -> 0 | W79: = | X79: =IFERROR(ROUND(V79*S79,-2), " ") ->  | Y79: 0 | Z79: 0 | AA79: 0 | AB79: 0 | AC79: =IFERROR(HLOOKUP(Q79,$Y$20:AB79,60,)," ") ->  | AD79: =IFERROR(X79*AC79," ") -> 
C80: Baustelleneinrichtung
A81: A | B81: 50 | C81: B | D81: Vorbereitung | E81: Gerüste und Baustelleneinrichtung | F81: =IFERROR(VLOOKUP(G81,Datenblätter!$B$3:$C$130,2,FALSE)," ") -> 1 | G81: Gerüste und Baustelleneinrichtung | H81: ='Zustandserfassung Bestand'!D64 -> Ende Lebensdauer | I81: =IFERROR(IF(L81=Q81," ", "übersteuert")," ") ->  | J81: =IFERROR(INDEX('Beschrieb Zustand'!$B$2:$G$130,MATCH('Zustandserfassung '!G81,'Beschrieb Zustand'!$B$2:$B$130,0),MATCH('Zustandserfassung '!Q81,'Beschrieb Zustand'!$B$2:$G$2,0))," ") -> Die Diagnosecodes c und d dominieren. Fassade und Dach in schlechtem Zustand, grössere Abnutzung in allen Haustechniksystemen. | K81: =IFERROR(INDEX('Beschrieb Zustand'!$H$2:$L$130,MATCH('Zustandserfassung '!G81,'Beschrieb Zustand'!$H$2:$H$130,0),MATCH('Zustandserfassung '!Q81,'Beschrieb Zustand'!$H$2:$L$2,0))," ") -> Massnahmen erfordern eine intensive Baustelleneinrichtung und ein Gerüst. (Dauer > 5 Monate) | L81: d | M81: =IF(AND(OR(F81=1,F81=2),$L$25="c"),"c"," ")&IF(AND(OR(F81=1,F81=2),$L$25="d"),"d"," ") -> d | N81: 4 | P81: 4 | Q81: d | R81: =IFERROR(INDEX(Datenblätter!$B$2:$K$130,MATCH('Zustandserfassung '!G81,Datenblätter!$B$2:$B$130,0),MATCH('Zustandserfassung '!Q81,Datenblätter!$B$2:$K$2,0))," ") -> 63 | S81: =IFERROR(R81*$K$9*$K$14," ") -> 145.088496 | T81: x | U81: FF= | V81: =G9 -> 1800 | W81: = | X81: =IFERROR(ROUND(V81*S81,-2), " ") -> 261200 | Y81: 0 | Z81: 0.1 | AA81: 0.2 | AB81: 0.4 | AC81: =IFERROR(HLOOKUP(Q81,$Y$20:AB81,62,)," ") -> 0.4 | AD81: =IFERROR(X81*AC81," ") -> 104480
C83: Total Instandsetzungskosten (inkl. energetische Massnahmen) | X83: =ROUND(SUM(X23:X81),-3) -> 4474000 | AC83: =AD83/X83 -> 0.3091193563 | AD83: =ROUND(SUM(AD23:AD81),-3) -> 1383000

Sheet Investitionsstrategien
B1: Investitionsstrategien
A2: Strukturelle Massnahmen | B2: Light | G2: Medium | L2: Max | Q2: Extra
A3: Konzeptionelle Massnahmen | B3: - | C3: - | D3: Aufstockung | E3: Aufstockung | G3: - | H3: - | I3: Aufstockung | J3: Aufstockung | L3: - | M3: - | N3: Aufstockung | O3: Aufstockung | Q3: - | R3: - | S3: Aufstockung | T3: Aufstockung | V3: Ersatzneubau
A4: Energetische Massnhamen | B4: - | C4: mit | D4: - | E4: mit | G4: - | H4: mit | I4: - | J4: mit | L4: - | M4: mit | N4: - | O4: mit | Q4: - | R4: mit | S4: - | T4: mit
A5: Anteil der wertvermehrenden Investitionen [in % der strukturellen Massnahmen] | B5: 0.5 | C5: 0.6 | D5: 0.5 | E5: 0.6 | G5: 0.5 | H5: 0.6 | I5: 0.5 | J5: 0.6 | L5: 0.5 | M5: 0.6 | N5: 0.5 | O5: 0.6 | Q5: 0.7 | R5: 0.7 | S5: 0.7 | T5: 0.7 | V5: -
A6: Amortisationsdauer Durchschnittliche Amortisationsdauer der wertvermehrenden Investitionen [Jahre] | B6: 25 | C6: 25 | D6: 25 | E6: 25 | G6: 25 | H6: 25 | I6: 25 | J6: 25 | L6: 25 | M6: 25 | N6: 25 | O6: 25 | Q6: 25 | R6: 25 | S6: 25 | T6: 25 | V6: -
A7: Umsetzung der Massnahmen im bewohnten Zustand möglich? [Ja/Nein] | B7: Ja | C7: Ja | D7: Ja | E7: Ja | G7: Ja | H7: Ja | I7: Ja | J7: Ja | L7: Nein | M7: Nein | N7: Nein | O7: Nein | Q7: Nein | R7: Nein | S7: Nein | T7: Nein | V7: Nein
A8: Dauer der Massnahmen [Jahre] | B8: 1 | C8: 1 | D8: 1 | E8: 1 | G8: 1 | H8: 1 | I8: 1 | J8: 1 | L8: 1 | M8: 1 | N8: 1 | O8: 1 | Q8: 1 | R8: 1 | S8: 2 | T8: 2 | V8: 2
A9: Leerstand Während den Massnahmen [in % der Bruttomieterträge] | B9: 0.1 | C9: 0.1 | D9: 0.2 | E9: 0.2 | G9: 0.2 | H9: 0.2 | I9: 0.3 | J9: 0.3 | L9: 1 | M9: 1 | N9: 1 | O9: 1 | Q9: 1 | R9: 1 | S9: 1 | T9: 1 | V9: 1
A10: Mietzinsreduktion Während den Massnahmen [in % der Bruttomieterträge] | B10: 0.1 | C10: 0.1 | D10: 0.1 | E10: 0.1 | G10: 0.1 | H10: 0.1 | I10: 0.1 | J10: 0.1 | L10: 1 | M10: 1 | N10: 1 | O10: 1 | Q10: 1 | R10: 1 | S10: 1 | T10: 1 | V10: 1
A11: Im ersten Jahr nach den Massnahmen [in % der Bruttomieterträge] | B11: 0.05 | C11: 0.05 | D11: 0.05 | E11: 0.05 | G11: 0.05 | H11: 0.05 | I11: 0.05 | J11: 0.05 | L11: 0.05 | M11: 0.05 | N11: 0.05 | O11: 0.05 | Q11: 0.05 | R11: 0.05 | S11: 0.05 | T11: 0.05 | V11: 0.05
A12: Bruttomieterträge
A13: Miete nach Investition Bei Umsetzung unter Beibehaltung der bestehenden Mietverhältnisse [CHF/a] | B13: =IFERROR(IF(B7="Ja",IF('Bruttomietertrag - Light'!B18<'Bruttomietertrag - Light'!B5,'Bruttomietertrag - Light'!B18,'Bruttomietertrag - Light'!B5),"-"),"-") -> 578999.46 | C13: =IFERROR(IF(C7="Ja",IF('Bruttomietertrag - Light'!B48<'Bruttomietertrag - Light'!B35,'Bruttomietertrag - Light'!B48,'Bruttomietertrag - Light'!B35),"-"),"-") -> 612354.21 | D13: =IFERROR(IF(D7="Ja",IF('Bruttomietertrag - Light'!E78<'Bruttomietertrag - Light'!E65,'Bruttomietertrag - Light'!E78,'Bruttomietertrag - Light'!E65),"-"),"-") -> 973444.7933 | E13: =IFERROR(IF(E7="Ja",IF('Bruttomietertrag - Light'!E107<'Bruttomietertrag - Light'!E94,'Bruttomietertrag - Light'!E107,'Bruttomietertrag - Light'!E94),"-"),"-") -> 1006799.543 | G13: =IFERROR(IF(G7="Ja",IF('Bruttomietertrag - Medium'!B18<'Bruttomietertrag - Medium'!B5,'Bruttomietertrag - Medium'!B18,'Bruttomietertrag - Medium'!B5),"-"),"-") -> 616268.835 | H13: =IFERROR(IF(H7="Ja",IF('Bruttomietertrag - Medium'!B48<'Bruttomietertrag - Medium'!B35,'Bruttomietertrag - Medium'!B48,'Bruttomietertrag - Medium'!B35),"-"),"-") -> 657077.46 | I13: =IFERROR(IF(I7="Ja",IF('Bruttomietertrag - Medium'!E78<'Bruttomietertrag - Medium'!E65,'Bruttomietertrag - Medium'!E78,'Bruttomietertrag - Medium'!E65),"-"),"-") -> 1010714.168 | J13: =IFERROR(IF(J7="Ja",IF('Bruttomietertrag - Medium'!E107<'Bruttomietertrag - Medium'!E94,'Bruttomietertrag - Medium'!E107,'Bruttomietertrag - Medium'!E94),"-"),"-") -> 1051522.793 | L13: =IFERROR(IF(L7="Ja",IF('Bruttomietertrag - Max'!B18<'Bruttomietertrag - Max'!B5,'Bruttomietertrag - Max'!B18,'Bruttomietertrag - Max'!B5),"-"),"-") -> - | M13: =IFERROR(IF(M7="Ja",IF('Bruttomietertrag - Max'!B48<'Bruttomietertrag - Max'!B35,'Bruttomietertrag - Max'!B48,'Bruttomietertrag - Max'!B35),"-"),"-") -> - | N13: =IFERROR(IF(N7="Ja",IF('Bruttomietertrag - Max'!E78<'Bruttomietertrag - Max'!E65,'Bruttomietertrag - Max'!E78,'Bruttomietertrag - Max'!E65),"-"),"-") -> - | O13: =IFERROR(IF(O7="Ja",IF('Bruttomietertrag - Max'!E107<'Bruttomietertrag - Max'!E94,'Bruttomietertrag - Max'!E107,'Bruttomietertrag - Max'!E94),"-"),"-") -> - | Q13: =IFERROR(IF(Q7="Ja",IF('Bruttomietertrag - Extra'!B18<'Bruttomietertrag - Extra'!B5,'Bruttomietertrag - Extra'!B18,'Bruttomietertrag - Extra'!B5),"-"),"-") -> - | R13: =IFERROR(IF(R7="Ja",IF('Bruttomietertrag - Extra'!B48<'Bruttomietertrag - Extra'!B35,'Bruttomietertrag - Extra'!B48,'Bruttomietertrag - Extra'!B35),"-"),"-") -> - | S13: =IFERROR(IF(S7="Ja",IF('Bruttomietertrag - Extra'!E78<'Bruttomietertrag - Extra'!E65,'Bruttomietertrag - Extra'!E78,'Bruttomietertrag - Extra'!E65),"-"),"-") -> - | T13: =IFERROR(IF(T7="Ja",IF('Bruttomietertrag - Extra'!E107<'Bruttomietertrag - Extra'!E94,'Bruttomietertrag - Extra'!E107,'Bruttomietertrag - Extra'!E94),"-"),"-") -> - | V13: -
A14: Marktmiete [CHF/a] | B14: =Mieterspiegel!$W$18 -> 723600 | C14: =Mieterspiegel!$W$18 -> 723600 | D14: =Mieterspiegel!$AV$18 -> 1118045.333 | E14: =Mieterspiegel!$AV$18 -> 1118045.333 | G14: =Mieterspiegel!$W$18 -> 723600 | H14: =Mieterspiegel!$W$18 -> 723600 | I14: =Mieterspiegel!$AV$18 -> 1118045.333 | J14: =Mieterspiegel!$AV$18 -> 1118045.333 | L14: =Mieterspiegel!$W$18 -> 723600 | M14: =Mieterspiegel!$W$18 -> 723600 | N14: =Mieterspiegel!$AV$18 -> 1118045.333 | O14: =Mieterspiegel!$AV$18 -> 1118045.333 | Q14: =Mieterspiegel!$AE$18 -> 774696 | R14: =Mieterspiegel!$AE$18 -> 774696 | S14: =SUM(Mieterspiegel!$AE$18,Mieterspiegel!$AV$11) -> 1169141.333 | T14: =SUM(Mieterspiegel!$AE$18,Mieterspiegel!$AV$11) -> 1169141.333 | V14: =Mieterspiegel!AM18 -> 1330398.72
A15: Kosten
A16: Investitionskosten [CHF] | B16: =ROUND('Strukturelle Massnahmen'!T13,-4) -> 2440000 | C16: =B16+'Energetische Massnahmen'!B15 -> 3070000 | D16: =ROUND('Strukturelle Massnahmen'!T13+Aufstockung!J68-A40,-4) -> 6960000 | E16: =ROUND(D16+'Energetische Massnahmen'!B16,-4) -> 7490000 | G16: ='Strukturelle Massnahmen'!V13 -> 3830000 | H16: =ROUND(G16+'Energetische Massnahmen'!C15,-4) -> 4460000 | I16: =ROUND('Strukturelle Massnahmen'!V13+Aufstockung!J68-A44,-4) -> 8350000 | J16: =ROUND(I16+'Energetische Massnahmen'!C16,-4) -> 8880000 | L16: =ROUND('Strukturelle Massnahmen'!X13,-4) -> 4180000 | M16: =ROUND(L16+'Energetische Massnahmen'!D15,-4) -> 4810000 | N16: =ROUND('Strukturelle Massnahmen'!X13+Aufstockung!J68-A49,-4) -> 8700000 | O16: =ROUND(N16+'Energetische Massnahmen'!D16,-4) -> 9230000 | Q16: =ROUND('Strukturelle Massnahmen'!Z13,-4) -> 6600000 | R16: =ROUND(Q16+'Energetische Massnahmen'!E15,-4) -> 7230000 | S16: =ROUND('Strukturelle Massnahmen'!Z13+Aufstockung!J68-A53,-4) -> 11120000 | T16: =ROUND(S16+'Energetische Massnahmen'!E16,-4) -> 11650000 | V16: =ROUND(Ersatzneubau!J70,-4) -> 10100000
A17: [CHF/m2 HNF] | B17: =B16/B26 -> 1295.116773 | C17: =C16/C26 -> 1629.511677 | D17: =D16/D26 -> 2368.421053 | E17: =E16/E26 -> 2548.774955 | G17: =G16/G26 -> 2032.908705 | H17: =H16/H26 -> 2367.303609 | I17: =I16/I26 -> 2841.424682 | J17: =J16/J26 -> 3021.778584 | L17: =L16/L26 -> 2218.683652 | M17: =M16/M26 -> 2553.078556 | N17: =N16/N26 -> 2960.526316 | O17: =O16/O26 -> 3140.880218 | Q17: =Q16/Q26 -> 3503.184713 | R17: =R16/R26 -> 3837.579618 | S17: =S16/S26 -> 3784.029038 | T17: =T16/T26 -> 3964.38294 | V17: =V16/V26 -> 3420.173379
A18: Instandhaltungskosten
A19: [CHF/a] | B19: ='LzK - Light'!$AZ$72 -> 47000 | C19: ='LzK - Light'!$AZ$72 -> 47000 | D19: =SUM('LzK - Light'!$AZ$72,'LzK - Aufstockung'!$AU$72) -> 71000 | E19: =SUM('LzK - Light'!$AZ$72,'LzK - Aufstockung'!$AU$72) -> 71000 | G19: ='LzK - Medium'!$AZ$72 -> 47000 | H19: ='LzK - Medium'!$AZ$72 -> 47000 | I19: =SUM('LzK - Medium'!$AZ$72,'LzK - Aufstockung'!$AU$72) -> 71000 | J19: =SUM('LzK - Medium'!$AZ$72,'LzK - Aufstockung'!$AU$72) -> 71000 | L19: ='LzK - Max'!$AZ$72 -> 47000 | M19: ='LzK - Max'!$AZ$72 -> 47000 | N19: =SUM('LzK - Max'!$AZ$72,'LzK - Aufstockung'!$AU$72) -> 71000 | O19: =SUM('LzK - Max'!$AZ$72,'LzK - Aufstockung'!$AU$72) -> 71000 | Q19: ='LzK - Extra'!$AZ$72 -> 47000 | R19: ='LzK - Extra'!$AZ$72 -> 47000 | S19: =SUM('LzK - Extra'!$AZ$72,'LzK - Aufstockung'!$AU$72) -> 71000 | T19: =SUM('LzK - Extra'!$AZ$72,'LzK - Aufstockung'!$AU$72) -> 71000 | V19: ='LzK - Ersatzneubau'!AU72 -> 40000
A20: [CHF/m2a] | B20: =B19/B26 -> 24.94692144 | C20: =C19/C26 -> 24.94692144 | D20: =D19/D26 -> 24.16061706 | E20: =E19/E26 -> 24.16061706 | G20: =G19/G26 -> 24.94692144 | H20: =H19/H26 -> 24.94692144 | I20: =I19/I26 -> 24.16061706 | J20: =J19/J26 -> 24.16061706 | L20: =L19/L26 -> 24.94692144 | M20: =M19/M26 -> 24.94692144 | N20: =N19/N26 -> 24.16061706 | O20: =O19/O26 -> 24.16061706 | Q20: =Q19/Q26 -> 24.94692144 | R20: =R19/R26 -> 24.94692144 | S20: =S19/S26 -> 24.16061706 | T20: =T19/T26 -> 24.16061706 | V20: =V19/V26 -> 13.54524111
A21: Instandsetzungskosten
A22: [Jahr 11+ CHF/a] | B22: =('LzK - Light'!$AY$65) -> 61300 | C22: =('LzK - Light'!$AY$65) -> 61300 | D22: =SUM('LzK - Light'!$AY$65,'LzK - Aufstockung'!$AT$65) -> 91300 | E22: =SUM('LzK - Light'!$AY$65,'LzK - Aufstockung'!$AT$65) -> 91300 | G22: ='LzK - Medium'!$AY$65 -> 53000 | H22: ='LzK - Medium'!$AY$65 -> 53000 | I22: =SUM('LzK - Medium'!$AY$65,'LzK - Aufstockung'!$AT$65) -> 83000 | J22: =SUM('LzK - Medium'!$AY$65,'LzK - Aufstockung'!$AT$65) -> 83000 | L22: ='LzK - Max'!$AY$65 -> 48000 | M22: ='LzK - Max'!$AY$65 -> 48000 | N22: =SUM('LzK - Max'!$AY$65,'LzK - Aufstockung'!$AT$65) -> 78000 | O22: =SUM('LzK - Max'!$AY$65,'LzK - Aufstockung'!$AT$65) -> 78000 | Q22: ='LzK - Extra'!$AY$65 -> 45000 | R22: ='LzK - Extra'!$AY$65 -> 45000 | S22: =SUM('LzK - Extra'!$AY$65,'LzK - Aufstockung'!$AT$65) -> 75000 | T22: =SUM('LzK - Extra'!$AY$65,'LzK - Aufstockung'!$AT$65) -> 75000 | V22: ='LzK - Ersatzneubau'!AT65 -> 47000
A23: [Jahr 11+ CHF/m2a] | B23: =B22/B26 -> 32.53715499 | C23: =C22/C26 -> 32.53715499 | D23: =D22/D26 -> 31.0685118 | E23: =E22/E26 -> 31.0685118 | G23: =G22/G26 -> 28.13163482 | H23: =H22/H26 -> 28.13163482 | I23: =I22/I26 -> 28.24410163 | J23: =J22/J26 -> 28.24410163 | L23: =L22/L26 -> 25.47770701 | M23: =M22/M26 -> 25.47770701 | N23: =N22/N26 -> 26.54264973 | O23: =O22/O26 -> 26.54264973 | Q23: =Q22/Q26 -> 23.88535032 | R23: =R22/R26 -> 23.88535032 | S23: =S22/S26 -> 25.52177858 | T23: =T22/T26 -> 25.52177858 | V23: =V22/V26 -> 15.9156583
A25: Hauptnutzfläche
A26: [m2] | B26: ='LzK - Light'!$H$87 -> 1884 | C26: ='LzK - Light'!$H$87 -> 1884 | D26: =SUM('LzK - Light'!$H$87,'LzK - Aufstockung'!$H$87) -> 2938.666667 | E26: =SUM('LzK - Light'!$H$87,'LzK - Aufstockung'!$H$87) -> 2938.666667 | G26: ='LzK - Light'!$H$87 -> 1884 | H26: ='LzK - Light'!$H$87 -> 1884 | I26: =SUM('LzK - Light'!$H$87,'LzK - Aufstockung'!$H$87) -> 2938.666667 | J26: =SUM('LzK - Light'!$H$87,'LzK - Aufstockung'!$H$87) -> 2938.666667 | L26: ='LzK - Light'!$H$87 -> 1884 | M26: ='LzK - Light'!$H$87 -> 1884 | N26: =SUM('LzK - Light'!$H$87,'LzK - Aufstockung'!$H$87) -> 2938.666667 | O26: =SUM('LzK - Light'!$H$87,'LzK - Aufstockung'!$H$87) -> 2938.666667 | Q26: ='LzK - Light'!$H$87 -> 1884 | R26: ='LzK - Light'!$H$87 -> 1884 | S26: =SUM('LzK - Light'!$H$87,'LzK - Aufstockung'!$H$87) -> 2938.666667 | T26: =SUM('LzK - Light'!$H$87,'LzK - Aufstockung'!$H$87) -> 2938.666667 | V26: ='LzK - Ersatzneubau'!H87 -> 2953.066667
A27: Marktwerte
A28: Unter Beibehaltung der bestehenden Mietverhältnisse [CHF] | B28: ='DCF - Light'!B67 -> 20440000 | C28: ='DCF - Light'!B178 -> 20780000 | D28: ='DCF - Light'!B288 -> 29300000 | E28: ='DCF - Light'!B399 -> 29730000 | G28: ='DCF - Medium'!B67 -> 20460000 | H28: ='DCF - Medium'!B178 -> 20770000 | I28: ='DCF - Medium'!B288 -> 29320000 | J28: ='DCF - Medium'!B399 -> 29720000 | L28: ='DCF - Max'!B67 -> 0 | M28: ='DCF - Max'!B178 -> 0 | N28: ='DCF - Max'!B288 -> 0 | O28: ='DCF - Max'!B399 -> 0 | Q28: ='DCF - Extra'!B67 -> 0 | R28: ='DCF - Extra'!B178 -> 0 | S28: ='DCF - Extra'!B288 -> 0 | T28: ='DCF - Extra'!B399 -> 0 | V28: ='DCF - Ersatzneubau'!B67 -> 0
A29: Sanierungskündigung [CHF] | B29: ='DCF - Light'!B107 -> 22470000 | C29: ='DCF - Light'!B218 -> 21900000 | D29: ='DCF - Light'!B328 -> 31390000 | E29: ='DCF - Light'!B439 -> 30960000 | G29: ='DCF - Light'!B107 -> 22470000 | H29: ='DCF - Light'!B218 -> 21900000 | I29: ='DCF - Light'!B328 -> 31390000 | J29: ='DCF - Light'!B439 -> 30960000 | L29: ='DCF - Max'!B107 -> 21400000 | M29: ='DCF - Max'!B218 -> 20830000 | N29: ='DCF - Max'!B328 -> 30320000 | O29: ='DCF - Max'!B439 -> 29840000 | Q29: ='DCF - Extra'!B107 -> 21270000 | R29: ='DCF - Extra'!B218 -> 20710000 | S29: ='DCF - Extra'!B328 -> 29260000 | T29: ='DCF - Extra'!B439 -> 28780000 | V29: ='DCF - Ersatzneubau'!B107 -> 38370000
A37: davon Massnahmen am Dach
A40: ='Strukturelle Massnahmen'!E27 -> 511100
A41: =SUM('Strukturelle Massnahmen'!E27,('Energetische Massnahmen'!B15-'Energetische Massnahmen'!B16)) -> 611100
A44: ='Strukturelle Massnahmen'!G27 -> 511100
A46: =SUM('Strukturelle Massnahmen'!G27,('Energetische Massnahmen'!B15-'Energetische Massnahmen'!B16)) -> 611100
A49: ='Strukturelle Massnahmen'!J27 -> 511100
A50: =SUM('Strukturelle Massnahmen'!J27,('Energetische Massnahmen'!D15-'Energetische Massnahmen'!D16)) -> 611100
A53: =SUM('Strukturelle Massnahmen'!K27:M27) -> 511100
A54: =SUM(SUM('Strukturelle Massnahmen'!K27:M27),('Energetische Massnahmen'!E15-'Energetische Massnahmen'!E16)) -> 611100

Sheet Mehrwertabgabe
A1: Berechnung Mehrwertausgleich | C1: Kommentar:
A3: Parzellengrösse in m2 | B3: =Liegenschaftsinformationen!E10 -> 2712 | C3: Grundstücksfläche GR
A4: Ausnützungsziffer vor Aufzonung | B4: ='Baurechtliche Rahmenbeding. ZH'!B4 -> 1.05 | C4: Ausnützungsziffer gemäss Bauordnung
A5: Ausnützungsziffer nach Aufzonung | B5: 1.05
A6: Zunahme Ausnützung in % | B6: =B5/B4-1 -> 0
A7: Innerer Landwert vor Aufzonung
A8: > CHF pro m2 Grundstückfläche | B8: 10000
A9: > CHF absolut | B9: =B3*B8 -> 27120000
A10: Innerer Landwert nach Aufzonung
A11: > CHF pro m2 Grundstückfläche | B11: =B8*(1+B6) -> 10000
A12: > CHF absolut | B12: =B11*B3 -> 27120000
A13: Mehrwert infolge Planungsmassnahme | B13: =B12-B9 -> 0
A14: Kürzung Mehrwert (§ 19 MAG) | B14: 100000
A15: Mehrwert nach Kürzung (§ 19 MAG) | B15: =B13-B14 -> -100000
A16: Abgabesatz | B16: 0.4 | C16: Gemeinde spezifisch.
A17: Mehrwertausgleich in CHF berechnet | B17: =B15*B16 -> -40000
A18: Mehrwertausgleich in CHF für Finanzierung | B18: =IF(B17<0,0,B17) -> 0
A19: Quelle: Siegl (2023)

Sheet Investitionsstrategie Übersicht

Sheet Investitionsstrategien Heatmap
A1: Heatmap | N1: Light | R1: Medium | V1: Max | Z1: Extra | AD1: Ersatz- neubau
N2: 1 | O2: 2 | P2: 3 | Q2: 4 | R2: 1 | S2: 2 | T2: 3 | U2: 4 | V2: 1 | W2: 2 | X2: 3 | Y2: 4 | Z2: 1 | AA2: 2 | AB2: 3 | AC2: 4 | AD2: 5
A3: Net Present Value - NPV [TCHF] bei Sanierungskündigung | N3: =Investitionsstrategien!$B$29/1000 -> 22470 | O3: =Investitionsstrategien!$C$29/1000 -> 21900 | P3: =Investitionsstrategien!$D$29/1000 -> 31390 | Q3: =Investitionsstrategien!$E$29/1000 -> 30960 | R3: =Investitionsstrategien!$G$29/1000 -> 22470 | S3: =Investitionsstrategien!$H$29/1000 -> 21900 | T3: =Investitionsstrategien!$I$29/1000 -> 31390 | U3: =Investitionsstrategien!$J$29/1000 -> 30960 | V3: =Investitionsstrategien!$L$29/1000 -> 21400 | W3: =Investitionsstrategien!$M$29/1000 -> 20830 | X3: =Investitionsstrategien!$N$29/1000 -> 30320 | Y3: =Investitionsstrategien!$O$29/1000 -> 29840 | Z3: =Investitionsstrategien!$Q$29/1000 -> 21270 | AA3: =Investitionsstrategien!$R$29/1000 -> 20710 | AB3: =Investitionsstrategien!$S$29/1000 -> 29260 | AC3: =Investitionsstrategien!$T$29/1000 -> 28780 | AD3: =Investitionsstrategien!$V$29/1000 -> 38370
A4: Marktwertsteigerung [%] | N4: =N3/$N$3-1 -> 0 | O4: =O3/$N$3-1 -> -0.02536715621 | P4: 0.3969737428 | Q4: 0.3778371162 | R4: 0 | S4: -0.02536715621 | T4: 0.3969737428 | U4: 0.3778371162 | V4: -0.04761904762 | W4: -0.07298620383 | X4: 0.3493546951 | Y4: 0.3279928794 | Z4: -0.05340453939 | AA4: -0.07832665777 | AB4: 0.3021806854 | AC4: 0.2808188696 | AD4: 0.7076101469
A5: Bruttoanfangsrendite - ROI [%] | N5: =(Investitionsstrategien!$B$14-'Mieterspiegel Bestand'!$K$54)/Investitionsstrategien!$B$16 -> 0.1062688525 | O5: =(Investitionsstrategien!$C$14-'Mieterspiegel Bestand'!$K$54)/Investitionsstrategien!$C$16 -> 0.08446123779 | P5: =(Investitionsstrategien!$D$14-'Mieterspiegel Bestand'!$K$54)/Investitionsstrategien!$D$16 -> 0.09392835249 | Q5: =(Investitionsstrategien!$E$14-'Mieterspiegel Bestand'!$K$54)/Investitionsstrategien!$E$16 -> 0.08728188696 | R5: =(Investitionsstrategien!$G$14-'Mieterspiegel Bestand'!$K$54)/Investitionsstrategien!$G$16 -> 0.06770130548 | S5: =(Investitionsstrategien!$H$14-'Mieterspiegel Bestand'!$K$54)/Investitionsstrategien!$H$16 -> 0.05813811659 | T5: =(Investitionsstrategien!$I$14-'Mieterspiegel Bestand'!$K$54)/Investitionsstrategien!$I$16 -> 0.07829237525 | U5: =(Investitionsstrategien!$J$14-'Mieterspiegel Bestand'!$K$54)/Investitionsstrategien!$J$16 -> 0.07361951952 | V5: =(Investitionsstrategien!$L$14-'Mieterspiegel Bestand'!$K$54)/Investitionsstrategien!$L$16 -> 0.06203253589 | W5: =(Investitionsstrategien!$M$14-'Mieterspiegel Bestand'!$K$54)/Investitionsstrategien!$M$16 -> 0.05390769231 | X5: =(Investitionsstrategien!$N$14-'Mieterspiegel Bestand'!$K$54)/Investitionsstrategien!$N$16 -> 0.07514268199 | Y5: =(Investitionsstrategien!$O$14-'Mieterspiegel Bestand'!$K$54)/Investitionsstrategien!$O$16 -> 0.0708278801 | Z5: =(Investitionsstrategien!$Q$14-'Mieterspiegel Bestand'!$K$54)/Investitionsstrategien!$Q$16 -> 0.04702909091 | AA5: =(Investitionsstrategien!$R$14-'Mieterspiegel Bestand'!$K$54)/Investitionsstrategien!$R$16 -> 0.04293112033 | AB5: =(Investitionsstrategien!$S$14-'Mieterspiegel Bestand'!$K$54)/Investitionsstrategien!$S$16 -> 0.06338465228 | AC5: =(Investitionsstrategien!$T$14-'Mieterspiegel Bestand'!$K$54)/Investitionsstrategien!$T$16 -> 0.06050105866 | AD5: =(Investitionsstrategien!$V$14-'Mieterspiegel Bestand'!$K$54)/Investitionsstrategien!$V$16 -> 0.08575195248
A6: Interner Zinssatz - IRR [%] konzeptionell | N6: =RATE(125, (Investitionsstrategien!B14-'DCF - Light'!$B$6),-Investitionsstrategien!B16) -> 0.0941692662 | O6: =RATE(125, (Investitionsstrategien!C14-'DCF - Light'!$B$6),-Investitionsstrategien!C16) -> 0.07483655856 | P6: =RATE(125, (Investitionsstrategien!D14-'DCF - Light'!$B$6),-Investitionsstrategien!D16) -> 0.08968502286 | Q6: =RATE(125, (Investitionsstrategien!E14-'DCF - Light'!$B$6),-Investitionsstrategien!E16) -> 0.08333686998 | R6: =RATE(125, (Investitionsstrategien!G14-'DCF - Light'!$B$6),-Investitionsstrategien!G16) -> 0.05995230363 | S6: =RATE(125, (Investitionsstrategien!H14-'DCF - Light'!$B$6),-Investitionsstrategien!H16) -> 0.05142159064 | T6: =RATE(125, (Investitionsstrategien!I14-'DCF - Light'!$B$6),-Investitionsstrategien!I16) -> 0.07474791896 | U6: =RATE(125, (Investitionsstrategien!J14-'DCF - Light'!$B$6),-Investitionsstrategien!J16) -> 0.0702807504 | V6: =RATE(125, (Investitionsstrategien!G14-'DCF - Light'!$B$6),-Investitionsstrategien!G16) -> 0.05995230363 | W6: =RATE(125, (Investitionsstrategien!H14-'DCF - Light'!$B$6),-Investitionsstrategien!H16) -> 0.05142159064 | X6: =RATE(125, (Investitionsstrategien!I14-'DCF - Light'!$B$6),-Investitionsstrategien!I16) -> 0.07474791896 | Y6: =RATE(125, (Investitionsstrategien!J14-'DCF - Light'!$B$6),-Investitionsstrategien!J16) -> 0.0702807504 | Z6: =RATE(125, (Investitionsstrategien!Q14-'DCF - Light'!$B$6),-Investitionsstrategien!Q16) -> 0.04231704045 | AA6: =RATE(125, (Investitionsstrategien!R14-'DCF - Light'!$B$6),-Investitionsstrategien!R16) -> 0.03850265614 | AB6: =RATE(125, (Investitionsstrategien!S14-'DCF - Light'!$B$6),-Investitionsstrategien!S16) -> 0.06069153764 | AC6: =RATE(125, (Investitionsstrategien!T14-'DCF - Light'!$B$6),-Investitionsstrategien!T16) -> 0.05791624682 | AD6: =RATE(125, (Investitionsstrategien!V14-'DCF - Light'!$B$6),-Investitionsstrategien!V16) -> 0.08282521387
A7: Cap Rate [%] | N7: =(Investitionsstrategien!$B$14*0.94)/Investitionsstrategien!$B$29 -> 0.03027076101 | O7: =(Investitionsstrategien!$C$14*0.94)/Investitionsstrategien!$C$29 -> 0.03105863014 | P7: =(Investitionsstrategien!$D$14*0.94)/Investitionsstrategien!$D$29 -> 0.0334808096 | Q7: =(Investitionsstrategien!$E$14*0.94)/Investitionsstrategien!$E$29 -> 0.03394582084 | R7: =(Investitionsstrategien!$G$14*0.94)/Investitionsstrategien!$G$29 -> 0.03027076101 | S7: =(Investitionsstrategien!$H$14*0.94)/Investitionsstrategien!$H$29 -> 0.03105863014 | T7: =(Investitionsstrategien!$I$14*0.94)/Investitionsstrategien!$I$29 -> 0.0334808096 | U7: =(Investitionsstrategien!$J$14*0.94)/Investitionsstrategien!$J$29 -> 0.03394582084 | V7: =(Investitionsstrategien!$L$14*0.94)/Investitionsstrategien!$L$29 -> 0.03178429907 | W7: =(Investitionsstrategien!$M$14*0.94)/Investitionsstrategien!$M$29 -> 0.03265405665 | X7: =(Investitionsstrategien!$N$14*0.94)/Investitionsstrategien!$N$29 -> 0.03466235532 | Y7: =(Investitionsstrategien!$O$14*0.94)/Investitionsstrategien!$O$29 -> 0.03521992672 | Z7: =(Investitionsstrategien!$Q$14*0.94)/Investitionsstrategien!$Q$29 -> 0.03423668265 | AA7: =(Investitionsstrategien!$R$14*0.94)/Investitionsstrategien!$R$29 -> 0.0351624452 | AB7: =(Investitionsstrategien!$S$14*0.94)/Investitionsstrategien!$S$29 -> 0.03755956437 | AC7: =(Investitionsstrategien!$T$14*0.94)/Investitionsstrategien!$T$29 -> 0.03818599212 | AD7: =(Investitionsstrategien!$V$14*0.94)/Investitionsstrategien!$V$29 -> 0.0325925149
A8: Sanierungsaufwand [TCHF] | N8: =Investitionsstrategien!$B$16/1000 -> 2440 | O8: =Investitionsstrategien!$C$16/1000 -> 3070 | P8: =Investitionsstrategien!$D$16/1000 -> 6960 | Q8: =Investitionsstrategien!$E$16/1000 -> 7490 | R8: =Investitionsstrategien!$G$16/1000 -> 3830 | S8: =Investitionsstrategien!$H$16/1000 -> 4460 | T8: =Investitionsstrategien!$I$16/1000 -> 8350 | U8: =Investitionsstrategien!$J$16/1000 -> 8880 | V8: =Investitionsstrategien!$L$16/1000 -> 4180 | W8: =Investitionsstrategien!$M$16/1000 -> 4810 | X8: =Investitionsstrategien!$N$16/1000 -> 8700 | Y8: =Investitionsstrategien!$O$16/1000 -> 9230 | Z8: =Investitionsstrategien!$Q$16/1000 -> 6600 | AA8: =Investitionsstrategien!$R$16/1000 -> 7230 | AB8: =Investitionsstrategien!$S$16/1000 -> 11120 | AC8: =Investitionsstrategien!$T$16/1000 -> 11650 | AD8: =Investitionsstrategien!$V$16/1000 -> 10100
A9: Ertragssteigerung [%] brutto | N9: =(Investitionsstrategien!$B$14-'Mieterspiegel Bestand'!$K$54)/'Mieterspiegel Bestand'!$K$54 -> 0.5584616975 | O9: =(Investitionsstrategien!$C$14-'Mieterspiegel Bestand'!$K$54)/'Mieterspiegel Bestand'!$K$54 -> 0.5584616975 | P9: =(Investitionsstrategien!$D$14-'Mieterspiegel Bestand'!$K$54)/'Mieterspiegel Bestand'!$K$54 -> 1.408002803 | Q9: =(Investitionsstrategien!$E$14-'Mieterspiegel Bestand'!$K$54)/'Mieterspiegel Bestand'!$K$54 -> 1.408002803 | R9: =(Investitionsstrategien!$G$14-'Mieterspiegel Bestand'!$K$54)/'Mieterspiegel Bestand'!$K$54 -> 0.5584616975 | S9: =(Investitionsstrategien!$H$14-'Mieterspiegel Bestand'!$K$54)/'Mieterspiegel Bestand'!$K$54 -> 0.5584616975 | T9: =(Investitionsstrategien!$I$14-'Mieterspiegel Bestand'!$K$54)/'Mieterspiegel Bestand'!$K$54 -> 1.408002803 | U9: =(Investitionsstrategien!$J$14-'Mieterspiegel Bestand'!$K$54)/'Mieterspiegel Bestand'!$K$54 -> 1.408002803 | V9: =(Investitionsstrategien!$L$14-'Mieterspiegel Bestand'!$K$54)/'Mieterspiegel Bestand'!$K$54 -> 0.5584616975 | W9: =(Investitionsstrategien!$M$14-'Mieterspiegel Bestand'!$K$54)/'Mieterspiegel Bestand'!$K$54 -> 0.5584616975 | X9: =(Investitionsstrategien!$N$14-'Mieterspiegel Bestand'!$K$54)/'Mieterspiegel Bestand'!$K$54 -> 1.408002803 | Y9: =(Investitionsstrategien!$O$14-'Mieterspiegel Bestand'!$K$54)/'Mieterspiegel Bestand'!$K$54 -> 1.408002803 | Z9: =(Investitionsstrategien!$Q$14-'Mieterspiegel Bestand'!$K$54)/'Mieterspiegel Bestand'!$K$54 -> 0.6685102864 | AA9: =(Investitionsstrategien!$R$14-'Mieterspiegel Bestand'!$K$54)/'Mieterspiegel Bestand'!$K$54 -> 0.6685102864 | AB9: =(Investitionsstrategien!$S$14-'Mieterspiegel Bestand'!$K$54)/'Mieterspiegel Bestand'!$K$54 -> 1.518051392 | AC9: =(Investitionsstrategien!$T$14-'Mieterspiegel Bestand'!$K$54)/'Mieterspiegel Bestand'!$K$54 -> 1.518051392 | AD9: =(Investitionsstrategien!$V$14-'Mieterspiegel Bestand'!$K$54)/'Mieterspiegel Bestand'!$K$54 -> 1.865361315
A10: Ertragssteigerung [TCHF] brutto | N10: =(Investitionsstrategien!$B$14-'Mieterspiegel Bestand'!$K$54) -> 259296 | O10: =(Investitionsstrategien!$C$14-'Mieterspiegel Bestand'!$K$54) -> 259296 | P10: =(Investitionsstrategien!$D$14-'Mieterspiegel Bestand'!$K$54) -> 653741.3333 | Q10: =(Investitionsstrategien!$E$14-'Mieterspiegel Bestand'!$K$54) -> 653741.3333 | R10: =(Investitionsstrategien!$G$14-'Mieterspiegel Bestand'!$K$54) -> 259296 | S10: =(Investitionsstrategien!$H$14-'Mieterspiegel Bestand'!$K$54) -> 259296 | T10: =(Investitionsstrategien!$I$14-'Mieterspiegel Bestand'!$K$54) -> 653741.3333 | U10: =(Investitionsstrategien!$J$14-'Mieterspiegel Bestand'!$K$54) -> 653741.3333 | V10: =(Investitionsstrategien!$L$14-'Mieterspiegel Bestand'!$K$54) -> 259296 | W10: =(Investitionsstrategien!$M$14-'Mieterspiegel Bestand'!$K$54) -> 259296 | X10: =(Investitionsstrategien!$N$14-'Mieterspiegel Bestand'!$K$54) -> 653741.3333 | Y10: =(Investitionsstrategien!$O$14-'Mieterspiegel Bestand'!$K$54) -> 653741.3333 | Z10: =(Investitionsstrategien!$Q$14-'Mieterspiegel Bestand'!$K$54) -> 310392 | AA10: =(Investitionsstrategien!$R$14-'Mieterspiegel Bestand'!$K$54) -> 310392 | AB10: =(Investitionsstrategien!$S$14-'Mieterspiegel Bestand'!$K$54) -> 704837.3333 | AC10: =(Investitionsstrategien!$T$14-'Mieterspiegel Bestand'!$K$54) -> 704837.3333 | AD10: =(Investitionsstrategien!$V$14-'Mieterspiegel Bestand'!$K$54) -> 866094.72
A11: Amortisationsdauer [t] statische Payback-Dauer | N11: =Investitionsstrategien!$B$16/(Investitionsstrategien!$B$14-'Mieterspiegel Bestand'!$K$54) -> 9.410095027 | O11: =Investitionsstrategien!$C$16/(Investitionsstrategien!$C$14-'Mieterspiegel Bestand'!$K$54) -> 11.83975071 | P11: =Investitionsstrategien!$D$16/(Investitionsstrategien!$D$14-'Mieterspiegel Bestand'!$K$54) -> 10.64641265 | Q11: =Investitionsstrategien!$E$16/(Investitionsstrategien!$E$14-'Mieterspiegel Bestand'!$K$54) -> 11.45713085 | R11: =Investitionsstrategien!$G$16/(Investitionsstrategien!$G$14-'Mieterspiegel Bestand'!$K$54) -> 14.77076391 | S11: =Investitionsstrategien!$H$16/(Investitionsstrategien!$H$14-'Mieterspiegel Bestand'!$K$54) -> 17.2004196 | T11: =Investitionsstrategien!$I$16/(Investitionsstrategien!$I$14-'Mieterspiegel Bestand'!$K$54) -> 12.77263586 | U11: =Investitionsstrategien!$J$16/(Investitionsstrategien!$J$14-'Mieterspiegel Bestand'!$K$54) -> 13.58335407 | V11: =Investitionsstrategien!$L$16/(Investitionsstrategien!$L$14-'Mieterspiegel Bestand'!$K$54) -> 16.12057263 | W11: =Investitionsstrategien!$M$16/(Investitionsstrategien!$M$14-'Mieterspiegel Bestand'!$K$54) -> 18.55022831 | X11: =Investitionsstrategien!$N$16/(Investitionsstrategien!$N$14-'Mieterspiegel Bestand'!$K$54) -> 13.30801581 | Y11: =Investitionsstrategien!$O$16/(Investitionsstrategien!$O$14-'Mieterspiegel Bestand'!$K$54) -> 14.11873402 | Z11: =Investitionsstrategien!$Q$16/(Investitionsstrategien!$Q$14-'Mieterspiegel Bestand'!$K$54) -> 21.26343462 | AA11: =Investitionsstrategien!$R$16/(Investitionsstrategien!$R$14-'Mieterspiegel Bestand'!$K$54) -> 23.29312611 | AB11: =Investitionsstrategien!$S$16/(Investitionsstrategien!$S$14-'Mieterspiegel Bestand'!$K$54) -> 15.77668985 | AC11: =Investitionsstrategien!$T$16/(Investitionsstrategien!$T$14-'Mieterspiegel Bestand'!$K$54) -> 16.52863639 | AD11: =Investitionsstrategien!$V$16/(Investitionsstrategien!$V$14-'Mieterspiegel Bestand'!$K$54) -> 11.66154205
A12: Eingriffstiefen | N12: Nur strukturelle Massnahmen | O12: Strukturelle Massnahmen + energetische Massnahmen | P12: Strukturelle Massnahmen + Aufstockung | Q12: Strukturelle Massnahmen + Aufstockung + energetische Massnahmen | R12: Nur strukturelle Massnahmen | S12: Strukturelle Massnahmen + energetische Massnahmen | T12: Strukturelle Massnahmen + Aufstockung | U12: Strukturelle Massnahmen + Aufstockung + energetische Massnahmen | V12: Nur strukturelle Massnahmen | W12: Strukturelle Massnahmen + energetische Massnahmen | X12: Strukturelle Massnahmen + Aufstockung | Y12: Strukturelle Massnahmen + Aufstockung + energetische Massnahmen | Z12: Nur strukturelle Massnahmen | AA12: Strukturelle Massnahmen + energetische Massnahmen | AB12: Strukturelle Massnahmen + Aufstockung | AC12: Strukturelle Massnahmen + Aufstockung + energetische Massnahmen | AD12: Konzeptionelle Massnahme - Ersatzneubau
A14: Light
A15: Ende Lebensdauer
A16: Medium
A17: Ende Lebensdauer grössere Abnutzung
A18: Max
A19: Ende Lebensdauer grössere Abnutzung leichte Abnutzung
A20: Extra - Kernsanierung
A21: Alle Bauteile
A23: Für eine ausführlichere Definition der Strategien kann der Leitfaden zum Investitions- und Strategierechner "Light" (ISR), die Arbeit von Catto (2021) oder Bittel (2025) konsultiert werden.

Sheet Entscheidungsbaum (hidden)
O2: Beibehaltung Mietverhältnisse | W2: Marktwerte
W3: =Investitionsstrategien!B28 -> 20440000
M5: nur strukturelle Massnahmen
O6: Kündigung und Neuvermietung
W7: =Investitionsstrategien!B29 -> 22470000
O11: Beibehaltung Mietverhältnisse
W12: =Investitionsstrategien!C28 -> 20780000
M14: inkl. Energetische Massnahmen
O15: Kündigung und Neuvermietung
W16: =Investitionsstrategien!C29 -> 21900000
I19: Max
I20: =MAX(W3,W7,W12,W16,W21,W25,W30,W34) -> 31390000 | K20: Light | O20: Beibehaltung Mietverhältnisse
W21: =Investitionsstrategien!D28 -> 29300000
M23: inkl. Aufstockung
O24: Kündigung und Neuvermietung
W25: =Investitionsstrategien!D29 -> 31390000
O29: Beibehaltung Mietverhältnisse
W30: =Investitionsstrategien!E28 -> 29730000
M32: inkl. Aufstockung und energetische Massnahmen
O33: Kündigung und Neuvermietung
W34: =Investitionsstrategien!E29 -> 30960000
O37: Beibehaltung Mietverhältnisse
W38: =Investitionsstrategien!G28 -> 20460000
M40: nur strukturelle Massnahmen
O41: Kündigung und Neuvermietung
W42: =Investitionsstrategien!G29 -> 22470000
O45: Beibehaltung Mietverhältnisse
W46: =Investitionsstrategien!H28 -> 20770000
M48: inkl. Energetische Massnahmen
O49: Kündigung und Neuvermietung
W50: =Investitionsstrategien!H29 -> 21900000
I52: Max
I53: =MAX(W38,W42,W46,W50,W54,W58,W62,W66) -> 31390000 | K53: Medium | O53: Beibehaltung Mietverhältnisse
W54: =Investitionsstrategien!I28 -> 29320000
M56: inkl. Aufstockung
O57: Kündigung und Neuvermietung
W58: =Investitionsstrategien!I29 -> 31390000
G61: Max | O61: Beibehaltung Mietverhältnisse
G62: =MAX(I20,I53,I85,I117) -> 31390000 | I62: Sanierung im Bestand | W62: =Investitionsstrategien!J28 -> 29720000
M64: inkl. Aufstockung und energetische Massnahmen
O65: Kündigung und Neuvermietung
W66: =Investitionsstrategien!J29 -> 30960000
M72: nur strukturelle Massnahmen | O72: Kündigung und Neuvermietung | W72: =Investitionsstrategien!L29 -> 21400000
M80: inkl. Energetische Massnahmen | O80: Kündigung und Neuvermietung | W80: =Investitionsstrategien!M29 -> 20830000
I84: Max
I85: =MAX(W72,W80,W88,W96) -> 30320000 | K85: Max
M88: inkl. Aufstockung | O88: Kündigung und Neuvermietung | W88: =Investitionsstrategien!N29 -> 30320000
M96: inkl. Aufstockung und energetische Massnahmen | O96: Kündigung und Neuvermietung | W96: =Investitionsstrategien!O29 -> 29840000
M104: nur strukturelle Massnahmen | O104: Kündigung und Neuvermietung | W104: =Investitionsstrategien!Q29 -> 21270000
M112: inkl. Energetische Massnahmen | O112: Kündigung und Neuvermietung | W112: =Investitionsstrategien!R29 -> 20710000
I116: Max
I117: =MAX(W104,W112,W120,W128) -> 29260000 | K117: Extra
D120: Max | E120: Ja | M120: inkl. Aufstockung | O120: Kündigung und Neuvermietung | W120: =Investitionsstrategien!S29 -> 29260000
D121: =MAX(G62,G141) -> 38370000 | F121: Konzept
M128: inkl. Aufstockung und energetische Massnahmen | O128: Kündigung und Neuvermietung | W128: =Investitionsstrategien!T29 -> 28780000
K136: Neubau max. AZ: | O136: Kündigung und Neuvermietung | W136: =Investitionsstrategien!V29 -> 38370000
K137: ='Baurechtliche Rahmenbeding. ZH'!B4 -> 1.05
K138: inkl. MWA
G140: Max
D141: Aufzonung ja | G141: =MAX(W136) -> 38370000 | I141: Esatzneubau
M152: nur strukturelle Massnahmen | O152: Kündigung und Neuvermietung | W152: =W7 -> 22470000
B156: Max | I156: Max
B157: =MAX(D121,D202) -> 38370000 | D157: Baureserve | I157: =MAX(W152,W160) -> 22470000 | K157: Light
M160: inkl. Energetische Massnahmen | O160: Kündigung und Neuvermietung | W160: =W16 -> 21900000
M168: nur strukturelle Massnahmen | O168: Kündigung und Neuvermietung | W168: =W42 -> 22470000
D171: Aufzonung nein
I172: Max
I173: =MAX(W168,W176) -> 22470000 | K173: Medium
M176: inkl. Energetische Massnahmen | O176: Kündigung und Neuvermietung | W176: =W50 -> 21900000
G183: Max
G184: =MAX(I157,I173,I189,I205) -> 22470000 | I184: Sanierung im Bestand | M184: nur strukturelle Massnahmen | O184: Kündigung und Neuvermietung | W184: =W72 -> 21400000
I188: Max
I189: =MAX(W184,W192) -> 21400000 | K189: Max
M192: inkl. Energetische Massnahmen | O192: Kündigung und Neuvermietung | W192: =W80 -> 20830000
M200: nur strukturelle Massnahmen | O200: Kündigung und Neuvermietung | W200: =W104 -> 21270000
D201: Max
D202: =MAX(G184,G218) -> 32190000 | F202: Konzept
I204: Max
E205: Nein | I205: =MAX(W200,W208) -> 21270000 | K205: Extra
M208: inkl. Energetische Massnahmen | O208: Kündigung und Neuvermietung | W208: =W112 -> 20710000
G217: Max | I217: Neubau min. AZ: | O217: Kündigung und Neuvermietung | W217: 32190000 | X217: Kommentar: Bei Sheet "Baurechtliche Rahmenbedingungen ZH" AZ = 0.7 in Zelle B4 eingeben und Marktwert in Sheet "Investitonsstrategien" Zelle V28 eintragen.
G218: =MAX(W217) -> 32190000 | I218: 1.05
C230: Entscheidungen: | D230: Rechtlich | F230: Konzeptionelle Massnahmen | J230: Strukturelle Massnahmen | L230: Energetische Massnahmen und Aufstockung

Sheet Investitionsstrategie "Light" (hidden)
A1: Investitionsstrategie "Light"
A3: Beschrieb Szenario
A4: Bei der Strategie „Light“ werden nur Massnahmen bei den Bauteilen, welche zuvor in der Zustandserfassung mit der Codierung „Ende Lebensdauer“ gekennzeichnet wurden, berücksichtigt. Bei dieser Sanierung werden also nur die zwingend notwendigen Massnahmen, konkret die Erneuerung bzw. der Ersatz dieser Bauteile durchgeführt.
A8: Bauteilübersicht (eBKP-H)
A10: C | B10: Konstruktion Gebäude
A11: C 4.3 | B11: Balkon
A12: D | B12: Technik Gebäude
A13: D 1 | B13: Elektroanlage
A14: D 5 | B14: Wärmeanlage
A15: D 5.2 | B15: Wärmeerzeugung
A16: D 5.3 | B16: Wärmehauptverteilung
A17: D 7 | B17: Lufttechnische Anlage
A18: D 8 | B18: Wasseranlagen
A19: D 8.1 | B19: Armatur, Apparat
A20: D 8.4 | B20: Versorgungsleitung
A21: D 8.5 | B21: Entsorgungsleitung
A22: D 9 | B22: Transportanlagen
A23: E | B23: Äussere Wandbekleidung Gebäude
A24: E 2 | B24: Äussere Wandbekleidung über Terrain (Fassade)
A25: E 3 | B25: Einbaute zu Aussenwand
A26: E 3.1 | B26: Fenster
A27: E 3.2 | B27: Türen
A28: E 3.3 | B28: Sonnenschutz
A29: F | B29: Bedachung Gebäude
A30: F 1 | B30: Dachhaut
A31: F 1.2 | B31: Flachdach
A32: F 1.3 | B32: Geneigtes Dach
A33: F 2 | B33: Einbaute zu Dach
A34: G | B34: Ausbau Gebäude
A35: G 1 | B35: Trennwand Tür, Tor
A36: G 1.4 | B36: Innentür
A37: G 2 | B37: Bodenbelag
A38: G 2.1 | B38: Unterkonstruktion zu Bodenbelag
A39: G 2.2 | B39: Fertiger Bodenbelag
A40: G 3 | B40: Wandbekleidung
A41: G 4 | B41: Deckenbekleidung
A42: G 5 | B42: Einbauten
A43: G 5.1 | B43: Einbauschrank, Regal
A44: G 5.2 | B44: Einbauküche
A45: H | B45: Nutzungsspezifische Anlagen
A46: I | B46: Umgebung
B48: = Sanierung | D48: Legende Zustand | E48: gut | F48: leichte Abnutzung | G48: grössere Abnutzung | H48: Ende Lebensdauer
A50: Bewertungsergebnise
A52: Strukturelle Massnahmen | E52: Light
A53: Konzeptionelle Massnahmen | E53: - | F53: - | G53: Aufstockung | H53: Aufstockung
A54: Energetische Massnhamen | E54: - | F54: mit | G54: - | H54: mit
A55: Bruttomieterträge
A56: Miete nach Investition Bei Umsetzung unter Beibehaltung der bestehenden Mietverhältnisse [CHF/a] | E56: =Investitionsstrategien!B13 -> 578999.46 | F56: 556212.96 | G56: 544431.96 | H56: 556212.96
A57: Marktmiete [CHF/a] | E57: =Investitionsstrategien!B14 -> 723600 | F57: 723600 | G57: 723600 | H57: 723600
A58: Kosten | E58: =Investitionsstrategien!B15 -> 0
A59: Investitionskosten [CHF] | E59: =Investitionsstrategien!B16 -> 2440000 | F59: 1520000 | G59: 870000 | H59: 970000
A60: Instandhaltungskosten | E60: =Investitionsstrategien!B18 -> 0
A61: [CHF/a] | E61: =Investitionsstrategien!B19 -> 47000
A62: [CHF/m2a] | E62: =Investitionsstrategien!B20 -> 24.94692144
A63: Instandsetzungskosten | E63: =Investitionsstrategien!B21 -> 0
A64: [Jahr 11+ CHF/a] | E64: =Investitionsstrategien!B22 -> 61300
A65: [Jahr 11+ CHF/m2a] | E65: =Investitionsstrategien!B23 -> 32.53715499
A66: Hauptnutzfläche | E66: =Investitionsstrategien!B24 -> 0
A67: [m2] | E67: =Investitionsstrategien!B26 -> 1884 | F67: 1884 | G67: 1884 | H67: 1884
A68: Renditekennzahlen
A69: Marktwerte (npv) | E69: =Investitionsstrategien!B27 -> 0
A70: Unter Beibehaltung der bestehenden Mietverhältnisse [CHF] | E70: =Investitionsstrategien!B28 -> 20440000 | F70: =Investitionsstrategien!C29 -> 21900000 | G70: 3830000 | H70: 3790000
A71: Sanierungskündigung [CHF] | E71: =Investitionsstrategien!B29 -> 22470000 | F71: 3250000 | G71: 3900000 | H71: 3830000

Sheet Investitionsstrategie "Medium" (hidden)

Sheet Investitionsstrategie "Max" (hidden)

Sheet Investitionsstrategie "Extra" (hidden)

Sheet Investitionss. "Ersatzneubau" (hidden)

Sheet Auswertung Strategie "light" (hidden)

Sheet Sanierungsstrategie "Extra" (hidden)
C1: Kostenberechnung für Sanierungsstrategie "Extra"
E3: Geometrische Koeffizienten
E4: Grundstückfläche GR | G4: =Grundlagen!M10 -> 2712 | H4: m2
E5: Gebäudegrundfläche GRG | G5: =Grundlagen!M11 -> 776 | H5: m2
E6: Umbebungsfläche GR-GRG=GRU | G6: =Grundlagen!M12 -> 1936 | H6: m2
E7: Fassadenabwicklung FA | G7: =Grundlagen!M13 -> 180 | H7: m | J7: Basis (Datum) = 100 | K7: 1977
E8: Traufhöhe TH | G8: =Grundlagen!M14 -> 10 | H8: m | J8: Sanierungsjahr (Index der Wohnbaukosten (ZH)) | K8: =Grundlagen!B11 -> 2025
E9: Fassadenfläche FAxTH=FF | G9: =Grundlagen!M15 -> 1800 | H9: m2 | J9: Index Baukosten | K9: =$V$9/100 -> 2.1324 | V9: =VLOOKUP(K8,Baupreisindex!A42:C55,3,FALSE) -> 213.24
E10: Anzahl Wohgeschosse AWG | G10: =Grundlagen!M16 -> 3 | H10: Anzahl
E11: Geschossfläche GRG X AWG = FW | G11: =Grundlagen!M17 -> 2328 | H11: m2 | J11: Grösse | K11: =Grundlagen!M26 -> Mehr 20 Wohnungen
E12: Gewerbefläche FG | G12: =Grundlagen!M18 -> 0 | H12: m2 | J12: Baubedingungen | K12: =Grundlagen!M27 -> Weniger als 4 Stockwerke oder während der Instandsetzung unbewohnt
E13: Anzahl Treppenhäuser AT | G13: =Grundlagen!M19 -> 4 | H13: Anzahl | J13: Zugang | K13: =Grundlagen!M28 -> Zugang gut, mit Lagerplatz
E14: Anzahl Wohnungen AW | G14: =Grundlagen!M20 -> 36 | H14: Anzahl | J14: Koeffizient Schwierigkeitsgrad | K14: =INDEX(Schwierigkeitsgrad!D3:D29,MATCH(K11&K12&K13,Schwierigkeitsgrad!A3:A29&Schwierigkeitsgrad!B3:B29&Schwierigkeitsgrad!C3:C29,0)) -> 1.08
A18: Massnahmenpaket | B18: Nr. | C18: eBKP-H | E18: Bezeichnung Element | F18: Typ | H18: Zustand | I18: Folgecode | J18: Beschrieb Zustand | K18: Massnahme | L18: Instandsetzung | T18: Ausmass | X18: Instandsetzungskosten | Y18: Wertvermehrender Anteil | AC18: Wertvermehrender Anteil
F19: Nr. | G19: Bezeichnung | I19: (übersteuert) | L19: Code | M19: Folgecodes | N19: C | O19: F | P19: Max. | Q19: Code definitiv | R19: Kosten | S19: CHF/Einheit | T19: Geometr. Koeffiz. | X19: CHF | Y19: Nach Eingriffstiefe | AC19: % | AD19: CHF
R20: (Basis = 1977) | S20: (inkl. Index und Schwierigkeitsgrad) | X20: (inkl. Index und Schwierigkeitsgrad) | Y20: a | Z20: b | AA20: c | AB20: d
C22: Umgebung
A23: A | B23: 01 | C23: I | D23: Umgebung | E23: Umgebung/Aussenflächen | F23: =IFERROR(VLOOKUP(G23,Datenblätter!$B$3:$C$130,2,FALSE)," ") -> 1 | G23: ='Zustandserfassung '!G23 -> Umgebung | H23: =IF(OR('Zustandserfassung '!H23="Ende Lebensdauer",'Zustandserfassung '!H23="leichte Abnutzung ",'Zustandserfassung '!H23="grössere Abnutzung ",'Zustandserfassung '!H23="gut"),"Ende Lebensdauer"," ") -> Ende Lebensdauer | I23: =IFERROR(IF(L23=Q23," ", "übersteuert")," ") ->  | J23: =IFERROR(INDEX('Beschrieb Zustand'!$B$2:$G$130,MATCH('Sanierungsstrategie "Extra"'!G23,'Beschrieb Zustand'!$B$2:$B$130,0),MATCH('Sanierungsstrategie "Extra"'!Q23,'Beschrieb Zustand'!$B$2:$G$2,0))," ") -> Umgebung «verwildert». Hartflächen fehlend und defekt. Entwässerung nicht mehr gewährleistet. Aussenbeleuchtung fehlt. Briefkasten, Tore, andere Metallteile nicht mehr funktionsfähig. | K23: =IFERROR(INDEX('Beschrieb Zustand'!$H$2:$L$130,MATCH('Sanierungsstrategie "Extra"'!G23,'Beschrieb Zustand'!$H$2:$H$130,0),MATCH('Sanierungsstrategie "Extra"'!Q23,'Beschrieb Zustand'!$H$2:$L$2,0))," ") -> Instandsetzung der Grün- und Hartflächen. Instandsetzen Entwässerung. Installieren einer Aussenbeleuchtung. Ersetzen sämtlicher Metallteile. | L23: =IFERROR(VLOOKUP(H23,Datenblätter!$A$137:$B$141,2,FALSE)," ") -> d | M23: =IF(OR(M81="c",M81="d",L81="c",L81="d"),"b"," ") -> b | N23: =IFERROR(VLOOKUP(L23,Datenblätter!$B$137:$C$141,2,FALSE)," ") -> 4 | O23: =IFERROR(VLOOKUP(M23,Datenblätter!$B$137:$C$141,2,FALSE)," ") -> 2 | P23: =IF(MAX(N23:O23)=0," ",MAX(N23:O23)) -> 4 | Q23: =IFERROR(VLOOKUP(P23,Datenblätter!$H$137:$I$140,2,FALSE)," ") -> d | R23: =IFERROR(INDEX(Datenblätter!$B$2:$K$130,MATCH('Sanierungsstrategie "Extra"'!G23,Datenblätter!$B$2:$B$130,0),MATCH('Sanierungsstrategie "Extra"'!Q23,Datenblätter!$B$2:$K$2,0))," ") -> 33 | S23: =IFERROR(R23*$K$9*$K$14," ") -> 75.998736 | T23: x | U23: GRU= | V23: =$G$6 -> 1936 | W23: = | X23: =IFERROR(ROUND(V23*S23,-2), " ") -> 147100 | Y23: 0 | Z23: 0 | AA23: 0.25 | AB23: 0.3 | AC23: =IFERROR(HLOOKUP(Q23,$Y$20:AB23,4,)," ") -> 0.3 | AD23: =IFERROR(X23*AC23," ") -> 44130
C24: Rohbau,Fassaden
A25: A | B25: 02 | C25: C | D25: Konstruktion Gebäude | E25: Tragkonstruktion | F25: =IFERROR(VLOOKUP(G25,Datenblätter!$B$3:$C$130,2,FALSE)," ") -> 2 | G25: ='Zustandserfassung '!G25 -> Betonkonstruktion | H25: =IF(OR('Zustandserfassung '!H25="Ende Lebensdauer",'Zustandserfassung '!H25="leichte Abnutzung ",'Zustandserfassung '!H25="grössere Abnutzung ",'Zustandserfassung '!H25="gut"),"Ende Lebensdauer"," ") -> Ende Lebensdauer | I25: =IFERROR(IF(L25=Q25," ", "übersteuert")," ") ->  | J25: =IFERROR(INDEX('Beschrieb Zustand'!$B$2:$G$130,MATCH('Sanierungsstrategie "Extra"'!G25,'Beschrieb Zustand'!$B$2:$B$130,0),MATCH('Sanierungsstrategie "Extra"'!Q25,'Beschrieb Zustand'!$B$2:$G$2,0))," ") -> Erhebliche Risse und Abplatzungen. Dilatationen grösstenteils beschädigt. Beschädigte Fläche (> 5%). | K25: =IFERROR(INDEX('Beschrieb Zustand'!$H$2:$L$130,MATCH('Sanierungsstrategie "Extra"'!G25,'Beschrieb Zustand'!$H$2:$H$130,0),MATCH('Sanierungsstrategie "Extra"'!Q25,'Beschrieb Zustand'!$H$2:$L$2,0))," ") -> Zusatzabklärung: Bauingenieur. Beton sanieren aussen mit Dilatation. Schutzanstrich für sämtliche Oberflächen. | L25: =IFERROR(VLOOKUP(H25,Datenblätter!$A$137:$B$141,2,FALSE)," ") -> d | N25: =IFERROR(VLOOKUP(L25,Datenblätter!$B$137:$C$141,2,FALSE)," ") -> 4 | O25: =IFERROR(VLOOKUP(M25,Datenblätter!$B$137:$C$141,2,FALSE)," ") ->  | P25: =IF(MAX(N25:O25)=0," ",MAX(N25:O25)) -> 4 | Q25: =IFERROR(VLOOKUP(P25,Datenblätter!$H$137:$I$140,2,FALSE)," ") -> d | R25: =IFERROR(INDEX(Datenblätter!$B$2:$K$130,MATCH('Sanierungsstrategie "Extra"'!G25,Datenblätter!$B$2:$B$130,0),MATCH('Sanierungsstrategie "Extra"'!Q25,Datenblätter!$B$2:$K$2,0))," ") -> 78 | S25: =IFERROR(R25*$K$9*$K$14," ") -> 179.633376 | T25: x | U25: FF= | V25: =$G$9 -> 1800 | W25: = | X25: =IFERROR(ROUND(V25*S25,-2), " ") -> 323300 | Y25: 0 | Z25: 0 | AA25: 0.1 | AB25: 0.2 | AC25: =IFERROR(HLOOKUP(Q25,$Y$20:AB25,6,)," ") -> 0.2 | AD25: =IFERROR(X25*AC25," ") -> 64660
A26: A | B26: 03 | C26: E 2 | D26: Äussere Wandbekleidung über Terrain | E26: Fassade Aussenfläche | F26: =IFERROR(VLOOKUP(G26,Datenblätter!$B$3:$C$130,2,FALSE)," ") -> 1 | G26: ='Zustandserfassung '!G26 -> Verputzt | H26: =IF(OR('Zustandserfassung '!H26="Ende Lebensdauer",'Zustandserfassung '!H26="leichte Abnutzung ",'Zustandserfassung '!H26="grössere Abnutzung ",'Zustandserfassung '!H26="gut"),"Ende Lebensdauer"," ") -> Ende Lebensdauer | I26: =IFERROR(IF(L26=Q26," ", "übersteuert")," ") ->  | J26: =IFERROR(INDEX('Beschrieb Zustand'!$B$2:$G$130,MATCH('Sanierungsstrategie "Extra"'!G26,'Beschrieb Zustand'!$B$2:$B$130,0),MATCH('Sanierungsstrategie "Extra"'!Q26,'Beschrieb Zustand'!$B$2:$G$2,0))," ") -> Anstrich verwittert, Putzschaden (50–100%) der Fassadenfläche. | K26: =IFERROR(INDEX('Beschrieb Zustand'!$H$2:$L$130,MATCH('Sanierungsstrategie "Extra"'!G26,'Beschrieb Zustand'!$H$2:$H$130,0),MATCH('Sanierungsstrategie "Extra"'!Q26,'Beschrieb Zustand'!$H$2:$L$2,0))," ") -> Komplettes Entfernen des bestehenden Putzes. Reinigen des Mauerwerkes, neuer Aufbau des Putzes. Anstrich der Fassade. | L26: =IFERROR(VLOOKUP(H26,Datenblätter!$A$137:$B$141,2,FALSE)," ") -> d | M26: =IF(AND(OR(F26=1,F26=2),$L$25="c",$F$25=1),"c"," ")&IF(AND(OR(F26=1,F26=2),$L$25="d",$F$25=1),"d"," ") ->  | N26: =IFERROR(VLOOKUP(L26,Datenblätter!$B$137:$C$141,2,FALSE)," ") -> 4 | O26: =IFERROR(VLOOKUP(M26,Datenblätter!$B$137:$C$141,2,FALSE)," ") ->  | P26: 4 | Q26: =IFERROR(VLOOKUP(P26,Datenblätter!$H$137:$I$140,2,FALSE)," ") -> d | R26: =IFERROR(INDEX(Datenblätter!$B$2:$K$130,MATCH('Sanierungsstrategie "Extra"'!G26,Datenblätter!$B$2:$B$130,0),MATCH('Sanierungsstrategie "Extra"'!Q26,Datenblätter!$B$2:$K$2,0))," ") -> 55 | S26: =IFERROR(R26*$K$9*$K$14," ") -> 126.66456 | T26: x | U26: FF= | V26: =$G$9 -> 1800 | W26: = | X26: =IFERROR(ROUND(V26*S26,-2), " ") -> 228000 | Y26: 0 | Z26: 0 | AA26: 0 | AB26: 0.1 | AC26: =IFERROR(HLOOKUP(Q26,$Y$20:AB26,7,)," ") -> 0.1 | AD26: =IFERROR(X26*AC26," ") -> 22800
A27: A | B27: 04 | C27: E 2 | D27: Äussere Wandbekleidung über Terrain | E27: Fassade Dekoration | F27: =IFERROR(VLOOKUP(G27,Datenblätter!$B$3:$C$130,2,FALSE)," ") -> 1 | G27: ='Zustandserfassung '!G27 -> Fassadendekoration | H27: =IF(OR('Zustandserfassung '!H27="Ende Lebensdauer",'Zustandserfassung '!H27="leichte Abnutzung ",'Zustandserfassung '!H27="grössere Abnutzung ",'Zustandserfassung '!H27="gut"),"Ende Lebensdauer"," ") ->  | I27: =IFERROR(IF(L27=Q27," ", "übersteuert")," ") ->  | J27: =IFERROR(INDEX('Beschrieb Zustand'!$B$2:$G$130,MATCH('Sanierungsstrategie "Extra"'!G27,'Beschrieb Zustand'!$B$2:$B$130,0),MATCH('Sanierungsstrategie "Extra"'!Q27,'Beschrieb Zustand'!$B$2:$G$2,0))," ") ->  | K27: =IFERROR(INDEX('Beschrieb Zustand'!$H$2:$L$130,MATCH('Sanierungsstrategie "Extra"'!G27,'Beschrieb Zustand'!$H$2:$H$130,0),MATCH('Sanierungsstrategie "Extra"'!Q27,'Beschrieb Zustand'!$H$2:$L$2,0))," ") ->  | L27: =IFERROR(VLOOKUP(H27,Datenblätter!$A$137:$B$141,2,FALSE)," ") ->  | N27: =IFERROR(VLOOKUP(L27,Datenblätter!$B$137:$C$141,2,FALSE)," ") ->  | O27: =IFERROR(VLOOKUP(M27,Datenblätter!$B$137:$C$141,2,FALSE)," ") ->  | Q27: =IFERROR(VLOOKUP(P27,Datenblätter!$H$137:$I$140,2,FALSE)," ") ->  | R27: =IFERROR(INDEX(Datenblätter!$B$2:$K$130,MATCH('Sanierungsstrategie "Extra"'!G27,Datenblätter!$B$2:$B$130,0),MATCH('Sanierungsstrategie "Extra"'!Q27,Datenblätter!$B$2:$K$2,0))," ") ->  | S27: =IFERROR(R27*$K$9*$K$14," ") ->  | T27: x | U27: FF= | V27: =$G$9 -> 1800 | W27: = | X27: =IFERROR(ROUND(V27*S27,-2), " ") ->  | Y27: 0 | Z27: 0 | AA27: 0 | AB27: 0 | AC27: =IFERROR(HLOOKUP(Q27,$Y$20:AB27,8,)," ") ->  | AD27: =IFERROR(X27*AC27," ") -> 
A28: A | B28: 05 | C28: C 4.3 | D28: Balkon | E28: Balkone,Loggien | F28: =IFERROR(VLOOKUP(G28,Datenblätter!$B$3:$C$130,2,FALSE)," ") -> 1 | G28: ='Zustandserfassung '!G28 -> Balkone,Loggien | H28: =IF(OR('Zustandserfassung '!H28="Ende Lebensdauer",'Zustandserfassung '!H28="leichte Abnutzung ",'Zustandserfassung '!H28="grössere Abnutzung ",'Zustandserfassung '!H28="gut"),"Ende Lebensdauer"," ") -> Ende Lebensdauer | I28: =IFERROR(IF(L28=Q28," ", "übersteuert")," ") ->  | J28: =IFERROR(INDEX('Beschrieb Zustand'!$B$2:$G$130,MATCH('Sanierungsstrategie "Extra"'!G28,'Beschrieb Zustand'!$B$2:$B$130,0),MATCH('Sanierungsstrategie "Extra"'!Q28,'Beschrieb Zustand'!$B$2:$G$2,0))," ") -> Zahlreiche tiefe Risse und Abplatzungen mit Beein- trächtigung der Sicherheit. Vollständige Ablösung des Bodenbelages. Entwässerung nicht funktionsfähig. Metallteile durchgerostet mit mangelhaften Verankerungen. Fortgeschrittene Kondensatschäden an Decke oder Boden in Balkonnähe. | K28: =IFERROR(INDEX('Beschrieb Zustand'!$H$2:$L$130,MATCH('Sanierungsstrategie "Extra"'!G28,'Beschrieb Zustand'!$H$2:$H$130,0),MATCH('Sanierungsstrategie "Extra"'!Q28,'Beschrieb Zustand'!$H$2:$L$2,0))," ") -> Zusatzabklärung: Bauingenieur. Erneuerung der Balkonplatten. Ersetzen von Brüstung und Metallteilen. Neuer Bodenbelag. Behandlung aller Oberflächen. Neue Entwässerung. Prüfung auf Wärmebrücken durchführen. | L28: =IFERROR(VLOOKUP(H28,Datenblätter!$A$137:$B$141,2,FALSE)," ") -> d | N28: =IFERROR(VLOOKUP(L28,Datenblätter!$B$137:$C$141,2,FALSE)," ") -> 4 | O28: =IFERROR(VLOOKUP(M28,Datenblätter!$B$137:$C$141,2,FALSE)," ") ->  | P28: 4 | Q28: =IFERROR(VLOOKUP(P28,Datenblätter!$H$137:$I$140,2,FALSE)," ") -> d | R28: =IFERROR(INDEX(Datenblätter!$B$2:$K$130,MATCH('Sanierungsstrategie "Extra"'!G28,Datenblätter!$B$2:$B$130,0),MATCH('Sanierungsstrategie "Extra"'!Q28,Datenblätter!$B$2:$K$2,0))," ") -> 2583 | S28: =IFERROR(R28*$K$9*$K$14," ") -> 5948.628336 | T28: x | U28: AW= | V28: =$G$14 -> 36 | W28: = | X28: =IFERROR(ROUND(V28*S28,-2), " ") -> 214200 | Y28: 0 | Z28: 0 | AA28: 0.15 | AB28: 0.3 | AC28: =IFERROR(HLOOKUP(Q28,$Y$20:AB28,9,)," ") -> 0.3 | AD28: =IFERROR(X28*AC28," ") -> 64260
A29: AE | B29: 06 | C29: E2 (energetisch) | D29: Äussere Wandbekleidung über Terrain | E29: Fassade Wärmedämmung | F29: =IFERROR(VLOOKUP(G29,Datenblätter!$B$3:$C$130,2,FALSE)," ") -> 2 | G29: ='Zustandserfassung '!G29 -> Gebäude ab 1940 | H29: =IF(OR('Zustandserfassung '!H29="Ende Lebensdauer",'Zustandserfassung '!H29="leichte Abnutzung ",'Zustandserfassung '!H29="grössere Abnutzung ",'Zustandserfassung '!H29="gut"),"Ende Lebensdauer"," ") -> Ende Lebensdauer | I29: =IFERROR(IF(L29=Q29," ", "übersteuert")," ") ->  | J29: =IFERROR(INDEX('Beschrieb Zustand'!$B$2:$G$130,MATCH('Sanierungsstrategie "Extra"'!G29,'Beschrieb Zustand'!$B$2:$B$130,0),MATCH('Sanierungsstrategie "Extra"'!Q29,'Beschrieb Zustand'!$B$2:$G$2,0))," ") -> Die Wärmedämmung fehlt oder ist unzureichend. Kondensatschäden. Behaglichkeit ungenügend. | K29: =IFERROR(INDEX('Beschrieb Zustand'!$H$2:$L$130,MATCH('Sanierungsstrategie "Extra"'!G29,'Beschrieb Zustand'!$H$2:$H$130,0),MATCH('Sanierungsstrategie "Extra"'!Q29,'Beschrieb Zustand'!$H$2:$L$2,0))," ") -> Kompaktwärmedämmung. Ausführung gemäss Mindestanforderung. Energiebilanz und Prüfung auf Wärmebrücken durchführen. | L29: =IFERROR(VLOOKUP(H29,Datenblätter!$A$137:$B$141,2,FALSE)," ") -> d | N29: =IFERROR(VLOOKUP(L29,Datenblätter!$B$137:$C$141,2,FALSE)," ") -> 4 | O29: =IFERROR(VLOOKUP(M29,Datenblätter!$B$137:$C$141,2,FALSE)," ") ->  | P29: 4 | Q29: =IFERROR(VLOOKUP(P29,Datenblätter!$H$137:$I$140,2,FALSE)," ") -> d | R29: =IFERROR(INDEX(Datenblätter!$B$2:$K$130,MATCH('Sanierungsstrategie "Extra"'!G29,Datenblätter!$B$2:$B$130,0),MATCH('Sanierungsstrategie "Extra"'!Q29,Datenblätter!$B$2:$K$2,0))," ") -> 103 | S29: =IFERROR(R29*$K$9*$K$14," ") -> 237.208176 | T29: x | U29: FF= | V29: =$G$9 -> 1800 | W29: = | X29: =IFERROR(ROUND(V29*S29,-2), " ") -> 427000 | Y29: 0 | Z29: 0 | AA29: 0 | AB29: 1 | AC29: =IFERROR(HLOOKUP(Q29,$Y$20:AB29,10,)," ") -> 1 | AD29: =IFERROR(X29*AC29," ") -> 427000
C30: Keller,Untergeschoss
A31: I | B31: 07 | C31: G 3 | D31: Ausbau Gebäude | E31: Kellerräume privat | F31: =IFERROR(VLOOKUP(G31,Datenblätter!$B$3:$C$130,2,FALSE)," ") -> 1 | G31: ='Zustandserfassung '!G31 -> Kellerräume privat | H31: =IF(OR('Zustandserfassung '!H31="Ende Lebensdauer",'Zustandserfassung '!H31="leichte Abnutzung ",'Zustandserfassung '!H31="grössere Abnutzung ",'Zustandserfassung '!H31="gut"),"Ende Lebensdauer"," ") -> Ende Lebensdauer | I31: =IFERROR(IF(L31=Q31," ", "übersteuert")," ") ->  | J31: =IFERROR(INDEX('Beschrieb Zustand'!$B$2:$G$130,MATCH('Sanierungsstrategie "Extra"'!G31,'Beschrieb Zustand'!$B$2:$B$130,0),MATCH('Sanierungsstrategie "Extra"'!Q31,'Beschrieb Zustand'!$B$2:$G$2,0))," ") -> Umfassende Schäden an Wänden, Böden und Decken. Innere Türen nicht funktionsfähig. Lattenver- schläge verfault. Eindringen von Feuchtigkeit. Stark feuchte Luft verunmöglicht Lagerung von Papier etc. ohne Schimmelbildung. | K31: =IFERROR(INDEX('Beschrieb Zustand'!$H$2:$L$130,MATCH('Sanierungsstrategie "Extra"'!G31,'Beschrieb Zustand'!$H$2:$H$130,0),MATCH('Sanierungsstrategie "Extra"'!Q31,'Beschrieb Zustand'!$H$2:$L$2,0))," ") -> Bodenmaterial austauschen, Feuchtigkeitssperre und Schutzmörtel an den Wänden. Neue Lattenverschläge und innere Türen. Streichen sämtlicher Oberflächen. | L31: =IFERROR(VLOOKUP(H31,Datenblätter!$A$137:$B$141,2,FALSE)," ") -> d | N31: =IFERROR(VLOOKUP(L31,Datenblätter!$B$137:$C$141,2,FALSE)," ") -> 4 | O31: =IFERROR(VLOOKUP(M31,Datenblätter!$B$137:$C$141,2,FALSE)," ") ->  | P31: 4 | Q31: =IFERROR(VLOOKUP(P31,Datenblätter!$H$137:$I$140,2,FALSE)," ") -> d | R31: =IFERROR(INDEX(Datenblätter!$B$2:$K$130,MATCH('Sanierungsstrategie "Extra"'!G31,Datenblätter!$B$2:$B$130,0),MATCH('Sanierungsstrategie "Extra"'!Q31,Datenblätter!$B$2:$K$2,0))," ") -> 54 | S31: =IFERROR(R31*$K$9*$K$14," ") -> 124.361568 | T31: x | U31: GRG= | V31: =$G$5 -> 776 | W31: = | X31: =IFERROR(ROUND(V31*S31,-2), " ") -> 96500 | Y31: 0 | Z31: 0 | AA31: 0.1 | AB31: 0.3 | AC31: =IFERROR(HLOOKUP(Q31,$Y$20:AB31,12,)," ") -> 0.3 | AD31: =IFERROR(X31*AC31," ") -> 28950
A32: I | B32: 08 | C32: G 3 | D32: Ausbau Gebäude | E32: Kellerräume allgemein | F32: =IFERROR(VLOOKUP(G32,Datenblätter!$B$3:$C$130,2,FALSE)," ") -> 1 | G32: ='Zustandserfassung '!G32 -> Kellerräume allgemein | H32: =IF(OR('Zustandserfassung '!H32="Ende Lebensdauer",'Zustandserfassung '!H32="leichte Abnutzung ",'Zustandserfassung '!H32="grössere Abnutzung ",'Zustandserfassung '!H32="gut"),"Ende Lebensdauer"," ") -> Ende Lebensdauer | J32: =IFERROR(INDEX('Beschrieb Zustand'!$B$2:$G$130,MATCH('Sanierungsstrategie "Extra"'!G32,'Beschrieb Zustand'!$B$2:$B$130,0),MATCH('Sanierungsstrategie "Extra"'!Q32,'Beschrieb Zustand'!$B$2:$G$2,0))," ") -> Räume und Türen in desolatem Zustand. Einrichtungen für Waschen und Trocknen mangelhaft oder fehlend. Eindringen von Feuchtigkeit. Stark feuchte Luft verunmöglicht Lagerung von Papier etc. ohne Schimmelbildung. | K32: =IFERROR(INDEX('Beschrieb Zustand'!$H$2:$L$130,MATCH('Sanierungsstrategie "Extra"'!G32,'Beschrieb Zustand'!$H$2:$H$130,0),MATCH('Sanierungsstrategie "Extra"'!Q32,'Beschrieb Zustand'!$H$2:$L$2,0))," ") -> Ausbessern an Böden, Wänden und Decken. Malerarbeiten an Böden und Wänden. Teilersatz von Türen. Einrichtungen ersetzen beziehungsweise ergänzen. Malerabeiten. | L32: =IFERROR(VLOOKUP(H32,Datenblätter!$A$137:$B$141,2,FALSE)," ") -> d | N32: =IFERROR(VLOOKUP(L32,Datenblätter!$B$137:$C$141,2,FALSE)," ") -> 4 | O32: =IFERROR(VLOOKUP(M32,Datenblätter!$B$137:$C$141,2,FALSE)," ") ->  | P32: 4 | Q32: =IFERROR(VLOOKUP(P32,Datenblätter!$H$137:$I$140,2,FALSE)," ") -> d | R32: =IFERROR(INDEX(Datenblätter!$B$2:$K$130,MATCH('Sanierungsstrategie "Extra"'!G32,Datenblätter!$B$2:$B$130,0),MATCH('Sanierungsstrategie "Extra"'!Q32,Datenblätter!$B$2:$K$2,0))," ") -> 122 | S32: 280.965024 | T32: x | U32: GRG= | V32: =$G$5 -> 776 | W32: = | X32: =IFERROR(ROUND(V32*S32,-2), " ") -> 218000 | Y32: 0 | Z32: 0 | AA32: 0.1 | AB32: 0.3 | AC32: =IFERROR(HLOOKUP(Q32,$Y$20:AB32,13,)," ") -> 0.3 | AD32: =IFERROR(X32*AC32," ") -> 65400
A33: IE | B33: 09 | C33: G4 (energetisch) | D33: Deckenbekleidung | E33: Kellerdecke Wärmedämmung | F33: =IFERROR(VLOOKUP(G33,Datenblätter!$B$3:$C$130,2,FALSE)," ") -> 1 | G33: ='Zustandserfassung '!G33 -> Kellerdecke Wärmedämmung | H33: =IF(OR('Zustandserfassung '!H33="Ende Lebensdauer",'Zustandserfassung '!H33="leichte Abnutzung ",'Zustandserfassung '!H33="grössere Abnutzung ",'Zustandserfassung '!H33="gut"),"Ende Lebensdauer"," ") -> Ende Lebensdauer | J33: =IFERROR(INDEX('Beschrieb Zustand'!$B$2:$G$130,MATCH('Sanierungsstrategie "Extra"'!G33,'Beschrieb Zustand'!$B$2:$B$130,0),MATCH('Sanierungsstrategie "Extra"'!Q33,'Beschrieb Zustand'!$B$2:$G$2,0))," ") -> Wärmedämmung fehlend oder mit einer Stärke von weniger als 5 cm. Behaglichkeit in Erdgeschoss-Woh- nung ungenügend. | K33: =IFERROR(INDEX('Beschrieb Zustand'!$H$2:$L$130,MATCH('Sanierungsstrategie "Extra"'!G33,'Beschrieb Zustand'!$H$2:$H$130,0),MATCH('Sanierungsstrategie "Extra"'!Q33,'Beschrieb Zustand'!$H$2:$L$2,0))," ") -> Kellerdecke wärmedämmen entsprechend den Mindestanforderungen. | L33: =IFERROR(VLOOKUP(H33,Datenblätter!$A$137:$B$141,2,FALSE)," ") -> d | N33: =IFERROR(VLOOKUP(L33,Datenblätter!$B$137:$C$141,2,FALSE)," ") -> 4 | O33: =IFERROR(VLOOKUP(M33,Datenblätter!$B$137:$C$141,2,FALSE)," ") ->  | P33: 4 | Q33: =IFERROR(VLOOKUP(P33,Datenblätter!$H$137:$I$140,2,FALSE)," ") -> d | R33: =IFERROR(INDEX(Datenblätter!$B$2:$K$130,MATCH('Sanierungsstrategie "Extra"'!G33,Datenblätter!$B$2:$B$130,0),MATCH('Sanierungsstrategie "Extra"'!Q33,Datenblätter!$B$2:$K$2,0))," ") -> 40 | S33: 92.11968 | T33: x | U33: GRG= | V33: =$G$5 -> 776 | W33: = | X33: 71500 | Y33: 0 | Z33: 0 | AA33: 0 | AB33: 1 | AC33: =IFERROR(HLOOKUP(Q33,$Y$20:AB33,14,)," ") -> 1 | AD33: =IFERROR(X33*AC33," ") -> 71500
A34: I | B34: 10 | C34: D 5.2 | D34: Wärmeerzeugung | E34: Lagerung Heizöl | F34: =IFERROR(VLOOKUP(G34,Datenblätter!$B$3:$C$130,2,FALSE)," ") -> 0 | G34: ='Zustandserfassung '!G34 -> - | H34: =IF(OR('Zustandserfassung '!H34="Ende Lebensdauer",'Zustandserfassung '!H34="leichte Abnutzung ",'Zustandserfassung '!H34="grössere Abnutzung ",'Zustandserfassung '!H34="gut"),"Ende Lebensdauer"," ") ->  | J34: =IFERROR(INDEX('Beschrieb Zustand'!$B$2:$G$130,MATCH('Sanierungsstrategie "Extra"'!G34,'Beschrieb Zustand'!$B$2:$B$130,0),MATCH('Sanierungsstrategie "Extra"'!Q34,'Beschrieb Zustand'!$B$2:$G$2,0))," ") ->  | K34: =IFERROR(INDEX('Beschrieb Zustand'!$H$2:$L$130,MATCH('Sanierungsstrategie "Extra"'!G34,'Beschrieb Zustand'!$H$2:$H$130,0),MATCH('Sanierungsstrategie "Extra"'!Q34,'Beschrieb Zustand'!$H$2:$L$2,0))," ") ->  | L34: =IFERROR(VLOOKUP(H34,Datenblätter!$A$137:$B$141,2,FALSE)," ") ->  | N34: =IFERROR(VLOOKUP(L34,Datenblätter!$B$137:$C$141,2,FALSE)," ") ->  | O34: =IFERROR(VLOOKUP(M34,Datenblätter!$B$137:$C$141,2,FALSE)," ") ->  | Q34: =IFERROR(VLOOKUP(P34,Datenblätter!$H$137:$I$140,2,FALSE)," ") ->  | R34: =IFERROR(INDEX(Datenblätter!$B$2:$K$130,MATCH('Sanierungsstrategie "Extra"'!G34,Datenblätter!$B$2:$B$130,0),MATCH('Sanierungsstrategie "Extra"'!Q34,Datenblätter!$B$2:$K$2,0))," ") ->  | T34: x | U34: FW+FG= | V34: =$G$11+$G$12 -> 2328 | W34: = | Y34: 0 | Z34: 0 | AA34: 0 | AB34: 0 | AC34: =IFERROR(HLOOKUP(Q34,$Y$20:AB34,15,)," ") -> 
A35: I | B35: 11 | C35: D 5.2 | D35: Wärmeerzeugung | E35: Wärmeerzeugung | F35: =IFERROR(VLOOKUP(G35,Datenblätter!$B$3:$C$130,2,FALSE)," ") -> 2 | G35: ='Zustandserfassung '!G35 -> mit Warmwasser | H35: =IF(OR('Zustandserfassung '!H35="Ende Lebensdauer",'Zustandserfassung '!H35="leichte Abnutzung ",'Zustandserfassung '!H35="grössere Abnutzung ",'Zustandserfassung '!H35="gut"),"Ende Lebensdauer"," ") -> Ende Lebensdauer | J35: =IFERROR(INDEX('Beschrieb Zustand'!$B$2:$G$130,MATCH('Sanierungsstrategie "Extra"'!G35,'Beschrieb Zustand'!$B$2:$B$130,0),MATCH('Sanierungsstrategie "Extra"'!Q35,'Beschrieb Zustand'!$B$2:$G$2,0))," ") -> Kessel und Kamin entsprechen nicht mehr den behördlichen Vorschriften. Dämmung mangelhaft. Schlechter Wirkungsgrad. Anlage abgesprochen. | K35: =IFERROR(INDEX('Beschrieb Zustand'!$H$2:$L$130,MATCH('Sanierungsstrategie "Extra"'!G35,'Beschrieb Zustand'!$H$2:$H$130,0),MATCH('Sanierungsstrategie "Extra"'!Q35,'Beschrieb Zustand'!$H$2:$L$2,0))," ") -> Vollständiger Ersatz der Wärmeerzeugung. Kaminin- standsetzung, evtl. -erneuerung. Energieberater beiziehen. Rechtliche Rahmenbedingungen und Auflagen abklären. | L35: =IFERROR(VLOOKUP(H35,Datenblätter!$A$137:$B$141,2,FALSE)," ") -> d | N35: =IFERROR(VLOOKUP(L35,Datenblätter!$B$137:$C$141,2,FALSE)," ") -> 4 | O35: =IFERROR(VLOOKUP(M35,Datenblätter!$B$137:$C$141,2,FALSE)," ") ->  | P35: 4 | Q35: =IFERROR(VLOOKUP(P35,Datenblätter!$H$137:$I$140,2,FALSE)," ") -> d | R35: =IFERROR(INDEX(Datenblätter!$B$2:$K$130,MATCH('Sanierungsstrategie "Extra"'!G35,Datenblätter!$B$2:$B$130,0),MATCH('Sanierungsstrategie "Extra"'!Q35,Datenblätter!$B$2:$K$2,0))," ") -> 26 | S35: 59.877792 | T35: x | U35: FW+FG= | V35: =$G$11+$G$12 -> 2328 | W35: = | X35: 139400 | Y35: 0 | Z35: 0.05 | AA35: 0 | AB35: 0.2 | AC35: =IFERROR(HLOOKUP(Q35,$Y$20:AB35,16,)," ") -> 0.2 | AD35: 27880
A36: I | B36: 12 | C36: D 5.3 | D36: Wärmehauptverteilung | E36: Wärmeverteilung | F36: =IFERROR(VLOOKUP(G36,Datenblätter!$B$3:$C$130,2,FALSE)," ") -> 1 | G36: ='Zustandserfassung '!G36 -> Wärmeverteilung | H36: =IF(OR('Zustandserfassung '!H36="Ende Lebensdauer",'Zustandserfassung '!H36="leichte Abnutzung ",'Zustandserfassung '!H36="grössere Abnutzung ",'Zustandserfassung '!H36="gut"),"Ende Lebensdauer"," ") -> Ende Lebensdauer | J36: =IFERROR(INDEX('Beschrieb Zustand'!$B$2:$G$130,MATCH('Sanierungsstrategie "Extra"'!G36,'Beschrieb Zustand'!$B$2:$B$130,0),MATCH('Sanierungsstrategie "Extra"'!Q36,'Beschrieb Zustand'!$B$2:$G$2,0))," ") -> Verteilung hat Lecks und Roststellen. Leitungen am falschen Standort. Dämmung nicht vorhanden oder ungenügend. | K36: =IFERROR(INDEX('Beschrieb Zustand'!$H$2:$L$130,MATCH('Sanierungsstrategie "Extra"'!G36,'Beschrieb Zustand'!$H$2:$H$130,0),MATCH('Sanierungsstrategie "Extra"'!Q36,'Beschrieb Zustand'!$H$2:$L$2,0))," ") -> Vollersatz der horizontalen Leitungen. Ersatz von Steigsträngen. Einbau Wärmezähler im Rahmen der Erneuerung der Heizungsanlage. | L36: =IFERROR(VLOOKUP(H36,Datenblätter!$A$137:$B$141,2,FALSE)," ") -> d | M36: =IF(AND(F61=2,L61="d"),"c"," ") ->  | N36: =IFERROR(VLOOKUP(L36,Datenblätter!$B$137:$C$141,2,FALSE)," ") -> 4 | O36: =IFERROR(VLOOKUP(M36,Datenblätter!$B$137:$C$141,2,FALSE)," ") ->  | P36: 4 | Q36: =IFERROR(VLOOKUP(P36,Datenblätter!$H$137:$I$140,2,FALSE)," ") -> d | R36: =IFERROR(INDEX(Datenblätter!$B$2:$K$130,MATCH('Sanierungsstrategie "Extra"'!G36,Datenblätter!$B$2:$B$130,0),MATCH('Sanierungsstrategie "Extra"'!Q36,Datenblätter!$B$2:$K$2,0))," ") -> 779 | S36: 1794.030768 | T36: x | U36: AW= | V36: =$G$14 -> 36 | W36: = | X36: 64600 | Y36: 0 | Z36: 0 | AA36: 0.1 | AB36: 0.2 | AC36: =IFERROR(HLOOKUP(Q36,$Y$20:AB36,17,)," ") -> 0.2 | AD36: 12920
A37: I | B37: 13 | C37: D 8.4 | D37: Versorgungsleitungen | E37: Versorgung Wasser, Gas | F37: =IFERROR(VLOOKUP(G37,Datenblätter!$B$3:$C$130,2,FALSE)," ") -> 1 | G37: ='Zustandserfassung '!G37 -> Versorgung Wasser,Gas | H37: =IF(OR('Zustandserfassung '!H37="Ende Lebensdauer",'Zustandserfassung '!H37="leichte Abnutzung ",'Zustandserfassung '!H37="grössere Abnutzung ",'Zustandserfassung '!H37="gut"),"Ende Lebensdauer"," ") -> Ende Lebensdauer | J37: =IFERROR(INDEX('Beschrieb Zustand'!$B$2:$G$130,MATCH('Sanierungsstrategie "Extra"'!G37,'Beschrieb Zustand'!$B$2:$B$130,0),MATCH('Sanierungsstrategie "Extra"'!Q37,'Beschrieb Zustand'!$B$2:$G$2,0))," ") -> Veraltete und defekte Leitungen. Gebäude über 40jährig. | K37: =IFERROR(INDEX('Beschrieb Zustand'!$H$2:$L$130,MATCH('Sanierungsstrategie "Extra"'!G37,'Beschrieb Zustand'!$H$2:$H$130,0),MATCH('Sanierungsstrategie "Extra"'!Q37,'Beschrieb Zustand'!$H$2:$L$2,0))," ") -> Zusatzabklärungen: Gaswerk / Wasserwerk. Auswechseln der Hauszuleitungen ab Gebäudeeintritt bis Zähler. | L37: =IFERROR(VLOOKUP(H37,Datenblätter!$A$137:$B$141,2,FALSE)," ") -> d | N37: =IFERROR(VLOOKUP(L37,Datenblätter!$B$137:$C$141,2,FALSE)," ") -> 4 | O37: =IFERROR(VLOOKUP(M37,Datenblätter!$B$137:$C$141,2,FALSE)," ") ->  | P37: 4 | Q37: =IFERROR(VLOOKUP(P37,Datenblätter!$H$137:$I$140,2,FALSE)," ") -> d | R37: =IFERROR(INDEX(Datenblätter!$B$2:$K$130,MATCH('Sanierungsstrategie "Extra"'!G37,Datenblätter!$B$2:$B$130,0),MATCH('Sanierungsstrategie "Extra"'!Q37,Datenblätter!$B$2:$K$2,0))," ") -> 73 | S37: 168.118416 | T37: x | U37: AW= | V37: =$G$14 -> 36 | W37: = | X37: 6100 | Y37: 0 | Z37: 0 | AA37: 0 | AB37: 0 | AC37: =IFERROR(HLOOKUP(Q37,$Y$20:AB37,18,)," ") -> 0 | AD37: 0
A38: I | B38: 14 | C38: D 8.5 | D38: Entsorgungsleitungen | E38: Entsorgung Wasser | F38: =IFERROR(VLOOKUP(G38,Datenblätter!$B$3:$C$130,2,FALSE)," ") -> 2 | G38: ='Zustandserfassung '!G38 -> Fallstränge und Grundleitungen | H38: =IF(OR('Zustandserfassung '!H38="Ende Lebensdauer",'Zustandserfassung '!H38="leichte Abnutzung ",'Zustandserfassung '!H38="grössere Abnutzung ",'Zustandserfassung '!H38="gut"),"Ende Lebensdauer"," ") -> Ende Lebensdauer | J38: =IFERROR(INDEX('Beschrieb Zustand'!$B$2:$G$130,MATCH('Sanierungsstrategie "Extra"'!G38,'Beschrieb Zustand'!$B$2:$B$130,0),MATCH('Sanierungsstrategie "Extra"'!Q38,'Beschrieb Zustand'!$B$2:$G$2,0))," ") -> Es ist mit zahlreichen, defekten Stellen zu rechnen. Mehrmalige Verstopfungen und Rückstauungen festgestellt. Schlechter Abfluss. | K38: =IFERROR(INDEX('Beschrieb Zustand'!$H$2:$L$130,MATCH('Sanierungsstrategie "Extra"'!G38,'Beschrieb Zustand'!$H$2:$H$130,0),MATCH('Sanierungsstrategie "Extra"'!Q38,'Beschrieb Zustand'!$H$2:$L$2,0))," ") -> TV-Untersuch. Ersatz der gesamten Entsorgungsleitung. | L38: =IFERROR(VLOOKUP(H38,Datenblätter!$A$137:$B$141,2,FALSE)," ") -> d | M38: =IF(OR(L65="d",M65="d"),"d"," ") -> d | N38: =IFERROR(VLOOKUP(L38,Datenblätter!$B$137:$C$141,2,FALSE)," ") -> 4 | O38: =IFERROR(VLOOKUP(M38,Datenblätter!$B$137:$C$141,2,FALSE)," ") -> 4 | P38: 4 | Q38: =IFERROR(VLOOKUP(P38,Datenblätter!$H$137:$I$140,2,FALSE)," ") -> d | R38: =IFERROR(INDEX(Datenblätter!$B$2:$K$130,MATCH('Sanierungsstrategie "Extra"'!G38,Datenblätter!$B$2:$B$130,0),MATCH('Sanierungsstrategie "Extra"'!Q38,Datenblätter!$B$2:$K$2,0))," ") -> 1985 | S38: 4571.43912 | T38: x | U38: AW= | V38: =$G$14 -> 36 | W38: = | X38: 164600 | Y38: 0 | Z38: 0 | AA38: 0 | AB38: 0 | AC38: =IFERROR(HLOOKUP(Q38,$Y$20:AB38,19,)," ") -> 0 | AD38: 0
A39: I | B39: 15 | C39: E 3.2 | D39: Türen | E39: Keller Aussentüren und Tore | F39: =IFERROR(VLOOKUP(G39,Datenblätter!$B$3:$C$130,2,FALSE)," ") -> 1 | G39: ='Zustandserfassung '!G39 -> Aussentüren und Tore | H39: =IF(OR('Zustandserfassung '!H39="Ende Lebensdauer",'Zustandserfassung '!H39="leichte Abnutzung ",'Zustandserfassung '!H39="grössere Abnutzung ",'Zustandserfassung '!H39="gut"),"Ende Lebensdauer"," ") -> Ende Lebensdauer | J39: =IFERROR(INDEX('Beschrieb Zustand'!$B$2:$G$130,MATCH('Sanierungsstrategie "Extra"'!G39,'Beschrieb Zustand'!$B$2:$B$130,0),MATCH('Sanierungsstrategie "Extra"'!Q39,'Beschrieb Zustand'!$B$2:$G$2,0))," ") -> Umfangreiche Schäden bei mehr als 50% aller Aussentüren und Tore. Schliessung veraltet. Einbruchgefahr. Ersatz aller Türen und Tore. Neue Schliessung. Komplette Oberflächenbehandlung. | K39: =IFERROR(INDEX('Beschrieb Zustand'!$H$2:$L$130,MATCH('Sanierungsstrategie "Extra"'!G39,'Beschrieb Zustand'!$H$2:$H$130,0),MATCH('Sanierungsstrategie "Extra"'!Q39,'Beschrieb Zustand'!$H$2:$L$2,0))," ") -> Ersatz aller Türen und Tore. Neue Schliessung. Komplette Oberflächenbehandlung. | L39: =IFERROR(VLOOKUP(H39,Datenblätter!$A$137:$B$141,2,FALSE)," ") -> d | N39: =IFERROR(VLOOKUP(L39,Datenblätter!$B$137:$C$141,2,FALSE)," ") -> 4 | O39: =IFERROR(VLOOKUP(M39,Datenblätter!$B$137:$C$141,2,FALSE)," ") ->  | P39: 4 | Q39: =IFERROR(VLOOKUP(P39,Datenblätter!$H$137:$I$140,2,FALSE)," ") -> d | R39: =IFERROR(INDEX(Datenblätter!$B$2:$K$130,MATCH('Sanierungsstrategie "Extra"'!G39,Datenblätter!$B$2:$B$130,0),MATCH('Sanierungsstrategie "Extra"'!Q39,Datenblätter!$B$2:$K$2,0))," ") -> 21 | S39: 48.362832 | T39: x | U39: GRG= | V39: =$G$5 -> 776 | W39: = | X39: =IFERROR(ROUND(V39*S39,-2), " ") -> 37500 | Y39: 0 | Z39: 0 | AA39: 0.2 | AB39: 0.3 | AC39: =IFERROR(HLOOKUP(Q39,$Y$20:AB39,20,)," ") -> 0.3 | AD39: 11250
A40: A | B40: 16 | C40: E3.1 | D40: Fenster | E40: Kellerfenster | F40: =IFERROR(VLOOKUP(G40,Datenblätter!$B$3:$C$130,2,FALSE)," ") -> 1 | G40: ='Zustandserfassung '!G40 -> Kellerfenster | H40: =IF(OR('Zustandserfassung '!H40="Ende Lebensdauer",'Zustandserfassung '!H40="leichte Abnutzung ",'Zustandserfassung '!H40="grössere Abnutzung ",'Zustandserfassung '!H40="gut"),"Ende Lebensdauer"," ") -> Ende Lebensdauer | J40: =IFERROR(INDEX('Beschrieb Zustand'!$B$2:$G$130,MATCH('Sanierungsstrategie "Extra"'!G40,'Beschrieb Zustand'!$B$2:$B$130,0),MATCH('Sanierungsstrategie "Extra"'!Q40,'Beschrieb Zustand'!$B$2:$G$2,0))," ") -> Sämtliche Fenster beschädigt. Flügel und Rahmen verwittert. Schliessung und Bedienung nicht funktionsfähig. | K40: =IFERROR(INDEX('Beschrieb Zustand'!$H$2:$L$130,MATCH('Sanierungsstrategie "Extra"'!G40,'Beschrieb Zustand'!$H$2:$H$130,0),MATCH('Sanierungsstrategie "Extra"'!Q40,'Beschrieb Zustand'!$H$2:$L$2,0))," ") -> Kompletter Ersatz der Kellerfenster und Oberflächenbehandlung. | L40: =IFERROR(VLOOKUP(H40,Datenblätter!$A$137:$B$141,2,FALSE)," ") -> d | N40: =IFERROR(VLOOKUP(L40,Datenblätter!$B$137:$C$141,2,FALSE)," ") -> 4 | O40: =IFERROR(VLOOKUP(M40,Datenblätter!$B$137:$C$141,2,FALSE)," ") ->  | P40: 4 | Q40: =IFERROR(VLOOKUP(P40,Datenblätter!$H$137:$I$140,2,FALSE)," ") -> d | R40: =IFERROR(INDEX(Datenblätter!$B$2:$K$130,MATCH('Sanierungsstrategie "Extra"'!G40,Datenblätter!$B$2:$B$130,0),MATCH('Sanierungsstrategie "Extra"'!Q40,Datenblätter!$B$2:$K$2,0))," ") -> 27 | S40: 62.180784 | T40: x | U40: GRG= | V40: =$G$5 -> 776 | W40: = | X40: 48300 | Y40: 0 | Z40: 0 | AA40: 0 | AB40: 0.3 | AC40: =IFERROR(HLOOKUP(Q40,$Y$20:AB40,21,)," ") -> 0.3 | AD40: 14490
C41: Treppenhäuser | F41: =IFERROR(VLOOKUP(G41,Datenblätter!$B$3:$C$130,2,FALSE)," ") ->  | N41: =IFERROR(VLOOKUP(L41,Datenblätter!$B$137:$C$141,2,FALSE)," ") ->  | O41: =IFERROR(VLOOKUP(M41,Datenblätter!$B$137:$C$141,2,FALSE)," ") ->  | Q41: =IFERROR(VLOOKUP(P41,Datenblätter!$H$137:$I$140,2,FALSE)," ") ->  | R41: =IFERROR(INDEX(Datenblätter!$B$2:$K$130,MATCH('Sanierungsstrategie "Extra"'!G41,Datenblätter!$B$2:$B$130,0),MATCH('Sanierungsstrategie "Extra"'!Q41,Datenblätter!$B$2:$K$2,0))," ") -> 
A42: I | B42: 17 | C42: G 3 | D42: Wandbekleidung | E42: Treppenhaus: Wände | F42: =IFERROR(VLOOKUP(G42,Datenblätter!$B$3:$C$130,2,FALSE)," ") -> 1 | G42: ='Zustandserfassung '!G42 -> Treppenhaus,Wände | H42: =IF(OR('Zustandserfassung '!H42="Ende Lebensdauer",'Zustandserfassung '!H42="leichte Abnutzung ",'Zustandserfassung '!H42="grössere Abnutzung ",'Zustandserfassung '!H42="gut"),"Ende Lebensdauer"," ") -> Ende Lebensdauer | I42: =IFERROR(IF(L42=Q42," ", "übersteuert")," ") ->  | J42: =IFERROR(INDEX('Beschrieb Zustand'!$B$2:$G$130,MATCH('Sanierungsstrategie "Extra"'!G42,'Beschrieb Zustand'!$B$2:$B$130,0),MATCH('Sanierungsstrategie "Extra"'!Q42,'Beschrieb Zustand'!$B$2:$G$2,0))," ") -> Verschmutzte Oberflächen. Erhebliche Risse und Ablösungen. | K42: =IFERROR(INDEX('Beschrieb Zustand'!$H$2:$L$130,MATCH('Sanierungsstrategie "Extra"'!G42,'Beschrieb Zustand'!$H$2:$H$130,0),MATCH('Sanierungsstrategie "Extra"'!Q42,'Beschrieb Zustand'!$H$2:$L$2,0))," ") -> Erneuern des Untergrundes. Wände streichen. | L42: =IFERROR(VLOOKUP(H42,Datenblätter!$A$137:$B$141,2,FALSE)," ") -> d | M42: =_xlfn.IFS(L43="c","c",L43="d","d") -> d | N42: =IFERROR(VLOOKUP(L42,Datenblätter!$B$137:$C$141,2,FALSE)," ") -> 4 | O42: =IFERROR(VLOOKUP(M42,Datenblätter!$B$137:$C$141,2,FALSE)," ") -> 4 | P42: 4 | Q42: =IFERROR(VLOOKUP(P42,Datenblätter!$H$137:$I$140,2,FALSE)," ") -> d | R42: =IFERROR(INDEX(Datenblätter!$B$2:$K$130,MATCH('Sanierungsstrategie "Extra"'!G42,Datenblätter!$B$2:$B$130,0),MATCH('Sanierungsstrategie "Extra"'!Q42,Datenblätter!$B$2:$K$2,0))," ") -> 1308 | S42: =IFERROR(R42*$K$9*$K$14," ") -> 3012.313536 | T42: x | U42: ATxAWG= | V42: =$G$13*$G$10 -> 12 | W42: = | X42: =IFERROR(ROUND(V42*S42,-2), " ") -> 36100 | Y42: 0 | Z42: 0 | AA42: 0 | AB42: 0.2 | AC42: =IFERROR(HLOOKUP(Q42,$Y$20:AB42,23,)," ") -> 0.2 | AD42: =IFERROR(X42*AC42," ") -> 7220
A43: I | B43: 18 | C43: C | D43: Konstruktion Gebäude | E43: Treppen und Podeste | F43: =IFERROR(VLOOKUP(G43,Datenblätter!$B$3:$C$130,2,FALSE)," ") -> 1 | G43: ='Zustandserfassung '!G43 -> Treppen und Podeste | H43: =IF(OR('Zustandserfassung '!H43="Ende Lebensdauer",'Zustandserfassung '!H43="leichte Abnutzung ",'Zustandserfassung '!H43="grössere Abnutzung ",'Zustandserfassung '!H43="gut"),"Ende Lebensdauer"," ") -> Ende Lebensdauer | J43: =IFERROR(INDEX('Beschrieb Zustand'!$B$2:$G$130,MATCH('Sanierungsstrategie "Extra"'!G43,'Beschrieb Zustand'!$B$2:$B$130,0),MATCH('Sanierungsstrategie "Extra"'!Q43,'Beschrieb Zustand'!$B$2:$G$2,0))," ") -> Erhebliche Schäden an Stufen und Treppenwangen. Tragfähigkeit beeinträchtigt. Geländer an vielen Stellen gelöst. Sicherheit nicht gewährleistet. | K43: =IFERROR(INDEX('Beschrieb Zustand'!$H$2:$L$130,MATCH('Sanierungsstrategie "Extra"'!G43,'Beschrieb Zustand'!$H$2:$H$130,0),MATCH('Sanierungsstrategie "Extra"'!Q43,'Beschrieb Zustand'!$H$2:$L$2,0))," ") -> Zusatzabklärung: Bauingenieur. Totalersatz der Treppe inkl. Geländer. | L43: =IFERROR(VLOOKUP(H43,Datenblätter!$A$137:$B$141,2,FALSE)," ") -> d | N43: =IFERROR(VLOOKUP(L43,Datenblätter!$B$137:$C$141,2,FALSE)," ") -> 4 | O43: =IFERROR(VLOOKUP(M43,Datenblätter!$B$137:$C$141,2,FALSE)," ") ->  | P43: 4 | Q43: =IFERROR(VLOOKUP(P43,Datenblätter!$H$137:$I$140,2,FALSE)," ") -> d | R43: =IFERROR(INDEX(Datenblätter!$B$2:$K$130,MATCH('Sanierungsstrategie "Extra"'!G43,Datenblätter!$B$2:$B$130,0),MATCH('Sanierungsstrategie "Extra"'!Q43,Datenblätter!$B$2:$K$2,0))," ") -> 6625 | S43: 15257.322 | T43: x | U43: ATxAWG= | V43: =$G$13*$G$10 -> 12 | W43: = | X43: 183100 | Y43: 0 | Z43: 0 | AA43: 0 | AB43: 0.2 | AC43: =IFERROR(HLOOKUP(Q43,$Y$20:AB43,24,)," ") -> 0.2 | AD43: 36620
A44: I | B44: 19 | C44: E 3.2 | D44: Türen | E44: Treppenhaus:Eingangstüre | F44: =IFERROR(VLOOKUP(G44,Datenblätter!$B$3:$C$130,2,FALSE)," ") -> 1 | G44: ='Zustandserfassung '!G44 -> Treppenhaus:Eingangstüre | H44: =IF(OR('Zustandserfassung '!H44="Ende Lebensdauer",'Zustandserfassung '!H44="leichte Abnutzung ",'Zustandserfassung '!H44="grössere Abnutzung ",'Zustandserfassung '!H44="gut"),"Ende Lebensdauer"," ") -> Ende Lebensdauer | J44: =IFERROR(INDEX('Beschrieb Zustand'!$B$2:$G$130,MATCH('Sanierungsstrategie "Extra"'!G44,'Beschrieb Zustand'!$B$2:$B$130,0),MATCH('Sanierungsstrategie "Extra"'!Q44,'Beschrieb Zustand'!$B$2:$G$2,0))," ") -> Hauseingangstüre genügt den Anforderungen nicht mehr. Flügel und Rahmen stark beschädigt. Einbruchsicherheit nicht gewährleistet. | K44: =IFERROR(INDEX('Beschrieb Zustand'!$H$2:$L$130,MATCH('Sanierungsstrategie "Extra"'!G44,'Beschrieb Zustand'!$H$2:$H$130,0),MATCH('Sanierungsstrategie "Extra"'!Q44,'Beschrieb Zustand'!$H$2:$L$2,0))," ") -> Neue Hauseingangstüre mit guter Wärmedämmung inklusive Beschläge und Garnituren. Oberflächenbehandlung. | L44: =IFERROR(VLOOKUP(H44,Datenblätter!$A$137:$B$141,2,FALSE)," ") -> d | N44: =IFERROR(VLOOKUP(L44,Datenblätter!$B$137:$C$141,2,FALSE)," ") -> 4 | O44: =IFERROR(VLOOKUP(M44,Datenblätter!$B$137:$C$141,2,FALSE)," ") ->  | P44: 4 | Q44: =IFERROR(VLOOKUP(P44,Datenblätter!$H$137:$I$140,2,FALSE)," ") -> d | R44: =IFERROR(INDEX(Datenblätter!$B$2:$K$130,MATCH('Sanierungsstrategie "Extra"'!G44,Datenblätter!$B$2:$B$130,0),MATCH('Sanierungsstrategie "Extra"'!Q44,Datenblätter!$B$2:$K$2,0))," ") -> 2520 | S44: 5803.53984 | T44: x | U44: AT= | V44: =$G$13 -> 4 | W44: = | X44: 23200 | Y44: 0 | Z44: 0 | AA44: 0 | AB44: 0.3 | AC44: =IFERROR(HLOOKUP(Q44,$Y$20:AB44,25,)," ") -> 0.3 | AD44: 6960
A45: I | B45: 20 | C45: G 1.4 | D45: Innentür | E45: Wohnungstüren | F45: =IFERROR(VLOOKUP(G45,Datenblätter!$B$3:$C$130,2,FALSE)," ") -> 1 | G45: ='Zustandserfassung '!G45 -> Wohnungstüren | H45: =IF(OR('Zustandserfassung '!H45="Ende Lebensdauer",'Zustandserfassung '!H45="leichte Abnutzung ",'Zustandserfassung '!H45="grössere Abnutzung ",'Zustandserfassung '!H45="gut"),"Ende Lebensdauer"," ") -> Ende Lebensdauer | J45: =IFERROR(INDEX('Beschrieb Zustand'!$B$2:$G$130,MATCH('Sanierungsstrategie "Extra"'!G45,'Beschrieb Zustand'!$B$2:$B$130,0),MATCH('Sanierungsstrategie "Extra"'!Q45,'Beschrieb Zustand'!$B$2:$G$2,0))," ") -> Keine kostenwirksamen Massnahmen. | K45: =IFERROR(INDEX('Beschrieb Zustand'!$H$2:$L$130,MATCH('Sanierungsstrategie "Extra"'!G45,'Beschrieb Zustand'!$H$2:$H$130,0),MATCH('Sanierungsstrategie "Extra"'!Q45,'Beschrieb Zustand'!$H$2:$L$2,0))," ") -> Totalersatz Flügel und Rahmen, inkl. Schliessung und Spion. Oberflächenbehandlung innen und aussen. | L45: =IFERROR(VLOOKUP(H45,Datenblätter!$A$137:$B$141,2,FALSE)," ") -> d | N45: =IFERROR(VLOOKUP(L45,Datenblätter!$B$137:$C$141,2,FALSE)," ") -> 4 | O45: =IFERROR(VLOOKUP(M45,Datenblätter!$B$137:$C$141,2,FALSE)," ") ->  | P45: 4 | Q45: =IFERROR(VLOOKUP(P45,Datenblätter!$H$137:$I$140,2,FALSE)," ") -> d | R45: =IFERROR(INDEX(Datenblätter!$B$2:$K$130,MATCH('Sanierungsstrategie "Extra"'!G45,Datenblätter!$B$2:$B$130,0),MATCH('Sanierungsstrategie "Extra"'!Q45,Datenblätter!$B$2:$K$2,0))," ") -> 958 | S45: 2206.266336 | T45: x | U45: AW= | V45: =$G$14 -> 36 | W45: = | X45: 79400 | Y45: 0 | Z45: 0.1 | AA45: 0 | AB45: 0.3 | AC45: =IFERROR(HLOOKUP(Q45,$Y$20:AB45,26,)," ") -> 0.3 | AD45: 23820
A46: I | B46: 21 | C46: D 1 | D46: Elektroanlage | E46: Starkstrom:Hauszul,Messung,Vert. | F46: =IFERROR(VLOOKUP(G46,Datenblätter!$B$3:$C$130,2,FALSE)," ") -> 2 | G46: ='Zustandserfassung '!G46 -> Messung im Treppenhaus | H46: =IF(OR('Zustandserfassung '!H46="Ende Lebensdauer",'Zustandserfassung '!H46="leichte Abnutzung ",'Zustandserfassung '!H46="grössere Abnutzung ",'Zustandserfassung '!H46="gut"),"Ende Lebensdauer"," ") -> Ende Lebensdauer | J46: =IFERROR(INDEX('Beschrieb Zustand'!$B$2:$G$130,MATCH('Sanierungsstrategie "Extra"'!G46,'Beschrieb Zustand'!$B$2:$B$130,0),MATCH('Sanierungsstrategie "Extra"'!Q46,'Beschrieb Zustand'!$B$2:$G$2,0))," ") -> Messung und Hauptverteilung nicht zentral und allgemein zugänglich. Installationen entsprechen nicht den Vorschriften. Zu schwache Absicherung. Waschen/Trocknen und allfällige Kellersteckdosen ohne eigene Messung und Verrechnung. | K46: =IFERROR(INDEX('Beschrieb Zustand'!$H$2:$L$130,MATCH('Sanierungsstrategie "Extra"'!G46,'Beschrieb Zustand'!$H$2:$H$130,0),MATCH('Sanierungsstrategie "Extra"'!Q46,'Beschrieb Zustand'!$H$2:$L$2,0))," ") -> Versetzen der Messung und Hauptverteilung an allg. zugängliche Stelle. Neuinstallation Bezügerleitungen. Erhöhung der Absicherung auf 25 Ampère, inkl. Zählerumschaltung Waschen/Trocknen (individuelle Abrechnung). | L46: =IFERROR(VLOOKUP(H46,Datenblätter!$A$137:$B$141,2,FALSE)," ") -> d | M46: =IF($L$47="d","d"," ") -> d | N46: =IFERROR(VLOOKUP(L46,Datenblätter!$B$137:$C$141,2,FALSE)," ") -> 4 | O46: =IFERROR(VLOOKUP(M46,Datenblätter!$B$137:$C$141,2,FALSE)," ") -> 4 | P46: 4 | Q46: =IFERROR(VLOOKUP(P46,Datenblätter!$H$137:$I$140,2,FALSE)," ") -> d | R46: =IFERROR(INDEX(Datenblätter!$B$2:$K$130,MATCH('Sanierungsstrategie "Extra"'!G46,Datenblätter!$B$2:$B$130,0),MATCH('Sanierungsstrategie "Extra"'!Q46,Datenblätter!$B$2:$K$2,0))," ") -> 10 | S46: 23.02992 | T46: x | U46: FW= | V46: =$G$11 -> 2328 | W46: = | X46: 53600 | Y46: 0 | Z46: 0 | AA46: 0 | AB46: 0.3 | AC46: =IFERROR(HLOOKUP(Q46,$Y$20:AB46,27,)," ") -> 0.3 | AD46: 16080
A47: I | B47: 22 | C47: D 1 | D47: Elektroanlage | E47: Starkstrom:Gemeinanlagen | F47: =IFERROR(VLOOKUP(G47,Datenblätter!$B$3:$C$130,2,FALSE)," ") -> 1 | G47: ='Zustandserfassung '!G47 -> Starkstrom:Gemeinanlagen | H47: =IF(OR('Zustandserfassung '!H47="Ende Lebensdauer",'Zustandserfassung '!H47="leichte Abnutzung ",'Zustandserfassung '!H47="grössere Abnutzung ",'Zustandserfassung '!H47="gut"),"Ende Lebensdauer"," ") -> Ende Lebensdauer | J47: =IFERROR(INDEX('Beschrieb Zustand'!$B$2:$G$130,MATCH('Sanierungsstrategie "Extra"'!G47,'Beschrieb Zustand'!$B$2:$B$130,0),MATCH('Sanierungsstrategie "Extra"'!Q47,'Beschrieb Zustand'!$B$2:$G$2,0))," ") -> Veraltete Anlage. Widerspricht den Vorschriften. Freiliegende Drähte bei Anschlüssen. Allg. Beleuchtung zu schwach. | K47: =IFERROR(INDEX('Beschrieb Zustand'!$H$2:$L$130,MATCH('Sanierungsstrategie "Extra"'!G47,'Beschrieb Zustand'!$H$2:$H$130,0),MATCH('Sanierungsstrategie "Extra"'!Q47,'Beschrieb Zustand'!$H$2:$L$2,0))," ") -> Neuinstallation der gesamten Anlage. | L47: =IFERROR(VLOOKUP(H47,Datenblätter!$A$137:$B$141,2,FALSE)," ") -> d | N47: =IFERROR(VLOOKUP(L47,Datenblätter!$B$137:$C$141,2,FALSE)," ") -> 4 | O47: =IFERROR(VLOOKUP(M47,Datenblätter!$B$137:$C$141,2,FALSE)," ") ->  | P47: 4 | Q47: =IFERROR(VLOOKUP(P47,Datenblätter!$H$137:$I$140,2,FALSE)," ") -> d | R47: =IFERROR(INDEX(Datenblätter!$B$2:$K$130,MATCH('Sanierungsstrategie "Extra"'!G47,Datenblätter!$B$2:$B$130,0),MATCH('Sanierungsstrategie "Extra"'!Q47,Datenblätter!$B$2:$K$2,0))," ") -> 4 | S47: 9.211968 | T47: x | U47: FW= | V47: =$G$11 -> 2328 | W47: = | X47: 21400 | Y47: 0 | Z47: 0 | AA47: 0.1 | AB47: 0.3 | AC47: =IFERROR(HLOOKUP(Q47,$Y$20:AB47,28,)," ") -> 0.3 | AD47: 6420
A48: I | B48: 23 | C48: D 1 | D48: Elektroanlage | E48: Schwachstrom | F48: =IFERROR(VLOOKUP(G48,Datenblätter!$B$3:$C$130,2,FALSE)," ") -> 1 | G48: ='Zustandserfassung '!G48 -> Schwachstrom | H48: =IF(OR('Zustandserfassung '!H48="Ende Lebensdauer",'Zustandserfassung '!H48="leichte Abnutzung ",'Zustandserfassung '!H48="grössere Abnutzung ",'Zustandserfassung '!H48="gut"),"Ende Lebensdauer"," ") ->  | J48: =IFERROR(INDEX('Beschrieb Zustand'!$B$2:$G$130,MATCH('Sanierungsstrategie "Extra"'!G48,'Beschrieb Zustand'!$B$2:$B$130,0),MATCH('Sanierungsstrategie "Extra"'!Q48,'Beschrieb Zustand'!$B$2:$G$2,0))," ") ->  | K48: =IFERROR(INDEX('Beschrieb Zustand'!$H$2:$L$130,MATCH('Sanierungsstrategie "Extra"'!G48,'Beschrieb Zustand'!$H$2:$H$130,0),MATCH('Sanierungsstrategie "Extra"'!Q48,'Beschrieb Zustand'!$H$2:$L$2,0))," ") ->  | L48: =IFERROR(VLOOKUP(H48,Datenblätter!$A$137:$B$141,2,FALSE)," ") ->  | N48: =IFERROR(VLOOKUP(L48,Datenblätter!$B$137:$C$141,2,FALSE)," ") ->  | O48: =IFERROR(VLOOKUP(M48,Datenblätter!$B$137:$C$141,2,FALSE)," ") ->  | Q48: =IFERROR(VLOOKUP(P48,Datenblätter!$H$137:$I$140,2,FALSE)," ") ->  | R48: =IFERROR(INDEX(Datenblätter!$B$2:$K$130,MATCH('Sanierungsstrategie "Extra"'!G48,Datenblätter!$B$2:$B$130,0),MATCH('Sanierungsstrategie "Extra"'!Q48,Datenblätter!$B$2:$K$2,0))," ") ->  | T48: x | U48: AW= | V48: =$G$14 -> 36 | W48: = | Y48: 0 | Z48: 0 | AA48: 0.1 | AB48: 0.2 | AC48: =IFERROR(HLOOKUP(Q48,$Y$20:AB48,29,)," ") -> 
A49: I | B49: 24 | C49: D 9 | D49: Transportanlage | E49: Aufzug | F49: =IFERROR(VLOOKUP(G49,Datenblätter!$B$3:$C$130,2,FALSE)," ") -> 1 | G49: ='Zustandserfassung '!G49 -> Aufzug | H49: =IF(OR('Zustandserfassung '!H49="Ende Lebensdauer",'Zustandserfassung '!H49="leichte Abnutzung ",'Zustandserfassung '!H49="grössere Abnutzung ",'Zustandserfassung '!H49="gut"),"Ende Lebensdauer"," ") ->  | J49: =IFERROR(INDEX('Beschrieb Zustand'!$B$2:$G$130,MATCH('Sanierungsstrategie "Extra"'!G49,'Beschrieb Zustand'!$B$2:$B$130,0),MATCH('Sanierungsstrategie "Extra"'!Q49,'Beschrieb Zustand'!$B$2:$G$2,0))," ") ->  | K49: =IFERROR(INDEX('Beschrieb Zustand'!$H$2:$L$130,MATCH('Sanierungsstrategie "Extra"'!G49,'Beschrieb Zustand'!$H$2:$H$130,0),MATCH('Sanierungsstrategie "Extra"'!Q49,'Beschrieb Zustand'!$H$2:$L$2,0))," ") ->  | L49: =IFERROR(VLOOKUP(H49,Datenblätter!$A$137:$B$141,2,FALSE)," ") ->  | N49: =IFERROR(VLOOKUP(L49,Datenblätter!$B$137:$C$141,2,FALSE)," ") ->  | O49: =IFERROR(VLOOKUP(M49,Datenblätter!$B$137:$C$141,2,FALSE)," ") ->  | Q49: =IFERROR(VLOOKUP(P49,Datenblätter!$H$137:$I$140,2,FALSE)," ") ->  | R49: =IFERROR(INDEX(Datenblätter!$B$2:$K$130,MATCH('Sanierungsstrategie "Extra"'!G49,Datenblätter!$B$2:$B$130,0),MATCH('Sanierungsstrategie "Extra"'!Q49,Datenblätter!$B$2:$K$2,0))," ") ->  | T49: x | U49: ATxAWG= | V49: =$G$13*$G$10 -> 12 | W49: = | Y49: 0 | Z49: 0 | AA49: 0.1 | AB49: 0.3 | AC49: =IFERROR(HLOOKUP(Q49,$Y$20:AB49,30,)," ") -> 
C50: Dach und Dachraum | F50: =IFERROR(VLOOKUP(G50,Datenblätter!$B$3:$C$130,2,FALSE)," ") ->  | L50: =IFERROR(VLOOKUP(H50,Datenblätter!$A$137:$B$141,2,FALSE)," ") ->  | N50: =IFERROR(VLOOKUP(L50,Datenblätter!$B$137:$C$141,2,FALSE)," ") ->  | O50: =IFERROR(VLOOKUP(M50,Datenblätter!$B$137:$C$141,2,FALSE)," ") ->  | Q50: =IFERROR(VLOOKUP(P50,Datenblätter!$H$137:$I$140,2,FALSE)," ") ->  | R50: =IFERROR(INDEX(Datenblätter!$B$2:$K$130,MATCH('Sanierungsstrategie "Extra"'!G50,Datenblätter!$B$2:$B$130,0),MATCH('Sanierungsstrategie "Extra"'!Q50,Datenblätter!$B$2:$K$2,0))," ") -> 
A51: A | B51: 25 | C51: C | D51: Konstruktion Gebäude | E51: Tragwerk Dach | F51: =IFERROR(VLOOKUP(G51,Datenblätter!$B$3:$C$130,2,FALSE)," ") -> 1 | G51: ='Zustandserfassung '!G51 -> Tragwerk Dach | H51: =IF(OR('Zustandserfassung '!H51="Ende Lebensdauer",'Zustandserfassung '!H51="leichte Abnutzung ",'Zustandserfassung '!H51="grössere Abnutzung ",'Zustandserfassung '!H51="gut"),"Ende Lebensdauer"," ") -> Ende Lebensdauer | I51: =IFERROR(IF(L51=Q51," ", "übersteuert")," ") ->  | J51: =IFERROR(INDEX('Beschrieb Zustand'!$B$2:$G$130,MATCH('Sanierungsstrategie "Extra"'!G51,'Beschrieb Zustand'!$B$2:$B$130,0),MATCH('Sanierungsstrategie "Extra"'!Q51,'Beschrieb Zustand'!$B$2:$G$2,0))," ") -> Wichtige Teile des Tragwerkes sind zerstört durch Holzfäule oder Insektenbefall (Hausbock). Tragfähig- keit von Verbindungen beeinträchtigt. | K51: =IFERROR(INDEX('Beschrieb Zustand'!$H$2:$L$130,MATCH('Sanierungsstrategie "Extra"'!G51,'Beschrieb Zustand'!$H$2:$H$130,0),MATCH('Sanierungsstrategie "Extra"'!Q51,'Beschrieb Zustand'!$H$2:$L$2,0))," ") -> Zusatzabklärung: Zimmermann. Vollständiger Ersatz des Tragwerkes. | L51: =IFERROR(VLOOKUP(H51,Datenblätter!$A$137:$B$141,2,FALSE)," ") -> d | N51: =IFERROR(VLOOKUP(L51,Datenblätter!$B$137:$C$141,2,FALSE)," ") -> 4 | O51: =IFERROR(VLOOKUP(M51,Datenblätter!$B$137:$C$141,2,FALSE)," ") ->  | P51: 4 | Q51: =IFERROR(VLOOKUP(P51,Datenblätter!$H$137:$I$140,2,FALSE)," ") -> d | R51: =IFERROR(INDEX(Datenblätter!$B$2:$K$130,MATCH('Sanierungsstrategie "Extra"'!G51,Datenblätter!$B$2:$B$130,0),MATCH('Sanierungsstrategie "Extra"'!Q51,Datenblätter!$B$2:$K$2,0))," ") -> 99 | S51: =IFERROR(R51*$K$9*$K$14," ") -> 227.996208 | T51: x | U51: GRG= | V51: =$G$5 -> 776 | W51: = | X51: =IFERROR(ROUND(V51*S51,-2), " ") -> 176900 | Y51: 0 | Z51: 0 | AA51: 0 | AB51: 0 | AC51: =IFERROR(HLOOKUP(Q51,$Y$20:AB51,32,)," ") -> 0 | AD51: =IFERROR(X51*AC51," ") -> 0
A52: A | B52: 26 | C52: =IF(G52="Steildach","F 1.3","F1.2") -> F 1.3 | D52: Dachhaut | E52: Dachdeckung | F52: =IFERROR(VLOOKUP(G52,Datenblätter!$B$3:$C$130,2,FALSE)," ") -> 1 | G52: ='Zustandserfassung '!G52 -> Steildach | H52: =IF(OR('Zustandserfassung '!H52="Ende Lebensdauer",'Zustandserfassung '!H52="leichte Abnutzung ",'Zustandserfassung '!H52="grössere Abnutzung ",'Zustandserfassung '!H52="gut"),"Ende Lebensdauer"," ") -> Ende Lebensdauer | J52: =IFERROR(INDEX('Beschrieb Zustand'!$B$2:$G$130,MATCH('Sanierungsstrategie "Extra"'!G52,'Beschrieb Zustand'!$B$2:$B$130,0),MATCH('Sanierungsstrategie "Extra"'!Q52,'Beschrieb Zustand'!$B$2:$G$2,0))," ") -> Deckung erheblich beschädigt. Verbreitet Wassereinritte. Lattung teilweise verfault. | K52: =IFERROR(INDEX('Beschrieb Zustand'!$H$2:$L$130,MATCH('Sanierungsstrategie "Extra"'!G52,'Beschrieb Zustand'!$H$2:$H$130,0),MATCH('Sanierungsstrategie "Extra"'!Q52,'Beschrieb Zustand'!$H$2:$L$2,0))," ") -> Dachdeckung vollständig ersetzen inkl. Ziegel- und Konterlattung. Holzabschlüsse ersetzen und strei- chen. Metallteile auswechseln. | L52: =IFERROR(VLOOKUP(H52,Datenblätter!$A$137:$B$141,2,FALSE)," ") -> d | M52: =IF(AND(F52=1,$L$51="c"),"c"," ")&IF(AND(F52=1,$L$51="d"),"d"," ") -> d | N52: =IFERROR(VLOOKUP(L52,Datenblätter!$B$137:$C$141,2,FALSE)," ") -> 4 | O52: =IFERROR(VLOOKUP(M52,Datenblätter!$B$137:$C$141,2,FALSE)," ") ->  | P52: 4 | Q52: =IFERROR(VLOOKUP(P52,Datenblätter!$H$137:$I$140,2,FALSE)," ") -> d | R52: =IFERROR(INDEX(Datenblätter!$B$2:$K$130,MATCH('Sanierungsstrategie "Extra"'!G52,Datenblätter!$B$2:$B$130,0),MATCH('Sanierungsstrategie "Extra"'!Q52,Datenblätter!$B$2:$K$2,0))," ") -> 114 | S52: 262.541088 | T52: x | U52: GRG= | V52: 776 | W52: = | X52: 203700 | Y52: 0 | Z52: 0 | AA52: 0 | AB52: 0.2 | AC52: =IFERROR(HLOOKUP(Q52,$Y$20:AB52,33,)," ") -> 0.2 | AD52: 40740
A53: A | B53: 27 | C53: =IF(G52="Steildach","F 1.3","F1.2") -> F 1.3 | D53: Dachhaut | E53: Dachaufbauten massiv | F53: =IFERROR(VLOOKUP(G53,Datenblätter!$B$3:$C$130,2,FALSE)," ") -> 1 | G53: ='Zustandserfassung '!G53 -> Dachbauten massiv | H53: =IF(OR('Zustandserfassung '!H53="Ende Lebensdauer",'Zustandserfassung '!H53="leichte Abnutzung ",'Zustandserfassung '!H53="grössere Abnutzung ",'Zustandserfassung '!H53="gut"),"Ende Lebensdauer"," ") ->  | J53: =IFERROR(INDEX('Beschrieb Zustand'!$B$2:$G$130,MATCH('Sanierungsstrategie "Extra"'!G53,'Beschrieb Zustand'!$B$2:$B$130,0),MATCH('Sanierungsstrategie "Extra"'!Q53,'Beschrieb Zustand'!$B$2:$G$2,0))," ") ->  | K53: =IFERROR(INDEX('Beschrieb Zustand'!$H$2:$L$130,MATCH('Sanierungsstrategie "Extra"'!G53,'Beschrieb Zustand'!$H$2:$H$130,0),MATCH('Sanierungsstrategie "Extra"'!Q53,'Beschrieb Zustand'!$H$2:$L$2,0))," ") ->  | L53: =IFERROR(VLOOKUP(H53,Datenblätter!$A$137:$B$141,2,FALSE)," ") ->  | M53: =IF(AND(F56=1,OR(L56="d",M56="d")),"d"," ") ->  | N53: =IFERROR(VLOOKUP(L53,Datenblätter!$B$137:$C$141,2,FALSE)," ") ->  | O53: =IFERROR(VLOOKUP(M53,Datenblätter!$B$137:$C$141,2,FALSE)," ") ->  | Q53: =IFERROR(VLOOKUP(P53,Datenblätter!$H$137:$I$140,2,FALSE)," ") ->  | R53: =IFERROR(INDEX(Datenblätter!$B$2:$K$130,MATCH('Sanierungsstrategie "Extra"'!G53,Datenblätter!$B$2:$B$130,0),MATCH('Sanierungsstrategie "Extra"'!Q53,Datenblätter!$B$2:$K$2,0))," ") ->  | T53: x | U53: GRG= | V53: 776 | W53: = | Y53: 0 | Z53: 0 | AA53: 0 | AB53: 0.2 | AC53: =IFERROR(HLOOKUP(Q53,$Y$20:AB53,34,)," ") -> 
A54: A | B54: 28 | C54: F 2 | D54: Einbaute zu Dach | E54: Dachaufbauten Glas | F54: =IFERROR(VLOOKUP(G54,Datenblätter!$B$3:$C$130,2,FALSE)," ") -> 1 | G54: ='Zustandserfassung '!G54 -> Dachaufbauten Glas | H54: =IF(OR('Zustandserfassung '!H54="Ende Lebensdauer",'Zustandserfassung '!H54="leichte Abnutzung ",'Zustandserfassung '!H54="grössere Abnutzung ",'Zustandserfassung '!H54="gut"),"Ende Lebensdauer"," ") -> Ende Lebensdauer | J54: =IFERROR(INDEX('Beschrieb Zustand'!$B$2:$G$130,MATCH('Sanierungsstrategie "Extra"'!G54,'Beschrieb Zustand'!$B$2:$B$130,0),MATCH('Sanierungsstrategie "Extra"'!Q54,'Beschrieb Zustand'!$B$2:$G$2,0))," ") -> Konstruktion rostig. Verglasung defekt, Kondenswasser. Abdichtungen gelöst und undicht. An- und Abschlüsse sind beschädigt. | K54: =IFERROR(INDEX('Beschrieb Zustand'!$H$2:$L$130,MATCH('Sanierungsstrategie "Extra"'!G54,'Beschrieb Zustand'!$H$2:$H$130,0),MATCH('Sanierungsstrategie "Extra"'!Q54,'Beschrieb Zustand'!$H$2:$L$2,0))," ") -> Ersatz der ganzen Konstruktion mit Verglasung und allen An- und Abschlüssen. | L54: =IFERROR(VLOOKUP(H54,Datenblätter!$A$137:$B$141,2,FALSE)," ") -> d | N54: =IFERROR(VLOOKUP(L54,Datenblätter!$B$137:$C$141,2,FALSE)," ") -> 4 | O54: =IFERROR(VLOOKUP(M54,Datenblätter!$B$137:$C$141,2,FALSE)," ") ->  | P54: 4 | Q54: =IFERROR(VLOOKUP(P54,Datenblätter!$H$137:$I$140,2,FALSE)," ") -> d | R54: =IFERROR(INDEX(Datenblätter!$B$2:$K$130,MATCH('Sanierungsstrategie "Extra"'!G54,Datenblätter!$B$2:$B$130,0),MATCH('Sanierungsstrategie "Extra"'!Q54,Datenblätter!$B$2:$K$2,0))," ") -> 58 | S54: 133.573536 | T54: x | U54: GRG= | V54: 776 | W54: = | X54: 103700 | Y54: 0 | Z54: 0 | AA54: 0 | AB54: 0.3 | AC54: =IFERROR(HLOOKUP(Q54,$Y$20:AB54,35,)," ") -> 0.3 | AD54: 31110
A55: A | B55: 29 | C55: F 2 | D55: Einbaute zu Dach | E55: Dachgauben | F55: =IFERROR(VLOOKUP(G55,Datenblätter!$B$3:$C$130,2,FALSE)," ") -> 1 | G55: ='Zustandserfassung '!G55 -> Dachgauben | H55: =IF(OR('Zustandserfassung '!H55="Ende Lebensdauer",'Zustandserfassung '!H55="leichte Abnutzung ",'Zustandserfassung '!H55="grössere Abnutzung ",'Zustandserfassung '!H55="gut"),"Ende Lebensdauer"," ") ->  | J55: =IFERROR(INDEX('Beschrieb Zustand'!$B$2:$G$130,MATCH('Sanierungsstrategie "Extra"'!G55,'Beschrieb Zustand'!$B$2:$B$130,0),MATCH('Sanierungsstrategie "Extra"'!Q55,'Beschrieb Zustand'!$B$2:$G$2,0))," ") ->  | K55: =IFERROR(INDEX('Beschrieb Zustand'!$H$2:$L$130,MATCH('Sanierungsstrategie "Extra"'!G55,'Beschrieb Zustand'!$H$2:$H$130,0),MATCH('Sanierungsstrategie "Extra"'!Q55,'Beschrieb Zustand'!$H$2:$L$2,0))," ") ->  | L55: =IFERROR(VLOOKUP(H55,Datenblätter!$A$137:$B$141,2,FALSE)," ") ->  | N55: =IFERROR(VLOOKUP(L55,Datenblätter!$B$137:$C$141,2,FALSE)," ") ->  | O55: =IFERROR(VLOOKUP(M55,Datenblätter!$B$137:$C$141,2,FALSE)," ") ->  | Q55: =IFERROR(VLOOKUP(P55,Datenblätter!$H$137:$I$140,2,FALSE)," ") ->  | R55: =IFERROR(INDEX(Datenblätter!$B$2:$K$130,MATCH('Sanierungsstrategie "Extra"'!G55,Datenblätter!$B$2:$B$130,0),MATCH('Sanierungsstrategie "Extra"'!Q55,Datenblätter!$B$2:$K$2,0))," ") ->  | T55: x | U55: GRG= | V55: 776 | W55: = | Y55: 0 | Z55: 0 | AA55: 0 | AB55: 0.5 | AC55: =IFERROR(HLOOKUP(Q55,$Y$20:AB55,36,)," ") -> 
A56: AE | B56: 30 | C56: F (energetisch) | D56: Bedachung Gebäude | E56: Dach Wärmedämmung | F56: =IFERROR(VLOOKUP(G56,Datenblätter!$B$3:$C$130,2,FALSE)," ") -> 2 | G56: ='Zustandserfassung '!G56 -> Steildach,Dachgeschoss nicht ausgebaut | H56: =IF(OR('Zustandserfassung '!H56="Ende Lebensdauer",'Zustandserfassung '!H56="leichte Abnutzung ",'Zustandserfassung '!H56="grössere Abnutzung ",'Zustandserfassung '!H56="gut"),"Ende Lebensdauer"," ") -> Ende Lebensdauer | J56: =IFERROR(INDEX('Beschrieb Zustand'!$B$2:$G$130,MATCH('Sanierungsstrategie "Extra"'!G56,'Beschrieb Zustand'!$B$2:$B$130,0),MATCH('Sanierungsstrategie "Extra"'!Q56,'Beschrieb Zustand'!$B$2:$G$2,0))," ") -> Wärmedämmung unvollständig oder Stärke der Dämmschicht ist ungenügend. | K56: =IFERROR(INDEX('Beschrieb Zustand'!$H$2:$L$130,MATCH('Sanierungsstrategie "Extra"'!G56,'Beschrieb Zustand'!$H$2:$H$130,0),MATCH('Sanierungsstrategie "Extra"'!Q56,'Beschrieb Zustand'!$H$2:$L$2,0))," ") -> Entfernung der bestehenden Wärmedämmung. Neue Wärmedämmung mit Gehbelag auf Estrichboden. Energiebilanz und Prüfung auf Wärmebrücken durchführen. | L56: =IFERROR(VLOOKUP(H56,Datenblätter!$A$137:$B$141,2,FALSE)," ") -> d | M56: =IF(AND(OR(F52=2,F52=3),OR(M52="d",L52="d"),F56=3),"d"," ") ->  | N56: =IFERROR(VLOOKUP(L56,Datenblätter!$B$137:$C$141,2,FALSE)," ") -> 4 | O56: =IFERROR(VLOOKUP(M56,Datenblätter!$B$137:$C$141,2,FALSE)," ") ->  | P56: 4 | Q56: =IFERROR(VLOOKUP(P56,Datenblätter!$H$137:$I$140,2,FALSE)," ") -> d | R56: =IFERROR(INDEX(Datenblätter!$B$2:$K$130,MATCH('Sanierungsstrategie "Extra"'!G56,Datenblätter!$B$2:$B$130,0),MATCH('Sanierungsstrategie "Extra"'!Q56,Datenblätter!$B$2:$K$2,0))," ") -> 54 | S56: 124.361568 | T56: x | U56: GRG= | V56: 776 | W56: = | X56: 96500 | Y56: 0 | Z56: 0 | AA56: 0 | AB56: 1 | AC56: =IFERROR(HLOOKUP(Q56,$Y$20:AB56,37,)," ") -> 1 | AD56: 96500
A57: A | B57: 31 | C57: =IF(G57="Steildach","F 1.3","F1.2") -> F 1.3 | D57: Dachhaut | E57: Dachabschlüsse | F57: =IFERROR(VLOOKUP(G57,Datenblätter!$B$3:$C$130,2,FALSE)," ") -> 1 | G57: ='Zustandserfassung '!G57 -> Steildach | H57: =IF(OR('Zustandserfassung '!H57="Ende Lebensdauer",'Zustandserfassung '!H57="leichte Abnutzung ",'Zustandserfassung '!H57="grössere Abnutzung ",'Zustandserfassung '!H57="gut"),"Ende Lebensdauer"," ") -> Ende Lebensdauer | J57: =IFERROR(INDEX('Beschrieb Zustand'!$B$2:$G$130,MATCH('Sanierungsstrategie "Extra"'!G57,'Beschrieb Zustand'!$B$2:$B$130,0),MATCH('Sanierungsstrategie "Extra"'!Q57,'Beschrieb Zustand'!$B$2:$G$2,0))," ") -> Deckung erheblich beschädigt. Verbreitet Wassereinritte. Lattung teilweise verfault. | K57: =IFERROR(INDEX('Beschrieb Zustand'!$H$2:$L$130,MATCH('Sanierungsstrategie "Extra"'!G57,'Beschrieb Zustand'!$H$2:$H$130,0),MATCH('Sanierungsstrategie "Extra"'!Q57,'Beschrieb Zustand'!$H$2:$L$2,0))," ") -> Dachdeckung vollständig ersetzen inkl. Ziegel- und Konterlattung. Holzabschlüsse ersetzen und strei- chen. Metallteile auswechseln. | L57: =IFERROR(VLOOKUP(H57,Datenblätter!$A$137:$B$141,2,FALSE)," ") -> d | M57: =IF($L$29="d","d"," ")&_xlfn.IFS(OR(L52="d",M52="d"),"d",OR(L52="b",M52="b"),"b")&IF(AND(F56=1,F56=3,OR(L56="c",L56="d",M56="c",M56="d")),"d"," ") -> dd | N57: =IFERROR(VLOOKUP(L57,Datenblätter!$B$137:$C$141,2,FALSE)," ") -> 4 | O57: =IFERROR(VLOOKUP(M57,Datenblätter!$B$137:$C$141,2,FALSE)," ") ->  | P57: 4 | Q57: =IFERROR(VLOOKUP(P57,Datenblätter!$H$137:$I$140,2,FALSE)," ") -> d | R57: =IFERROR(INDEX(Datenblätter!$B$2:$K$130,MATCH('Sanierungsstrategie "Extra"'!G57,Datenblätter!$B$2:$B$130,0),MATCH('Sanierungsstrategie "Extra"'!Q57,Datenblätter!$B$2:$K$2,0))," ") -> 114 | S57: 262.541088 | T57: x | U57: GRG= | V57: 776 | W57: = | X57: 203700 | Y57: 0 | Z57: 0 | AA57: 0 | AB57: 0.2 | AC57: =IFERROR(HLOOKUP(Q57,$Y$20:AB57,38,)," ") -> 0.2 | AD57: 40740
A58: I | B58: 32 | C58: G 1.4 | D58: Ausbau Gebäude | E58: Dachraum | F58: =IFERROR(VLOOKUP(G58,Datenblätter!$B$3:$C$130,2,FALSE)," ") -> 1 | G58: ='Zustandserfassung '!G58 -> Dachraum | H58: =IF(OR('Zustandserfassung '!H58="Ende Lebensdauer",'Zustandserfassung '!H58="leichte Abnutzung ",'Zustandserfassung '!H58="grössere Abnutzung ",'Zustandserfassung '!H58="gut"),"Ende Lebensdauer"," ") -> Ende Lebensdauer | J58: =IFERROR(INDEX('Beschrieb Zustand'!$B$2:$G$130,MATCH('Sanierungsstrategie "Extra"'!G58,'Beschrieb Zustand'!$B$2:$B$130,0),MATCH('Sanierungsstrategie "Extra"'!Q58,'Beschrieb Zustand'!$B$2:$G$2,0))," ") -> Räume schlecht aufgeteilt. Türen zum Treppenhaus und Lattenverschläge erheblich beschädigt. Elektrische Anlagen veraltet. | K58: =IFERROR(INDEX('Beschrieb Zustand'!$H$2:$L$130,MATCH('Sanierungsstrategie "Extra"'!G58,'Beschrieb Zustand'!$H$2:$H$130,0),MATCH('Sanierungsstrategie "Extra"'!Q58,'Beschrieb Zustand'!$H$2:$L$2,0))," ") -> Neue Abschlusstüren, Lattenverschläge und Elektro- installationen. | L58: =IFERROR(VLOOKUP(H58,Datenblätter!$A$137:$B$141,2,FALSE)," ") -> d | N58: =IFERROR(VLOOKUP(L58,Datenblätter!$B$137:$C$141,2,FALSE)," ") -> 4 | O58: =IFERROR(VLOOKUP(M58,Datenblätter!$B$137:$C$141,2,FALSE)," ") ->  | P58: 4 | Q58: =IFERROR(VLOOKUP(P58,Datenblätter!$H$137:$I$140,2,FALSE)," ") -> d | R58: =IFERROR(INDEX(Datenblätter!$B$2:$K$130,MATCH('Sanierungsstrategie "Extra"'!G58,Datenblätter!$B$2:$B$130,0),MATCH('Sanierungsstrategie "Extra"'!Q58,Datenblätter!$B$2:$K$2,0))," ") -> 26 | S58: 59.877792 | T58: x | U58: GRG= | V58: 776 | W58: = | X58: 46500 | Y58: 0 | Z58: 0 | AA58: 0.1 | AB58: 0.3 | AC58: =IFERROR(HLOOKUP(Q58,$Y$20:AB58,39,)," ") -> 0.3 | AD58: 13950
C59: Wohnungen: Allgemein | F59: =IFERROR(VLOOKUP(G59,Datenblätter!$B$3:$C$130,2,FALSE)," ") ->  | N59: =IFERROR(VLOOKUP(L59,Datenblätter!$B$137:$C$141,2,FALSE)," ") ->  | O59: =IFERROR(VLOOKUP(M59,Datenblätter!$B$137:$C$141,2,FALSE)," ") ->  | Q59: =IFERROR(VLOOKUP(P59,Datenblätter!$H$137:$I$140,2,FALSE)," ") ->  | R59: =IFERROR(INDEX(Datenblätter!$B$2:$K$130,MATCH('Sanierungsstrategie "Extra"'!G59,Datenblätter!$B$2:$B$130,0),MATCH('Sanierungsstrategie "Extra"'!Q59,Datenblätter!$B$2:$K$2,0))," ") -> 
A60: I | B60: 33 | C60: D 1 | D60: Elektroanlage | E60: Elektroanlagen Wohnungen | F60: =IFERROR(VLOOKUP(G60,Datenblätter!$B$3:$C$130,2,FALSE)," ") -> 1 | G60: ='Zustandserfassung '!G60 -> Elektroanlagen Wohnungen | H60: =IF(OR('Zustandserfassung '!H60="Ende Lebensdauer",'Zustandserfassung '!H60="leichte Abnutzung ",'Zustandserfassung '!H60="grössere Abnutzung ",'Zustandserfassung '!H60="gut"),"Ende Lebensdauer"," ") -> Ende Lebensdauer | I60: =IFERROR(IF(L60=Q60," ", "übersteuert")," ") ->  | J60: =IFERROR(INDEX('Beschrieb Zustand'!$B$2:$G$130,MATCH('Sanierungsstrategie "Extra"'!G60,'Beschrieb Zustand'!$B$2:$B$130,0),MATCH('Sanierungsstrategie "Extra"'!Q60,'Beschrieb Zustand'!$B$2:$G$2,0))," ") -> Installationen veraltet, entsprechen nicht mehr den Vorschriften. Alte Aufputzleitungen. Zu schwache Absicherung, minimale Beleuchtung. | K60: =IFERROR(INDEX('Beschrieb Zustand'!$H$2:$L$130,MATCH('Sanierungsstrategie "Extra"'!G60,'Beschrieb Zustand'!$H$2:$H$130,0),MATCH('Sanierungsstrategie "Extra"'!Q60,'Beschrieb Zustand'!$H$2:$L$2,0))," ") -> Totalersatz der Elektroinstallationen. Neue Unterverteilung abgesichert 10 Ampère mit Fehlerstrom- schutzschalter, Drahtauswechslungen. | L60: =IFERROR(VLOOKUP(H60,Datenblätter!$A$137:$B$141,2,FALSE)," ") -> d | N60: =IFERROR(VLOOKUP(L60,Datenblätter!$B$137:$C$141,2,FALSE)," ") -> 4 | O60: =IFERROR(VLOOKUP(M60,Datenblätter!$B$137:$C$141,2,FALSE)," ") ->  | P60: 4 | Q60: =IFERROR(VLOOKUP(P60,Datenblätter!$H$137:$I$140,2,FALSE)," ") -> d | R60: =IFERROR(INDEX(Datenblätter!$B$2:$K$130,MATCH('Sanierungsstrategie "Extra"'!G60,Datenblätter!$B$2:$B$130,0),MATCH('Sanierungsstrategie "Extra"'!Q60,Datenblätter!$B$2:$K$2,0))," ") -> 46 | S60: =IFERROR(R60*$K$9*$K$14," ") -> 105.937632 | T60: x | U60: FW= | V60: =$G$11 -> 2328 | W60: = | X60: =IFERROR(ROUND(V60*S60,-2), " ") -> 246600 | Y60: 0 | Z60: 0 | AA60: 0.2 | AB60: 0.3 | AC60: =IFERROR(HLOOKUP(Q60,$Y$20:AB60,41,)," ") -> 0.3 | AD60: =IFERROR(X60*AC60," ") -> 73980
A61: I | B61: 34 | C61: D 5.3 | D61: Wärmehauptverteilung | E61: Wärmeabgabe | F61: =IFERROR(VLOOKUP(G61,Datenblätter!$B$3:$C$130,2,FALSE)," ") -> 1 | G61: ='Zustandserfassung '!G61 -> Heizkörper | H61: =IF(OR('Zustandserfassung '!H61="Ende Lebensdauer",'Zustandserfassung '!H61="leichte Abnutzung ",'Zustandserfassung '!H61="grössere Abnutzung ",'Zustandserfassung '!H61="gut"),"Ende Lebensdauer"," ") -> Ende Lebensdauer | J61: =IFERROR(INDEX('Beschrieb Zustand'!$B$2:$G$130,MATCH('Sanierungsstrategie "Extra"'!G61,'Beschrieb Zustand'!$B$2:$B$130,0),MATCH('Sanierungsstrategie "Extra"'!Q61,'Beschrieb Zustand'!$B$2:$G$2,0))," ") -> Sämtliche Heizkörper veraltet, beschädigt und schlecht regulierbar. Standorte falsch. | K61: =IFERROR(INDEX('Beschrieb Zustand'!$H$2:$L$130,MATCH('Sanierungsstrategie "Extra"'!G61,'Beschrieb Zustand'!$H$2:$H$130,0),MATCH('Sanierungsstrategie "Extra"'!Q61,'Beschrieb Zustand'!$H$2:$L$2,0))," ") -> Ersatz durch neue Heizkörper mit Thermostatventilen. Energieberater beiziehen. | L61: =IFERROR(VLOOKUP(H61,Datenblätter!$A$137:$B$141,2,FALSE)," ") -> d | N61: =IFERROR(VLOOKUP(L61,Datenblätter!$B$137:$C$141,2,FALSE)," ") -> 4 | O61: =IFERROR(VLOOKUP(M61,Datenblätter!$B$137:$C$141,2,FALSE)," ") ->  | P61: 4 | Q61: =IFERROR(VLOOKUP(P61,Datenblätter!$H$137:$I$140,2,FALSE)," ") -> d | R61: =IFERROR(INDEX(Datenblätter!$B$2:$K$130,MATCH('Sanierungsstrategie "Extra"'!G61,Datenblätter!$B$2:$B$130,0),MATCH('Sanierungsstrategie "Extra"'!Q61,Datenblätter!$B$2:$K$2,0))," ") -> 39 | S61: 89.816688 | T61: x | U61: FW= | V61: =$G$11 -> 2328 | W61: = | X61: 209100 | Y61: 0 | Z61: 0 | AA61: 0.2 | AB61: 0.3 | AC61: =IFERROR(HLOOKUP(Q61,$Y$20:AB61,42,)," ") -> 0.3 | AD61: 62730
A62: I | B62: 35 | C62: D 8.4 | D62: Versorgungsleitung | E62: Kaltwasserverteilung | F62: =IFERROR(VLOOKUP(G62,Datenblätter!$B$3:$C$130,2,FALSE)," ") -> 1 | G62: ='Zustandserfassung '!G62 -> Kaltwasserverteilung | H62: =IF(OR('Zustandserfassung '!H62="Ende Lebensdauer",'Zustandserfassung '!H62="leichte Abnutzung ",'Zustandserfassung '!H62="grössere Abnutzung ",'Zustandserfassung '!H62="gut"),"Ende Lebensdauer"," ") -> Ende Lebensdauer | J62: =IFERROR(INDEX('Beschrieb Zustand'!$B$2:$G$130,MATCH('Sanierungsstrategie "Extra"'!G62,'Beschrieb Zustand'!$B$2:$B$130,0),MATCH('Sanierungsstrategie "Extra"'!Q62,'Beschrieb Zustand'!$B$2:$G$2,0))," ") -> Ganzes Leitungsnetz beschädigt oder korrodiert. Schlechter Durchfluss infolge Verkalkung. Leitungsarmaturen undicht oder schlecht regulierbar. | K62: =IFERROR(INDEX('Beschrieb Zustand'!$H$2:$L$130,MATCH('Sanierungsstrategie "Extra"'!G62,'Beschrieb Zustand'!$H$2:$H$130,0),MATCH('Sanierungsstrategie "Extra"'!Q62,'Beschrieb Zustand'!$H$2:$L$2,0))," ") -> Totalersatz des Leitungsnetzes inkl. Dämmung und Einbau von Durchflussbegrenzern. | L62: =IFERROR(VLOOKUP(H62,Datenblätter!$A$137:$B$141,2,FALSE)," ") -> d | N62: =IFERROR(VLOOKUP(L62,Datenblätter!$B$137:$C$141,2,FALSE)," ") -> 4 | O62: =IFERROR(VLOOKUP(M62,Datenblätter!$B$137:$C$141,2,FALSE)," ") ->  | P62: 4 | Q62: =IFERROR(VLOOKUP(P62,Datenblätter!$H$137:$I$140,2,FALSE)," ") -> d | R62: =IFERROR(INDEX(Datenblätter!$B$2:$K$130,MATCH('Sanierungsstrategie "Extra"'!G62,Datenblätter!$B$2:$B$130,0),MATCH('Sanierungsstrategie "Extra"'!Q62,Datenblätter!$B$2:$K$2,0))," ") -> 1596 | S62: 3675.575232 | T62: x | U62: AW= | V62: =$G$14 -> 36 | W62: = | X62: 132300 | Y62: 0 | Z62: 0 | AA62: 0 | AB62: 0.2 | AC62: =IFERROR(HLOOKUP(Q62,$Y$20:AB62,43,)," ") -> 0.2 | AD62: 26460
A63: I | B63: 36 | C63: D 8.4 | D63: Versorgungsleitung | E63: Warmwasserverteilung | F63: =IFERROR(VLOOKUP(G63,Datenblätter!$B$3:$C$130,2,FALSE)," ") -> 1 | G63: ='Zustandserfassung '!G63 -> Mit zentraler Aufbereitung | H63: =IF(OR('Zustandserfassung '!H63="Ende Lebensdauer",'Zustandserfassung '!H63="leichte Abnutzung ",'Zustandserfassung '!H63="grössere Abnutzung ",'Zustandserfassung '!H63="gut"),"Ende Lebensdauer"," ") -> Ende Lebensdauer | J63: =IFERROR(INDEX('Beschrieb Zustand'!$B$2:$G$130,MATCH('Sanierungsstrategie "Extra"'!G63,'Beschrieb Zustand'!$B$2:$B$130,0),MATCH('Sanierungsstrategie "Extra"'!Q63,'Beschrieb Zustand'!$B$2:$G$2,0))," ") -> Ganzes Leitungsnetz beschädigt oder korrodiert. Schlechter Durchfluss infolge Verkalkung. Leitungsarmaturen undicht oder schlecht regulierbar. | K63: =IFERROR(INDEX('Beschrieb Zustand'!$H$2:$L$130,MATCH('Sanierungsstrategie "Extra"'!G63,'Beschrieb Zustand'!$H$2:$H$130,0),MATCH('Sanierungsstrategie "Extra"'!Q63,'Beschrieb Zustand'!$H$2:$L$2,0))," ") -> Totalersatz des Leitungsnetzes inkl. Dämmung und Einbau von Durchflussbegrenzern.. | L63: =IFERROR(VLOOKUP(H63,Datenblätter!$A$137:$B$141,2,FALSE)," ") -> d | N63: =IFERROR(VLOOKUP(L63,Datenblätter!$B$137:$C$141,2,FALSE)," ") -> 4 | O63: =IFERROR(VLOOKUP(M63,Datenblätter!$B$137:$C$141,2,FALSE)," ") ->  | P63: 4 | Q63: =IFERROR(VLOOKUP(P63,Datenblätter!$H$137:$I$140,2,FALSE)," ") -> d | R63: =IFERROR(INDEX(Datenblätter!$B$2:$K$130,MATCH('Sanierungsstrategie "Extra"'!G63,Datenblätter!$B$2:$B$130,0),MATCH('Sanierungsstrategie "Extra"'!Q63,Datenblätter!$B$2:$K$2,0))," ") -> 1549 | S63: 3567.334608 | T63: x | U63: AW= | V63: =$G$14 -> 36 | W63: = | X63: 128400 | Y63: 0 | Z63: 0 | AA63: 0 | AB63: 0.2 | AC63: =IFERROR(HLOOKUP(Q63,$Y$20:AB63,44,)," ") -> 0.2 | AD63: 25680
A64: I | B64: 37 | C64: D 8.4 | D64: Versorgungsleitung | E64: Gasverteilung | F64: =IFERROR(VLOOKUP(G64,Datenblätter!$B$3:$C$130,2,FALSE)," ") -> 1 | G64: ='Zustandserfassung '!G64 -> Gasverteilung | H64: =IF(OR('Zustandserfassung '!H64="Ende Lebensdauer",'Zustandserfassung '!H64="leichte Abnutzung ",'Zustandserfassung '!H64="grössere Abnutzung ",'Zustandserfassung '!H64="gut"),"Ende Lebensdauer"," ") ->  | J64: =IFERROR(INDEX('Beschrieb Zustand'!$B$2:$G$130,MATCH('Sanierungsstrategie "Extra"'!G64,'Beschrieb Zustand'!$B$2:$B$130,0),MATCH('Sanierungsstrategie "Extra"'!Q64,'Beschrieb Zustand'!$B$2:$G$2,0))," ") ->  | K64: =IFERROR(INDEX('Beschrieb Zustand'!$H$2:$L$130,MATCH('Sanierungsstrategie "Extra"'!G64,'Beschrieb Zustand'!$H$2:$H$130,0),MATCH('Sanierungsstrategie "Extra"'!Q64,'Beschrieb Zustand'!$H$2:$L$2,0))," ") ->  | L64: =IFERROR(VLOOKUP(H64,Datenblätter!$A$137:$B$141,2,FALSE)," ") ->  | N64: =IFERROR(VLOOKUP(L64,Datenblätter!$B$137:$C$141,2,FALSE)," ") ->  | O64: =IFERROR(VLOOKUP(M64,Datenblätter!$B$137:$C$141,2,FALSE)," ") ->  | Q64: =IFERROR(VLOOKUP(P64,Datenblätter!$H$137:$I$140,2,FALSE)," ") ->  | R64: =IFERROR(INDEX(Datenblätter!$B$2:$K$130,MATCH('Sanierungsstrategie "Extra"'!G64,Datenblätter!$B$2:$B$130,0),MATCH('Sanierungsstrategie "Extra"'!Q64,Datenblätter!$B$2:$K$2,0))," ") ->  | T64: x | U64: AW= | V64: =$G$14 -> 36 | W64: = | Y64: 0 | Z64: 0 | AA64: 0 | AB64: 0 | AC64: =IFERROR(HLOOKUP(Q64,$Y$20:AB64,45,)," ") -> 
A65: I | B65: 38 | C65: D 8.4 | D65: Versorgungsleitung | E65: Entsorgungsleitung bis Kellerdecke | F65: =IFERROR(VLOOKUP(G65,Datenblätter!$B$3:$C$130,2,FALSE)," ") -> 1 | G65: ='Zustandserfassung '!G65 -> Entsorgungsleitung bis Kellerdecke | H65: =IF(OR('Zustandserfassung '!H65="Ende Lebensdauer",'Zustandserfassung '!H65="leichte Abnutzung ",'Zustandserfassung '!H65="grössere Abnutzung ",'Zustandserfassung '!H65="gut"),"Ende Lebensdauer"," ") -> Ende Lebensdauer | J65: =IFERROR(INDEX('Beschrieb Zustand'!$B$2:$G$130,MATCH('Sanierungsstrategie "Extra"'!G65,'Beschrieb Zustand'!$B$2:$B$130,0),MATCH('Sanierungsstrategie "Extra"'!Q65,'Beschrieb Zustand'!$B$2:$G$2,0))," ") -> Fortgeschrittene Korrosionserscheinungen am ganzen Leitungsnetz. Ungenügende Materialien wie z.B. geschweisste Stahlrohre. Durchfluss nicht gewährleistet (Ablagerungen). | K65: =IFERROR(INDEX('Beschrieb Zustand'!$H$2:$L$130,MATCH('Sanierungsstrategie "Extra"'!G65,'Beschrieb Zustand'!$H$2:$H$130,0),MATCH('Sanierungsstrategie "Extra"'!Q65,'Beschrieb Zustand'!$H$2:$L$2,0))," ") -> Totalersatz des Leitungsnetzes. | L65: =IFERROR(VLOOKUP(H65,Datenblätter!$A$137:$B$141,2,FALSE)," ") -> d | M65: =IF($L$38="d","d"," ") -> d | N65: =IFERROR(VLOOKUP(L65,Datenblätter!$B$137:$C$141,2,FALSE)," ") -> 4 | O65: =IFERROR(VLOOKUP(M65,Datenblätter!$B$137:$C$141,2,FALSE)," ") -> 4 | P65: 4 | Q65: =IFERROR(VLOOKUP(P65,Datenblätter!$H$137:$I$140,2,FALSE)," ") -> d | R65: =IFERROR(INDEX(Datenblätter!$B$2:$K$130,MATCH('Sanierungsstrategie "Extra"'!G65,Datenblätter!$B$2:$B$130,0),MATCH('Sanierungsstrategie "Extra"'!Q65,Datenblätter!$B$2:$K$2,0))," ") -> 1455 | S65: 3350.85336 | T65: x | U65: AW= | V65: =$G$14 -> 36 | W65: = | X65: 120600 | Y65: 0 | Z65: 0 | AA65: 0 | AB65: 0.2 | AC65: =IFERROR(HLOOKUP(Q65,$Y$20:AB65,46,)," ") -> 0.2 | AD65: 24120
A66: A | B66: 39 | C66: E 3.1 | D66: Fenster | E66: Fenster | F66: =IFERROR(VLOOKUP(G66,Datenblätter!$B$3:$C$130,2,FALSE)," ") -> 1 | G66: ='Zustandserfassung '!G66 -> Fenster | H66: =IF(OR('Zustandserfassung '!H66="Ende Lebensdauer",'Zustandserfassung '!H66="leichte Abnutzung ",'Zustandserfassung '!H66="grössere Abnutzung ",'Zustandserfassung '!H66="gut"),"Ende Lebensdauer"," ") -> Ende Lebensdauer | J66: =IFERROR(INDEX('Beschrieb Zustand'!$B$2:$G$130,MATCH('Sanierungsstrategie "Extra"'!G66,'Beschrieb Zustand'!$B$2:$B$130,0),MATCH('Sanierungsstrategie "Extra"'!Q66,'Beschrieb Zustand'!$B$2:$G$2,0))," ") -> Sämtliche Fenster beschädigt. Flügel und Rahmen verwittert. Schliessung und Bedienung nicht funktionsfähig. Ungenügende Wärmedämmung vorhanden. | K66: =IFERROR(INDEX('Beschrieb Zustand'!$H$2:$L$130,MATCH('Sanierungsstrategie "Extra"'!G66,'Beschrieb Zustand'!$H$2:$H$130,0),MATCH('Sanierungsstrategie "Extra"'!Q66,'Beschrieb Zustand'!$H$2:$L$2,0))," ") -> Kompletter Ersatz der Fenster. Oberflächenbehandlung und Versiegelung gegen Mauerwerk. Energieberater beiziehen. | L66: =IFERROR(VLOOKUP(H66,Datenblätter!$A$137:$B$141,2,FALSE)," ") -> d | M66: =IF($L$29="d","d"," ") -> d | N66: =IFERROR(VLOOKUP(L66,Datenblätter!$B$137:$C$141,2,FALSE)," ") -> 4 | O66: =IFERROR(VLOOKUP(M66,Datenblätter!$B$137:$C$141,2,FALSE)," ") -> 4 | P66: 4 | Q66: =IFERROR(VLOOKUP(P66,Datenblätter!$H$137:$I$140,2,FALSE)," ") -> d | R66: =IFERROR(INDEX(Datenblätter!$B$2:$K$130,MATCH('Sanierungsstrategie "Extra"'!G66,Datenblätter!$B$2:$B$130,0),MATCH('Sanierungsstrategie "Extra"'!Q66,Datenblätter!$B$2:$K$2,0))," ") -> 45 | S66: 103.63464 | T66: x | U66: FW= | V66: =$G$11 -> 2328 | W66: = | X66: 241300 | Y66: 0 | Z66: 0 | AA66: 0 | AB66: 0.3 | AC66: =IFERROR(HLOOKUP(Q66,$Y$20:AB66,47,)," ") -> 0.3 | AD66: 72390
A67: A | B67: 40 | C67: E 3.3 | D67: Sonnenschutz | E67: Wetterschutz | F67: =IFERROR(VLOOKUP(G67,Datenblätter!$B$3:$C$130,2,FALSE)," ") -> 1 | G67: ='Zustandserfassung '!G67 -> Jalousien | H67: =IF(OR('Zustandserfassung '!H67="Ende Lebensdauer",'Zustandserfassung '!H67="leichte Abnutzung ",'Zustandserfassung '!H67="grössere Abnutzung ",'Zustandserfassung '!H67="gut"),"Ende Lebensdauer"," ") -> Ende Lebensdauer | J67: =IFERROR(INDEX('Beschrieb Zustand'!$B$2:$G$130,MATCH('Sanierungsstrategie "Extra"'!G67,'Beschrieb Zustand'!$B$2:$B$130,0),MATCH('Sanierungsstrategie "Extra"'!Q67,'Beschrieb Zustand'!$B$2:$G$2,0))," ") -> Sämtliche Jalousieläden beschädigt. Oberflächen verwittert. | K67: =IFERROR(INDEX('Beschrieb Zustand'!$H$2:$L$130,MATCH('Sanierungsstrategie "Extra"'!G67,'Beschrieb Zustand'!$H$2:$H$130,0),MATCH('Sanierungsstrategie "Extra"'!Q67,'Beschrieb Zustand'!$H$2:$L$2,0))," ") -> Totalersatz der Jalousieläden. Komplette Oberflächenbehandlung. | L67: =IFERROR(VLOOKUP(H67,Datenblätter!$A$137:$B$141,2,FALSE)," ") -> d | M67: =IF($L$29="d","d"," ") -> d | N67: =IFERROR(VLOOKUP(L67,Datenblätter!$B$137:$C$141,2,FALSE)," ") -> 4 | O67: =IFERROR(VLOOKUP(M67,Datenblätter!$B$137:$C$141,2,FALSE)," ") -> 4 | P67: 4 | Q67: =IFERROR(VLOOKUP(P67,Datenblätter!$H$137:$I$140,2,FALSE)," ") -> d | R67: =IFERROR(INDEX(Datenblätter!$B$2:$K$130,MATCH('Sanierungsstrategie "Extra"'!G67,Datenblätter!$B$2:$B$130,0),MATCH('Sanierungsstrategie "Extra"'!Q67,Datenblätter!$B$2:$K$2,0))," ") -> 19 | S67: 43.756848 | T67: x | U67: FW= | V67: =$G$11 -> 2328 | W67: = | X67: 101900 | Y67: 0 | Z67: 0 | AA67: 0 | AB67: 0.25 | AC67: =IFERROR(HLOOKUP(Q67,$Y$20:AB67,48,)," ") -> 0.25 | AD67: 25475
A68: A | B68: 41 | C68: E 3.3 | D68: Sonnenschutz | E68: Sonnenschutz | F68: =IFERROR(VLOOKUP(G68,Datenblätter!$B$3:$C$130,2,FALSE)," ") -> 1 | G68: ='Zustandserfassung '!G68 -> Sonnenschutz | H68: =IF(OR('Zustandserfassung '!H68="Ende Lebensdauer",'Zustandserfassung '!H68="leichte Abnutzung ",'Zustandserfassung '!H68="grössere Abnutzung ",'Zustandserfassung '!H68="gut"),"Ende Lebensdauer"," ") -> Ende Lebensdauer | J68: =IFERROR(INDEX('Beschrieb Zustand'!$B$2:$G$130,MATCH('Sanierungsstrategie "Extra"'!G68,'Beschrieb Zustand'!$B$2:$B$130,0),MATCH('Sanierungsstrategie "Extra"'!Q68,'Beschrieb Zustand'!$B$2:$G$2,0))," ") -> Markisen nicht funktionsfähig. Stoffteile stark verwittert oder beschädigt. Bedienungselemente defekt. | K68: =IFERROR(INDEX('Beschrieb Zustand'!$H$2:$L$130,MATCH('Sanierungsstrategie "Extra"'!G68,'Beschrieb Zustand'!$H$2:$H$130,0),MATCH('Sanierungsstrategie "Extra"'!Q68,'Beschrieb Zustand'!$H$2:$L$2,0))," ") -> Totalersatz der Markisen. Energienachweis und Prüfung auf Wärmebrücken durchführen. | L68: =IFERROR(VLOOKUP(H68,Datenblätter!$A$137:$B$141,2,FALSE)," ") -> d | M68: =IF($L$29="d","d"," ") -> d | N68: =IFERROR(VLOOKUP(L68,Datenblätter!$B$137:$C$141,2,FALSE)," ") -> 4 | O68: =IFERROR(VLOOKUP(M68,Datenblätter!$B$137:$C$141,2,FALSE)," ") -> 4 | P68: 4 | Q68: =IFERROR(VLOOKUP(P68,Datenblätter!$H$137:$I$140,2,FALSE)," ") -> d | R68: =IFERROR(INDEX(Datenblätter!$B$2:$K$130,MATCH('Sanierungsstrategie "Extra"'!G68,Datenblätter!$B$2:$B$130,0),MATCH('Sanierungsstrategie "Extra"'!Q68,Datenblätter!$B$2:$K$2,0))," ") -> 6 | S68: 13.817952 | T68: x | U68: FW= | V68: =$G$11 -> 2328 | W68: = | X68: 32200 | Y68: 0 | Z68: 0 | AA68: 0 | AB68: 0.2 | AC68: =IFERROR(HLOOKUP(Q68,$Y$20:AB68,49,)," ") -> 0.2 | AD68: 6440
A69: I | B69: 42 | C69: G 1.4 | D69: Trennwand Tür,Tor | E69: Türen,Innenausbauten | F69: =IFERROR(VLOOKUP(G69,Datenblätter!$B$3:$C$130,2,FALSE)," ") -> 1 | G69: ='Zustandserfassung '!G69 -> Türen,Innenausbauten | H69: =IF(OR('Zustandserfassung '!H69="Ende Lebensdauer",'Zustandserfassung '!H69="leichte Abnutzung ",'Zustandserfassung '!H69="grössere Abnutzung ",'Zustandserfassung '!H69="gut"),"Ende Lebensdauer"," ") -> Ende Lebensdauer | J69: =IFERROR(INDEX('Beschrieb Zustand'!$B$2:$G$130,MATCH('Sanierungsstrategie "Extra"'!G69,'Beschrieb Zustand'!$B$2:$B$130,0),MATCH('Sanierungsstrategie "Extra"'!Q69,'Beschrieb Zustand'!$B$2:$G$2,0))," ") -> Sämtliche Holzteile in schlechtem Zustand. Oberflächen sind stark verschmutzt. | K69: =IFERROR(INDEX('Beschrieb Zustand'!$H$2:$L$130,MATCH('Sanierungsstrategie "Extra"'!G69,'Beschrieb Zustand'!$H$2:$H$130,0),MATCH('Sanierungsstrategie "Extra"'!Q69,'Beschrieb Zustand'!$H$2:$L$2,0))," ") -> Totalersatz aller Holzteile, komplette Oberflächenbehandlung. | L69: =IFERROR(VLOOKUP(H69,Datenblätter!$A$137:$B$141,2,FALSE)," ") -> d | N69: =IFERROR(VLOOKUP(L69,Datenblätter!$B$137:$C$141,2,FALSE)," ") -> 4 | O69: =IFERROR(VLOOKUP(M69,Datenblätter!$B$137:$C$141,2,FALSE)," ") ->  | P69: 4 | Q69: =IFERROR(VLOOKUP(P69,Datenblätter!$H$137:$I$140,2,FALSE)," ") -> d | R69: =IFERROR(INDEX(Datenblätter!$B$2:$K$130,MATCH('Sanierungsstrategie "Extra"'!G69,Datenblätter!$B$2:$B$130,0),MATCH('Sanierungsstrategie "Extra"'!Q69,Datenblätter!$B$2:$K$2,0))," ") -> 47 | S69: 108.240624 | T69: x | U69: FW= | V69: =$G$11 -> 2328 | W69: = | X69: 252000 | Y69: 0 | Z69: 0 | AA69: 0.1 | AB69: 0.2 | AC69: =IFERROR(HLOOKUP(Q69,$Y$20:AB69,50,)," ") -> 0.2 | AD69: 50400
C70: Wohnungen: Zimmer,Korridor | F70: =IFERROR(VLOOKUP(G70,Datenblätter!$B$3:$C$130,2,FALSE)," ") ->  | N70: =IFERROR(VLOOKUP(L70,Datenblätter!$B$137:$C$141,2,FALSE)," ") ->  | O70: =IFERROR(VLOOKUP(M70,Datenblätter!$B$137:$C$141,2,FALSE)," ") ->  | Q70: =IFERROR(VLOOKUP(P70,Datenblätter!$H$137:$I$140,2,FALSE)," ") ->  | R70: =IFERROR(INDEX(Datenblätter!$B$2:$K$130,MATCH('Sanierungsstrategie "Extra"'!G70,Datenblätter!$B$2:$B$130,0),MATCH('Sanierungsstrategie "Extra"'!Q70,Datenblätter!$B$2:$K$2,0))," ") -> 
A71: I | B71: 43 | C71: G 2.2 | D71: Bodenbelag | E71: Bodenbeläge | F71: =IFERROR(VLOOKUP(G71,Datenblätter!$B$3:$C$130,2,FALSE)," ") -> 1 | G71: ='Zustandserfassung '!G71 -> Parkett | H71: =IF(OR('Zustandserfassung '!H71="Ende Lebensdauer",'Zustandserfassung '!H71="leichte Abnutzung ",'Zustandserfassung '!H71="grössere Abnutzung ",'Zustandserfassung '!H71="gut"),"Ende Lebensdauer"," ") -> Ende Lebensdauer | I71: =IFERROR(IF(L71=Q71," ", "übersteuert")," ") ->  | J71: =IFERROR(INDEX('Beschrieb Zustand'!$B$2:$G$130,MATCH('Sanierungsstrategie "Extra"'!G71,'Beschrieb Zustand'!$B$2:$B$130,0),MATCH('Sanierungsstrategie "Extra"'!Q71,'Beschrieb Zustand'!$B$2:$G$2,0))," ") -> Lose Parkettelemente (> 25%) und verbreitet Beschädigungen. | K71: =IFERROR(INDEX('Beschrieb Zustand'!$H$2:$L$130,MATCH('Sanierungsstrategie "Extra"'!G71,'Beschrieb Zustand'!$H$2:$H$130,0),MATCH('Sanierungsstrategie "Extra"'!Q71,'Beschrieb Zustand'!$H$2:$L$2,0))," ") -> Komplett neuer Parkettbelag inkl. Sockelleisten. Vorbehandlung des Unterlagsboden. | L71: =IFERROR(VLOOKUP(H71,Datenblätter!$A$137:$B$141,2,FALSE)," ") -> d | N71: =IFERROR(VLOOKUP(L71,Datenblätter!$B$137:$C$141,2,FALSE)," ") -> 4 | O71: =IFERROR(VLOOKUP(M71,Datenblätter!$B$137:$C$141,2,FALSE)," ") ->  | P71: 4 | Q71: =IFERROR(VLOOKUP(P71,Datenblätter!$H$137:$I$140,2,FALSE)," ") -> d | R71: =IFERROR(INDEX(Datenblätter!$B$2:$K$130,MATCH('Sanierungsstrategie "Extra"'!G71,Datenblätter!$B$2:$B$130,0),MATCH('Sanierungsstrategie "Extra"'!Q71,Datenblätter!$B$2:$K$2,0))," ") -> 47 | S71: =IFERROR(R71*$K$9*$K$14," ") -> 108.240624 | T71: x | U71: FW= | V71: =$G$11 -> 2328 | W71: = | X71: =IFERROR(ROUND(V71*S71,-2), " ") -> 252000 | Y71: 0 | Z71: 0 | AA71: 0 | AB71: 0.2 | AC71: =IFERROR(HLOOKUP(Q71,$Y$20:AB71,52,)," ") -> 0.2 | AD71: =IFERROR(X71*AC71," ") -> 50400
A72: I | B72: 44 | C72: G 3 | D72: Wandbekleidung | E72: Wandverkleidungen | F72: =IFERROR(VLOOKUP(G72,Datenblätter!$B$3:$C$130,2,FALSE)," ") -> 1 | G72: ='Zustandserfassung '!G72 -> Anstriche | H72: =IF(OR('Zustandserfassung '!H72="Ende Lebensdauer",'Zustandserfassung '!H72="leichte Abnutzung ",'Zustandserfassung '!H72="grössere Abnutzung ",'Zustandserfassung '!H72="gut"),"Ende Lebensdauer"," ") -> Ende Lebensdauer | I72: =IFERROR(IF(L72=Q72," ", "übersteuert")," ") ->  | J72: =IFERROR(INDEX('Beschrieb Zustand'!$B$2:$G$130,MATCH('Sanierungsstrategie "Extra"'!G72,'Beschrieb Zustand'!$B$2:$B$130,0),MATCH('Sanierungsstrategie "Extra"'!Q72,'Beschrieb Zustand'!$B$2:$G$2,0))," ") -> Oberflächen und Untergrund in schlechtem Zustand. Zahlreiche Beschädigungen. | K72: =IFERROR(INDEX('Beschrieb Zustand'!$H$2:$L$130,MATCH('Sanierungsstrategie "Extra"'!G72,'Beschrieb Zustand'!$H$2:$H$130,0),MATCH('Sanierungsstrategie "Extra"'!Q72,'Beschrieb Zustand'!$H$2:$L$2,0))," ") -> Bestehende Anstriche vollständig entfernen. Untergrund ausbessern. Komplett neuer Anstrich. | L72: =IFERROR(VLOOKUP(H72,Datenblätter!$A$137:$B$141,2,FALSE)," ") -> d | N72: =IFERROR(VLOOKUP(L72,Datenblätter!$B$137:$C$141,2,FALSE)," ") -> 4 | O72: =IFERROR(VLOOKUP(M72,Datenblätter!$B$137:$C$141,2,FALSE)," ") ->  | P72: 4 | Q72: =IFERROR(VLOOKUP(P72,Datenblätter!$H$137:$I$140,2,FALSE)," ") -> d | R72: =IFERROR(INDEX(Datenblätter!$B$2:$K$130,MATCH('Sanierungsstrategie "Extra"'!G72,Datenblätter!$B$2:$B$130,0),MATCH('Sanierungsstrategie "Extra"'!Q72,Datenblätter!$B$2:$K$2,0))," ") -> 35 | S72: =IFERROR(R72*$K$9*$K$14," ") -> 80.60472 | T72: x | U72: FW= | V72: =$G$11 -> 2328 | W72: = | X72: =IFERROR(ROUND(V72*S72,-2), " ") -> 187600 | Y72: 0 | Z72: 0 | AA72: 0 | AB72: 0 | AC72: =IFERROR(HLOOKUP(Q72,$Y$20:AB72,53,)," ") -> 0 | AD72: =IFERROR(X72*AC72," ") -> 0
A73: I | B73: 45 | C73: G 4 | D73: Deckenbekleidung | E73: Deckenverkleidungen | F73: =IFERROR(VLOOKUP(G73,Datenblätter!$B$3:$C$130,2,FALSE)," ") -> 1 | G73: ='Zustandserfassung '!G73 -> Gipsdecken | H73: =IF(OR('Zustandserfassung '!H73="Ende Lebensdauer",'Zustandserfassung '!H73="leichte Abnutzung ",'Zustandserfassung '!H73="grössere Abnutzung ",'Zustandserfassung '!H73="gut"),"Ende Lebensdauer"," ") -> Ende Lebensdauer | I73: =IFERROR(IF(L73=Q73," ", "übersteuert")," ") ->  | J73: =IFERROR(INDEX('Beschrieb Zustand'!$B$2:$G$130,MATCH('Sanierungsstrategie "Extra"'!G73,'Beschrieb Zustand'!$B$2:$B$130,0),MATCH('Sanierungsstrategie "Extra"'!Q73,'Beschrieb Zustand'!$B$2:$G$2,0))," ") -> Die Oberflächen sind stark verschmutzt und beschädigt. Untergrund in schlechtem Zustand, Unebenheiten, Ablösungen, Pilzbefall oder Risse. | K73: =IFERROR(INDEX('Beschrieb Zustand'!$H$2:$L$130,MATCH('Sanierungsstrategie "Extra"'!G73,'Beschrieb Zustand'!$H$2:$H$130,0),MATCH('Sanierungsstrategie "Extra"'!Q73,'Beschrieb Zustand'!$H$2:$L$2,0))," ") -> Neu erstellen Untergrund, streichen der Oberflächen (evtl.herabgehängte Decke). | L73: =IFERROR(VLOOKUP(H73,Datenblätter!$A$137:$B$141,2,FALSE)," ") -> d | M73: =IF(AND(OR(F73=1,F73=2),$L$25="c",$F$25=1),"c"," ")&IF(AND(OR(F73=1,F73=2),$L$25="d",$F$25=1),"d"," ") ->  | N73: =IFERROR(VLOOKUP(L73,Datenblätter!$B$137:$C$141,2,FALSE)," ") -> 4 | O73: =IFERROR(VLOOKUP(M73,Datenblätter!$B$137:$C$141,2,FALSE)," ") ->  | P73: 4 | Q73: =IFERROR(VLOOKUP(P73,Datenblätter!$H$137:$I$140,2,FALSE)," ") -> d | R73: =IFERROR(INDEX(Datenblätter!$B$2:$K$130,MATCH('Sanierungsstrategie "Extra"'!G73,Datenblätter!$B$2:$B$130,0),MATCH('Sanierungsstrategie "Extra"'!Q73,Datenblätter!$B$2:$K$2,0))," ") -> 52 | S73: =IFERROR(R73*$K$9*$K$14," ") -> 119.755584 | T73: x | U73: FW= | V73: =$G$11 -> 2328 | W73: = | X73: =IFERROR(ROUND(V73*S73,-2), " ") -> 278800 | Y73: 0 | Z73: 0 | AA73: 0 | AB73: 0 | AC73: =IFERROR(HLOOKUP(Q73,$Y$20:AB73,54,)," ") -> 0 | AD73: =IFERROR(X73*AC73," ") -> 0
C74: Wohnungen: Nassräume | F74: =IFERROR(VLOOKUP(G74,Datenblätter!$B$3:$C$130,2,FALSE)," ") ->  | N74: =IFERROR(VLOOKUP(L74,Datenblätter!$B$137:$C$141,2,FALSE)," ") ->  | O74: =IFERROR(VLOOKUP(M74,Datenblätter!$B$137:$C$141,2,FALSE)," ") ->  | Q74: =IFERROR(VLOOKUP(P74,Datenblätter!$H$137:$I$140,2,FALSE)," ") ->  | R74: =IFERROR(INDEX(Datenblätter!$B$2:$K$130,MATCH('Sanierungsstrategie "Extra"'!G74,Datenblätter!$B$2:$B$130,0),MATCH('Sanierungsstrategie "Extra"'!Q74,Datenblätter!$B$2:$K$2,0))," ") -> 
A75: I | B75: 46 | C75: G 5.2 | D75: Einbauküche | E75: Küche | F75: =IFERROR(VLOOKUP(G75,Datenblätter!$B$3:$C$130,2,FALSE)," ") -> 1 | G75: ='Zustandserfassung '!G75 -> Küche | H75: =IF(OR('Zustandserfassung '!H75="Ende Lebensdauer",'Zustandserfassung '!H75="leichte Abnutzung ",'Zustandserfassung '!H75="grössere Abnutzung ",'Zustandserfassung '!H75="gut"),"Ende Lebensdauer"," ") -> Ende Lebensdauer | I75: =IFERROR(IF(L75=Q75," ", "übersteuert")," ") ->  | J75: =IFERROR(INDEX('Beschrieb Zustand'!$B$2:$G$130,MATCH('Sanierungsstrategie "Extra"'!G75,'Beschrieb Zustand'!$B$2:$B$130,0),MATCH('Sanierungsstrategie "Extra"'!Q75,'Beschrieb Zustand'!$B$2:$G$2,0))," ") -> Schlechter Allgemeinzustand. Plattenbeläge schadhaft, übrige Oberflächen verschmutzt oder beschädigt. Kücheneinrichtungen und Apparate veraltet bzw. defekt. Elektrische Installationen ungenügend. | K75: =IFERROR(INDEX('Beschrieb Zustand'!$H$2:$L$130,MATCH('Sanierungsstrategie "Extra"'!G75,'Beschrieb Zustand'!$H$2:$H$130,0),MATCH('Sanierungsstrategie "Extra"'!Q75,'Beschrieb Zustand'!$H$2:$L$2,0))," ") -> Komplette Erneuerung des Raumes. Neue Küchenkombinationen mit Veränderung der Anordnung. Neue elektrische Installation. Auf energiesparende Geräte achten. | L75: =IFERROR(VLOOKUP(H75,Datenblätter!$A$137:$B$141,2,FALSE)," ") -> d | M75: =IF(OR($L$62="d",$L$63="d",$M$63="d",$L$65="d",$M$65="d"),"d"," ") -> d | N75: =IFERROR(VLOOKUP(L75,Datenblätter!$B$137:$C$141,2,FALSE)," ") -> 4 | O75: =IFERROR(VLOOKUP(M75,Datenblätter!$B$137:$C$141,2,FALSE)," ") -> 4 | P75: 4 | Q75: =IFERROR(VLOOKUP(P75,Datenblätter!$H$137:$I$140,2,FALSE)," ") -> d | R75: =IFERROR(INDEX(Datenblätter!$B$2:$K$130,MATCH('Sanierungsstrategie "Extra"'!G75,Datenblätter!$B$2:$B$130,0),MATCH('Sanierungsstrategie "Extra"'!Q75,Datenblätter!$B$2:$K$2,0))," ") -> 7948 | S75: =IFERROR(R75*$K$9*$K$14," ") -> 18304.18042 | T75: x | U75: AW= | V75: =$G$14 -> 36 | W75: = | X75: =IFERROR(ROUND(V75*S75,-2), " ") -> 659000 | Y75: 0 | Z75: 0 | AA75: 0.2 | AB75: 0.4 | AC75: =IFERROR(HLOOKUP(Q75,$Y$20:AB75,56,)," ") -> 0.4 | AD75: =IFERROR(X75*AC75," ") -> 263600
A76: I | B76: 47 | C76: D 8.1 | D76: Armaturen | E76: Bad-WC | F76: =IFERROR(VLOOKUP(G76,Datenblätter!$B$3:$C$130,2,FALSE)," ") -> 1 | G76: ='Zustandserfassung '!G76 -> Bad-WC zusammen | H76: =IF(OR('Zustandserfassung '!H76="Ende Lebensdauer",'Zustandserfassung '!H76="leichte Abnutzung ",'Zustandserfassung '!H76="grössere Abnutzung ",'Zustandserfassung '!H76="gut"),"Ende Lebensdauer"," ") -> Ende Lebensdauer | I76: =IFERROR(IF(L76=Q76," ", "übersteuert")," ") ->  | J76: =IFERROR(INDEX('Beschrieb Zustand'!$B$2:$G$130,MATCH('Sanierungsstrategie "Extra"'!G76,'Beschrieb Zustand'!$B$2:$B$130,0),MATCH('Sanierungsstrategie "Extra"'!Q76,'Beschrieb Zustand'!$B$2:$G$2,0))," ") -> Schlechter Allgemeinzustand. Plattenbeläge schadhaft, übrige Oberflächen verschmutzt oder beschädigt. Ausrüstungsstandard ungenügend. Elektrische Installationen ungenügend. | K76: =IFERROR(INDEX('Beschrieb Zustand'!$H$2:$L$130,MATCH('Sanierungsstrategie "Extra"'!G76,'Beschrieb Zustand'!$H$2:$H$130,0),MATCH('Sanierungsstrategie "Extra"'!Q76,'Beschrieb Zustand'!$H$2:$L$2,0))," ") -> Komplette Erneuerung des Raumes. Neue Sanitäreinrichtungen mit Warmwasser-Durchflussbegrenzern. Neue elektrische Installationen. | L76: =IFERROR(VLOOKUP(H76,Datenblätter!$A$137:$B$141,2,FALSE)," ") -> d | M76: =IF(OR($L$62="d",$L$63="d",$M$63="d",$L$65="d",$M$65="d"),"d"," ") -> d | N76: =IFERROR(VLOOKUP(L76,Datenblätter!$B$137:$C$141,2,FALSE)," ") -> 4 | O76: =IFERROR(VLOOKUP(M76,Datenblätter!$B$137:$C$141,2,FALSE)," ") -> 4 | P76: 4 | Q76: =IFERROR(VLOOKUP(P76,Datenblätter!$H$137:$I$140,2,FALSE)," ") -> d | R76: =IFERROR(INDEX(Datenblätter!$B$2:$K$130,MATCH('Sanierungsstrategie "Extra"'!G76,Datenblätter!$B$2:$B$130,0),MATCH('Sanierungsstrategie "Extra"'!Q76,Datenblätter!$B$2:$K$2,0))," ") -> 8761 | S76: =IFERROR(R76*$K$9*$K$14," ") -> 20176.51291 | T76: x | U76: AW= | V76: =$G$14 -> 36 | W76: = | X76: =IFERROR(ROUND(V76*S76,-2), " ") -> 726400 | Y76: 0 | Z76: 0 | AA76: 0.2 | AB76: 0.3 | AC76: =IFERROR(HLOOKUP(Q76,$Y$20:AB76,57,)," ") -> 0.3 | AD76: =IFERROR(X76*AC76," ") -> 217920
A77: I | B77: 48 | C77: D 7 | D77: Lufttechnische Anlage | E77: Abluftanlagen | F77: =IFERROR(VLOOKUP(G77,Datenblätter!$B$3:$C$130,2,FALSE)," ") -> 0 | G77: ='Zustandserfassung '!G77 -> - | H77: =IF(OR('Zustandserfassung '!H77="Ende Lebensdauer",'Zustandserfassung '!H77="leichte Abnutzung ",'Zustandserfassung '!H77="grössere Abnutzung ",'Zustandserfassung '!H77="gut"),"Ende Lebensdauer"," ") ->  | I77: =IFERROR(IF(L77=Q77," ", "übersteuert")," ") ->  | J77: =IFERROR(INDEX('Beschrieb Zustand'!$B$2:$G$130,MATCH('Sanierungsstrategie "Extra"'!G77,'Beschrieb Zustand'!$B$2:$B$130,0),MATCH('Sanierungsstrategie "Extra"'!Q77,'Beschrieb Zustand'!$B$2:$G$2,0))," ") ->  | K77: =IFERROR(INDEX('Beschrieb Zustand'!$H$2:$L$130,MATCH('Sanierungsstrategie "Extra"'!G77,'Beschrieb Zustand'!$H$2:$H$130,0),MATCH('Sanierungsstrategie "Extra"'!Q77,'Beschrieb Zustand'!$H$2:$L$2,0))," ") ->  | L77: =IFERROR(VLOOKUP(H77,Datenblätter!$A$137:$B$141,2,FALSE)," ") ->  | N77: =IFERROR(VLOOKUP(L77,Datenblätter!$B$137:$C$141,2,FALSE)," ") ->  | O77: =IFERROR(VLOOKUP(M77,Datenblätter!$B$137:$C$141,2,FALSE)," ") ->  | Q77: =IFERROR(VLOOKUP(P77,Datenblätter!$H$137:$I$140,2,FALSE)," ") ->  | R77: =IFERROR(INDEX(Datenblätter!$B$2:$K$130,MATCH('Sanierungsstrategie "Extra"'!G77,Datenblätter!$B$2:$B$130,0),MATCH('Sanierungsstrategie "Extra"'!Q77,Datenblätter!$B$2:$K$2,0))," ") ->  | S77: =IFERROR(R77*$K$9*$K$14," ") ->  | T77: x | U77: AW= | V77: =$G$14 -> 36 | W77: = | X77: =IFERROR(ROUND(V77*S77,-2), " ") ->  | Y77: 0 | Z77: 0 | AA77: 0 | AB77: 1 | AC77: =IFERROR(HLOOKUP(Q77,$Y$20:AB77,58,)," ") ->  | AD77: =IFERROR(X77*AC77," ") -> 
C78: Gewerberäume | F78: =IFERROR(VLOOKUP(G78,Datenblätter!$B$3:$C$130,2,FALSE)," ") ->  | N78: =IFERROR(VLOOKUP(L78,Datenblätter!$B$137:$C$141,2,FALSE)," ") ->  | O78: =IFERROR(VLOOKUP(M78,Datenblätter!$B$137:$C$141,2,FALSE)," ") ->  | Q78: =IFERROR(VLOOKUP(P78,Datenblätter!$H$137:$I$140,2,FALSE)," ") ->  | R78: =IFERROR(INDEX(Datenblätter!$B$2:$K$130,MATCH('Sanierungsstrategie "Extra"'!G78,Datenblätter!$B$2:$B$130,0),MATCH('Sanierungsstrategie "Extra"'!Q78,Datenblätter!$B$2:$K$2,0))," ") -> 
A79: I | B79: 49 | E79: Gewerberäume | F79: =IFERROR(VLOOKUP(G79,Datenblätter!$B$3:$C$130,2,FALSE)," ") -> 1 | G79: ='Zustandserfassung '!G79 -> Gewerberäume | H79: =IF(OR('Zustandserfassung '!H79="Ende Lebensdauer",'Zustandserfassung '!H79="leichte Abnutzung ",'Zustandserfassung '!H79="grössere Abnutzung ",'Zustandserfassung '!H79="gut"),"Ende Lebensdauer"," ") ->  | I79: =IFERROR(IF(L79=Q79," ", "übersteuert")," ") ->  | J79: =IFERROR(INDEX('Beschrieb Zustand'!$B$2:$G$130,MATCH('Sanierungsstrategie "Extra"'!G79,'Beschrieb Zustand'!$B$2:$B$130,0),MATCH('Sanierungsstrategie "Extra"'!Q79,'Beschrieb Zustand'!$B$2:$G$2,0))," ") ->  | K79: =IFERROR(INDEX('Beschrieb Zustand'!$H$2:$L$130,MATCH('Sanierungsstrategie "Extra"'!G79,'Beschrieb Zustand'!$H$2:$H$130,0),MATCH('Sanierungsstrategie "Extra"'!Q79,'Beschrieb Zustand'!$H$2:$L$2,0))," ") ->  | R79: =IFERROR(INDEX(Datenblätter!$B$2:$K$130,MATCH('Sanierungsstrategie "Extra"'!G79,Datenblätter!$B$2:$B$130,0),MATCH('Sanierungsstrategie "Extra"'!Q79,Datenblätter!$B$2:$K$2,0))," ") ->  | S79: =IFERROR(R79*$K$9*$K$14," ") ->  | T79: x | U79: FG= | V79: =G12 -> 0 | W79: = | X79: =IFERROR(ROUND(V79*S79,-2), " ") ->  | Y79: 0 | Z79: 0 | AA79: 0 | AB79: 0 | AC79: =IFERROR(HLOOKUP(Q79,$Y$20:AB79,60,)," ") ->  | AD79: =IFERROR(X79*AC79," ") -> 
C80: Baustelleneinrichtung
A81: A | B81: 50 | C81: B | D81: Vorbereitung | E81: Gerüste und Baustelleneinrichtung | F81: =IFERROR(VLOOKUP(G81,Datenblätter!$B$3:$C$130,2,FALSE)," ") -> 1 | G81: ='Zustandserfassung '!G81 -> Gerüste und Baustelleneinrichtung | H81: =IF(OR('Zustandserfassung '!H81="Ende Lebensdauer",'Zustandserfassung '!H81="leichte Abnutzung ",'Zustandserfassung '!H81="grössere Abnutzung ",'Zustandserfassung '!H81="gut"),"Ende Lebensdauer"," ") -> Ende Lebensdauer | I81: =IFERROR(IF(L81=Q81," ", "übersteuert")," ") ->  | J81: =IFERROR(INDEX('Beschrieb Zustand'!$B$2:$G$130,MATCH('Sanierungsstrategie "Extra"'!G81,'Beschrieb Zustand'!$B$2:$B$130,0),MATCH('Sanierungsstrategie "Extra"'!Q81,'Beschrieb Zustand'!$B$2:$G$2,0))," ") -> Die Diagnosecodes c und d dominieren. Fassade und Dach in schlechtem Zustand, grössere Abnutzung in allen Haustechniksystemen. | K81: =IFERROR(INDEX('Beschrieb Zustand'!$H$2:$L$130,MATCH('Sanierungsstrategie "Extra"'!G81,'Beschrieb Zustand'!$H$2:$H$130,0),MATCH('Sanierungsstrategie "Extra"'!Q81,'Beschrieb Zustand'!$H$2:$L$2,0))," ") -> Massnahmen erfordern eine intensive Baustelleneinrichtung und ein Gerüst. (Dauer > 5 Monate) | L81: d | M81: =IF(AND(OR(F81=1,F81=2),$L$25="c"),"c"," ")&IF(AND(OR(F81=1,F81=2),$L$25="d"),"d"," ") -> d | N81: 4 | P81: 4 | Q81: d | R81: =IFERROR(INDEX(Datenblätter!$B$2:$K$130,MATCH('Sanierungsstrategie "Extra"'!G81,Datenblätter!$B$2:$B$130,0),MATCH('Sanierungsstrategie "Extra"'!Q81,Datenblätter!$B$2:$K$2,0))," ") -> 63 | S81: =IFERROR(R81*$K$9*$K$14," ") -> 145.088496 | T81: x | U81: FF= | V81: =G9 -> 1800 | W81: = | X81: =IFERROR(ROUND(V81*S81,-2), " ") -> 261200 | Y81: 0 | Z81: 0.2 | AA81: 0.3 | AB81: 0.4 | AC81: =IFERROR(HLOOKUP(Q81,$Y$20:AB81,62,)," ") -> 0.4 | AD81: =IFERROR(X81*AC81," ") -> 104480
C83: Total Instandsetzungskosten (inkl. energetische Massnahmen) | X83: =ROUND(SUM(X23:X81),-3) -> 7243000 | AC83: =AD83/X83 -> 0.3008421925 | AD83: =ROUND(SUM(AD23:AD81),-3) -> 2179000

Sheet Strukturelle Massnahmen (hidden)
B1: Kostengliederung nach eBKP-H gemäss Zustandserfassung | Q1: Anlagekosten nach Sanierungspaket und Sanierungsstrategie
B3: eBKP-H | E3: Strukturelle Investitionsstrategie
E4: Strategie "Light" | F4: Strategie "Medium" | H4: Strategie "Max" | K4: Strategie "Extra"
E5: d | F5: c | H5: b | I5: a | M5: d
B6: [Code] | C6: [Bezeichnung] | E6: [CHF] | G6: [CHF] | J6: [CHF] | M6: [CHF] | Q6: Sanierungspakete | T6: Strukturelle Sanierungsstrategien
A7: A | B7: B | C7: Vorbereitung | D7: ='Zustandserfassung '!$Q$81 -> d | E7: =IFERROR(ROUND(SUMIFS(('Zustandserfassung '!$X$23:$X$81),('Zustandserfassung '!$Q$23:$Q$81),'Strukturelle Massnahmen'!$E$5,('Zustandserfassung '!$C$23:$C$81),'Strukturelle Massnahmen'!$B7),-2)," ") -> 261200 | F7: =IFERROR(ROUND(SUMIFS(('Zustandserfassung '!$X$23:$X$81),('Zustandserfassung '!$Q$23:$Q$81),'Strukturelle Massnahmen'!$F$5,('Zustandserfassung '!$C$23:$C$81),'Strukturelle Massnahmen'!$B7),-2)," ") -> 0 | G7: =SUM(E7,F7) -> 261200 | H7: =IFERROR(ROUND(SUMIFS(('Zustandserfassung '!$X$23:$X$81),('Zustandserfassung '!$Q$23:$Q$81),'Strukturelle Massnahmen'!$H$5,('Zustandserfassung '!$C$23:$C$81),'Strukturelle Massnahmen'!$B7),-2)," ") -> 0 | I7: =IFERROR(ROUND(SUMIFS(('Zustandserfassung '!$X$23:$X$81),('Zustandserfassung '!$Q$23:$Q$81),'Strukturelle Massnahmen'!$I$5,('Zustandserfassung '!$C$23:$C$81),'Strukturelle Massnahmen'!$B7),-2)," ") -> 0 | J7: =SUM(G7,H7,I7) -> 261200 | K7: =IFERROR(ROUND(SUMIFS(('Sanierungsstrategie "Extra"'!$X$23:$X$81),('Sanierungsstrategie "Extra"'!$Q$23:$Q$81),'Strukturelle Massnahmen'!$M$5,('Sanierungsstrategie "Extra"'!$C$23:$C$81),'Strukturelle Massnahmen'!B7),-2)," ") -> 261200 | T7: Strategie "Light" | V7: Strategie "Medium" | X7: Strategie "Max" | Z7: Strategie "Extra"
A8: A | B8: C | C8: Konstruktion Gebäude | D8: ='Zustandserfassung '!$Q$25 -> d | E8: =IFERROR(ROUND(SUMIFS(('Zustandserfassung '!$X$23:$X$81),('Zustandserfassung '!$Q$23:$Q$81),'Strukturelle Massnahmen'!$E$5,('Zustandserfassung '!$C$23:$C$81),'Strukturelle Massnahmen'!$B8),-2)," ")+E9 -> 537500 | F8: =IFERROR(ROUND(SUMIFS(('Zustandserfassung '!$X$23:$X$81),('Zustandserfassung '!$Q$23:$Q$81),'Strukturelle Massnahmen'!$F$5,('Zustandserfassung '!$C$23:$C$81),'Strukturelle Massnahmen'!$B8),-2)," ") -> 0 | G8: 537500 | H8: =IFERROR(ROUND(SUMIFS(('Zustandserfassung '!$X$23:$X$81),('Zustandserfassung '!$Q$23:$Q$81),'Strukturelle Massnahmen'!$H$5,('Zustandserfassung '!$C$23:$C$81),'Strukturelle Massnahmen'!$B8),-2)," ")+H9 -> 48700 | I8: =IFERROR(ROUND(SUMIFS(('Zustandserfassung '!$X$23:$X$81),('Zustandserfassung '!$Q$23:$Q$81),'Strukturelle Massnahmen'!$I$5,('Zustandserfassung '!$C$23:$C$81),'Strukturelle Massnahmen'!$B8),-2)," ")+I9 -> 0 | J8: =SUM(G8,H8,I8) -> 586200 | K8: =IFERROR(ROUND(SUMIFS(('Sanierungsstrategie "Extra"'!$X$23:$X$81),('Sanierungsstrategie "Extra"'!$Q$23:$Q$81),'Strukturelle Massnahmen'!$M$5,('Sanierungsstrategie "Extra"'!$C$23:$C$81),'Strukturelle Massnahmen'!B8),-2)," ")+M9 -> 683300 | T8: [CHF Total] | U8: [CHF/Whg.] | V8: [CHF Total] | W8: [CHF/Whg.] | X8: [CHF Total] | Y8: [CHF/Whg.] | Z8: [CHF Total] | AA8: [CHF/Whg.]
